Workbook

Sheet Table of Contents - Complete
A1: =Calculations!A1 -> Maitland City Council
A3: =Calculations!A2 -> Long Term Financial Plan
A4: =Calculations!A3 -> For the period 2014/15 to 2023/24
A5: =Calculations!A4 -> 2014/15 Draft Budget
A6: =Calculations!A5 -> Option 2 - $25M Projects (Including $1.5M annual rent from 2015/16, 5 additional staff per year from 2015/16)
A7: =Calculations!A6 -> Year 1 to Year 7 - 7.25% Rate Increase (Adjustments to rates pie Yrs 1-7) (Additional farm adjustment) (Additional grants $13M & loans $38M)
A10: Contents
M11: Page
A12: General purpose financial report
A14: Income statement | M14: 1
A15: Reconciliation of income statement to cash budget | M15: 1-3
A16: Balance sheet | M16: 4
A17: Statement of cash flows | M17: 5-6
A19: Notes to the financial reports
A21: Note 3(a) | B21: Rates and annual charges | M21: 7
A22: Note 3(b) | B22: User charges and fees | M22: 8
A23: Note 3(c) | B23: Interest and investment revenue | M23: 9
A24: Note 3(d) | B24: Other revenue | M24: 10
A25: Note 3(e) | B25: Grants | M25: 11-12
A26: Note 3(f) | B26: Contributions | M26: 13-14
A27: Note 4(a) | B27: Employee benefits & on costs | M27: 15
A28: Note 4(b) | B28: Borrowing costs | M28: 15
A29: Note 4(c) | B29: Materials and contracts | M29: 16
A30: Note 4(d) | B30: Depreciation, amortisation and impairment | M30: 17
A31: Note 4(e) | B31: Other expenses | M31: 18
A32: Note 5 | B32: Gain or loss from disposal of assets | M32: 19
A33: Note 6(a) | B33: Cash and cash equivalents | M33: 20
A34: Note 6(b) | B34: Investments | M34: 20
A35: Note 6(c) | B35: Restricted cash, cash equivalents and investments | M35: 21
A36: Note 7 | B36: Receivables | M36: 22-23
A37: Note 8 | B37: Inventories and other assets | M37: 24-25
A38: Note 9 | B38: Infrastructure, property, plant and equipment | M38: 26-35
A39: Note 10 | B39: Payables, borrowings and provisions | M39: 36-37
A40: Note 11 | B40: Reconciliation of cash flow movements | M40: 38
A41: Note 12 | B41: Statement of performance measures | M41: 39-40
A42: Reserve balances | M42: 41-46
A43: Section 94 balances | M43: 47-49
B66: ="The surplus of $"&TEXT(#REF!,"0")&"K was adopted in the 2009/10 Management Plan." -> 

Sheet Income Statement
A1: =Calculations!A1 -> Maitland City Council
A2: =Calculations!A2 -> Long Term Financial Plan
A3: Income Statement
A4: =Calculations!A3 -> For the period 2014/15 to 2023/24
A5: ='Detailed SRV Analysis'!A4 -> 2014/15 Draft Budget
A6: ='Detailed SRV Analysis'!A5 -> Option 2 - $25M Projects (Including $1.5M annual rent from 2015/16, 5 additional staff per year from 2015/16)
A7: ='Detailed SRV Analysis'!A6 -> Year 1 to Year 7 - 7.25% Rate Increase (Adjustments to rates pie Yrs 1-7) (Additional farm adjustment) (Additional grants $13M & loans $38M)
C9: =Calculations!C$10 -> Year 1 | D9: =Calculations!D$10 -> Year 2 | E9: =Calculations!E$10 -> Year 3 | F9: =Calculations!F$10 -> Year 4 | G9: =Calculations!G$10 -> Year 5 | H9: =Calculations!H$10 -> Year 6 | I9: =Calculations!I$10 -> Year 7 | J9: =Calculations!J$10 -> Year 8 | K9: =Calculations!K$10 -> Year 9 | L9: =Calculations!L$10 -> Year 10 | M9: Total
B10: Financial | C10: =Calculations!C$11 -> Adopted | D10: =Calculations!D$11 -> Estimate | E10: =Calculations!E$11 -> Estimate | F10: =Calculations!F$11 -> Estimate | G10: =Calculations!G$11 -> Estimate | H10: =Calculations!H$11 -> Estimate | I10: =Calculations!I$11 -> Estimate | J10: =Calculations!J$11 -> Estimate | K10: =Calculations!K$11 -> Estimate | L10: =Calculations!L$11 -> Estimate | M10: =C11&" to" -> 2014/15 to | P10: Change | Q10: Change | R10: Change
B11: Report | C11: =Calculations!C$12 -> 2014/15 | D11: =Calculations!D$12 -> 2015/16 | E11: =Calculations!E$12 -> 2016/17 | F11: =Calculations!F$12 -> 2017/18 | G11: =Calculations!G$12 -> 2018/19 | H11: =Calculations!H$12 -> 2019/20 | I11: =Calculations!I$12 -> 2020/21 | J11: =Calculations!J$12 -> 2021/22 | K11: =Calculations!K$12 -> 2022/23 | L11: =Calculations!L$12 -> 2023/24 | M11: =L11 -> 2023/24 | P11: =D11 -> 2015/16 | Q11: =E11 -> 2016/17 | R11: =F11 -> 2017/18
B12: Notes | C12: ($'000) | D12: ($'000) | E12: ($'000) | F12: ($'000) | G12: ($'000) | H12: ($'000) | I12: ($'000) | J12: ($'000) | K12: ($'000) | L12: ($'000) | M12: ($'000) | P12: % | Q12: % | R12: %
A14: Income from continuing operations
A15: Revenue:
A16: Rates and annual charges | B16: 3(a) | C16: ='Note 3(a)'!B40 -> 54489 | D16: ='Note 3(a)'!C40 -> 59042 | E16: ='Note 3(a)'!D40 -> 62911 | F16: ='Note 3(a)'!E40 -> 67705 | G16: ='Note 3(a)'!F40 -> 72982 | H16: ='Note 3(a)'!G40 -> 76702 | I16: ='Note 3(a)'!H40 -> 82441 | J16: ='Note 3(a)'!I40 -> 85889 | K16: ='Note 3(a)'!J40 -> 89461 | L16: ='Note 3(a)'!K40 -> 93099 | M16: =SUM(C16:L16) -> 744721 | P16: =(D16-C16)/C16 -> 0.084 | Q16: =(E16-D16)/D16 -> 0.066 | R16: =(F16-E16)/E16 -> 0.076
A17: User charges and fees | B17: 3(b) | C17: ='Note 3(b)'!B45 -> 6415 | D17: ='Note 3(b)'!C45 -> 6917 | E17: ='Note 3(b)'!D45 -> 7345 | F17: ='Note 3(b)'!E45 -> 7796 | G17: ='Note 3(b)'!F45 -> 8272 | H17: ='Note 3(b)'!G45 -> 8773 | I17: ='Note 3(b)'!H45 -> 9313 | J17: ='Note 3(b)'!I45 -> 9877 | K17: ='Note 3(b)'!J45 -> 10469 | L17: ='Note 3(b)'!K45 -> 11102 | M17: =SUM(C17:L17) -> 86279 | P17: =(D17-C17)/C17 -> 0.078 | Q17: =(E17-D17)/D17 -> 0.062 | R17: =(F17-E17)/E17 -> 0.061
A18: Interest and investment revenue | B18: 3(c) | C18: ='Note 3(c)'!B22 -> 2760 | D18: ='Note 3(c)'!C22 -> 3402 | E18: ='Note 3(c)'!D22 -> 3385 | F18: ='Note 3(c)'!E22 -> 3634 | G18: ='Note 3(c)'!F22 -> 3812 | H18: ='Note 3(c)'!G22 -> 3443 | I18: ='Note 3(c)'!H22 -> 3443 | J18: ='Note 3(c)'!I22 -> 3430 | K18: ='Note 3(c)'!J22 -> 3412 | L18: ='Note 3(c)'!K22 -> 3328 | M18: 34049 | P18: 0.233 | Q18: -0.005 | R18: 0.074
A19: Other revenues | B19: 3(d) | C19: ='Note 3(d)'!B36 -> 2100 | D19: ='Note 3(d)'!C36 -> 2163 | E19: ='Note 3(d)'!D36 -> 2228 | F19: ='Note 3(d)'!E36 -> 2294 | G19: ='Note 3(d)'!F36 -> 2362 | H19: ='Note 3(d)'!G36 -> 2431 | I19: ='Note 3(d)'!H36 -> 2502 | J19: ='Note 3(d)'!I36 -> 2577 | K19: ='Note 3(d)'!J36 -> 2654 | L19: ='Note 3(d)'!K36 -> 2734 | M19: 24045 | P19: 0.03 | Q19: 0.03 | R19: 0.03
A20: Grants and contributions - operating | B20: 3(e&f) | C20: ='Note 3(f) Contbns - Operating'!B33 -> 9542 | D20: ='Note 3(f) Contbns - Operating'!C33 -> 9712 | E20: ='Note 3(f) Contbns - Operating'!D33 -> 9988 | F20: ='Note 3(f) Contbns - Operating'!E33 -> 10271 | G20: ='Note 3(f) Contbns - Operating'!F33 -> 10563 | H20: ='Note 3(f) Contbns - Operating'!G33 -> 10861 | I20: ='Note 3(f) Contbns - Operating'!H33 -> 11168 | J20: ='Note 3(f) Contbns - Operating'!I33 -> 11482 | K20: ='Note 3(f) Contbns - Operating'!J33 -> 11808 | L20: ='Note 3(f) Contbns - Operating'!K33 -> 12139 | M20: 107534 | P20: 0.018 | Q20: 0.028 | R20: 0.028
A21: Grants and contributions - capital | B21: 3(e&f) | C21: ='Note 3(f) Contbns - Capital'!B25 -> 8696 | D21: ='Note 3(f) Contbns - Capital'!C25 -> 15276 | E21: ='Note 3(f) Contbns - Capital'!D25 -> 11307 | F21: ='Note 3(f) Contbns - Capital'!E25 -> 11339 | G21: ='Note 3(f) Contbns - Capital'!F25 -> 11372 | H21: ='Note 3(f) Contbns - Capital'!G25 -> 11406 | I21: ='Note 3(f) Contbns - Capital'!H25 -> 11440 | J21: ='Note 3(f) Contbns - Capital'!I25 -> 11476 | K21: ='Note 3(f) Contbns - Capital'!J25 -> 11513 | L21: ='Note 3(f) Contbns - Capital'!K25 -> 11551 | M21: 115376 | P21: 0.757 | Q21: -0.26 | R21: 0.003
A22: Other Income:
A23: Net gain from the disposal of assets | B23: 5 | C23: =IF('Note 5'!B33>0,'Note 5'!B33,0) -> 0 | D23: =IF('Note 5'!C33>0,'Note 5'!C33,0) -> 3000 | E23: =IF('Note 5'!D33>0,'Note 5'!D33,0) -> 5000 | F23: =IF('Note 5'!E33>0,'Note 5'!E33,0) -> 7000 | G23: =IF('Note 5'!F33>0,'Note 5'!F33,0) -> 0 | H23: =IF('Note 5'!G33>0,'Note 5'!G33,0) -> 0 | I23: =IF('Note 5'!H33>0,'Note 5'!H33,0) -> 0 | J23: =IF('Note 5'!I33>0,'Note 5'!I33,0) -> 0 | K23: =IF('Note 5'!J33>0,'Note 5'!J33,0) -> 0 | L23: =IF('Note 5'!K33>0,'Note 5'!K33,0) -> 0 | M23: 15000
A24: Total income from continuing operations | C24: =SUM(C16:C23) -> 84002 | D24: =SUM(D16:D23) -> 99512 | E24: =SUM(E16:E23) -> 102164 | F24: =SUM(F16:F23) -> 110039 | G24: =SUM(G16:G23) -> 109363 | H24: 113616 | I24: 120307 | J24: 124731 | K24: 129317 | L24: 133953 | M24: 1127004 | P24: 0.185 | Q24: 0.027 | R24: 0.077
A26: Expenses from continuing operations
A27: Employee benefits and on-costs | B27: 4(a) | C27: ='Note 4(a) (b)'!B25 -> 27578 | D27: ='Note 4(a) (b)'!C25 -> 29872 | E27: ='Note 4(a) (b)'!D25 -> 31867 | F27: ='Note 4(a) (b)'!E25 -> 33974 | G27: ='Note 4(a) (b)'!F25 -> 36197 | H27: ='Note 4(a) (b)'!G25 -> 38542 | I27: ='Note 4(a) (b)'!H25 -> 41017 | J27: ='Note 4(a) (b)'!I25 -> 43426 | K27: ='Note 4(a) (b)'!J25 -> 45956 | L27: ='Note 4(a) (b)'!K25 -> 48614 | M27: =SUM(C27:L27) -> 377043 | P27: =(D27-C27)/C27 -> 0.083 | Q27: =(E27-D27)/D27 -> 0.067 | R27: =(F27-E27)/E27 -> 0.066
A28: Borrowing costs | B28: 4(b) | C28: ='Note 4(a) (b)'!B39 -> 1587 | D28: ='Note 4(a) (b)'!C39 -> 1828 | E28: ='Note 4(a) (b)'!D39 -> 2066 | F28: ='Note 4(a) (b)'!E39 -> 2269 | G28: ='Note 4(a) (b)'!F39 -> 2404 | H28: ='Note 4(a) (b)'!G39 -> 2220 | I28: ='Note 4(a) (b)'!H39 -> 2359 | J28: ='Note 4(a) (b)'!I39 -> 2494 | K28: ='Note 4(a) (b)'!J39 -> 2575 | L28: ='Note 4(a) (b)'!K39 -> 2558 | M28: 22360 | P28: 0.152 | Q28: 0.13 | R28: 0.098
A29: Materials and contracts | B29: 4(c) | C29: ='Note 4(c)'!B52 -> 13683 | D29: ='Note 4(c)'!C52 -> 14498 | E29: ='Note 4(c)'!D52 -> 15160 | F29: ='Note 4(c)'!E52 -> 15741 | G29: ='Note 4(c)'!F52 -> 16328 | H29: ='Note 4(c)'!G52 -> 16922 | I29: ='Note 4(c)'!H52 -> 17527 | J29: ='Note 4(c)'!I52 -> 18141 | K29: ='Note 4(c)'!J52 -> 18764 | L29: ='Note 4(c)'!K52 -> 19394 | M29: 166158 | P29: 0.06 | Q29: 0.046 | R29: 0.038
A30: Depreciation and amortisation | B30: 4(d) | C30: ='Note 4(d)'!B33 -> 15920 | D30: ='Note 4(d)'!C33 -> 16391 | E30: ='Note 4(d)'!D33 -> 16875 | F30: ='Note 4(d)'!E33 -> 17375 | G30: ='Note 4(d)'!F33 -> 17889 | H30: ='Note 4(d)'!G33 -> 18160 | I30: ='Note 4(d)'!H33 -> 18705 | J30: ='Note 4(d)'!I33 -> 19264 | K30: ='Note 4(d)'!J33 -> 19841 | L30: ='Note 4(d)'!K33 -> 20438 | M30: 180858 | P30: 0.03 | Q30: 0.03 | R30: 0.03
A31: Other expenses | B31: 4(e) | C31: ='Note 4(e)'!B40 -> 17219 | D31: ='Note 4(e)'!C40 -> 18663 | E31: ='Note 4(e)'!D40 -> 20542 | F31: ='Note 4(e)'!E40 -> 21771 | G31: ='Note 4(e)'!F40 -> 23444 | H31: ='Note 4(e)'!G40 -> 25190 | I31: ='Note 4(e)'!H40 -> 27424 | J31: ='Note 4(e)'!I40 -> 28942 | K31: ='Note 4(e)'!J40 -> 30953 | L31: ='Note 4(e)'!K40 -> 33064 | M31: 247212 | P31: 0.084 | Q31: 0.101 | R31: 0.06
A32: Net loss from the disposal of assets | B32: 5 | C32: =IF('Note 5'!B33<0,-'Note 5'!B33,0) -> 0 | D32: =IF('Note 5'!C33<0,-'Note 5'!C33,0) -> 0 | E32: =IF('Note 5'!D33<0,-'Note 5'!D33,0) -> 0 | F32: =IF('Note 5'!E33<0,-'Note 5'!E33,0) -> 0 | G32: =IF('Note 5'!F33<0,-'Note 5'!F33,0) -> 0 | H32: =IF('Note 5'!G33<0,-'Note 5'!G33,0) -> 0 | I32: =IF('Note 5'!H33<0,-'Note 5'!H33,0) -> 0 | J32: =IF('Note 5'!I33<0,-'Note 5'!I33,0) -> 0 | K32: =IF('Note 5'!J33<0,-'Note 5'!J33,0) -> 0 | L32: =IF('Note 5'!K33<0,-'Note 5'!K33,0) -> 0 | M32: 0
A33: Total expenses from continuing operations | C33: =SUM(C27:C32) -> 75987 | D33: =SUM(D27:D32) -> 81252 | E33: =SUM(E27:E32) -> 86510 | F33: =SUM(F27:F32) -> 91130 | G33: =SUM(G27:G32) -> 96262 | H33: 101034 | I33: 107032 | J33: 112267 | K33: 118089 | L33: 124068 | M33: 993631 | P33: 0.069 | Q33: 0.065 | R33: 0.053
A35: Operating result from continuing operations | C35: =C24-C33 -> 8015 | D35: =D24-D33 -> 18260 | E35: =E24-E33 -> 15654 | F35: =F24-F33 -> 18909 | G35: =G24-G33 -> 13101 | H35: 12582 | I35: 13275 | J35: 12464 | K35: 11228 | L35: 9885 | M35: =M24-M33 -> 133373 | P35: 1.278 | Q35: -0.143 | R35: 0.208
A37: Less: Transfers to Reserves &
A38: Balance Sheet Items
A39: Transfers to internal reserves | C39: =-'Rec Income St to Mgt Plan'!E17/1000 -> -2065 | D39: =-Calculations!D202 -> -6142 | E39: =-Calculations!E202 -> -7206 | F39: =-Calculations!F202 -> -9490 | G39: =-Calculations!G202 -> -3101 | H39: =-Calculations!H202 -> -449 | I39: =-Calculations!I202 -> -452 | J39: =-Calculations!J202 -> -456 | K39: =-Calculations!K202 -> -459 | L39: =-Calculations!L202 -> -463 | M39: =SUM(C39:L39) -> -30283 | P39: (gl 34287)
A40: Transfers to S.94 / S.94A reserves | C40: =-'Rec Income St to Mgt Plan'!E18/1000 -> -8900 | D40: =-Calculations!D207 -> -10776 | E40: =-Calculations!E207 -> -10811 | F40: =-Calculations!F207 -> -11113 | G40: =-Calculations!G207 -> -11183 | H40: =-Calculations!H207 -> -11211 | I40: =-Calculations!I207 -> -11235 | J40: =-Calculations!J207 -> -11257 | K40: =-Calculations!K207 -> -11271 | L40: =-Calculations!L207 -> -11249 | M40: -109006 | P40: (gl 38490.1)
A41: Plant & equipment purchases | C41: =-Calculations!C224 -> -1461 | D41: =-Calculations!D224 -> -2658 | E41: =-Calculations!E224 -> -3494 | F41: =-Calculations!F224 -> -1981 | G41: =-Calculations!G224 -> -1645 | H41: =-Calculations!H224 -> -1695 | I41: =-Calculations!I224 -> -3142 | J41: =-Calculations!J224 -> -4079 | K41: =-Calculations!K224 -> -2303 | L41: =-Calculations!L224 -> -1907 | M41: -24365 | P41: (gl 41401)
A42: Other capital expenditure | C42: =-Calculations!C227 -> -19368 | D42: =-Calculations!D227 -> -27916 | E42: =-Calculations!E227 -> -22903 | F42: =-Calculations!F227 -> -25794 | G42: =-Calculations!G227 -> -27672 | H42: =-Calculations!H227 -> -20201 | I42: =-Calculations!I227 -> -21241 | J42: =-Calculations!J227 -> -20517 | K42: =-Calculations!K227 -> -19546 | L42: =-Calculations!L227 -> -19378 | M42: -224536 | P42: (gl A2.4)
A43: Principal repayments - Loans | C43: =-'Rec Income St to Mgt Plan'!E24/1000 -> -2511 | D43: =-(Calculations!D142+Calculations!D149) -> -2669 | E43: =-(Calculations!E142+Calculations!E149) -> -3185 | F43: =-(Calculations!F142+Calculations!F149) -> -3421 | G43: =-(Calculations!G142+Calculations!G149) -> -3611 | H43: =-(Calculations!H142+Calculations!H149) -> -3976 | I43: =-(Calculations!I142+Calculations!I149) -> -4142 | J43: =-(Calculations!J142+Calculations!J149) -> -4560 | K43: =-(Calculations!K142+Calculations!K149) -> -4985 | L43: =-(Calculations!L142+Calculations!L149) -> -5549 | M43: -38609 | P43: (gl 51000)
A44: Principal repayments - Hire purchase | C44: =-'Rec Income St to Mgt Plan'!E25/1000 -> -623 | D44: =-Calculations!D156 -> -617 | E44: =-Calculations!E156 -> -596 | F44: =-Calculations!F156 -> -664 | G44: =-Calculations!G156 -> -701 | H44: =-Calculations!H156 -> -741 | I44: =-Calculations!I156 -> -756 | J44: =-Calculations!J156 -> -760 | K44: =-Calculations!K156 -> -773 | L44: =-Calculations!L156 -> -817 | M44: -7048 | P44: (gl 53000)
C45: =SUM(C39:C44) -> -34928 | D45: -50778 | E45: -48195 | F45: -52463 | G45: -47913 | H45: -38273 | I45: -40968 | J45: -41629 | K45: -39337 | L45: -39363 | M45: -433847
A47: Total funds required | C47: =C35+C45 -> -26913 | D47: -32518 | E47: -32541 | F47: -33554 | G47: -34812 | H47: -25691 | I47: -27693 | J47: -29165 | K47: -28109 | L47: -29478 | M47: -300474
A49: Funded by:
A50: Loan drawdowns - Status Quo | C50: =-'Rec Income St to Mgt Plan'!E29/1000 -> 1000 | D50: =Calculations!D138 -> 1000 | E50: =Calculations!E138 -> 1000 | F50: =Calculations!F138 -> 1000 | G50: =Calculations!G138 -> 1000 | H50: =Calculations!H138 -> 1000 | I50: =Calculations!I138 -> 1000 | J50: =Calculations!J138 -> 1000 | K50: =Calculations!K138 -> 1000 | L50: =Calculations!L138 -> 1000 | M50: =SUM(C50:L50) -> 10000 | P50: (gl 51000)
A51: Loan drawdowns - Additional | C51: =Calculations!C146 -> 3800 | D51: =Calculations!D146 -> 3800 | E51: =Calculations!E146 -> 3800 | F51: =Calculations!F146 -> 3800 | G51: =Calculations!G146 -> 3800 | H51: =Calculations!H146 -> 3800 | I51: =Calculations!I146 -> 3800 | J51: =Calculations!J146 -> 3800 | K51: =Calculations!K146 -> 3800 | L51: =Calculations!L146 -> 3800 | M51: 38000
A52: Hire purchase drawdowns | C52: =Calculations!C153 -> 0 | D52: =Calculations!D153 -> 1153 | E52: =Calculations!E153 -> 1944 | F52: =Calculations!F153 -> 384 | G52: =Calculations!G153 -> 0 | H52: =Calculations!H153 -> 0 | I52: =Calculations!I153 -> 1396 | J52: =Calculations!J153 -> 2281 | K52: =Calculations!K153 -> 451 | L52: =Calculations!L153 -> 0 | M52: 7609 | P52: (gl 53000)
A53: Non cash funding - depreciation | C53: =-'Rec Income St to Mgt Plan'!E32/1000 -> 15920 | D53: ='Note 4(d)'!C33 -> 16391 | E53: ='Note 4(d)'!D33 -> 16875 | F53: ='Note 4(d)'!E33 -> 17375 | G53: ='Note 4(d)'!F33 -> 17889 | H53: ='Note 4(d)'!G33 -> 18160 | I53: ='Note 4(d)'!H33 -> 18705 | J53: ='Note 4(d)'!I33 -> 19264 | K53: ='Note 4(d)'!J33 -> 19841 | L53: ='Note 4(d)'!K33 -> 20438 | M53: 180858 | P53: (gl 34288)
A54: Non cash funding - amortisation of tip asset | C54: =-'Rec Income St to Mgt Plan'!E33/1000 -> 227 | D54: ='Note 4(a) (b)'!C36 -> 235 | E54: ='Note 4(a) (b)'!D36 -> 242 | F54: ='Note 4(a) (b)'!E36 -> 250 | G54: ='Note 4(a) (b)'!F36 -> 258 | H54: ='Note 4(a) (b)'!G36 -> 0 | I54: ='Note 4(a) (b)'!H36 -> 0 | J54: ='Note 4(a) (b)'!I36 -> 0 | K54: ='Note 4(a) (b)'!J36 -> 0 | L54: ='Note 4(a) (b)'!K36 -> 0 | M54: 1212 | P54: (gl 34289)
A55: Transfers from internal reserves | C55: =-'Rec Income St to Mgt Plan'!E34/1000 -> 1781 | D55: =Calculations!D210 -> 7449 | E55: =Calculations!E210 -> 6200 | F55: =Calculations!F210 -> 8200 | G55: =Calculations!G210 -> 9405 | H55: =Calculations!H210 -> 250 | I55: =Calculations!I210 -> 250 | J55: =Calculations!J210 -> 250 | K55: =Calculations!K210 -> 250 | L55: =Calculations!L210 -> 250 | M55: 34285 | P55: (gl 34286)
A56: Transfers from S.94 / S.94A reserves | C56: =-'Rec Income St to Mgt Plan'!E36/1000-'Rec Income St to Mgt Plan'!E37/1000 -> 4198 | D56: =Calculations!D214+Calculations!D215 -> 2191 | E56: =Calculations!E214+Calculations!E215 -> 2194 | F56: =Calculations!F214+Calculations!F215 -> 2197 | G56: =Calculations!G214+Calculations!G215 -> 2138 | H56: =Calculations!H214+Calculations!H215 -> 2141 | I56: =Calculations!I214+Calculations!I215 -> 2175 | J56: =Calculations!J214+Calculations!J215 -> 2178 | K56: =Calculations!K214+Calculations!K215 -> 2381 | L56: =Calculations!L214+Calculations!L215 -> 2385 | M56: 24178 | P56: (gl 38490.3 & gl 38493.3)
C57: =SUM(C50:C56) -> 26926 | D57: 32219 | E57: 32255 | F57: 33206 | G57: 34490 | H57: 25351 | I57: 27326 | J57: 28773 | K57: 27723 | L57: 27873 | M57: 296142
A59: Cash surplus (deficit) | C59: =C47+C57 -> 13 | D59: -299 | E59: -286 | F59: -348 | G59: -322 | H59: -340 | I59: -367 | J59: -392 | K59: -386 | L59: -1605 | M59: -4332 | P59: (gl 38491)
A61: Add: Productivity savings | C61: =Calculations!C29 -> 0 | D61: =Calculations!D29 -> 500 | E61: =Calculations!E29 -> 500 | F61: =Calculations!F29 -> 500 | G61: =Calculations!G29 -> 500 | H61: =Calculations!H29 -> 500 | I61: =Calculations!I29 -> 500 | J61: =Calculations!J29 -> 500 | K61: =Calculations!K29 -> 500 | L61: =Calculations!L29 -> 500 | M61: =SUM(C61:L61) -> 4500
A63: Adjusted cash surplus (deficit) | C63: =C59+C61 -> 13 | D63: =D59+D61 -> 201 | E63: 214 | F63: 152 | G63: 178 | H63: 160 | I63: 133 | J63: 108 | K63: 114 | L63: -1105 | M63: 168
A65: Notes
A66: 1. Transfers to internally restricted assets:
A67: ELE reserve | C67: =-'Internal Reserves'!B195 -> 0 | D67: =-'Internal Reserves'!C195 -> -80 | E67: =-'Internal Reserves'!D195 -> -89 | F67: =-'Internal Reserves'!E195 -> -92 | G67: =-'Internal Reserves'!F195 -> -95 | H67: =-'Internal Reserves'!G195 -> -99 | I67: =-'Internal Reserves'!H195 -> -102 | J67: =-'Internal Reserves'!I195 -> -106 | K67: =-'Internal Reserves'!J195 -> -109 | L67: =-'Internal Reserves'!K195 -> -113 | M67: =SUM(C67:L67) -> -885
A68: Economic development reserve | C68: =-'Internal Reserves'!B196 -> 0 | D68: =-'Internal Reserves'!C196 -> -3000 | E68: =-'Internal Reserves'!D196 -> -5000 | F68: =-'Internal Reserves'!E196 -> -7000 | G68: =-'Internal Reserves'!F196 -> 0 | H68: =-'Internal Reserves'!G196 -> 0 | I68: =-'Internal Reserves'!H196 -> 0 | J68: =-'Internal Reserves'!I196 -> 0 | K68: =-'Internal Reserves'!J196 -> 0 | L68: =-'Internal Reserves'!K196 -> 0 | M68: =SUM(C68:L68) -> -15000
A69: Computer reserve | C69: =-'Internal Reserves'!B197 -> -200 | D69: =-'Internal Reserves'!C197 -> -300 | E69: =-'Internal Reserves'!D197 -> -300 | F69: =-'Internal Reserves'!E197 -> -300 | G69: =-'Internal Reserves'!F197 -> -300 | H69: =-'Internal Reserves'!G197 -> -300 | I69: =-'Internal Reserves'!H197 -> -300 | J69: =-'Internal Reserves'!I197 -> -300 | K69: =-'Internal Reserves'!J197 -> -300 | L69: =-'Internal Reserves'!K197 -> -300 | M69: -2900
A70: Environmental works reserve | C70: =-'Internal Reserves'!B198 -> 0 | D70: =-'Internal Reserves'!C198 -> 0 | E70: =-'Internal Reserves'!D198 -> 0 | F70: =-'Internal Reserves'!E198 -> 0 | G70: =-'Internal Reserves'!F198 -> 0 | H70: =-'Internal Reserves'!G198 -> 0 | I70: =-'Internal Reserves'!H198 -> 0 | J70: =-'Internal Reserves'!I198 -> 0 | K70: =-'Internal Reserves'!J198 -> 0 | L70: =-'Internal Reserves'!K198 -> 0 | M70: 0
A71: Workers compensation reserve | C71: =-'Internal Reserves'!B199 -> 0 | D71: =-'Internal Reserves'!C199 -> 0 | E71: =-'Internal Reserves'!D199 -> 0 | F71: =-'Internal Reserves'!E199 -> 0 | G71: =-'Internal Reserves'!F199 -> 0 | H71: =-'Internal Reserves'!G199 -> 0 | I71: =-'Internal Reserves'!H199 -> 0 | J71: =-'Internal Reserves'!I199 -> 0 | K71: =-'Internal Reserves'!J199 -> 0 | L71: =-'Internal Reserves'!K199 -> 0 | M71: 0
A72: Competencies reserve | C72: =-'Internal Reserves'!B200 -> 0 | D72: =-'Internal Reserves'!C200 -> 0 | E72: =-'Internal Reserves'!D200 -> 0 | F72: =-'Internal Reserves'!E200 -> 0 | G72: =-'Internal Reserves'!F200 -> 0 | H72: =-'Internal Reserves'!G200 -> 0 | I72: =-'Internal Reserves'!H200 -> 0 | J72: =-'Internal Reserves'!I200 -> 0 | K72: =-'Internal Reserves'!J200 -> 0 | L72: =-'Internal Reserves'!K200 -> 0 | M72: 0
A73: Asset management reserve | C73: =-'Internal Reserves'!B201 -> -350 | D73: =-'Internal Reserves'!C201 -> 0 | E73: =-'Internal Reserves'!D201 -> 0 | F73: =-'Internal Reserves'!E201 -> 0 | G73: =-'Internal Reserves'!F201 -> 0 | H73: =-'Internal Reserves'!G201 -> 0 | I73: =-'Internal Reserves'!H201 -> 0 | J73: =-'Internal Reserves'!I201 -> 0 | K73: =-'Internal Reserves'!J201 -> 0 | L73: =-'Internal Reserves'!K201 -> 0 | M73: -350
A74: CBD / Mall Construction Reserve | C74: =-'Internal Reserves'!B202 -> 0 | D74: =-'Internal Reserves'!C202 -> 0 | E74: =-'Internal Reserves'!D202 -> 0 | F74: =-'Internal Reserves'!E202 -> 0 | G74: =-'Internal Reserves'!F202 -> 0 | H74: =-'Internal Reserves'!G202 -> 0 | I74: =-'Internal Reserves'!H202 -> 0 | J74: =-'Internal Reserves'!I202 -> 0 | K74: =-'Internal Reserves'!J202 -> 0 | L74: =-'Internal Reserves'!K202 -> 0 | M74: 0
A75: Compensatory habitat reserve | C75: =-'Internal Reserves'!B203 -> 0 | D75: =-'Internal Reserves'!C203 -> 0 | E75: =-'Internal Reserves'!D203 -> 0 | F75: =-'Internal Reserves'!E203 -> 0 | G75: =-'Internal Reserves'!F203 -> 0 | H75: =-'Internal Reserves'!G203 -> 0 | I75: =-'Internal Reserves'!H203 -> 0 | J75: =-'Internal Reserves'!I203 -> 0 | K75: =-'Internal Reserves'!J203 -> 0 | L75: =-'Internal Reserves'!K203 -> 0 | M75: 0
A76: Waste depot construction reserve | C76: =-'Internal Reserves'!B204 -> -500 | D76: =-'Internal Reserves'!C204 -> -1000 | E76: =-'Internal Reserves'!D204 -> -1000 | F76: =-'Internal Reserves'!E204 -> -1000 | G76: =-'Internal Reserves'!F204 -> -1000 | H76: =-'Internal Reserves'!G204 -> -50 | I76: =-'Internal Reserves'!H204 -> -50 | J76: =-'Internal Reserves'!I204 -> -50 | K76: =-'Internal Reserves'!J204 -> -50 | L76: =-'Internal Reserves'!K204 -> -50 | M76: -4750
A77: Waste depot rehabilitation reserve | C77: =-'Internal Reserves'!B205 -> -520 | D77: =-'Internal Reserves'!C205 -> -1043 | E77: =-'Internal Reserves'!D205 -> -817 | F77: =-'Internal Reserves'!E205 -> -1098 | G77: =-'Internal Reserves'!F205 -> -1706 | H77: =-'Internal Reserves'!G205 -> 0 | I77: =-'Internal Reserves'!H205 -> 0 | J77: =-'Internal Reserves'!I205 -> 0 | K77: =-'Internal Reserves'!J205 -> 0 | L77: =-'Internal Reserves'!K205 -> 0 | M77: -5184
A78: Transfer station construction reserve | C78: =-'Internal Reserves'!B206 -> -495 | D78: =-'Internal Reserves'!C206 -> -719 | E78: =-'Internal Reserves'!D206 -> 0 | F78: =-'Internal Reserves'!E206 -> 0 | G78: =-'Internal Reserves'!F206 -> 0 | H78: =-'Internal Reserves'!G206 -> 0 | I78: =-'Internal Reserves'!H206 -> 0 | J78: =-'Internal Reserves'!I206 -> 0 | K78: =-'Internal Reserves'!J206 -> 0 | L78: =-'Internal Reserves'!K206 -> 0 | M78: -1214
A79: Unrestricted cash reserve | C79: =-'Internal Reserves'!B207 -> 0 | D79: =-'Internal Reserves'!C207 -> 0 | E79: =-'Internal Reserves'!D207 -> 0 | F79: =-'Internal Reserves'!E207 -> 0 | G79: =-'Internal Reserves'!F207 -> 0 | H79: =-'Internal Reserves'!G207 -> 0 | I79: =-'Internal Reserves'!H207 -> 0 | J79: =-'Internal Reserves'!I207 -> 0 | K79: =-'Internal Reserves'!J207 -> 0 | L79: =-'Internal Reserves'!K207 -> 0 | M79: 0
A80: Floodplain management construction reserve | C80: =-'Internal Reserves'!B208 -> 0 | D80: =-'Internal Reserves'!C208 -> 0 | E80: =-'Internal Reserves'!D208 -> 0 | F80: =-'Internal Reserves'!E208 -> 0 | G80: =-'Internal Reserves'!F208 -> 0 | H80: =-'Internal Reserves'!G208 -> 0 | I80: =-'Internal Reserves'!H208 -> 0 | J80: =-'Internal Reserves'!I208 -> 0 | K80: =-'Internal Reserves'!J208 -> 0 | L80: =-'Internal Reserves'!K208 -> 0 | M80: 0
A81: Asset protection zone maintenance reserve | C81: =-'Internal Reserves'!B209 -> 0 | D81: =-'Internal Reserves'!C209 -> 0 | E81: =-'Internal Reserves'!D209 -> 0 | F81: =-'Internal Reserves'!E209 -> 0 | G81: =-'Internal Reserves'!F209 -> 0 | H81: =-'Internal Reserves'!G209 -> 0 | I81: =-'Internal Reserves'!H209 -> 0 | J81: =-'Internal Reserves'!I209 -> 0 | K81: =-'Internal Reserves'!J209 -> 0 | L81: =-'Internal Reserves'!K209 -> 0 | M81: 0
C82: =SUM(C67:C81) -> -2065 | D82: =SUM(D67:D81) -> -6142 | E82: -7206 | F82: -9490 | G82: -3101 | H82: -449 | I82: -452 | J82: -456 | K82: -459 | L82: -463 | M82: =SUM(M67:M81) -> -30283
A85: 2. Transfers from internally restricted assets
A86: ELE reserve | C86: ='Internal Reserves'!B214 -> 0 | D86: ='Internal Reserves'!C214 -> 0 | E86: ='Internal Reserves'!D214 -> 0 | F86: ='Internal Reserves'!E214 -> 0 | G86: ='Internal Reserves'!F214 -> 0 | H86: ='Internal Reserves'!G214 -> 0 | I86: ='Internal Reserves'!H214 -> 0 | J86: ='Internal Reserves'!I214 -> 0 | K86: ='Internal Reserves'!J214 -> 0 | L86: ='Internal Reserves'!K214 -> 0 | M86: =SUM(C86:L86) -> 0
A87: Economic development reserve | C87: ='Internal Reserves'!B215 -> 0 | D87: ='Internal Reserves'!C215 -> 3000 | E87: ='Internal Reserves'!D215 -> 5000 | F87: ='Internal Reserves'!E215 -> 7000 | G87: ='Internal Reserves'!F215 -> 0 | H87: ='Internal Reserves'!G215 -> 0 | I87: ='Internal Reserves'!H215 -> 0 | J87: ='Internal Reserves'!I215 -> 0 | K87: ='Internal Reserves'!J215 -> 0 | L87: ='Internal Reserves'!K215 -> 0 | M87: =SUM(C87:L87) -> 15000
A88: Computer reserve | C88: ='Internal Reserves'!B216 -> 638 | D88: ='Internal Reserves'!C216 -> 450 | E88: ='Internal Reserves'!D216 -> 200 | F88: ='Internal Reserves'!E216 -> 200 | G88: ='Internal Reserves'!F216 -> 200 | H88: ='Internal Reserves'!G216 -> 200 | I88: ='Internal Reserves'!H216 -> 200 | J88: ='Internal Reserves'!I216 -> 200 | K88: ='Internal Reserves'!J216 -> 200 | L88: ='Internal Reserves'!K216 -> 200 | M88: 2688
A89: Environmental works reserve | C89: ='Internal Reserves'!B217 -> 0 | D89: ='Internal Reserves'!C217 -> 0 | E89: ='Internal Reserves'!D217 -> 0 | F89: ='Internal Reserves'!E217 -> 0 | G89: ='Internal Reserves'!F217 -> 0 | H89: ='Internal Reserves'!G217 -> 0 | I89: ='Internal Reserves'!H217 -> 0 | J89: ='Internal Reserves'!I217 -> 0 | K89: ='Internal Reserves'!J217 -> 0 | L89: ='Internal Reserves'!K217 -> 0 | M89: 0
A90: Workers compensation reserve | C90: ='Internal Reserves'!B218 -> 250 | D90: ='Internal Reserves'!C218 -> 0 | E90: ='Internal Reserves'!D218 -> 0 | F90: ='Internal Reserves'!E218 -> 0 | G90: ='Internal Reserves'!F218 -> 0 | H90: ='Internal Reserves'!G218 -> 0 | I90: ='Internal Reserves'!H218 -> 0 | J90: ='Internal Reserves'!I218 -> 0 | K90: ='Internal Reserves'!J218 -> 0 | L90: ='Internal Reserves'!K218 -> 0 | M90: 250
A91: Competencies reserve | C91: ='Internal Reserves'!B219 -> 0 | D91: ='Internal Reserves'!C219 -> 0 | E91: ='Internal Reserves'!D219 -> 0 | F91: ='Internal Reserves'!E219 -> 0 | G91: ='Internal Reserves'!F219 -> 0 | H91: ='Internal Reserves'!G219 -> 0 | I91: ='Internal Reserves'!H219 -> 0 | J91: ='Internal Reserves'!I219 -> 0 | K91: ='Internal Reserves'!J219 -> 0 | L91: ='Internal Reserves'!K219 -> 0 | M91: 0
A92: Asset management reserve | C92: ='Internal Reserves'!B220 -> 300 | D92: ='Internal Reserves'!C220 -> 0 | E92: ='Internal Reserves'!D220 -> 0 | F92: ='Internal Reserves'!E220 -> 0 | G92: ='Internal Reserves'!F220 -> 0 | H92: ='Internal Reserves'!G220 -> 0 | I92: ='Internal Reserves'!H220 -> 0 | J92: ='Internal Reserves'!I220 -> 0 | K92: ='Internal Reserves'!J220 -> 0 | L92: ='Internal Reserves'!K220 -> 0 | M92: 300
A93: CBD / Mall Construction Reserve | C93: ='Internal Reserves'!B221 -> 0 | D93: ='Internal Reserves'!C221 -> 0 | E93: ='Internal Reserves'!D221 -> 0 | F93: ='Internal Reserves'!E221 -> 0 | G93: ='Internal Reserves'!F221 -> 0 | H93: ='Internal Reserves'!G221 -> 0 | I93: ='Internal Reserves'!H221 -> 0 | J93: ='Internal Reserves'!I221 -> 0 | K93: ='Internal Reserves'!J221 -> 0 | L93: ='Internal Reserves'!K221 -> 0 | M93: 0
A94: Compensatory habitat reserve | C94: ='Internal Reserves'!B222 -> 0 | D94: ='Internal Reserves'!C222 -> 0 | E94: ='Internal Reserves'!D222 -> 0 | F94: ='Internal Reserves'!E222 -> 0 | G94: ='Internal Reserves'!F222 -> 0 | H94: ='Internal Reserves'!G222 -> 0 | I94: ='Internal Reserves'!H222 -> 0 | J94: ='Internal Reserves'!I222 -> 0 | K94: ='Internal Reserves'!J222 -> 0 | L94: ='Internal Reserves'!K222 -> 0 | M94: 0
A95: Waste depot construction reserve | C95: ='Internal Reserves'!B223 -> 500 | D95: ='Internal Reserves'!C223 -> 1000 | E95: ='Internal Reserves'!D223 -> 1000 | F95: ='Internal Reserves'!E223 -> 1000 | G95: ='Internal Reserves'!F223 -> 1000 | H95: ='Internal Reserves'!G223 -> 50 | I95: ='Internal Reserves'!H223 -> 50 | J95: ='Internal Reserves'!I223 -> 50 | K95: ='Internal Reserves'!J223 -> 50 | L95: ='Internal Reserves'!K223 -> 50 | M95: 4750
A96: Waste depot rehabilitation reserve | C96: ='Internal Reserves'!B224 -> 0 | D96: ='Internal Reserves'!C224 -> 0 | E96: ='Internal Reserves'!D224 -> 0 | F96: ='Internal Reserves'!E224 -> 0 | G96: ='Internal Reserves'!F224 -> 8205 | H96: ='Internal Reserves'!G224 -> 0 | I96: ='Internal Reserves'!H224 -> 0 | J96: ='Internal Reserves'!I224 -> 0 | K96: ='Internal Reserves'!J224 -> 0 | L96: ='Internal Reserves'!K224 -> 0 | M96: 8205
A97: Transfer station construction reserve | C97: ='Internal Reserves'!B225 -> 0 | D97: ='Internal Reserves'!C225 -> 2999 | E97: ='Internal Reserves'!D225 -> 0 | F97: ='Internal Reserves'!E225 -> 0 | G97: ='Internal Reserves'!F225 -> 0 | H97: ='Internal Reserves'!G225 -> 0 | I97: ='Internal Reserves'!H225 -> 0 | J97: ='Internal Reserves'!I225 -> 0 | K97: ='Internal Reserves'!J225 -> 0 | L97: ='Internal Reserves'!K225 -> 0 | M97: 2999
A98: Unrestricted cash reserve | C98: ='Internal Reserves'!B226 -> 0 | D98: ='Internal Reserves'!C226 -> 0 | E98: ='Internal Reserves'!D226 -> 0 | F98: ='Internal Reserves'!E226 -> 0 | G98: ='Internal Reserves'!F226 -> 0 | H98: ='Internal Reserves'!G226 -> 0 | I98: ='Internal Reserves'!H226 -> 0 | J98: ='Internal Reserves'!I226 -> 0 | K98: ='Internal Reserves'!J226 -> 0 | L98: ='Internal Reserves'!K226 -> 0 | M98: 0
A99: Floodplain management construction reserve | C99: ='Internal Reserves'!B227 -> 48 | D99: ='Internal Reserves'!C227 -> 0 | E99: ='Internal Reserves'!D227 -> 0 | F99: ='Internal Reserves'!E227 -> 0 | G99: ='Internal Reserves'!F227 -> 0 | H99: ='Internal Reserves'!G227 -> 0 | I99: ='Internal Reserves'!H227 -> 0 | J99: ='Internal Reserves'!I227 -> 0 | K99: ='Internal Reserves'!J227 -> 0 | L99: ='Internal Reserves'!K227 -> 0 | M99: 48
A100: Asset protection zone maintenance reserve | C100: ='Internal Reserves'!B228 -> 45 | D100: ='Internal Reserves'!C228 -> 0 | E100: ='Internal Reserves'!D228 -> 0 | F100: ='Internal Reserves'!E228 -> 0 | G100: ='Internal Reserves'!F228 -> 0 | H100: ='Internal Reserves'!G228 -> 0 | I100: ='Internal Reserves'!H228 -> 0 | J100: ='Internal Reserves'!I228 -> 0 | K100: ='Internal Reserves'!J228 -> 0 | L100: ='Internal Reserves'!K228 -> 0 | M100: 45
C101: =SUM(C86:C100) -> 1781 | D101: =SUM(D86:D100) -> 7449 | E101: 6200 | F101: 8200 | G101: 9405 | H101: 250 | I101: 250 | J101: 250 | K101: 250 | L101: 250 | M101: =SUM(M86:M100) -> 34285
A103: Total cash payments
A104: Employee benefits and on-costs | C104: =C27 -> 27578 | D104: 29872 | E104: 31867 | F104: 33974 | G104: 36197 | H104: 38542 | I104: 41017 | J104: 43426 | K104: 45956 | L104: 48614 | M104: =SUM(C104:L104) -> 377043
A105: Loan repayments (Principle & interest) | C105: =Calculations!C143+Calculations!C150 -> 3808 | D105: =Calculations!D143+Calculations!D150 -> 4160 | E105: =Calculations!E143+Calculations!E150 -> 4860 | F105: =Calculations!F143+Calculations!F150 -> 5262 | G105: =Calculations!G143+Calculations!G150 -> 5604 | H105: =Calculations!H143+Calculations!H150 -> 6097 | I105: =Calculations!I143+Calculations!I150 -> 6365 | J105: =Calculations!J143+Calculations!J150 -> 6872 | K105: =Calculations!K143+Calculations!K150 -> 7349 | L105: =Calculations!L143+Calculations!L150 -> 7926 | M105: =SUM(C105:L105) -> 58303
A106: Hire purchase repayments (Principle & interest) | C106: =Calculations!C157 -> 686 | D106: =Calculations!D157 -> 719 | E106: =Calculations!E157 -> 745 | F106: =Calculations!F157 -> 842 | G106: =Calculations!G157 -> 854 | H106: =Calculations!H157 -> 840 | I106: =Calculations!I157 -> 892 | J106: =Calculations!J157 -> 942 | K106: =Calculations!K157 -> 984 | L106: =Calculations!L157 -> 998 | M106: 8502
A107: Materials and contracts | C107: =C29 -> 13683 | D107: 14498 | E107: 15160 | F107: 15741 | G107: 16328 | H107: 16922 | I107: 17527 | J107: 18141 | K107: 18764 | L107: 19394 | M107: 166158
A108: Other expenses | C108: =C31 -> 17219 | D108: 18663 | E108: 20542 | F108: 21771 | G108: 23444 | H108: 25190 | I108: 27424 | J108: 28942 | K108: 30953 | L108: 33064 | M108: 247212
A109: Plant & equipment purchases | C109: =-C41 -> 1461 | D109: 2658 | E109: 3494 | F109: 1981 | G109: 1645 | H109: 1695 | I109: 3142 | J109: 4079 | K109: 2303 | L109: 1907 | M109: 24365
A110: Other capital expenditure | C110: =-C42 -> 19368 | D110: 27916 | E110: 22903 | F110: 25794 | G110: 27672 | H110: 20201 | I110: 21241 | J110: 20517 | K110: 19546 | L110: 19378 | M110: 224536
A111: S.94 / S.94A contributions | C111: =Calculations!C216 -> 11898 | D111: =Calculations!D216 -> 11441 | E111: =Calculations!E216 -> 11444 | F111: =Calculations!F216 -> 11447 | G111: =Calculations!G216 -> 11388 | H111: =Calculations!H216 -> 11391 | I111: =Calculations!I216 -> 11425 | J111: =Calculations!J216 -> 11428 | K111: =Calculations!K216 -> 11631 | L111: =Calculations!L216 -> 11635 | M111: 115128
C112: =SUM(C104:C111) -> 95701 | D112: =SUM(D104:D111) -> 109927 | E112: 111015 | F112: 116812 | G112: 123132 | H112: 120878 | I112: 129033 | J112: 134347 | K112: 137486 | L112: 142916 | M112: 1221247

Sheet Balance Sheet
A1: =Calculations!A1 -> Maitland City Council
A2: =Calculations!A2 -> Long Term Financial Plan
A3: Balance Sheet
A4: =Calculations!A3 -> For the period 2014/15 to 2023/24
A5: ='Income Statement'!A5 -> 2014/15 Draft Budget
A6: ='Income Statement'!A6 -> Option 2 - $25M Projects (Including $1.5M annual rent from 2015/16, 5 additional staff per year from 2015/16)
A7: ='Income Statement'!A7 -> Year 1 to Year 7 - 7.25% Rate Increase (Adjustments to rates pie Yrs 1-7) (Additional farm adjustment) (Additional grants $13M & loans $38M)
D10: ='Income Statement'!C9 -> Year 1 | E10: ='Income Statement'!D9 -> Year 2 | F10: ='Income Statement'!E9 -> Year 3 | G10: ='Income Statement'!F9 -> Year 4 | H10: ='Income Statement'!G9 -> Year 5 | I10: ='Income Statement'!H9 -> Year 6 | J10: ='Income Statement'!I9 -> Year 7 | K10: ='Income Statement'!J9 -> Year 8 | L10: ='Income Statement'!K9 -> Year 9 | M10: ='Income Statement'!L9 -> Year 10
C11: Estimate | D11: ='Income Statement'!C10 -> Adopted | E11: ='Income Statement'!D10 -> Estimate | F11: ='Income Statement'!E10 -> Estimate | G11: ='Income Statement'!F10 -> Estimate | H11: ='Income Statement'!G10 -> Estimate | I11: ='Income Statement'!H10 -> Estimate | J11: ='Income Statement'!I10 -> Estimate | K11: ='Income Statement'!J10 -> Estimate | L11: ='Income Statement'!K10 -> Estimate | M11: ='Income Statement'!L10 -> Estimate
C12: ='Input Sheet'!B12 -> 2013/14 | D12: ='Income Statement'!C11 -> 2014/15 | E12: ='Income Statement'!D11 -> 2015/16 | F12: ='Income Statement'!E11 -> 2016/17 | G12: ='Income Statement'!F11 -> 2017/18 | H12: ='Income Statement'!G11 -> 2018/19 | I12: ='Income Statement'!H11 -> 2019/20 | J12: ='Income Statement'!I11 -> 2020/21 | K12: ='Income Statement'!J11 -> 2021/22 | L12: ='Income Statement'!K11 -> 2022/23 | M12: ='Income Statement'!L11 -> 2023/24
B13: Notes | C13: ($'000) | D13: ='Income Statement'!C12 -> ($'000) | E13: ='Income Statement'!D12 -> ($'000) | F13: ='Income Statement'!E12 -> ($'000) | G13: ='Income Statement'!F12 -> ($'000) | H13: ='Income Statement'!G12 -> ($'000) | I13: ='Income Statement'!H12 -> ($'000) | J13: ='Income Statement'!I12 -> ($'000) | K13: ='Income Statement'!J12 -> ($'000) | L13: ='Income Statement'!K12 -> ($'000) | M13: ='Income Statement'!L12 -> ($'000)
A14: ASSETS
A15: Current assets
A16: Cash & cash equivalents | B16: 6 | C16: ='Note 6(a) - Current'!B17 -> 2200 | D16: ='Note 6(a) - Current'!C17 -> 2200 | E16: ='Note 6(a) - Current'!D17 -> 2200 | F16: ='Note 6(a) - Current'!E17 -> 2200 | G16: ='Note 6(a) - Current'!F17 -> 2200 | H16: ='Note 6(a) - Current'!G17 -> 2200 | I16: ='Note 6(a) - Current'!H17 -> 2200 | J16: ='Note 6(a) - Current'!I17 -> 2200 | K16: ='Note 6(a) - Current'!J17 -> 2200 | L16: ='Note 6(a) - Current'!K17 -> 2200 | M16: ='Note 6(a) - Current'!L17 -> 2200
A17: Investments | B17: 6 | C17: ='Note 6(a) - Current'!B27 -> 38733 | D17: ='Note 6(a) - Current'!C27 -> 35325 | E17: ='Note 6(a) - Current'!D27 -> 33380 | F17: ='Note 6(a) - Current'!E27 -> 33067 | G17: ='Note 6(a) - Current'!F27 -> 32968 | H17: ='Note 6(a) - Current'!G27 -> 28342 | I17: ='Note 6(a) - Current'!H27 -> 27621 | J17: ='Note 6(a) - Current'!I27 -> 26854 | K17: ='Note 6(a) - Current'!J27 -> 26146 | L17: ='Note 6(a) - Current'!K27 -> 25220 | M17: ='Note 6(a) - Current'!L27 -> 23553
A18: Receivables | B18: 7 | C18: ='Bal Sheet Calcs'!B115 -> 2761 | D18: ='Bal Sheet Calcs'!C115 -> 2520 | E18: ='Bal Sheet Calcs'!D115 -> 2896 | F18: ='Bal Sheet Calcs'!E115 -> 2915 | G18: ='Bal Sheet Calcs'!F115 -> 3091 | H18: ='Bal Sheet Calcs'!G115 -> 3280 | I18: ='Bal Sheet Calcs'!H115 -> 3408 | J18: ='Bal Sheet Calcs'!I115 -> 3608 | K18: ='Bal Sheet Calcs'!J115 -> 3742 | L18: ='Bal Sheet Calcs'!K115 -> 3880 | M18: ='Bal Sheet Calcs'!L115 -> 4019
A19: Inventories | B19: 8 | C19: ='Bal Sheet Calcs'!B120 -> 441 | D19: ='Bal Sheet Calcs'!C120 -> 454 | E19: ='Bal Sheet Calcs'!D120 -> 468 | F19: ='Bal Sheet Calcs'!E120 -> 482 | G19: ='Bal Sheet Calcs'!F120 -> 496 | H19: ='Bal Sheet Calcs'!G120 -> 511 | I19: ='Bal Sheet Calcs'!H120 -> 526 | J19: ='Bal Sheet Calcs'!I120 -> 542 | K19: ='Bal Sheet Calcs'!J120 -> 558 | L19: ='Bal Sheet Calcs'!K120 -> 575 | M19: ='Bal Sheet Calcs'!L120 -> 592
A20: Other | B20: 8 | C20: ='Bal Sheet Calcs'!B125 -> 1 | D20: ='Bal Sheet Calcs'!C125 -> 0 | E20: ='Bal Sheet Calcs'!D125 -> 0 | F20: ='Bal Sheet Calcs'!E125 -> 0 | G20: ='Bal Sheet Calcs'!F125 -> 0 | H20: ='Bal Sheet Calcs'!G125 -> 0 | I20: ='Bal Sheet Calcs'!H125 -> 0 | J20: ='Bal Sheet Calcs'!I125 -> 0 | K20: ='Bal Sheet Calcs'!J125 -> 0 | L20: ='Bal Sheet Calcs'!K125 -> 0 | M20: ='Bal Sheet Calcs'!L125 -> 0
A21: Investments using equity method | C21: ='Bal Sheet Calcs'!B155 -> 129 | D21: ='Bal Sheet Calcs'!C155 -> 129 | E21: ='Bal Sheet Calcs'!D155 -> 129 | F21: ='Bal Sheet Calcs'!E155 -> 129 | G21: ='Bal Sheet Calcs'!F155 -> 129 | H21: ='Bal Sheet Calcs'!G155 -> 129 | I21: ='Bal Sheet Calcs'!H155 -> 129 | J21: ='Bal Sheet Calcs'!I155 -> 129 | K21: ='Bal Sheet Calcs'!J155 -> 129 | L21: ='Bal Sheet Calcs'!K155 -> 129 | M21: ='Bal Sheet Calcs'!L155 -> 129
A22: Total current assets | C22: =SUM(C16:C21) -> 44265 | D22: =SUM(D16:D21) -> 40628 | E22: =SUM(E16:E21) -> 39073 | F22: 38793 | G22: 38884 | H22: 34462 | I22: 33884 | J22: 33333 | K22: 32775 | L22: 32004 | M22: 30493
A24: Non-current assets
A25: Investments | B25: 6 | C25: ='Bal Sheet Calcs'!B50 -> 27288 | D25: ='Bal Sheet Calcs'!C50 -> 25016 | E25: ='Bal Sheet Calcs'!D50 -> 23720 | F25: ='Bal Sheet Calcs'!E50 -> 23512 | G25: ='Bal Sheet Calcs'!F50 -> 23445 | H25: ='Bal Sheet Calcs'!G50 -> 20361 | I25: ='Bal Sheet Calcs'!H50 -> 19881 | J25: ='Bal Sheet Calcs'!I50 -> 19370 | K25: ='Bal Sheet Calcs'!J50 -> 18897 | L25: ='Bal Sheet Calcs'!K50 -> 18280 | M25: ='Bal Sheet Calcs'!L50 -> 17169
A26: Receivables | B26: 7 | C26: 0 | D26: 0 | E26: 0 | F26: 0 | G26: 0 | H26: 0 | I26: 0 | J26: 0 | K26: 0 | L26: 0 | M26: 0
A27: Inventories | B27: 8 | C27: 0 | D27: 0 | E27: 0 | F27: 0 | G27: 0 | H27: 0 | I27: 0 | J27: 0 | K27: 0 | L27: 0 | M27: 0
A28: Infrastructure, property, plant and equipment | B28: 9 | C28: ='Bal Sheet Calcs'!B110 -> 817243 | D28: ='Bal Sheet Calcs'!C110 -> 833137 | E28: ='Bal Sheet Calcs'!D110 -> 858455 | F28: ='Bal Sheet Calcs'!E110 -> 879112 | G28: ='Bal Sheet Calcs'!F110 -> 900647 | H28: ='Bal Sheet Calcs'!G110 -> 923310 | I28: ='Bal Sheet Calcs'!H110 -> 938281 | J28: ='Bal Sheet Calcs'!I110 -> 955294 | K28: ='Bal Sheet Calcs'!J110 -> 971961 | L28: ='Bal Sheet Calcs'!K110 -> 985504 | M28: ='Bal Sheet Calcs'!L110 -> 997886
A29: Total non-current assets | C29: =SUM(C25:C28) -> 844531 | D29: =SUM(D25:D28) -> 858153 | E29: =SUM(E25:E28) -> 882175 | F29: =SUM(F25:F28) -> 902624 | G29: 924092 | H29: 943671 | I29: 958162 | J29: 974664 | K29: 990858 | L29: 1003784 | M29: 1015055
A31: Total assets | C31: =C22+C29 -> 888796 | D31: =D22+D29 -> 898781 | E31: =E22+E29 -> 921248 | F31: =F22+F29 -> 941417 | G31: 962976 | H31: 978133 | I31: 992046 | J31: 1007997 | K31: 1023633 | L31: 1035788 | M31: 1045548
A33: LIABILITIES
A34: Current liabilities
A35: Payables | B35: 10 | C35: ='Bal Sheet Calcs'!B130 -> 4970 | D35: ='Bal Sheet Calcs'!C130 -> 4581 | E35: ='Bal Sheet Calcs'!D130 -> 4897 | F35: ='Bal Sheet Calcs'!E130 -> 5168 | G35: ='Bal Sheet Calcs'!F130 -> 5403 | H35: ='Bal Sheet Calcs'!G130 -> 5619 | I35: ='Bal Sheet Calcs'!H130 -> 5743 | J35: ='Bal Sheet Calcs'!I130 -> 5966 | K35: ='Bal Sheet Calcs'!J130 -> 6190 | L35: ='Bal Sheet Calcs'!K130 -> 6402 | M35: ='Bal Sheet Calcs'!L130 -> 6585
A36: Projected cash shortfall | B36: 10 | C36: =-'Bal Sheet Calcs'!B45 -> 0 | D36: =-'Bal Sheet Calcs'!C45 -> 0 | E36: =-'Bal Sheet Calcs'!D45 -> 0 | F36: =-'Bal Sheet Calcs'!E45 -> 0 | G36: =-'Bal Sheet Calcs'!F45 -> 0 | H36: =-'Bal Sheet Calcs'!G45 -> 0 | I36: =-'Bal Sheet Calcs'!H45 -> 0 | J36: =-'Bal Sheet Calcs'!I45 -> 0 | K36: =-'Bal Sheet Calcs'!J45 -> 0 | L36: =-'Bal Sheet Calcs'!K45 -> 0 | M36: =-'Bal Sheet Calcs'!L45 -> 0
A37: Borrowings | B37: 10 | C37: ='Bal Sheet Calcs'!B75+'Bal Sheet Calcs'!B87 -> 3134 | D37: ='Bal Sheet Calcs'!C75+'Bal Sheet Calcs'!C87 -> 3098 | E37: ='Bal Sheet Calcs'!D75+'Bal Sheet Calcs'!D87 -> 3781 | F37: ='Bal Sheet Calcs'!E75+'Bal Sheet Calcs'!E87 -> 4085 | G37: ='Bal Sheet Calcs'!F75+'Bal Sheet Calcs'!F87 -> 4312 | H37: ='Bal Sheet Calcs'!G75+'Bal Sheet Calcs'!G87 -> 4717 | I37: ='Bal Sheet Calcs'!H75+'Bal Sheet Calcs'!H87 -> 4733 | J37: ='Bal Sheet Calcs'!I75+'Bal Sheet Calcs'!I87 -> 5320 | K37: ='Bal Sheet Calcs'!J75+'Bal Sheet Calcs'!J87 -> 5758 | L37: ='Bal Sheet Calcs'!K75+'Bal Sheet Calcs'!K87 -> 6366 | M37: ='Bal Sheet Calcs'!L75+'Bal Sheet Calcs'!L87 -> 5643
A38: Provisions | B38: 10 | C38: ='Bal Sheet Calcs'!B135+'Bal Sheet Calcs'!B140 -> 9546 | D38: ='Bal Sheet Calcs'!C135+'Bal Sheet Calcs'!C140 -> 9999 | E38: ='Bal Sheet Calcs'!D135+'Bal Sheet Calcs'!D140 -> 10474 | F38: ='Bal Sheet Calcs'!E135+'Bal Sheet Calcs'!E140 -> 10998 | G38: ='Bal Sheet Calcs'!F135+'Bal Sheet Calcs'!F140 -> 11548 | H38: ='Bal Sheet Calcs'!G135+'Bal Sheet Calcs'!G140 -> 12125 | I38: ='Bal Sheet Calcs'!H135+'Bal Sheet Calcs'!H140 -> 12731 | J38: ='Bal Sheet Calcs'!I135+'Bal Sheet Calcs'!I140 -> 13368 | K38: ='Bal Sheet Calcs'!J135+'Bal Sheet Calcs'!J140 -> 14036 | L38: ='Bal Sheet Calcs'!K135+'Bal Sheet Calcs'!K140 -> 14738 | M38: ='Bal Sheet Calcs'!L135+'Bal Sheet Calcs'!L140 -> 15475
A39: Total current liabilities | C39: =SUM(C35:C38) -> 17650 | D39: =SUM(D35:D38) -> 17678 | E39: =SUM(E35:E38) -> 19152 | F39: =SUM(F35:F38) -> 20251 | G39: 21263 | H39: 22461 | I39: 23207 | J39: 24654 | K39: 25984 | L39: 27506 | M39: 27703
A41: Non-current liabilities
A42: Payables | B42: 10 | C42: 0 | D42: 0 | E42: 0 | F42: 0 | G42: 0 | H42: 0 | I42: 0 | J42: 0 | K42: 0 | L42: 0 | M42: 0
A43: Borrowings | B43: 10 | C43: ='Bal Sheet Calcs'!B76+'Bal Sheet Calcs'!B88 -> 18052 | D43: ='Bal Sheet Calcs'!C76+'Bal Sheet Calcs'!C88 -> 19754 | E43: ='Bal Sheet Calcs'!D76+'Bal Sheet Calcs'!D88 -> 21738 | F43: ='Bal Sheet Calcs'!E76+'Bal Sheet Calcs'!E88 -> 24397 | G43: ='Bal Sheet Calcs'!F76+'Bal Sheet Calcs'!F88 -> 25269 | H43: ='Bal Sheet Calcs'!G76+'Bal Sheet Calcs'!G88 -> 25352 | I43: ='Bal Sheet Calcs'!H76+'Bal Sheet Calcs'!H88 -> 25419 | J43: ='Bal Sheet Calcs'!I76+'Bal Sheet Calcs'!I88 -> 26130 | K43: ='Bal Sheet Calcs'!J76+'Bal Sheet Calcs'!J88 -> 27453 | L43: ='Bal Sheet Calcs'!K76+'Bal Sheet Calcs'!K88 -> 26338 | M43: ='Bal Sheet Calcs'!L76+'Bal Sheet Calcs'!L88 -> 25495
A44: Provisions | B44: 10 | C44: ='Bal Sheet Calcs'!B145+'Bal Sheet Calcs'!B150 -> 7344 | D44: ='Bal Sheet Calcs'!C145+'Bal Sheet Calcs'!C150 -> 7584 | E44: ='Bal Sheet Calcs'!D145+'Bal Sheet Calcs'!D150 -> 7833 | F44: ='Bal Sheet Calcs'!E145+'Bal Sheet Calcs'!E150 -> 8090 | G44: ='Bal Sheet Calcs'!F145+'Bal Sheet Calcs'!F150 -> 8356 | H44: ='Bal Sheet Calcs'!G145+'Bal Sheet Calcs'!G150 -> 8631 | I44: ='Bal Sheet Calcs'!H145+'Bal Sheet Calcs'!H150 -> 8649 | J44: ='Bal Sheet Calcs'!I145+'Bal Sheet Calcs'!I150 -> 8667 | K44: ='Bal Sheet Calcs'!J145+'Bal Sheet Calcs'!J150 -> 8686 | L44: ='Bal Sheet Calcs'!K145+'Bal Sheet Calcs'!K150 -> 8706 | M44: ='Bal Sheet Calcs'!L145+'Bal Sheet Calcs'!L150 -> 8727
A45: Total non-current liabilities | C45: =SUM(C42:C44) -> 25396 | D45: =SUM(D42:D44) -> 27338 | E45: =SUM(E42:E44) -> 29571 | F45: =SUM(F42:F44) -> 32487 | G45: 33625 | H45: 33983 | I45: 34068 | J45: 34797 | K45: 36139 | L45: 35044 | M45: 34222
A47: Total liabilities | C47: =C39+C45 -> 43046 | D47: =D39+D45 -> 45016 | E47: =E39+E45 -> 48723 | F47: =F39+F45 -> 52738 | G47: 54888 | H47: 56444 | I47: 57275 | J47: 59451 | K47: 62123 | L47: 62550 | M47: 61925
A49: Net assets | C49: =C31-C47 -> 845750 | D49: =D31-D47 -> 853765 | E49: =E31-E47 -> 872525 | F49: =F31-F47 -> 888679 | G49: 908088 | H49: 921689 | I49: 934771 | J49: 948546 | K49: 961510 | L49: 973238 | M49: 983623
A51: EQUITY
A52: Retained earnings | C52: ='Bal Sheet Calcs'!B158 -> 584945 | D52: =C52+'Income Statement'!C35+'Income Statement'!C61 -> 592960 | E52: =D52+'Income Statement'!D35+'Income Statement'!D61 -> 611720 | F52: =E52+'Income Statement'!E35+'Income Statement'!E61 -> 627874 | G52: =F52+'Income Statement'!F35+'Income Statement'!F61 -> 647283 | H52: =G52+'Income Statement'!G35+'Income Statement'!G61 -> 660884 | I52: =H52+'Income Statement'!H35+'Income Statement'!H61 -> 673966 | J52: =I52+'Income Statement'!I35+'Income Statement'!I61 -> 687741 | K52: =J52+'Income Statement'!J35+'Income Statement'!J61 -> 700705 | L52: =K52+'Income Statement'!K35+'Income Statement'!K61 -> 712433 | M52: =L52+'Income Statement'!L35+'Income Statement'!L61 -> 722818
A53: Revaluations reserves | C53: ='Bal Sheet Calcs'!B159 -> 260805 | D53: =C53+'Bal Sheet Calcs'!C105 -> 260805 | E53: =D53+'Bal Sheet Calcs'!D105 -> 260805 | F53: =E53+'Bal Sheet Calcs'!E105 -> 260805 | G53: =F53+'Bal Sheet Calcs'!F105 -> 260805 | H53: =G53+'Bal Sheet Calcs'!G105 -> 260805 | I53: =H53+'Bal Sheet Calcs'!H105 -> 260805 | J53: =I53+'Bal Sheet Calcs'!I105 -> 260805 | K53: =J53+'Bal Sheet Calcs'!J105 -> 260805 | L53: =K53+'Bal Sheet Calcs'!K105 -> 260805 | M53: =L53+'Bal Sheet Calcs'!L105 -> 260805
A54: Total equity | C54: =SUM(C52:C53) -> 845750 | D54: =SUM(D52:D53) -> 853765 | E54: =SUM(E52:E53) -> 872525 | F54: =SUM(F52:F53) -> 888679 | G54: 908088 | H54: 921689 | I54: 934771 | J54: 948546 | K54: 961510 | L54: 973238 | M54: 983623
C55: =IF(C54=C49," ","CHECK") ->  | D55: =IF(D54=D49," ","CHECK") ->  | E55: =IF(E54=E49," ","CHECK") ->  | F55: =IF(F54=F49," ","CHECK") -> 
B57: Difference | C57: =C49-C54 -> 0 | D57: =D49-D54 -> 0 | E57: =E49-E54 -> 0 | F57: =F49-F54 -> 0 | G57: 0 | H57: 0 | I57: 0 | J57: 0 | K57: 0 | L57: 0 | M57: 0
B59: Change | D59: =D57-C57 -> 0 | E59: =E57-D57 -> 0 | F59: =F57-E57 -> 0 | G59: 0 | H59: 0 | I59: 0 | J59: 0 | K59: 0 | L59: 0 | M59: 0

Sheet Cash Flow Ste
A1: =Calculations!A1 -> Maitland City Council
A2: =Calculations!A2 -> Long Term Financial Plan
A3: Cash flow statement
A4: =Calculations!A3 -> For the period 2014/15 to 2023/24
A5: ='Detailed SRV Analysis'!A4 -> 2014/15 Draft Budget
A6: ='Detailed SRV Analysis'!A5 -> Option 2 - $25M Projects (Including $1.5M annual rent from 2015/16, 5 additional staff per year from 2015/16)
A7: ='Detailed SRV Analysis'!A6 -> Year 1 to Year 7 - 7.25% Rate Increase (Adjustments to rates pie Yrs 1-7) (Additional farm adjustment) (Additional grants $13M & loans $38M)
C10: =Calculations!C$10 -> Year 1 | D10: =Calculations!D$10 -> Year 2 | E10: =Calculations!E$10 -> Year 3 | F10: =Calculations!F$10 -> Year 4 | G10: =Calculations!G$10 -> Year 5 | H10: =Calculations!H$10 -> Year 6 | I10: =Calculations!I$10 -> Year 7 | J10: =Calculations!J$10 -> Year 8 | K10: =Calculations!K$10 -> Year 9 | L10: =Calculations!L$10 -> Year 10
B11: Original | C11: =Calculations!C$11 -> Adopted | D11: =Calculations!D$11 -> Estimate | E11: =Calculations!E$11 -> Estimate | F11: =Calculations!F$11 -> Estimate | G11: =Calculations!G$11 -> Estimate | H11: =Calculations!H$11 -> Estimate | I11: =Calculations!I$11 -> Estimate | J11: =Calculations!J$11 -> Estimate | K11: =Calculations!K$11 -> Estimate | L11: =Calculations!L$11 -> Estimate
B12: ='Balance Sheet'!C12 -> 2013/14 | C12: =Calculations!C$12 -> 2014/15 | D12: =Calculations!D$12 -> 2015/16 | E12: =Calculations!E$12 -> 2016/17 | F12: =Calculations!F$12 -> 2017/18 | G12: =Calculations!G$12 -> 2018/19 | H12: =Calculations!H$12 -> 2019/20 | I12: =Calculations!I$12 -> 2020/21 | J12: =Calculations!J$12 -> 2021/22 | K12: =Calculations!K$12 -> 2022/23 | L12: =Calculations!L$12 -> 2023/24
B13: ='Balance Sheet'!C13 -> ($'000) | C13: ($'000) | D13: ($'000) | E13: ($'000) | F13: ($'000) | G13: ($'000) | H13: ($'000) | I13: ($'000) | J13: ($'000) | K13: ($'000) | L13: ($'000)
A15: Cash flows from operating activities
A16: Receipts:
A17: Rates and annual charges | B17: 46986 | C17: ='Cashflow Worksheet'!J10 -> 54342 | D17: ='Cashflow Worksheet'!R10 -> 58906 | E17: ='Cashflow Worksheet'!Z10 -> 62795 | F17: ='Cashflow Worksheet'!AH10 -> 67561 | G17: ='Cashflow Worksheet'!AP10 -> 72824 | H17: ='Cashflow Worksheet'!AX10 -> 76590 | I17: ='Cashflow Worksheet'!BF10 -> 82269 | J17: ='Cashflow Worksheet'!BN10 -> 85785 | K17: ='Cashflow Worksheet'!BV10 -> 89354 | L17: ='Cashflow Worksheet'!CD10 -> 92990
A18: User charges and fees | B18: 9192 | C18: ='Cashflow Worksheet'!J11 -> 6460 | D18: ='Cashflow Worksheet'!R11 -> 6901 | E18: ='Cashflow Worksheet'!Z11 -> 7333 | F18: ='Cashflow Worksheet'!AH11 -> 7782 | G18: ='Cashflow Worksheet'!AP11 -> 8258 | H18: ='Cashflow Worksheet'!AX11 -> 8758 | I18: ='Cashflow Worksheet'!BF11 -> 9297 | J18: ='Cashflow Worksheet'!BN11 -> 9860 | K18: ='Cashflow Worksheet'!BV11 -> 10451 | L18: ='Cashflow Worksheet'!CD11 -> 11083
A19: Investment revenue and interest | B19: 1925 | C19: ='Cashflow Worksheet'!J12 -> 2750 | D19: ='Cashflow Worksheet'!R12 -> 3383 | E19: ='Cashflow Worksheet'!Z12 -> 3385 | F19: ='Cashflow Worksheet'!AH12 -> 3627 | G19: ='Cashflow Worksheet'!AP12 -> 3807 | H19: ='Cashflow Worksheet'!AX12 -> 3454 | I19: ='Cashflow Worksheet'!BF12 -> 3443 | J19: ='Cashflow Worksheet'!BN12 -> 3430 | K19: ='Cashflow Worksheet'!BV12 -> 3413 | L19: ='Cashflow Worksheet'!CD12 -> 3330
A20: Grants and contributions | B20: 19127 | C20: ='Cashflow Worksheet'!J13 -> 18580 | D20: ='Cashflow Worksheet'!R13 -> 24785 | E20: ='Cashflow Worksheet'!Z13 -> 21406 | F20: ='Cashflow Worksheet'!AH13 -> 21601 | G20: ='Cashflow Worksheet'!AP13 -> 21925 | H20: ='Cashflow Worksheet'!AX13 -> 22257 | I20: ='Cashflow Worksheet'!BF13 -> 22598 | J20: ='Cashflow Worksheet'!BN13 -> 22947 | K20: ='Cashflow Worksheet'!BV13 -> 23310 | L20: ='Cashflow Worksheet'!CD13 -> 23679
A21: Other | B21: 2537 | C21: ='Cashflow Worksheet'!J14 -> 2565 | D21: ='Cashflow Worksheet'!R14 -> 2636 | E21: ='Cashflow Worksheet'!Z14 -> 2751 | F21: ='Cashflow Worksheet'!AH14 -> 2844 | G21: ='Cashflow Worksheet'!AP14 -> 2939 | H21: ='Cashflow Worksheet'!AX14 -> 3038 | I21: ='Cashflow Worksheet'!BF14 -> 3139 | J21: ='Cashflow Worksheet'!BN14 -> 3246 | K21: ='Cashflow Worksheet'!BV14 -> 3356 | L21: ='Cashflow Worksheet'!CD14 -> 3473
A22: Payments:
A23: Employee benefits and on-costs | B23: 24861 | C23: ='Cashflow Worksheet'!J22 -> 27578 | D23: ='Cashflow Worksheet'!R22 -> 29872 | E23: ='Cashflow Worksheet'!Z22 -> 31867 | F23: ='Cashflow Worksheet'!AH22 -> 33974 | G23: ='Cashflow Worksheet'!AP22 -> 36197 | H23: ='Cashflow Worksheet'!AX22 -> 38542 | I23: ='Cashflow Worksheet'!BF22 -> 41017 | J23: ='Cashflow Worksheet'!BN22 -> 43426 | K23: ='Cashflow Worksheet'!BV22 -> 45956 | L23: ='Cashflow Worksheet'!CD22 -> 48614
A24: Materials and contracts | B24: 14807 | C24: ='Cashflow Worksheet'!J23 -> 14218 | D24: ='Cashflow Worksheet'!R23 -> 14254 | E24: ='Cashflow Worksheet'!Z23 -> 14961 | F24: ='Cashflow Worksheet'!AH23 -> 15567 | G24: ='Cashflow Worksheet'!AP23 -> 16152 | H24: ='Cashflow Worksheet'!AX23 -> 16743 | I24: ='Cashflow Worksheet'!BF23 -> 17346 | J24: ='Cashflow Worksheet'!BN23 -> 17957 | K24: ='Cashflow Worksheet'!BV23 -> 18577 | L24: ='Cashflow Worksheet'!CD23 -> 19205
A25: Borrowing costs | B25: 1177 | C25: ='Cashflow Worksheet'!J24 -> 1214 | D25: ='Cashflow Worksheet'!R24 -> 1521 | E25: ='Cashflow Worksheet'!Z24 -> 1752 | F25: ='Cashflow Worksheet'!AH24 -> 1958 | G25: ='Cashflow Worksheet'!AP24 -> 2106 | H25: ='Cashflow Worksheet'!AX24 -> 2275 | I25: ='Cashflow Worksheet'!BF24 -> 2317 | J25: ='Cashflow Worksheet'!BN24 -> 2454 | K25: ='Cashflow Worksheet'!BV24 -> 2550 | L25: ='Cashflow Worksheet'!CD24 -> 2564
A26: Other | B26: 15581 | C26: ='Cashflow Worksheet'!J25 -> 17219 | D26: ='Cashflow Worksheet'!R25 -> 18663 | E26: ='Cashflow Worksheet'!Z25 -> 20542 | F26: ='Cashflow Worksheet'!AH25 -> 21771 | G26: ='Cashflow Worksheet'!AP25 -> 23444 | H26: ='Cashflow Worksheet'!AX25 -> 25190 | I26: ='Cashflow Worksheet'!BF25 -> 27424 | J26: ='Cashflow Worksheet'!BN25 -> 28942 | K26: ='Cashflow Worksheet'!BV25 -> 30953 | L26: ='Cashflow Worksheet'!CD25 -> 33064
A27: Productivity savings | B27: 0 | C27: ='Cashflow Worksheet'!J26 -> 0 | D27: ='Cashflow Worksheet'!R26 -> -500 | E27: ='Cashflow Worksheet'!Z26 -> -500 | F27: ='Cashflow Worksheet'!AH26 -> -500 | G27: ='Cashflow Worksheet'!AP26 -> -500 | H27: ='Cashflow Worksheet'!AX26 -> -500 | I27: ='Cashflow Worksheet'!BF26 -> -500 | J27: ='Cashflow Worksheet'!BN26 -> -500 | K27: ='Cashflow Worksheet'!BV26 -> -500 | L27: ='Cashflow Worksheet'!CD26 -> -500
A29: Net cash provided by (or used in) operating activities | B29: =SUM(B17:B21)-SUM(B23:B28) -> 23341 | C29: =SUM(C17:C21)-SUM(C23:C28) -> 24468 | D29: =SUM(D17:D21)-SUM(D23:D28) -> 32801 | E29: 29048 | F29: 30645 | G29: 32354 | H29: 31847 | I29: 33142 | J29: 32989 | K29: 32348 | L29: 31608
B30: =IF(B29-'Note 11'!B52=0,"",B29-'Note 11'!B52) ->  | C30: =IF(C29-'Note 11'!C52=0,"",C29-'Note 11'!C52) ->  | D30: =IF(D29-'Note 11'!D52=0,"",D29-'Note 11'!D52) ->  | E30: =IF(E29-'Note 11'!E52=0,"",E29-'Note 11'!E52) ->  | F30: =IF(F29-'Note 11'!F52=0,"",F29-'Note 11'!F52) ->  | G30: =IF(G29-'Note 11'!G52=0,"",G29-'Note 11'!G52) ->  | H30: =IF(H29-'Note 11'!H52=0,"",H29-'Note 11'!H52) ->  | I30: =IF(I29-'Note 11'!I52=0,"",I29-'Note 11'!I52) ->  | J30: =IF(J29-'Note 11'!J52=0,"",J29-'Note 11'!J52) ->  | K30: =IF(K29-'Note 11'!K52=0,"",K29-'Note 11'!K52) ->  | L30: =IF(L29-'Note 11'!L52=0,"",L29-'Note 11'!L52) -> 
A31: Cash flows from investing activities
A32: Receipts:
A33: Sale of investments | B33: 4802 | C33: =IF('Note 6(a) - Current'!C$39-'Note 6(a) - Current'!B$39<0,-('Note 6(a) - Current'!C$39-'Note 6(a) - Current'!B$39),0) -> 5680 | D33: =IF('Note 6(a) - Current'!D$39-'Note 6(a) - Current'!C$39<0,-('Note 6(a) - Current'!D$39-'Note 6(a) - Current'!C$39),0) -> 3241 | E33: =IF('Note 6(a) - Current'!E$39-'Note 6(a) - Current'!D$39<0,-('Note 6(a) - Current'!E$39-'Note 6(a) - Current'!D$39),0) -> 521 | F33: =IF('Note 6(a) - Current'!F$39-'Note 6(a) - Current'!E$39<0,-('Note 6(a) - Current'!F$39-'Note 6(a) - Current'!E$39),0) -> 166 | G33: =IF('Note 6(a) - Current'!G$39-'Note 6(a) - Current'!F$39<0,-('Note 6(a) - Current'!G$39-'Note 6(a) - Current'!F$39),0) -> 7710 | H33: =IF('Note 6(a) - Current'!H$39-'Note 6(a) - Current'!G$39<0,-('Note 6(a) - Current'!H$39-'Note 6(a) - Current'!G$39),0) -> 1201 | I33: =IF('Note 6(a) - Current'!I$39-'Note 6(a) - Current'!H$39<0,-('Note 6(a) - Current'!I$39-'Note 6(a) - Current'!H$39),0) -> 1278 | J33: =IF('Note 6(a) - Current'!J$39-'Note 6(a) - Current'!I$39<0,-('Note 6(a) - Current'!J$39-'Note 6(a) - Current'!I$39),0) -> 1181 | K33: =IF('Note 6(a) - Current'!K$39-'Note 6(a) - Current'!J$39<0,-('Note 6(a) - Current'!K$39-'Note 6(a) - Current'!J$39),0) -> 1543 | L33: =IF('Note 6(a) - Current'!L$39-'Note 6(a) - Current'!K$39<0,-('Note 6(a) - Current'!L$39-'Note 6(a) - Current'!K$39),0) -> 2778
A34: Sale of infrastructure, property, plant and equipment | B34: 1141 | C34: ='Note 5'!B15+'Note 5'!B22+'Note 5'!B29 -> 0 | D34: ='Note 5'!C15+'Note 5'!C22+'Note 5'!C29 -> 3000 | E34: ='Note 5'!D15+'Note 5'!D22+'Note 5'!D29 -> 5000 | F34: ='Note 5'!E15+'Note 5'!E22+'Note 5'!E29 -> 7000 | G34: ='Note 5'!F15+'Note 5'!F22+'Note 5'!F29 -> 0 | H34: ='Note 5'!G15+'Note 5'!G22+'Note 5'!G29 -> 0 | I34: ='Note 5'!H15+'Note 5'!H22+'Note 5'!H29 -> 0 | J34: ='Note 5'!I15+'Note 5'!I22+'Note 5'!I29 -> 0 | K34: ='Note 5'!J15+'Note 5'!J22+'Note 5'!J29 -> 0 | L34: ='Note 5'!K15+'Note 5'!K22+'Note 5'!K29 -> 0
A35: Other | B35: 0 | C35: 0 | D35: 0 | E35: 0 | F35: 0 | G35: 0 | H35: 0 | I35: 0 | J35: 0 | K35: 0 | L35: 0
A36: Payments:
A37: Purchase of investments | B37: 6574 | C37: =IF('Note 6(a) - Current'!C$39-'Note 6(a) - Current'!B$39>0,('Note 6(a) - Current'!C$39-'Note 6(a) - Current'!B$39),0) -> 0 | D37: =IF('Note 6(a) - Current'!D$39-'Note 6(a) - Current'!C$39>0,('Note 6(a) - Current'!D$39-'Note 6(a) - Current'!C$39),0) -> 0 | E37: =IF('Note 6(a) - Current'!E$39-'Note 6(a) - Current'!D$39>0,('Note 6(a) - Current'!E$39-'Note 6(a) - Current'!D$39),0) -> 0 | F37: =IF('Note 6(a) - Current'!F$39-'Note 6(a) - Current'!E$39>0,('Note 6(a) - Current'!F$39-'Note 6(a) - Current'!E$39),0) -> 0 | G37: =IF('Note 6(a) - Current'!G$39-'Note 6(a) - Current'!F$39>0,('Note 6(a) - Current'!G$39-'Note 6(a) - Current'!F$39),0) -> 0 | H37: =IF('Note 6(a) - Current'!H$39-'Note 6(a) - Current'!G$39>0,('Note 6(a) - Current'!H$39-'Note 6(a) - Current'!G$39),0) -> 0 | I37: =IF('Note 6(a) - Current'!I$39-'Note 6(a) - Current'!H$39>0,('Note 6(a) - Current'!I$39-'Note 6(a) - Current'!H$39),0) -> 0 | J37: =IF('Note 6(a) - Current'!J$39-'Note 6(a) - Current'!I$39>0,('Note 6(a) - Current'!J$39-'Note 6(a) - Current'!I$39),0) -> 0 | K37: =IF('Note 6(a) - Current'!K$39-'Note 6(a) - Current'!J$39>0,('Note 6(a) - Current'!K$39-'Note 6(a) - Current'!J$39),0) -> 0 | L37: =IF('Note 6(a) - Current'!L$39-'Note 6(a) - Current'!K$39>0,('Note 6(a) - Current'!L$39-'Note 6(a) - Current'!K$39),0) -> 0
A38: Purchase of infrastructure, property, plant and equipment | B38: 21221 | C38: ='Bal Sheet Calcs'!C100 -> 31814 | D38: ='Bal Sheet Calcs'!D100 -> 41709 | E38: ='Bal Sheet Calcs'!E100 -> 37532 | F38: ='Bal Sheet Calcs'!F100 -> 38910 | G38: ='Bal Sheet Calcs'!G100 -> 40552 | H38: ='Bal Sheet Calcs'!H100 -> 33131 | I38: ='Bal Sheet Calcs'!I100 -> 35718 | J38: ='Bal Sheet Calcs'!J100 -> 35931 | K38: ='Bal Sheet Calcs'!K100 -> 33384 | L38: ='Bal Sheet Calcs'!L100 -> 32820
A39: Purchase of real estate assets held for resale | B39: 0 | C39: 0 | D39: 0 | E39: 0 | F39: 0 | G39: 0 | H39: 0 | I39: 0 | J39: 0 | K39: 0 | L39: 0
A40: Other | B40: 0 | C40: 0 | D40: 0 | E40: 0 | F40: 0 | G40: 0 | H40: 0 | I40: 0 | J40: 0 | K40: 0 | L40: 0
A42: Net cash provided by (or used in) investing activities | B42: =SUM(B33:B35)-SUM(B37:B41) -> -21852 | C42: -26134 | D42: -35468 | E42: -32011 | F42: -31744 | G42: -32842 | H42: -31930 | I42: -34440 | J42: -34750 | K42: -31841 | L42: -30042
A44: Cash flow from financing activities
A45: Receipts:
A46: Borrowings and advances | B46: 1340 | C46: ='Bal Sheet Calcs'!C70+'Bal Sheet Calcs'!C82 -> 4800 | D46: ='Bal Sheet Calcs'!D70+'Bal Sheet Calcs'!D82 -> 5953 | E46: ='Bal Sheet Calcs'!E70+'Bal Sheet Calcs'!E82 -> 6744 | F46: ='Bal Sheet Calcs'!F70+'Bal Sheet Calcs'!F82 -> 5184 | G46: ='Bal Sheet Calcs'!G70+'Bal Sheet Calcs'!G82 -> 4800 | H46: ='Bal Sheet Calcs'!H70+'Bal Sheet Calcs'!H82 -> 4800 | I46: ='Bal Sheet Calcs'!I70+'Bal Sheet Calcs'!I82 -> 6196 | J46: ='Bal Sheet Calcs'!J70+'Bal Sheet Calcs'!J82 -> 7081 | K46: ='Bal Sheet Calcs'!K70+'Bal Sheet Calcs'!K82 -> 5251 | L46: ='Bal Sheet Calcs'!L70+'Bal Sheet Calcs'!L82 -> 4800
A47: Payments:
A48: Borrowings and advances | B48: 2620 | C48: ='Bal Sheet Calcs'!C72+'Bal Sheet Calcs'!C84 -> 3134 | D48: ='Bal Sheet Calcs'!D72+'Bal Sheet Calcs'!D84 -> 3286 | E48: ='Bal Sheet Calcs'!E72+'Bal Sheet Calcs'!E84 -> 3781 | F48: ='Bal Sheet Calcs'!F72+'Bal Sheet Calcs'!F84 -> 4085 | G48: ='Bal Sheet Calcs'!G72+'Bal Sheet Calcs'!G84 -> 4312 | H48: ='Bal Sheet Calcs'!H72+'Bal Sheet Calcs'!H84 -> 4717 | I48: ='Bal Sheet Calcs'!I72+'Bal Sheet Calcs'!I84 -> 4898 | J48: ='Bal Sheet Calcs'!J72+'Bal Sheet Calcs'!J84 -> 5320 | K48: ='Bal Sheet Calcs'!K72+'Bal Sheet Calcs'!K84 -> 5758 | L48: ='Bal Sheet Calcs'!L72+'Bal Sheet Calcs'!L84 -> 6366
A50: Net cash provided by (or used in) financing activities | B50: =B46-B48 -> -1280 | C50: =C46-C48 -> 1666 | D50: =D46-D48 -> 2667 | E50: 2963 | F50: 1099 | G50: 488 | H50: 83 | I50: 1298 | J50: 1761 | K50: -507 | L50: -1566
A52: Net increase/(decrease) in cash and cash equivalents | B52: =B29+B42+B50 -> 209 | C52: 0 | D52: 0 | E52: 0 | F52: 0 | G52: 0 | H52: 0 | I52: 0 | J52: 0 | K52: 0 | L52: 0
A53: Cash and cash equivalents at beginning of
A54: reporting period | B54: 1991 | C54: =B56 -> 2200 | D54: =C56 -> 2200 | E54: 2200 | F54: 2200 | G54: 2200 | H54: 2200 | I54: 2200 | J54: 2200 | K54: 2200 | L54: 2200
A55: Cash and cash equivalents at end of
A56: reporting period | B56: =SUM(B52:B54) -> 2200 | C56: =SUM(C52:C54) -> 2200 | D56: =SUM(D52:D54) -> 2200 | E56: 2200 | F56: 2200 | G56: 2200 | H56: 2200 | I56: 2200 | J56: 2200 | K56: 2200 | L56: 2200
A58: Note 11 | B58: ='Note 11'!B15 -> 2200 | C58: ='Note 11'!C15 -> 2200 | D58: ='Note 11'!D15 -> 2200 | E58: ='Note 11'!E15 -> 2200 | F58: ='Note 11'!F15 -> 2200 | G58: ='Note 11'!G15 -> 2200 | H58: ='Note 11'!H15 -> 2200 | I58: ='Note 11'!I15 -> 2200 | J58: ='Note 11'!J15 -> 2200 | K58: ='Note 11'!K15 -> 2200 | L58: ='Note 11'!L15 -> 2200
A60: difference | B60: =B56-B58 -> 0 | C60: =C56-C58 -> 0 | D60: 0 | E60: 0 | F60: 0 | G60: 0 | H60: 0 | I60: 0 | J60: 0 | K60: 0 | L60: 0

Sheet Note 3(a)
A1: =Calculations!A1 -> Maitland City Council
A2: =Calculations!A2 -> Long Term Financial Plan
A3: =Calculations!A3 -> For the period 2014/15 to 2023/24
A4: =Calculations!A4 -> 2014/15 Draft Budget
A5: =Calculations!A5 -> Option 2 - $25M Projects (Including $1.5M annual rent from 2015/16, 5 additional staff per year from 2015/16)
A6: =Calculations!A6 -> Year 1 to Year 7 - 7.25% Rate Increase (Adjustments to rates pie Yrs 1-7) (Additional farm adjustment) (Additional grants $13M & loans $38M)
A7: Note 3 Revenue from continuing operations | R7: 500008
B8: =Calculations!C$10 -> Year 1 | C8: =Calculations!D$10 -> Year 2 | D8: =Calculations!E$10 -> Year 3 | E8: =Calculations!F$10 -> Year 4 | F8: =Calculations!G$10 -> Year 5 | G8: =Calculations!H$10 -> Year 6 | H8: =Calculations!I$10 -> Year 7 | I8: =Calculations!J$10 -> Year 8 | J8: =Calculations!K$10 -> Year 9 | K8: =Calculations!L$10 -> Year 10
B9: =Calculations!C$11 -> Adopted | C9: =Calculations!D$11 -> Estimate | D9: =Calculations!E$11 -> Estimate | E9: =Calculations!F$11 -> Estimate | F9: =Calculations!G$11 -> Estimate | G9: =Calculations!H$11 -> Estimate | H9: =Calculations!I$11 -> Estimate | I9: =Calculations!J$11 -> Estimate | J9: =Calculations!K$11 -> Estimate | K9: =Calculations!L$11 -> Estimate | N9: Change | O9: Change | P9: Change
B10: =Calculations!C$12 -> 2014/15 | C10: =Calculations!D$12 -> 2015/16 | D10: =Calculations!E$12 -> 2016/17 | E10: =Calculations!F$12 -> 2017/18 | F10: =Calculations!G$12 -> 2018/19 | G10: =Calculations!H$12 -> 2019/20 | H10: =Calculations!I$12 -> 2020/21 | I10: =Calculations!J$12 -> 2021/22 | J10: =Calculations!K$12 -> 2022/23 | K10: =Calculations!L$12 -> 2023/24 | N10: =C10 -> 2015/16 | O10: =D10 -> 2016/17 | P10: =E10 -> 2017/18 | S10: Original | V10: Original
B11: ($'000) | C11: ($'000) | D11: ($'000) | E11: ($'000) | F11: ($'000) | G11: ($'000) | H11: ($'000) | I11: ($'000) | J11: ($'000) | K11: ($'000) | N11: % | O11: % | P11: % | R11: Gl A/c | S11: Vote | V11: Vote
A13: (a) Rates and annual charges | R13: 500009.1 | U13: Business Rates
R14: 30003 | S14: =VLOOKUP(R14,'Download 600704.04'!$B$4:$D$12003,3,FALSE)/1000 -> 230
A15: Ordinary Rates | R15: 30010 | S15: =VLOOKUP(R15,'Download 600704.04'!$B$4:$D$12003,3,FALSE)/1000 -> -27851 | U15: 30320 | V15: =VLOOKUP(U15,'Download 600704.04'!$B$4:$D$12003,3,FALSE)/1000 -> -10107 | X15: Business ordinary
A16: Residential | B16: =-SUM(S14:S16)*(1+'Rates Calculator'!$D$335) -> 29393 | C16: =B18*(1+'Rates Calculator'!E$336)+SUM('Rates Calculator'!E$343:E$344)/1000 -> 31748 | D16: =C18*(1+'Rates Calculator'!F$336)+SUM('Rates Calculator'!F$343:F$344)/1000 -> 34575 | E16: =D18*(1+'Rates Calculator'!G$336)+SUM('Rates Calculator'!G$343:G$344)/1000 -> 37634 | F16: =E18*(1+'Rates Calculator'!H$336)+SUM('Rates Calculator'!H$343:H$344)/1000 -> 40940 | G16: =F18*(1+'Rates Calculator'!I$336)+SUM('Rates Calculator'!I$343:I$344)/1000 -> 44518 | H16: =G18*(1+'Rates Calculator'!J$336)+SUM('Rates Calculator'!J$343:J$344)/1000 -> 48388 | I16: =H18*(1+'Rates Calculator'!K$336)+SUM('Rates Calculator'!K$343:K$344)/1000 -> 50342 | J16: =I18*(1+'Rates Calculator'!L$336)+SUM('Rates Calculator'!L$343:L$344)/1000 -> 52371 | K16: =J18*(1+'Rates Calculator'!M$336)+SUM('Rates Calculator'!M$343:M$344)/1000 -> 54478 | N16: =(C16-B16)/B16 -> 0.08 | O16: 0.089 | P16: 0.088 | R16: 30110 | S16: =VLOOKUP(R16,'Download 600704.04'!$B$4:$D$12003,3,FALSE)/1000 -> -1772 | U16: 30330 | V16: =VLOOKUP(U16,'Download 600704.04'!$B$4:$D$12003,3,FALSE)/1000 -> 0 | X16: Business Thornton
A17: Additional residential properties | B17: =Calculations!C48 -> 0 | C17: =Calculations!D48 -> 277 | D17: =Calculations!E48 -> 297 | E17: =Calculations!F48 -> 318 | F17: =Calculations!G48 -> 341 | G17: =Calculations!H48 -> 366 | H17: =Calculations!I48 -> 393 | I17: =Calculations!J48 -> 405 | J17: =Calculations!K48 -> 418 | K17: =Calculations!L48 -> 432
A18: Total residential | B18: =SUM(B16:B17) -> 29393 | C18: =SUM(C16:C17) -> 32025 | D18: 34872 | E18: 37952 | F18: 41281 | G18: 44884 | H18: 48781 | I18: 50747 | J18: 52789 | K18: 54910
A19: Farmland | B19: =-S19*(1+'Rates Calculator'!$D$335) -> 1947 | C19: =B19*(1+'Rates Calculator'!E$336)+SUM('Rates Calculator'!E$345:E$346)/1000 -> 2004 | D19: =C19*(1+'Rates Calculator'!F$336)+SUM('Rates Calculator'!F$345:F$346)/1000 -> 2061 | E19: =D19*(1+'Rates Calculator'!G$336)+SUM('Rates Calculator'!G$345:G$346)/1000 -> 2116 | F19: =E19*(1+'Rates Calculator'!H$336)+SUM('Rates Calculator'!H$345:H$346)/1000 -> 2169 | G19: =F19*(1+'Rates Calculator'!I$336)+SUM('Rates Calculator'!I$345:I$346)/1000 -> 2220 | H19: =G19*(1+'Rates Calculator'!J$336)+SUM('Rates Calculator'!J$345:J$346)/1000 -> 2267 | I19: =H19*(1+'Rates Calculator'!K$336)+SUM('Rates Calculator'!K$345:K$346)/1000 -> 2340 | J19: =I19*(1+'Rates Calculator'!L$336)+SUM('Rates Calculator'!L$345:L$346)/1000 -> 2415 | K19: =J19*(1+'Rates Calculator'!M$336)+SUM('Rates Calculator'!M$345:M$346)/1000 -> 2492 | N19: 0.029 | O19: 0.028 | P19: 0.027 | R19: 30210 | S19: =VLOOKUP(R19,'Download 600704.04'!$B$4:$D$12003,3,FALSE)/1000 -> -1947 | U19: 30340 | V19: =VLOOKUP(U19,'Download 600704.04'!$B$4:$D$12003,3,FALSE)/1000 -> 0 | X19: Business Rutherford
A20: Mining | B20: =-S20*(1+'Rates Calculator'!$D$335) -> 326 | C20: =B20*(1+'Rates Calculator'!E$336)+('Rates Calculator'!E$348/1000) -> 350 | D20: =C20*(1+'Rates Calculator'!F$336)+('Rates Calculator'!F$348/1000) -> 375 | E20: =D20*(1+'Rates Calculator'!G$336)+('Rates Calculator'!G$348/1000) -> 402 | F20: =E20*(1+'Rates Calculator'!H$336)+('Rates Calculator'!H$348/1000) -> 432 | G20: =F20*(1+'Rates Calculator'!I$336)+('Rates Calculator'!I$348/1000) -> 463 | H20: =G20*(1+'Rates Calculator'!J$336)+('Rates Calculator'!J$348/1000) -> 497 | I20: =H20*(1+'Rates Calculator'!K$336)+('Rates Calculator'!K$348/1000) -> 513 | J20: =I20*(1+'Rates Calculator'!L$336)+('Rates Calculator'!L$348/1000) -> 529 | K20: =J20*(1+'Rates Calculator'!M$336)+('Rates Calculator'!M$348/1000) -> 546 | N20: 0.074 | O20: 0.071 | P20: 0.072 | R20: 30410 | S20: =VLOOKUP(R20,'Download 600704.04'!$B$4:$D$12003,3,FALSE)/1000 -> -326 | U20: 30350 | V20: =VLOOKUP(U20,'Download 600704.04'!$B$4:$D$12003,3,FALSE)/1000 -> 0 | X20: Business Metford
A21: Business | B21: =-V22*(1+'Rates Calculator'!$D$335) -> 10107 | C21: =B21*(1+'Rates Calculator'!E$336)+('Rates Calculator'!E$347/1000) -> 10700 | D21: =C21*(1+'Rates Calculator'!F$336)+('Rates Calculator'!F$347/1000) -> 11337 | E21: =D21*(1+'Rates Calculator'!G$336)+('Rates Calculator'!G$347/1000) -> 12020 | F21: =E21*(1+'Rates Calculator'!H$336)+('Rates Calculator'!H$347/1000) -> 12754 | G21: =F21*(1+'Rates Calculator'!I$336)+('Rates Calculator'!I$347/1000) -> 13542 | H21: =G21*(1+'Rates Calculator'!J$336)+('Rates Calculator'!J$347/1000) -> 14388 | I21: =H21*(1+'Rates Calculator'!K$336)+('Rates Calculator'!K$347/1000) -> 14848 | J21: =I21*(1+'Rates Calculator'!L$336)+('Rates Calculator'!L$347/1000) -> 15323 | K21: =J21*(1+'Rates Calculator'!M$336)+('Rates Calculator'!M$347/1000) -> 15813 | N21: 0.059 | O21: 0.06 | P21: 0.06 | R21: Various - See over | U21: 30360 | V21: =VLOOKUP(U21,'Download 600704.04'!$B$4:$D$12003,3,FALSE)/1000 -> 0 | X21: Business Green St
V22: =SUM(V15:V21) -> -10107
A23: Total ordinary rates | B23: =SUM(B18:B22) -> 41773 | C23: =SUM(C18:C22) -> 45079 | D23: 48645 | E23: 52490 | F23: 56636 | G23: 61109 | H23: 65933 | I23: 68448 | J23: 71056 | K23: 73761 | N23: =(C23-B23)/B23 -> 0.079 | O23: =(D23-C23)/C23 -> 0.079 | P23: =(E23-D23)/D23 -> 0.079
A25: Special Rates
A26: Maitland CBD / Mall | B26: =-S26*(1+'Rates Calculator'!$D$335) -> 588 | C26: =B26*(1+'Rates Calculator'!E$336) -> 631 | D26: =C26*(1+'Rates Calculator'!F$336) -> 677 | E26: =D26*(1+'Rates Calculator'!G$336) -> 726 | F26: =E26*(1+'Rates Calculator'!H$336) -> 779 | G26: =F26*(1+'Rates Calculator'!I$336) -> 835 | H26: =G26*(1+'Rates Calculator'!J$336) -> 896 | I26: =H26*(1+'Rates Calculator'!K$336) -> 925 | J26: =I26*(1+'Rates Calculator'!L$336) -> 955 | K26: =J26*(1+'Rates Calculator'!M$336) -> 986 | N26: =(C26-B26)/B26 -> 0.073 | O26: =(D26-C26)/C26 -> 0.073 | P26: =(E26-D26)/D26 -> 0.072 | R26: 500009.3 | S26: =VLOOKUP(R26,'Download 600704.04'!$B$4:$D$12003,3,FALSE)/1000 -> -588
A28: Total special rates | B28: =SUM(B26:B27) -> 588 | C28: =SUM(C26:C27) -> 631 | D28: =SUM(D26:D27) -> 677 | E28: =SUM(E26:E27) -> 726 | F28: =SUM(F26:F27) -> 779 | G28: 835 | H28: 896 | I28: 925 | J28: 955 | K28: 986 | N28: =(C28-B28)/B28 -> 0.073 | O28: =(D28-C28)/C28 -> 0.073 | P28: =(E28-D28)/D28 -> 0.072
A30: Total rates | B30: =B23+B28 -> 42361 | C30: =C23+C28 -> 45710 | D30: 49322 | E30: 53216 | F30: 57415 | G30: 61944 | H30: 66829 | I30: 69373 | J30: 72011 | K30: 74747
A32: Annual Charges | R32: 500009.2
A33: Domestic Waste Management Services | B33: =-S33 -> 10916 | C33: =Calculations!D55 -> 12044 | D33: =Calculations!E55 -> 12222 | E33: =Calculations!F55 -> 13040 | F33: =Calculations!G55 -> 14032 | G33: =Calculations!H55 -> 13136 | H33: =Calculations!I55 -> 13896 | I33: =Calculations!J55 -> 14702 | J33: =Calculations!K55 -> 15536 | K33: =Calculations!L55 -> 16332 | N33: =(C33-B33)/B33 -> 0.103 | O33: =(D33-C33)/C33 -> 0.015 | P33: =(E33-D33)/D33 -> 0.067 | R33: 500009.21 | S33: =VLOOKUP(R33,'Download 600704.04'!$B$4:$D$12003,3,FALSE)/1000 -> -10916
A34: Stormwater Management Services | B34: =-S34 -> 686 | C34: =B34*(1+Calculations!D$16) -> 707 | D34: =C34*(1+Calculations!E$16) -> 728 | E34: =D34*(1+Calculations!F$16) -> 750 | F34: =E34*(1+Calculations!G$16) -> 773 | G34: =F34*(1+Calculations!H$16) -> 796 | H34: =G34*(1+Calculations!I$16) -> 820 | I34: =H34*(1+Calculations!J$16) -> 845 | J34: =I34*(1+Calculations!K$16) -> 870 | K34: =J34*(1+Calculations!L$16) -> 896 | N34: 0.031 | O34: 0.03 | P34: 0.03 | R34: 500009.23 | S34: =VLOOKUP(R34,'Download 600704.04'!$B$4:$D$12003,3,FALSE)/1000 -> -686
A35: Commercial Waste Management Services | B35: =-S35 -> 502 | C35: =Calculations!D64 -> 556 | D35: =Calculations!E64 -> 613 | E35: =Calculations!F64 -> 672 | F35: =Calculations!G64 -> 734 | G35: =Calculations!H64 -> 797 | H35: =Calculations!I64 -> 866 | I35: =Calculations!J64 -> 938 | J35: =Calculations!K64 -> 1012 | K35: =Calculations!L64 -> 1091 | N35: =(C35-B35)/B35 -> 0.108 | O35: =(D35-C35)/C35 -> 0.103 | P35: =(E35-D35)/D35 -> 0.096 | R35: 500009.22 | S35: =VLOOKUP(R35,'Download 600704.04'!$B$4:$D$12003,3,FALSE)/1000+1 -> -502
A36: Section 611 charges | B36: =-S36 -> 24 | C36: =B36*(1+Calculations!D$16) -> 25 | D36: =C36*(1+Calculations!E$16) -> 26 | E36: =D36*(1+Calculations!F$16) -> 27 | F36: =E36*(1+Calculations!G$16) -> 28 | G36: =F36*(1+Calculations!H$16) -> 29 | H36: =G36*(1+Calculations!I$16) -> 30 | I36: =H36*(1+Calculations!J$16) -> 31 | J36: =I36*(1+Calculations!K$16) -> 32 | K36: =J36*(1+Calculations!L$16) -> 33 | R36: 500009.24 | S36: =VLOOKUP(R36,'Download 600704.04'!$B$4:$D$12003,3,FALSE)/1000 -> -24
A38: Total annual charges | B38: =SUM(B33:B37) -> 12128 | C38: =SUM(C33:C37) -> 13332 | D38: =SUM(D33:D37) -> 13589 | E38: =SUM(E33:E37) -> 14489 | F38: =SUM(F33:F37) -> 15567 | G38: 14758 | H38: 15612 | I38: 16516 | J38: 17450 | K38: 18352 | N38: 0.099 | O38: 0.019 | P38: 0.066
A40: Total rates and annual charges | B40: =B30+B38 -> 54489 | C40: =C30+C38 -> 59042 | D40: 62911 | E40: 67705 | F40: 72982 | G40: 76702 | H40: 82441 | I40: 85889 | J40: 89461 | K40: 93099 | N40: 0.084 | O40: 0.066 | P40: 0.076

Sheet Note 3(b)
A1: =Calculations!A1 -> Maitland City Council
A2: =Calculations!A2 -> Long Term Financial Plan
A3: =Calculations!A3 -> For the period 2014/15 to 2023/24
A4: =Calculations!A4 -> 2014/15 Draft Budget
A5: =Calculations!A5 -> Option 2 - $25M Projects (Including $1.5M annual rent from 2015/16, 5 additional staff per year from 2015/16)
A6: =Calculations!A6 -> Year 1 to Year 7 - 7.25% Rate Increase (Adjustments to rates pie Yrs 1-7) (Additional farm adjustment) (Additional grants $13M & loans $38M)
A7: Note 3 Revenue from continuing operations (continued)
B8: =Calculations!C$10 -> Year 1 | C8: =Calculations!D$10 -> Year 2 | D8: =Calculations!E$10 -> Year 3 | E8: =Calculations!F$10 -> Year 4 | F8: =Calculations!G$10 -> Year 5 | G8: =Calculations!H$10 -> Year 6 | H8: =Calculations!I$10 -> Year 7 | I8: =Calculations!J$10 -> Year 8 | J8: =Calculations!K$10 -> Year 9 | K8: =Calculations!L$10 -> Year 10
B9: =Calculations!C$11 -> Adopted | C9: =Calculations!D$11 -> Estimate | D9: =Calculations!E$11 -> Estimate | E9: =Calculations!F$11 -> Estimate | F9: =Calculations!G$11 -> Estimate | G9: =Calculations!H$11 -> Estimate | H9: =Calculations!I$11 -> Estimate | I9: =Calculations!J$11 -> Estimate | J9: =Calculations!K$11 -> Estimate | K9: =Calculations!L$11 -> Estimate | N9: Change | O9: Change | P9: Change
B10: =Calculations!C$12 -> 2014/15 | C10: =Calculations!D$12 -> 2015/16 | D10: =Calculations!E$12 -> 2016/17 | E10: =Calculations!F$12 -> 2017/18 | F10: =Calculations!G$12 -> 2018/19 | G10: =Calculations!H$12 -> 2019/20 | H10: =Calculations!I$12 -> 2020/21 | I10: =Calculations!J$12 -> 2021/22 | J10: =Calculations!K$12 -> 2022/23 | K10: =Calculations!L$12 -> 2023/24 | N10: =C10 -> 2015/16 | O10: =D10 -> 2016/17 | P10: =E10 -> 2017/18 | S10: Original
B11: ($'000) | C11: ($'000) | D11: ($'000) | E11: ($'000) | F11: ($'000) | G11: ($'000) | H11: ($'000) | I11: ($'000) | J11: ($'000) | K11: ($'000) | N11: % | O11: % | P11: % | R11: Gl A/c | S11: Vote
A13: (b) User charges and fees | R13: 500010
A15: User charges (pursuant to s.502) | R15: 500010.1
A16: Waste Management Services (not domestic) | B16: =-S16 -> 2759 | C16: =Calculations!D$67 -> 3049 | D16: =Calculations!E$67 -> 3359 | E16: =Calculations!F$67 -> 3690 | F16: =Calculations!G$67 -> 4041 | G16: =Calculations!H$67 -> 4415 | H16: =Calculations!I$67 -> 4823 | I16: =Calculations!J$67 -> 5253 | J16: =Calculations!K$67 -> 5708 | K16: =Calculations!L$67 -> 6200 | N16: =(C16-B16)/B16 -> 0.105 | O16: =(D16-C16)/C16 -> 0.102 | P16: =(E16-D16)/D16 -> 0.099 | R16: 500010.12 | S16: =VLOOKUP(R16,'Download 600704.04'!$B$4:$D$12003,3,FALSE)/1000 -> -2759
A18: Total user charges | B18: =SUM(B16:B17) -> 2759 | C18: =SUM(C16:C17) -> 3049 | D18: =SUM(D16:D17) -> 3359 | E18: =SUM(E16:E17) -> 3690 | F18: =SUM(F16:F17) -> 4041 | G18: 4415 | H18: 4823 | I18: 5253 | J18: 5708 | K18: 6200 | N18: =(C18-B18)/B18 -> 0.105 | O18: =(D18-C18)/C18 -> 0.102 | P18: =(E18-D18)/D18 -> 0.099
A20: Fees | R20: 500010.2 | S20: =VLOOKUP(R20,'Download 600704.04'!$B$4:$D$12003,3,FALSE)/1000 -> -3656
A21: Private Works | B21: =-S21 -> 80 | C21: =B21*(1+Calculations!D$16) -> 82 | D21: =C21*(1+Calculations!E$16) -> 84 | E21: =D21*(1+Calculations!F$16) -> 87 | F21: =E21*(1+Calculations!G$16) -> 90 | G21: =F21*(1+Calculations!H$16) -> 93 | H21: =G21*(1+Calculations!I$16) -> 96 | I21: =H21*(1+Calculations!J$16) -> 99 | J21: =I21*(1+Calculations!K$16) -> 102 | K21: =J21*(1+Calculations!L$16) -> 105 | R21: 500010.24 | S21: =VLOOKUP(R21,'Download 600704.04'!$B$4:$D$12003,3,FALSE)/1000 -> -80
A22: RTA works (State roads not controlled by Council) | B22: =-S22 -> 664 | C22: =B22*(1+Calculations!D$16) -> 684 | D22: =C22*(1+Calculations!E$16) -> 705 | E22: =D22*(1+Calculations!F$16) -> 726 | F22: =E22*(1+Calculations!G$16) -> 748 | G22: =F22*(1+Calculations!H$16) -> 770 | H22: =G22*(1+Calculations!I$16) -> 793 | I22: =H22*(1+Calculations!J$16) -> 817 | J22: =I22*(1+Calculations!K$16) -> 842 | K22: =J22*(1+Calculations!L$16) -> 867 | N22: =(C22-B22)/B22 -> 0.03 | O22: =(D22-C22)/C22 -> 0.031 | P22: =(E22-D22)/D22 -> 0.03 | R22: 500010.23 | S22: =VLOOKUP(R22,'Download 600704.04'!$B$4:$D$12003,3,FALSE)/1000 -> -664
A23: Building services - Other | B23: =-S23 -> 220 | C23: =B23*(1+Calculations!D$16) -> 227 | D23: =C23*(1+Calculations!E$16) -> 234 | E23: =D23*(1+Calculations!F$16) -> 241 | F23: =E23*(1+Calculations!G$16) -> 248 | G23: =F23*(1+Calculations!H$16) -> 255 | H23: =G23*(1+Calculations!I$16) -> 263 | I23: =H23*(1+Calculations!J$16) -> 271 | J23: =I23*(1+Calculations!K$16) -> 279 | K23: =J23*(1+Calculations!L$16) -> 287 | R23: 500010.32 | S23: =VLOOKUP(R23,'Download 600704.04'!$B$4:$D$12003,3,FALSE)/1000 -> -220
A24: Planning and building - Regulatory | B24: =-S24 -> 1546 | C24: =B24*(1+Calculations!D$16) -> 1592 | D24: =C24*(1+Calculations!E$16) -> 1640 | E24: =D24*(1+Calculations!F$16) -> 1689 | F24: =E24*(1+Calculations!G$16) -> 1740 | G24: =F24*(1+Calculations!H$16) -> 1792 | H24: =G24*(1+Calculations!I$16) -> 1846 | I24: =H24*(1+Calculations!J$16) -> 1901 | J24: =I24*(1+Calculations!K$16) -> 1958 | K24: =J24*(1+Calculations!L$16) -> 2017 | N24: 0.03 | O24: 0.03 | P24: 0.03 | R24: 500010.33 | S24: =VLOOKUP(R24,'Download 600704.04'!$B$4:$D$12003,3,FALSE)/1000 -> -1546
A25: Inspection fees | B25: =-S25 -> 58 | C25: =B25*(1+Calculations!D$16) -> 60 | D25: =C25*(1+Calculations!E$16) -> 62 | E25: =D25*(1+Calculations!F$16) -> 64 | F25: =E25*(1+Calculations!G$16) -> 66 | G25: =F25*(1+Calculations!H$16) -> 68 | H25: =G25*(1+Calculations!I$16) -> 70 | I25: =H25*(1+Calculations!J$16) -> 72 | J25: =I25*(1+Calculations!K$16) -> 74 | K25: =J25*(1+Calculations!L$16) -> 76 | N25: =(C25-B25)/B25 -> 0.034 | O25: =(D25-C25)/C25 -> 0.033 | P25: =(E25-D25)/D25 -> 0.032 | R25: 500010.34 | S25: =VLOOKUP(R25,'Download 600704.04'!$B$4:$D$12003,3,FALSE)/1000 -> -58
A26: Section 603 certificates | B26: =-S26 -> 170 | C26: =B26*(1+Calculations!D$16) -> 175 | D26: =C26*(1+Calculations!E$16) -> 180 | E26: =D26*(1+Calculations!F$16) -> 185 | F26: =E26*(1+Calculations!G$16) -> 191 | G26: =F26*(1+Calculations!H$16) -> 197 | H26: =G26*(1+Calculations!I$16) -> 203 | I26: =H26*(1+Calculations!J$16) -> 209 | J26: =I26*(1+Calculations!K$16) -> 215 | K26: =J26*(1+Calculations!L$16) -> 221 | N26: =(C26-B26)/B26 -> 0.029 | O26: =(D26-C26)/C26 -> 0.029 | P26: =(E26-D26)/D26 -> 0.028 | R26: 500010.35 | S26: =VLOOKUP(R26,'Download 600704.04'!$B$4:$D$12003,3,FALSE)/1000 -> -170
A27: Registration fees | B27: 56 | C27: =B27*(1+Calculations!D$16) -> 58 | D27: =C27*(1+Calculations!E$16) -> 60 | E27: =D27*(1+Calculations!F$16) -> 62 | F27: =E27*(1+Calculations!G$16) -> 64 | G27: =F27*(1+Calculations!H$16) -> 66 | H27: =G27*(1+Calculations!I$16) -> 68 | I27: =H27*(1+Calculations!J$16) -> 70 | J27: =I27*(1+Calculations!K$16) -> 72 | K27: =J27*(1+Calculations!L$16) -> 74 | N27: 0.036 | O27: 0.034 | P27: 0.033 | R27: 500010.36 | S27: =VLOOKUP(R27,'Download 600704.04'!$B$4:$D$12003,3,FALSE)/1000 -> -56
A28: Other | R28: 500010.26 | S28: =VLOOKUP(R28,'Download 600704.04'!$B$4:$D$12003,3,FALSE)/1000 -> -862
A29: - Swimming facilities | B29: =-S29 -> 295 | C29: =B29*(1+Calculations!D$16)+Calculations!D$73 -> 404 | D29: =C29*(1+Calculations!E$16)+Calculations!E$73 -> 416 | E29: =D29*(1+Calculations!F$16)+Calculations!F$73 -> 428 | F29: =E29*(1+Calculations!G$16)+Calculations!G$73 -> 441 | G29: =F29*(1+Calculations!H$16)+Calculations!H$73 -> 454 | H29: =G29*(1+Calculations!I$16)+Calculations!I$73 -> 468 | I29: =H29*(1+Calculations!J$16)+Calculations!J$73 -> 482 | J29: =I29*(1+Calculations!K$16)+Calculations!K$73 -> 496 | K29: =J29*(1+Calculations!L$16)+Calculations!L$73 -> 511 | N29: 0.369 | O29: 0.03 | P29: 0.029 | R29: 500010.28 | S29: =VLOOKUP(R29,'Download 600704.04'!$B$4:$D$12003,3,FALSE)/1000 -> -295
A30: - Cemeteries | B30: 66 | C30: =B30*(1+Calculations!D$16) -> 68 | D30: =C30*(1+Calculations!E$16) -> 70 | E30: =D30*(1+Calculations!F$16) -> 72 | F30: =E30*(1+Calculations!G$16) -> 74 | G30: =F30*(1+Calculations!H$16) -> 76 | H30: =G30*(1+Calculations!I$16) -> 78 | I30: =H30*(1+Calculations!J$16) -> 80 | J30: =I30*(1+Calculations!K$16) -> 82 | K30: =J30*(1+Calculations!L$16) -> 84 | N30: 0.03 | O30: 0.029 | P30: 0.029 | R30: 500010.29 | S30: =VLOOKUP(R30,'Download 600704.04'!$B$4:$D$12003,3,FALSE)/1000 -> -66
A31: - Libraries | B31: 53 | C31: =B31*(1+Calculations!D$16) -> 55 | D31: =C31*(1+Calculations!E$16) -> 57 | E31: =D31*(1+Calculations!F$16) -> 59 | F31: =E31*(1+Calculations!G$16) -> 61 | G31: =F31*(1+Calculations!H$16) -> 63 | H31: =G31*(1+Calculations!I$16) -> 65 | I31: =H31*(1+Calculations!J$16) -> 67 | J31: =I31*(1+Calculations!K$16) -> 69 | K31: =J31*(1+Calculations!L$16) -> 71 | N31: 0.038 | O31: 0.036 | P31: 0.035 | R31: 500010.31 | S31: =VLOOKUP(R31,'Download 600704.04'!$B$4:$D$12003,3,FALSE)/1000 -> -53
A32: - Food premises administration | B32: 21 | C32: =B32*(1+Calculations!D$16) -> 22 | D32: =C32*(1+Calculations!E$16) -> 23 | E32: =D32*(1+Calculations!F$16) -> 24 | F32: =E32*(1+Calculations!G$16) -> 25 | G32: =F32*(1+Calculations!H$16) -> 26 | H32: =G32*(1+Calculations!I$16) -> 27 | I32: =H32*(1+Calculations!J$16) -> 28 | J32: =I32*(1+Calculations!K$16) -> 29 | K32: =J32*(1+Calculations!L$16) -> 30 | N32: 0.048 | O32: 0.045 | P32: 0.043 | R32: 34660 | S32: =VLOOKUP(R32,'Download 600704.04'!$B$4:$D$12003,3,FALSE)/1000 -> -21
A33: - Outstanding notices | B33: 25 | C33: =B33*(1+Calculations!D$16) -> 26 | D33: =C33*(1+Calculations!E$16) -> 27 | E33: =D33*(1+Calculations!F$16) -> 28 | F33: =E33*(1+Calculations!G$16) -> 29 | G33: =F33*(1+Calculations!H$16) -> 30 | H33: =G33*(1+Calculations!I$16) -> 31 | I33: =H33*(1+Calculations!J$16) -> 32 | J33: =I33*(1+Calculations!K$16) -> 33 | K33: =J33*(1+Calculations!L$16) -> 34 | N33: 0.04 | O33: 0.038 | P33: 0.037 | R33: 33683 | S33: =VLOOKUP(R33,'Download 600704.04'!$B$4:$D$12003,3,FALSE)/1000 -> -25
A34: - Rezoning applications (Other) | B34: =-S34 -> 120 | C34: =B34*(1+Calculations!D$16) -> 124 | D34: =C34*(1+Calculations!E$16) -> 128 | E34: =D34*(1+Calculations!F$16) -> 132 | F34: =E34*(1+Calculations!G$16) -> 136 | G34: =F34*(1+Calculations!H$16) -> 140 | H34: =G34*(1+Calculations!I$16) -> 144 | I34: =H34*(1+Calculations!J$16) -> 148 | J34: =I34*(1+Calculations!K$16) -> 152 | K34: =J34*(1+Calculations!L$16) -> 157 | N34: =(C34-B34)/B34 -> 0.033 | O34: =(D34-C34)/C34 -> 0.032 | P34: =(E34-D34)/D34 -> 0.031 | R34: 33703 | S34: =VLOOKUP(R34,'Download 600704.04'!$B$4:$D$12003,3,FALSE)/1000 -> -120
A35: - Construction certificates subdivision | B35: 33 | C35: =B35*(1+Calculations!D$16) -> 34 | D35: =C35*(1+Calculations!E$16) -> 35 | E35: =D35*(1+Calculations!F$16) -> 36 | F35: =E35*(1+Calculations!G$16) -> 37 | G35: =F35*(1+Calculations!H$16) -> 38 | H35: =G35*(1+Calculations!I$16) -> 39 | I35: =H35*(1+Calculations!J$16) -> 40 | J35: =I35*(1+Calculations!K$16) -> 41 | K35: =J35*(1+Calculations!L$16) -> 42 | N35: 0.03 | O35: 0.029 | P35: 0.029 | R35: 33705 | S35: =VLOOKUP(R35,'Download 600704.04'!$B$4:$D$12003,3,FALSE)/1000 -> -33
A36: - Sub division certificates (Endorsement) | B36: 33 | C36: =B36*(1+Calculations!D$16) -> 34 | D36: =C36*(1+Calculations!E$16) -> 35 | E36: =D36*(1+Calculations!F$16) -> 36 | F36: =E36*(1+Calculations!G$16) -> 37 | G36: =F36*(1+Calculations!H$16) -> 38 | H36: =G36*(1+Calculations!I$16) -> 39 | I36: =H36*(1+Calculations!J$16) -> 40 | J36: =I36*(1+Calculations!K$16) -> 41 | K36: =J36*(1+Calculations!L$16) -> 42 | N36: 0.03 | O36: 0.029 | P36: 0.029 | R36: 33706 | S36: =VLOOKUP(R36,'Download 600704.04'!$B$4:$D$12003,3,FALSE)/1000 -> -33
A37: - Compliance certificates subdivisions | B37: 134 | C37: =B37*(1+Calculations!D$16) -> 138 | D37: =C37*(1+Calculations!E$16) -> 142 | E37: =D37*(1+Calculations!F$16) -> 146 | F37: =E37*(1+Calculations!G$16) -> 150 | G37: =F37*(1+Calculations!H$16) -> 155 | H37: =G37*(1+Calculations!I$16) -> 160 | I37: =H37*(1+Calculations!J$16) -> 165 | J37: =I37*(1+Calculations!K$16) -> 170 | K37: =J37*(1+Calculations!L$16) -> 175 | N37: 0.03 | O37: 0.029 | P37: 0.028 | R37: 33717 | S37: =VLOOKUP(R37,'Download 600704.04'!$B$4:$D$12003,3,FALSE)/1000 -> -134
A38: - Connection to garbage service | B38: 50 | C38: =B38*(1+Calculations!D$16) -> 52 | D38: =C38*(1+Calculations!E$16) -> 54 | E38: =D38*(1+Calculations!F$16) -> 56 | F38: =E38*(1+Calculations!G$16) -> 58 | G38: =F38*(1+Calculations!H$16) -> 60 | H38: =G38*(1+Calculations!I$16) -> 62 | I38: =H38*(1+Calculations!J$16) -> 64 | J38: =I38*(1+Calculations!K$16) -> 66 | K38: =J38*(1+Calculations!L$16) -> 68 | N38: 0.04 | O38: 0.038 | P38: 0.037 | R38: 34622 | S38: =VLOOKUP(R38,'Download 600704.04'!$B$4:$D$12003,3,FALSE)/1000 -> -50
A39: - Road opening permits | B39: 8 | C39: =B39*(1+Calculations!D$16) -> 8 | D39: =C39*(1+Calculations!E$16) -> 8 | E39: =D39*(1+Calculations!F$16) -> 8 | F39: =E39*(1+Calculations!G$16) -> 8 | G39: =F39*(1+Calculations!H$16) -> 8 | H39: =G39*(1+Calculations!I$16) -> 8 | I39: =H39*(1+Calculations!J$16) -> 8 | J39: =I39*(1+Calculations!K$16) -> 8 | K39: =J39*(1+Calculations!L$16) -> 8 | N39: 0 | O39: 0 | P39: 0 | R39: 33400 | S39: =VLOOKUP(R39,'Download 600704.04'!$B$4:$D$12003,3,FALSE)/1000 -> -8
A40: - Septic tank application fees | B40: 0 | C40: =B40*(1+Calculations!D$16) -> 0 | D40: =C40*(1+Calculations!E$16) -> 0 | E40: =D40*(1+Calculations!F$16) -> 0 | F40: =E40*(1+Calculations!G$16) -> 0 | G40: =F40*(1+Calculations!H$16) -> 0 | H40: =G40*(1+Calculations!I$16) -> 0 | I40: =H40*(1+Calculations!J$16) -> 0 | J40: =I40*(1+Calculations!K$16) -> 0 | K40: =J40*(1+Calculations!L$16) -> 0 | R40: 33630
A41: - Other | B41: 24 | C41: =B41*(1+Calculations!D$16) -> 25 | D41: =C41*(1+Calculations!E$16) -> 26 | E41: =D41*(1+Calculations!F$16) -> 27 | F41: =E41*(1+Calculations!G$16) -> 28 | G41: =F41*(1+Calculations!H$16) -> 29 | H41: =G41*(1+Calculations!I$16) -> 30 | I41: =H41*(1+Calculations!J$16) -> 31 | J41: =I41*(1+Calculations!K$16) -> 32 | K41: =J41*(1+Calculations!L$16) -> 33 | N41: 0.042 | O41: 0.04 | P41: 0.038 | R41: Bal of 500010.26 | S41: =S28-SUM(S29:S40) -> -24
A43: Total fees | B43: =SUM(B21:B41) -> 3656 | C43: 3868 | D43: 3986 | E43: 4106 | F43: 4231 | G43: 4358 | H43: 4490 | I43: 4624 | J43: 4761 | K43: 4902 | N43: 0.058 | O43: 0.031 | P43: 0.03
A45: Total user charges and fees | B45: ='Note 3(b)'!B18+B43 -> 6415 | C45: ='Note 3(b)'!C18+C43 -> 6917 | D45: ='Note 3(b)'!D18+D43 -> 7345 | E45: ='Note 3(b)'!E18+E43 -> 7796 | F45: ='Note 3(b)'!F18+F43 -> 8272 | G45: ='Note 3(b)'!G18+G43 -> 8773 | H45: ='Note 3(b)'!H18+H43 -> 9313 | I45: ='Note 3(b)'!I18+I43 -> 9877 | J45: ='Note 3(b)'!J18+J43 -> 10469 | K45: ='Note 3(b)'!K18+K43 -> 11102 | N45: =(C45-B45)/B45 -> 0.078 | O45: =(D45-C45)/C45 -> 0.062 | P45: =(E45-D45)/D45 -> 0.061

Sheet Note 3(c)
A1: =Calculations!A1 -> Maitland City Council
A2: =Calculations!A2 -> Long Term Financial Plan
A3: =Calculations!A3 -> For the period 2014/15 to 2023/24
A4: =Calculations!A4 -> 2014/15 Draft Budget
A5: =Calculations!A5 -> Option 2 - $25M Projects (Including $1.5M annual rent from 2015/16, 5 additional staff per year from 2015/16)
A6: =Calculations!A6 -> Year 1 to Year 7 - 7.25% Rate Increase (Adjustments to rates pie Yrs 1-7) (Additional farm adjustment) (Additional grants $13M & loans $38M)
A7: Note 3 Revenue from continuing operations (continued)
B8: =Calculations!C$10 -> Year 1 | C8: =Calculations!D$10 -> Year 2 | D8: =Calculations!E$10 -> Year 3 | E8: =Calculations!F$10 -> Year 4 | F8: =Calculations!G$10 -> Year 5 | G8: =Calculations!H$10 -> Year 6 | H8: =Calculations!I$10 -> Year 7 | I8: =Calculations!J$10 -> Year 8 | J8: =Calculations!K$10 -> Year 9 | K8: =Calculations!L$10 -> Year 10
B9: =Calculations!C$11 -> Adopted | C9: =Calculations!D$11 -> Estimate | D9: =Calculations!E$11 -> Estimate | E9: =Calculations!F$11 -> Estimate | F9: =Calculations!G$11 -> Estimate | G9: =Calculations!H$11 -> Estimate | H9: =Calculations!I$11 -> Estimate | I9: =Calculations!J$11 -> Estimate | J9: =Calculations!K$11 -> Estimate | K9: =Calculations!L$11 -> Estimate | N9: Change | O9: Change | P9: Change
B10: =Calculations!C$12 -> 2014/15 | C10: =Calculations!D$12 -> 2015/16 | D10: =Calculations!E$12 -> 2016/17 | E10: =Calculations!F$12 -> 2017/18 | F10: =Calculations!G$12 -> 2018/19 | G10: =Calculations!H$12 -> 2019/20 | H10: =Calculations!I$12 -> 2020/21 | I10: =Calculations!J$12 -> 2021/22 | J10: =Calculations!K$12 -> 2022/23 | K10: =Calculations!L$12 -> 2023/24 | N10: =C10 -> 2015/16 | O10: =D10 -> 2016/17 | P10: =E10 -> 2017/18 | S10: Original
B11: ($'000) | C11: ($'000) | D11: ($'000) | E11: ($'000) | F11: ($'000) | G11: ($'000) | H11: ($'000) | I11: ($'000) | J11: ($'000) | K11: ($'000) | N11: % | O11: % | P11: % | R11: Gl A/c | S11: Vote
A13: (c) Interest and investment revenue | R13: 500011
A15: Interest and dividends
A16: - Overdue rates and charges | B16: =-S16 -> 340 | C16: =B16*(1+Calculations!D$16) -> 350 | D16: =C16*(1+Calculations!E$16) -> 361 | E16: =D16*(1+Calculations!F$16) -> 372 | F16: =E16*(1+Calculations!G$16) -> 383 | G16: =F16*(1+Calculations!H$16) -> 394 | H16: =G16*(1+Calculations!I$16) -> 406 | I16: =H16*(1+Calculations!J$16) -> 418 | J16: =I16*(1+Calculations!K$16) -> 431 | K16: =J16*(1+Calculations!L$16) -> 444 | N16: =(C16-B16)/B16 -> 0.029 | O16: 0.031 | P16: 0.03 | R16: 500011.1 | S16: =VLOOKUP(R16,'Download 600704.04'!$B$4:$D$12003,3,FALSE)/1000 -> -340
A17: - Cash and investments | B17: =-S17 -> 2420 | C17: =Calculations!D83 -> 3052 | D17: =Calculations!E83 -> 3024 | E17: =Calculations!F83 -> 3262 | F17: =Calculations!G83 -> 3429 | G17: =Calculations!H83 -> 3049 | H17: =Calculations!I83 -> 3037 | I17: =Calculations!J83 -> 3012 | J17: =Calculations!K83 -> 2981 | K17: =Calculations!L83 -> 2884 | N17: 0.261 | O17: -0.009 | P17: 0.079 | R17: See below | S17: =S25 -> -2420
A18: - Other | B18: =-S18 -> 0 | C18: =B18*(1+Calculations!D$16) -> 0 | D18: =C18*(1+Calculations!E$16) -> 0 | E18: =D18*(1+Calculations!F$16) -> 0 | F18: =E18*(1+Calculations!G$16) -> 0 | G18: =F18*(1+Calculations!H$16) -> 0 | H18: =G18*(1+Calculations!I$16) -> 0 | I18: =H18*(1+Calculations!J$16) -> 0 | J18: =I18*(1+Calculations!K$16) -> 0 | K18: =J18*(1+Calculations!L$16) -> 0 | R18: 500011.4 | S18: =VLOOKUP(R18,'Download 600704.04'!$B$4:$D$12003,3,FALSE)/1000 -> 0
A19: Impairment losses
A20: - Investments | B20: =-S21 -> 0 | C20: =B20*(1+Calculations!D$16) -> 0 | D20: =C20*(1+Calculations!E$16) -> 0 | E20: =D20*(1+Calculations!F$16) -> 0 | F20: =E20*(1+Calculations!G$16) -> 0 | G20: =F20*(1+Calculations!H$16) -> 0 | H20: =G20*(1+Calculations!I$16) -> 0 | I20: =H20*(1+Calculations!J$16) -> 0 | J20: =I20*(1+Calculations!K$16) -> 0 | K20: =J20*(1+Calculations!L$16) -> 0 | R20: 500011.5 | S20: =VLOOKUP(R20,'Download 600704.04'!$B$4:$D$12003,3,FALSE)/1000 -> 0
A22: Total interest and investment revenue | B22: =SUM(B16:B21) -> 2760 | C22: =SUM(C16:C21) -> 3402 | D22: =SUM(D16:D21) -> 3385 | E22: =SUM(E16:E21) -> 3634 | F22: =SUM(F16:F21) -> 3812 | G22: 3443 | H22: 3443 | I22: 3430 | J22: 3412 | K22: 3328 | N22: =(C22-B22)/B22 -> 0.233 | O22: =(D22-C22)/C22 -> -0.005 | P22: =(E22-D22)/D22 -> 0.074 | R22: Cash & investments
R23: 500011.2 | S23: =VLOOKUP(R23,'Download 600704.04'!$B$4:$D$12003,3,FALSE)/1000 -> -1200
R24: 500011.3 | S24: =VLOOKUP(R24,'Download 600704.04'!$B$4:$D$12003,3,FALSE)/1000 -> -1220
R25: Total | S25: =SUM(S23:S24) -> -2420

Sheet Note 3(d)
A1: =Calculations!A1 -> Maitland City Council
A2: =Calculations!A2 -> Long Term Financial Plan
A3: =Calculations!A3 -> For the period 2014/15 to 2023/24
A4: =Calculations!A4 -> 2014/15 Draft Budget
A5: =Calculations!A5 -> Option 2 - $25M Projects (Including $1.5M annual rent from 2015/16, 5 additional staff per year from 2015/16)
A6: =Calculations!A6 -> Year 1 to Year 7 - 7.25% Rate Increase (Adjustments to rates pie Yrs 1-7) (Additional farm adjustment) (Additional grants $13M & loans $38M)
A7: Note 3 Revenue from continuing operations (continued)
B8: =Calculations!C$10 -> Year 1 | C8: =Calculations!D$10 -> Year 2 | D8: =Calculations!E$10 -> Year 3 | E8: =Calculations!F$10 -> Year 4 | F8: =Calculations!G$10 -> Year 5 | G8: =Calculations!H$10 -> Year 6 | H8: =Calculations!I$10 -> Year 7 | I8: =Calculations!J$10 -> Year 8 | J8: =Calculations!K$10 -> Year 9 | K8: =Calculations!L$10 -> Year 10
B9: =Calculations!C$11 -> Adopted | C9: =Calculations!D$11 -> Estimate | D9: =Calculations!E$11 -> Estimate | E9: =Calculations!F$11 -> Estimate | F9: =Calculations!G$11 -> Estimate | G9: =Calculations!H$11 -> Estimate | H9: =Calculations!I$11 -> Estimate | I9: =Calculations!J$11 -> Estimate | J9: =Calculations!K$11 -> Estimate | K9: =Calculations!L$11 -> Estimate | N9: Change | O9: Change | P9: Change
B10: =Calculations!C$12 -> 2014/15 | C10: =Calculations!D$12 -> 2015/16 | D10: =Calculations!E$12 -> 2016/17 | E10: =Calculations!F$12 -> 2017/18 | F10: =Calculations!G$12 -> 2018/19 | G10: =Calculations!H$12 -> 2019/20 | H10: =Calculations!I$12 -> 2020/21 | I10: =Calculations!J$12 -> 2021/22 | J10: =Calculations!K$12 -> 2022/23 | K10: =Calculations!L$12 -> 2023/24 | N10: =C10 -> 2015/16 | O10: =D10 -> 2016/17 | P10: =E10 -> 2017/18 | S10: Original | V10: Original
B11: ($'000) | C11: ($'000) | D11: ($'000) | E11: ($'000) | F11: ($'000) | G11: ($'000) | H11: ($'000) | I11: ($'000) | J11: ($'000) | K11: ($'000) | N11: % | O11: % | P11: % | R11: Gl A/c | S11: Vote | V11: Vote
A13: (d) Other revenues | R13: 500012
A15: Fines | B15: =-S15 -> 267 | C15: =B15*(1+Calculations!D$16) -> 275 | D15: =C15*(1+Calculations!E$16) -> 283 | E15: =D15*(1+Calculations!F$16) -> 291 | F15: =E15*(1+Calculations!G$16) -> 300 | G15: =F15*(1+Calculations!H$16) -> 309 | H15: =G15*(1+Calculations!I$16) -> 318 | I15: =H15*(1+Calculations!J$16) -> 328 | J15: =I15*(1+Calculations!K$16) -> 338 | K15: =J15*(1+Calculations!L$16) -> 348 | N15: =(C15-B15)/B15 -> 0.03 | O15: 0.029 | P15: 0.028 | R15: 500012.1 | S15: =VLOOKUP(R15,'Download 600704.04'!$B$4:$D$12003,3,FALSE)/1000 -> -267
A16: Rental income | B16: 545 | C16: =B16*(1+Calculations!D$16) -> 561 | D16: =C16*(1+Calculations!E$16) -> 578 | E16: =D16*(1+Calculations!F$16) -> 595 | F16: =E16*(1+Calculations!G$16) -> 613 | G16: =F16*(1+Calculations!H$16) -> 631 | H16: =G16*(1+Calculations!I$16) -> 650 | I16: =H16*(1+Calculations!J$16) -> 670 | J16: =I16*(1+Calculations!K$16) -> 690 | K16: =J16*(1+Calculations!L$16) -> 711 | N16: 0.029 | O16: 0.03 | P16: 0.029 | R16: 500010.27 | S16: =VLOOKUP(R16,'Download 600704.04'!$B$4:$D$12003,3,FALSE)/1000 -> -545
A17: Recycling Income (Non domestic) | B17: 50 | C17: =B17*(1+Calculations!D$16) -> 52 | D17: =C17*(1+Calculations!E$16) -> 54 | E17: =D17*(1+Calculations!F$16) -> 56 | F17: =E17*(1+Calculations!G$16) -> 58 | G17: =F17*(1+Calculations!H$16) -> 60 | H17: =G17*(1+Calculations!I$16) -> 62 | I17: =H17*(1+Calculations!J$16) -> 64 | J17: =I17*(1+Calculations!K$16) -> 66 | K17: =J17*(1+Calculations!L$16) -> 68 | N17: 0.04 | O17: 0.038 | P17: 0.037 | R17: 500012.22 | S17: =VLOOKUP(R17,'Download 600704.04'!$B$4:$D$12003,3,FALSE)/1000 -> -50
A18: Legal Fees Recovery (Rates) | B18: 2 | C18: =B18*(1+Calculations!D$16) -> 2 | D18: =C18*(1+Calculations!E$16) -> 2 | E18: =D18*(1+Calculations!F$16) -> 2 | F18: =E18*(1+Calculations!G$16) -> 2 | G18: =F18*(1+Calculations!H$16) -> 2 | H18: =G18*(1+Calculations!I$16) -> 2 | I18: =H18*(1+Calculations!J$16) -> 2 | J18: =I18*(1+Calculations!K$16) -> 2 | K18: =J18*(1+Calculations!L$16) -> 2 | N18: 0 | O18: 0 | P18: 0 | R18: 500012.3 | S18: =VLOOKUP(R18,'Download 600704.04'!$B$4:$D$12003,3,FALSE)/1000 -> -2
A19: Legal Fees Recovery (Other) | B19: 0 | C19: =B19*(1+Calculations!D$16) -> 0 | D19: =C19*(1+Calculations!E$16) -> 0 | E19: =D19*(1+Calculations!F$16) -> 0 | F19: =E19*(1+Calculations!G$16) -> 0 | G19: =F19*(1+Calculations!H$16) -> 0 | H19: =G19*(1+Calculations!I$16) -> 0 | I19: =H19*(1+Calculations!J$16) -> 0 | J19: =I19*(1+Calculations!K$16) -> 0 | K19: =J19*(1+Calculations!L$16) -> 0 | R19: 500012.31 | S19: =VLOOKUP(R19,'Download 600704.04'!$B$4:$D$12003,3,FALSE)/1000 -> 0
A20: Commissions & Agency Fees | B20: 44 | C20: =B20*(1+Calculations!D$16) -> 45 | D20: =C20*(1+Calculations!E$16) -> 46 | E20: =D20*(1+Calculations!F$16) -> 47 | F20: =E20*(1+Calculations!G$16) -> 48 | G20: =F20*(1+Calculations!H$16) -> 49 | H20: =G20*(1+Calculations!I$16) -> 50 | I20: =H20*(1+Calculations!J$16) -> 52 | J20: =I20*(1+Calculations!K$16) -> 54 | K20: =J20*(1+Calculations!L$16) -> 56 | N20: =(C20-B20)/B20 -> 0.023 | O20: =(D20-C20)/C20 -> 0.022 | P20: =(E20-D20)/D20 -> 0.022 | R20: 500012.5 | S20: =VLOOKUP(R20,'Download 600704.04'!$B$4:$D$12003,3,FALSE)/1000 -> -44
A21: Other | R21: 500012.2 | S21: =VLOOKUP(R21,'Download 600704.04'!$B$4:$D$12003,3,FALSE)/1000 -> -1192
A22: - Tourism | B22: =-S22 -> 805 | C22: =B22*(1+Calculations!D$16) -> 829 | D22: =C22*(1+Calculations!E$16) -> 854 | E22: =D22*(1+Calculations!F$16) -> 880 | F22: =E22*(1+Calculations!G$16) -> 906 | G22: =F22*(1+Calculations!H$16) -> 933 | H22: =G22*(1+Calculations!I$16) -> 961 | I22: =H22*(1+Calculations!J$16) -> 990 | J22: =I22*(1+Calculations!K$16) -> 1020 | K22: =J22*(1+Calculations!L$16) -> 1051 | N22: =(C22-B22)/B22 -> 0.03 | O22: =(D22-C22)/C22 -> 0.03 | P22: =(E22-D22)/D22 -> 0.03 | R22: 500012.21 | S22: =VLOOKUP(R22,'Download 600704.04'!$B$4:$D$12003,3,FALSE)/1000 -> -805
A23: - CBD activities income | B23: =-S23 -> 93 | C23: =B23*(1+Calculations!D$16) -> 96 | D23: =C23*(1+Calculations!E$16) -> 99 | E23: =D23*(1+Calculations!F$16) -> 102 | F23: =E23*(1+Calculations!G$16) -> 105 | G23: =F23*(1+Calculations!H$16) -> 108 | H23: =G23*(1+Calculations!I$16) -> 111 | I23: =H23*(1+Calculations!J$16) -> 114 | J23: =I23*(1+Calculations!K$16) -> 117 | K23: =J23*(1+Calculations!L$16) -> 121 | N23: =(C23-B23)/B23 -> 0.032 | O23: =(D23-C23)/C23 -> 0.031 | P23: =(E23-D23)/D23 -> 0.03 | R23: 500012.26 | S23: =VLOOKUP(R23,'Download 600704.04'!$B$4:$D$12003,3,FALSE)/1000 -> -93
A24: - CBD sundry income | B24: 0 | C24: =B24*(1+Calculations!D$16) -> 0 | D24: =C24*(1+Calculations!E$16) -> 0 | E24: =D24*(1+Calculations!F$16) -> 0 | F24: =E24*(1+Calculations!G$16) -> 0 | G24: =F24*(1+Calculations!H$16) -> 0 | H24: =G24*(1+Calculations!I$16) -> 0 | I24: =H24*(1+Calculations!J$16) -> 0 | J24: =I24*(1+Calculations!K$16) -> 0 | K24: =J24*(1+Calculations!L$16) -> 0 | R24: 500012.27 | S24: =VLOOKUP(R24,'Download 600704.04'!$B$4:$D$12003,3,FALSE)/1000 -> 0
A25: - Library Sundry Income | B25: 13 | C25: =B25*(1+Calculations!D$16) -> 13 | D25: =C25*(1+Calculations!E$16) -> 13 | E25: =D25*(1+Calculations!F$16) -> 13 | F25: =E25*(1+Calculations!G$16) -> 13 | G25: =F25*(1+Calculations!H$16) -> 13 | H25: =G25*(1+Calculations!I$16) -> 13 | I25: =H25*(1+Calculations!J$16) -> 13 | J25: =I25*(1+Calculations!K$16) -> 13 | K25: =J25*(1+Calculations!L$16) -> 13 | N25: 0 | O25: 0 | P25: 0 | R25: Multiple no's - below | S25: =S42 -> -13
A26: - Waste Performance Improvement Rebate | B26: 0 | C26: =B26*(1+Calculations!D$16) -> 0 | D26: =C26*(1+Calculations!E$16) -> 0 | E26: =D26*(1+Calculations!F$16) -> 0 | F26: =E26*(1+Calculations!G$16) -> 0 | G26: =F26*(1+Calculations!H$16) -> 0 | H26: =G26*(1+Calculations!I$16) -> 0 | I26: =H26*(1+Calculations!J$16) -> 0 | J26: =I26*(1+Calculations!K$16) -> 0 | K26: =J26*(1+Calculations!L$16) -> 0 | R26: 31608.1
A27: - Art Gallery Educational Programs | B27: 30 | C27: =B27*(1+Calculations!D$16) -> 31 | D27: =C27*(1+Calculations!E$16) -> 32 | E27: =D27*(1+Calculations!F$16) -> 33 | F27: =E27*(1+Calculations!G$16) -> 34 | G27: =F27*(1+Calculations!H$16) -> 35 | H27: =G27*(1+Calculations!I$16) -> 36 | I27: =H27*(1+Calculations!J$16) -> 37 | J27: =I27*(1+Calculations!K$16) -> 38 | K27: =J27*(1+Calculations!L$16) -> 39 | N27: 0.033 | O27: 0.032 | P27: 0.031 | R27: 34249 | S27: =VLOOKUP(R27,'Download 600704.04'!$B$4:$D$12003,3,FALSE)/1000 -> -30
A28: - Art Gallery Public Programs | B28: 4 | C28: =B28*(1+Calculations!D$16) -> 4 | D28: =C28*(1+Calculations!E$16) -> 4 | E28: =D28*(1+Calculations!F$16) -> 4 | F28: =E28*(1+Calculations!G$16) -> 4 | G28: =F28*(1+Calculations!H$16) -> 4 | H28: =G28*(1+Calculations!I$16) -> 4 | I28: =H28*(1+Calculations!J$16) -> 4 | J28: =I28*(1+Calculations!K$16) -> 4 | K28: =J28*(1+Calculations!L$16) -> 4 | N28: 0 | O28: 0 | P28: 0 | R28: 34251 | S28: =VLOOKUP(R28,'Download 600704.04'!$B$4:$D$12003,3,FALSE)/1000 -> -4
A29: - Art Gallery Merchandise Sales | B29: 150 | C29: =B29*(1+Calculations!D$16) -> 155 | D29: =C29*(1+Calculations!E$16) -> 160 | E29: =D29*(1+Calculations!F$16) -> 165 | F29: =E29*(1+Calculations!G$16) -> 170 | G29: =F29*(1+Calculations!H$16) -> 175 | H29: =G29*(1+Calculations!I$16) -> 180 | I29: =H29*(1+Calculations!J$16) -> 185 | J29: =I29*(1+Calculations!K$16) -> 191 | K29: =J29*(1+Calculations!L$16) -> 197 | N29: 0.033 | O29: 0.032 | P29: 0.031 | R29: Multiple no's - below | S29: =S47 -> -150
A30: - MRAG Sponsorship Income | B30: 15 | C30: =B30*(1+Calculations!D$16) -> 15 | D30: =C30*(1+Calculations!E$16) -> 15 | E30: =D30*(1+Calculations!F$16) -> 15 | F30: =E30*(1+Calculations!G$16) -> 15 | G30: =F30*(1+Calculations!H$16) -> 15 | H30: =G30*(1+Calculations!I$16) -> 15 | I30: =H30*(1+Calculations!J$16) -> 15 | J30: =I30*(1+Calculations!K$16) -> 15 | K30: =J30*(1+Calculations!L$16) -> 15 | N30: 0 | O30: 0 | P30: 0 | R30: 34290.1 | S30: =VLOOKUP(R30,'Download 600704.04'!$B$4:$D$12003,3,FALSE)/1000 -> -15
A31: - Development Assessment Sundry Income | B31: 3 | C31: =B31*(1+Calculations!D$16) -> 3 | D31: =C31*(1+Calculations!E$16) -> 3 | E31: =D31*(1+Calculations!F$16) -> 3 | F31: =E31*(1+Calculations!G$16) -> 3 | G31: =F31*(1+Calculations!H$16) -> 3 | H31: =G31*(1+Calculations!I$16) -> 3 | I31: =H31*(1+Calculations!J$16) -> 3 | J31: =I31*(1+Calculations!K$16) -> 3 | K31: =J31*(1+Calculations!L$16) -> 3 | N31: 0 | O31: 0 | P31: 0 | R31: 34610 | S31: =VLOOKUP(R31,'Download 600704.04'!$B$4:$D$12003,3,FALSE)/1000 -> -3
A32: - Building Assessment Sundry Income | B32: 1 | C32: =B32*(1+Calculations!D$16) -> 1 | D32: =C32*(1+Calculations!E$16) -> 1 | E32: =D32*(1+Calculations!F$16) -> 1 | F32: =E32*(1+Calculations!G$16) -> 1 | G32: =F32*(1+Calculations!H$16) -> 1 | H32: =G32*(1+Calculations!I$16) -> 1 | I32: =H32*(1+Calculations!J$16) -> 1 | J32: =I32*(1+Calculations!K$16) -> 1 | K32: =J32*(1+Calculations!L$16) -> 1 | N32: 0 | O32: 0 | P32: 0 | R32: 34632 | S32: =VLOOKUP(R32,'Download 600704.04'!$B$4:$D$12003,3,FALSE)/1000 -> -1
A33: - Insurance incentive payments | B33: =-S33 -> 50 | C33: =B33*(1+Calculations!D$16) -> 52 | D33: =C33*(1+Calculations!E$16) -> 54 | E33: =D33*(1+Calculations!F$16) -> 56 | F33: =E33*(1+Calculations!G$16) -> 58 | G33: =F33*(1+Calculations!H$16) -> 60 | H33: =G33*(1+Calculations!I$16) -> 62 | I33: =H33*(1+Calculations!J$16) -> 64 | J33: =I33*(1+Calculations!K$16) -> 66 | K33: =J33*(1+Calculations!L$16) -> 68 | O33: =(D33-C33)/C33 -> 0.038 | P33: =(E33-D33)/D33 -> 0.037 | R33: Multiple no's - below | S33: =S52 -> -50
A34: - Other | B34: 28 | C34: =B34*(1+Calculations!D$16) -> 29 | D34: =C34*(1+Calculations!E$16) -> 30 | E34: =D34*(1+Calculations!F$16) -> 31 | F34: =E34*(1+Calculations!G$16) -> 32 | G34: =F34*(1+Calculations!H$16) -> 33 | H34: =G34*(1+Calculations!I$16) -> 34 | I34: =H34*(1+Calculations!J$16) -> 35 | J34: =I34*(1+Calculations!K$16) -> 36 | K34: =J34*(1+Calculations!L$16) -> 37 | N34: 0.036 | O34: 0.034 | P34: 0.033 | R34: Bal of 500012.2 | S34: =S21-SUM(S22:S33) -> -28
A36: Total other revenues | B36: =SUM(B15:B35) -> 2100 | C36: 2163 | D36: 2228 | E36: 2294 | F36: 2362 | G36: 2431 | H36: 2502 | I36: 2577 | J36: 2654 | K36: 2734 | N36: =(C36-B36)/B36 -> 0.03 | O36: =(D36-C36)/C36 -> 0.03 | P36: =(E36-D36)/D36 -> 0.03
R39: Library
R40: 34215 | S40: =VLOOKUP(R40,'Download 600704.04'!$B$4:$D$12003,3,FALSE)/1000 -> -1
R41: 34219 | S41: =VLOOKUP(R41,'Download 600704.04'!$B$4:$D$12003,3,FALSE)/1000 -> -12
S42: =SUM(S40:S41) -> -13
R44: Art gallery merchandise sales
R45: 34252 | S45: =VLOOKUP(R45,'Download 600704.04'!$B$4:$D$12003,3,FALSE)/1000 -> -75
R46: 34252.1 | S46: =VLOOKUP(R46,'Download 600704.04'!$B$4:$D$12003,3,FALSE)/1000 -> -75
S47: =SUM(S45:S46) -> -150
R49: Insurance incentive payments
R50: 34010.3 | S50: =VLOOKUP(R50,'Download 600704.04'!$B$4:$D$12003,3,FALSE)/1000 -> -25
R51: 34010.4 | S51: =VLOOKUP(R51,'Download 600704.04'!$B$4:$D$12003,3,FALSE)/1000 -> -25
S52: =SUM(S50:S51) -> -50

Sheet Note 3(e) Grants - Operating
A1: =Calculations!A1 -> Maitland City Council
A2: =Calculations!A2 -> Long Term Financial Plan
A3: =Calculations!A3 -> For the period 2014/15 to 2023/24
A4: =Calculations!A4 -> 2014/15 Draft Budget | R4: OPERATING
A5: =Calculations!A5 -> Option 2 - $25M Projects (Including $1.5M annual rent from 2015/16, 5 additional staff per year from 2015/16)
A6: =Calculations!A6 -> Year 1 to Year 7 - 7.25% Rate Increase (Adjustments to rates pie Yrs 1-7) (Additional farm adjustment) (Additional grants $13M & loans $38M)
A7: Note 3 Revenue from continuing operations (continued) | R7: 500014
B8: =Calculations!C$10 -> Year 1 | C8: =Calculations!D$10 -> Year 2 | D8: =Calculations!E$10 -> Year 3 | E8: =Calculations!F$10 -> Year 4 | F8: =Calculations!G$10 -> Year 5 | G8: =Calculations!H$10 -> Year 6 | H8: =Calculations!I$10 -> Year 7 | I8: =Calculations!J$10 -> Year 8 | J8: =Calculations!K$10 -> Year 9 | K8: =Calculations!L$10 -> Year 10
B9: =Calculations!C$11 -> Adopted | C9: =Calculations!D$11 -> Estimate | D9: =Calculations!E$11 -> Estimate | E9: =Calculations!F$11 -> Estimate | F9: =Calculations!G$11 -> Estimate | G9: =Calculations!H$11 -> Estimate | H9: =Calculations!I$11 -> Estimate | I9: =Calculations!J$11 -> Estimate | J9: =Calculations!K$11 -> Estimate | K9: =Calculations!L$11 -> Estimate | N9: Change | O9: Change | P9: Change
B10: =Calculations!C$12 -> 2014/15 | C10: =Calculations!D$12 -> 2015/16 | D10: =Calculations!E$12 -> 2016/17 | E10: =Calculations!F$12 -> 2017/18 | F10: =Calculations!G$12 -> 2018/19 | G10: =Calculations!H$12 -> 2019/20 | H10: =Calculations!I$12 -> 2020/21 | I10: =Calculations!J$12 -> 2021/22 | J10: =Calculations!K$12 -> 2022/23 | K10: =Calculations!L$12 -> 2023/24 | N10: =C10 -> 2015/16 | O10: =D10 -> 2016/17 | P10: =E10 -> 2017/18 | S10: Original
B11: ($'000) | C11: ($'000) | D11: ($'000) | E11: ($'000) | F11: ($'000) | G11: ($'000) | H11: ($'000) | I11: ($'000) | J11: ($'000) | K11: ($'000) | N11: % | O11: % | P11: % | R11: Gl A/c | S11: Vote
A13: (e) Grants - Operating
A15: General Purpose (Untied) | R15: 500014.1
A16: Financial Assistance | B16: =-S16+Calculations!C$88 -> 6600 | C16: =(B16+Calculations!D$88)*(1+Calculations!D$16) -> 6798 | D16: =(C16+Calculations!E$88)*(1+Calculations!E$16) -> 7002 | E16: =(D16+Calculations!F$88)*(1+Calculations!F$16) -> 7212 | F16: =(E16+Calculations!G$88)*(1+Calculations!G$16) -> 7428 | G16: =(F16+Calculations!H$88)*(1+Calculations!H$16) -> 7651 | H16: =(G16+Calculations!I$88)*(1+Calculations!I$16) -> 7881 | I16: =(H16+Calculations!J$88)*(1+Calculations!J$16) -> 8117 | J16: =(I16+Calculations!K$88)*(1+Calculations!K$16) -> 8361 | K16: =(J16+Calculations!L$88)*(1+Calculations!L$16) -> 8612 | N16: =(C16-B16)/B16 -> 0.03 | O16: =(D16-C16)/C16 -> 0.03 | P16: =(E16-D16)/D16 -> 0.03 | R16: 500014.11 | S16: =VLOOKUP(R16,'Download 600704.04'!$B$4:$D$12003,3,FALSE)/1000 -> -6600
A17: Pensioners' Rates Subsidies
A18: - General | B18: =-S18 -> 537 | C18: =B18*(1+Calculations!D$16) -> 553 | D18: =C18*(1+Calculations!E$16) -> 570 | E18: =D18*(1+Calculations!F$16) -> 587 | F18: =E18*(1+Calculations!G$16) -> 605 | G18: =F18*(1+Calculations!H$16) -> 623 | H18: =G18*(1+Calculations!I$16) -> 642 | I18: =H18*(1+Calculations!J$16) -> 661 | J18: =I18*(1+Calculations!K$16) -> 681 | K18: =J18*(1+Calculations!L$16) -> 701 | N18: =(C18-B18)/B18 -> 0.03 | O18: =(D18-C18)/C18 -> 0.031 | P18: =(E18-D18)/D18 -> 0.03 | R18: 36000 | S18: =VLOOKUP(R18,'Download 600704.04'!$B$4:$D$12003,3,FALSE)/1000 -> -537
A20: Specific Purpose | R20: 500014.2
A21: Pensioners' rates subsidies | R21: 500014.23 | S21: =VLOOKUP(R21,'Download 600704.04'!$B$4:$D$12003,3,FALSE)/1000 -> -1189
A22: - DWM | B22: =-S22 -> 188 | C22: =B22*(1+Calculations!D$16) -> 194 | D22: =C22*(1+Calculations!E$16) -> 200 | E22: =D22*(1+Calculations!F$16) -> 206 | F22: =E22*(1+Calculations!G$16) -> 212 | G22: =F22*(1+Calculations!H$16) -> 218 | H22: =G22*(1+Calculations!I$16) -> 225 | I22: =H22*(1+Calculations!J$16) -> 232 | J22: =I22*(1+Calculations!K$16) -> 239 | K22: =J22*(1+Calculations!L$16) -> 246 | N22: =(C22-B22)/B22 -> 0.032 | O22: =(D22-C22)/C22 -> 0.031 | P22: =(E22-D22)/D22 -> 0.03 | R22: 36000.1 | S22: =VLOOKUP(R22,'Download 600704.04'!$B$4:$D$12003,3,FALSE)/1000 -> -188
A23: Greening Plan | B23: 0 | C23: =B23*(1+Calculations!D$16) -> 0 | D23: =C23*(1+Calculations!E$16) -> 0 | E23: =D23*(1+Calculations!F$16) -> 0 | F23: =E23*(1+Calculations!G$16) -> 0 | G23: =F23*(1+Calculations!H$16) -> 0 | H23: =G23*(1+Calculations!I$16) -> 0 | I23: =H23*(1+Calculations!J$16) -> 0 | J23: =I23*(1+Calculations!K$16) -> 0 | K23: =J23*(1+Calculations!L$16) -> 0 | R23: 500014.24 | S23: =VLOOKUP(R23,'Download 600704.04'!$B$4:$D$12003,3,FALSE)/1000 -> 0
A24: Library | B24: 185 | C24: =B24*(1+Calculations!D$16) -> 191 | D24: =C24*(1+Calculations!E$16) -> 197 | E24: =D24*(1+Calculations!F$16) -> 203 | F24: =E24*(1+Calculations!G$16) -> 209 | G24: =F24*(1+Calculations!H$16) -> 215 | H24: =G24*(1+Calculations!I$16) -> 221 | I24: =H24*(1+Calculations!J$16) -> 228 | J24: =I24*(1+Calculations!K$16) -> 235 | K24: =J24*(1+Calculations!L$16) -> 242 | N24: 0.032 | O24: 0.031 | P24: 0.03 | R24: Multiple no's - See below | S24: =S44 -> -185
A25: Community options (Funding from DoHA) | B25: 145 | C25: =B25*(1+Calculations!D$16) -> 149 | D25: =C25*(1+Calculations!E$16) -> 153 | E25: =D25*(1+Calculations!F$16) -> 158 | F25: =E25*(1+Calculations!G$16) -> 163 | G25: =F25*(1+Calculations!H$16) -> 168 | H25: =G25*(1+Calculations!I$16) -> 173 | I25: =H25*(1+Calculations!J$16) -> 178 | J25: =I25*(1+Calculations!K$16) -> 183 | K25: =J25*(1+Calculations!L$16) -> 188 | N25: 0.028 | O25: 0.027 | P25: 0.033 | R25: 37002.01 | S25: =VLOOKUP(R25,'Download 600704.04'!$B$4:$D$12003,3,FALSE)/1000 -> -145
A26: Community options (Funding from FACS/ADHC) | B26: =-S26 -> 150 | C26: =B26*(1+Calculations!D$16) -> 155 | D26: =C26*(1+Calculations!E$16) -> 160 | E26: =D26*(1+Calculations!F$16) -> 165 | F26: =E26*(1+Calculations!G$16) -> 170 | G26: =F26*(1+Calculations!H$16) -> 175 | H26: =G26*(1+Calculations!I$16) -> 180 | I26: =H26*(1+Calculations!J$16) -> 185 | J26: =I26*(1+Calculations!K$16) -> 191 | K26: =J26*(1+Calculations!L$16) -> 197 | N26: =(C26-B26)/B26 -> 0.033 | O26: =(D26-C26)/C26 -> 0.032 | P26: =(E26-D26)/D26 -> 0.031 | R26: 37002.02 | S26: =VLOOKUP(R26,'Download 600704.04'!$B$4:$D$12003,3,FALSE)/1000 -> -150
A27: Community options ACP (Funding from FACS/ADHC) | B27: 139 | C27: =B27*(1+Calculations!D$16) -> 143 | D27: =C27*(1+Calculations!E$16) -> 147 | E27: =D27*(1+Calculations!F$16) -> 151 | F27: =E27*(1+Calculations!G$16) -> 156 | G27: =F27*(1+Calculations!H$16) -> 161 | H27: =G27*(1+Calculations!I$16) -> 166 | I27: =H27*(1+Calculations!J$16) -> 171 | J27: =I27*(1+Calculations!K$16) -> 176 | K27: =J27*(1+Calculations!L$16) -> 181 | N27: 0.029 | O27: 0.028 | P27: 0.027 | R27: 37002.03 | S27: =VLOOKUP(R27,'Download 600704.04'!$B$4:$D$12003,3,FALSE)/1000 -> -139
A28: Street lighting | B28: 90 | C28: =B28*(1+Calculations!D$16) -> 93 | D28: =C28*(1+Calculations!E$16) -> 96 | E28: =D28*(1+Calculations!F$16) -> 99 | F28: =E28*(1+Calculations!G$16) -> 102 | G28: =F28*(1+Calculations!H$16) -> 105 | H28: =G28*(1+Calculations!I$16) -> 108 | I28: =H28*(1+Calculations!J$16) -> 111 | J28: =I28*(1+Calculations!K$16) -> 114 | K28: =J28*(1+Calculations!L$16) -> 117 | N28: 0.033 | O28: 0.032 | P28: 0.031 | R28: 36107 | S28: =VLOOKUP(R28,'Download 600704.04'!$B$4:$D$12003,3,FALSE)/1000 -> -90
A29: Noxious Weeds | B29: 35 | C29: =B29*(1+Calculations!D$16) -> 36 | D29: =C29*(1+Calculations!E$16) -> 37 | E29: =D29*(1+Calculations!F$16) -> 38 | F29: =E29*(1+Calculations!G$16) -> 39 | G29: =F29*(1+Calculations!H$16) -> 40 | H29: =G29*(1+Calculations!I$16) -> 41 | I29: =H29*(1+Calculations!J$16) -> 42 | J29: =I29*(1+Calculations!K$16) -> 43 | K29: =J29*(1+Calculations!L$16) -> 44 | N29: =(C29-B29)/B29 -> 0.029 | O29: =(D29-C29)/C29 -> 0.028 | P29: =(E29-D29)/D29 -> 0.027 | R29: 36012 | S29: =VLOOKUP(R29,'Download 600704.04'!$B$4:$D$12003,3,FALSE)/1000 -> -35
A30: Road Safety | B30: 41 | C30: =B30*(1+Calculations!D$16) -> 42 | D30: =C30*(1+Calculations!E$16) -> 43 | E30: =D30*(1+Calculations!F$16) -> 44 | F30: =E30*(1+Calculations!G$16) -> 45 | G30: =F30*(1+Calculations!H$16) -> 46 | H30: =G30*(1+Calculations!I$16) -> 47 | I30: =H30*(1+Calculations!J$16) -> 48 | J30: =I30*(1+Calculations!K$16) -> 49 | K30: =J30*(1+Calculations!L$16) -> 50 | N30: 0.024 | O30: 0.024 | P30: 0.023 | R30: Multiple no's - See below | S30: =S59 -> -41
A31: Economic development officer | B31: =-S31 -> 23 | C31: =B31*(1+Calculations!D$16) -> 24 | D31: =C31*(1+Calculations!E$16) -> 25 | E31: =D31*(1+Calculations!F$16) -> 26 | F31: =E31*(1+Calculations!G$16) -> 27 | G31: =F31*(1+Calculations!H$16) -> 28 | H31: =G31*(1+Calculations!I$16) -> 29 | I31: =H31*(1+Calculations!J$16) -> 30 | J31: =I31*(1+Calculations!K$16) -> 31 | K31: =J31*(1+Calculations!L$16) -> 32 | N31: =(C31-B31)/B31 -> 0.043 | O31: =(D31-C31)/C31 -> 0.042 | P31: =(E31-D31)/D31 -> 0.04 | R31: 36014.8 | S31: =VLOOKUP(R31,'Download 600704.04'!$B$4:$D$12003,3,FALSE)/1000 -> -23
A32: Flood study | B32: =-S32 -> 100 | C32: =(B32+Calculations!D91)*(1+Calculations!D$16) -> 0 | D32: =C32*(1+Calculations!E$16) -> 0 | E32: =D32*(1+Calculations!F$16) -> 0 | F32: =E32*(1+Calculations!G$16) -> 0 | G32: =F32*(1+Calculations!H$16) -> 0 | H32: =G32*(1+Calculations!I$16) -> 0 | I32: =H32*(1+Calculations!J$16) -> 0 | J32: =I32*(1+Calculations!K$16) -> 0 | K32: =J32*(1+Calculations!L$16) -> 0 | N32: -1 | R32: 38662 | S32: =VLOOKUP(R32,'Download 600704.04'!$B$4:$D$12003,3,FALSE)/1000 -> -100
A33: Floodplain management | B33: 30 | C33: =B33*(1+Calculations!D$16) -> 31 | D33: =C33*(1+Calculations!E$16) -> 32 | E33: =D33*(1+Calculations!F$16) -> 33 | F33: =E33*(1+Calculations!G$16) -> 34 | G33: =F33*(1+Calculations!H$16) -> 35 | H33: =G33*(1+Calculations!I$16) -> 36 | I33: =H33*(1+Calculations!J$16) -> 37 | J33: =I33*(1+Calculations!K$16) -> 38 | K33: =J33*(1+Calculations!L$16) -> 39 | N33: 0.033 | O33: 0.032 | P33: 0.031 | R33: 38658 | S33: =VLOOKUP(R33,'Download 600704.04'!$B$4:$D$12003,3,FALSE)/1000 -> -30
A34: Other | B34: 63 | C34: =B34*(1+Calculations!D$16) -> 65 | D34: =C34*(1+Calculations!E$16) -> 67 | E34: =D34*(1+Calculations!F$16) -> 69 | F34: =E34*(1+Calculations!G$16) -> 71 | G34: =F34*(1+Calculations!H$16) -> 73 | H34: =G34*(1+Calculations!I$16) -> 75 | I34: =H34*(1+Calculations!J$16) -> 77 | J34: =I34*(1+Calculations!K$16) -> 79 | K34: =J34*(1+Calculations!L$16) -> 81 | N34: 0.032 | O34: 0.031 | P34: 0.03 | R34: Bal 500014.23 | S34: =S21-SUM(S22:S33) -> -63
A35: Other specific purpose grants or contributions | B35: =Calculations!C$108 -> 0 | C35: =Calculations!D$108 -> 0 | D35: =Calculations!E$108 -> 0 | E35: =Calculations!F$108 -> 0 | F35: =Calculations!G$108 -> 0 | G35: =Calculations!H$108 -> 0 | H35: =Calculations!I$108 -> 0 | I35: =Calculations!J$108 -> 0 | J35: =Calculations!K$108 -> 0 | K35: =Calculations!L$108 -> 0
A37: Total operating grants | B37: =SUM(B15:B36) -> 8326 | C37: =SUM(C15:C36) -> 8474 | D37: 8729 | E37: 8991 | F37: 9261 | G37: 9538 | H37: 9824 | I37: 10117 | J37: 10420 | K37: 10730 | N37: 0.018 | O37: 0.03 | P37: 0.03
R41: Library
R42: 36004 | S42: =VLOOKUP(R42,'Download 600704.04'!$B$4:$D$12003,3,FALSE)/1000 -> -169
R43: 36056 | S43: =VLOOKUP(R43,'Download 600704.04'!$B$4:$D$12003,3,FALSE)/1000 -> -16
R44: Total | S44: =SUM(S42:S43) -> -185
R46: Community Options
R47: 36002.52 | S47: =VLOOKUP(R47,'Download 600704.04'!$B$4:$D$12003,3,FALSE)/1000 -> 
R48: 36002.58 | S48: =VLOOKUP(R48,'Download 600704.04'!$B$4:$D$12003,3,FALSE)/1000 -> 
R49: Total | S49: =SUM(S46:S48) -> 
R51: ADD & Docs
R52: 36002.13 | S52: =VLOOKUP(R52,'Download 600704.04'!$B$4:$D$12003,3,FALSE)/1000 -> 
R53: 36002.17 | S53: =VLOOKUP(R53,'Download 600704.04'!$B$4:$D$12003,3,FALSE)/1000 -> -42
R54: Total | S54: =SUM(S51:S53) -> 
R56: Road Safety
R57: 36098 | S57: =VLOOKUP(R57,'Download 600704.04'!$B$4:$D$12003,3,FALSE)/1000 -> -16
R58: 36101.5 | S58: =VLOOKUP(R58,'Download 600704.04'!$B$4:$D$12003,3,FALSE)/1000 -> -25
R59: Total | S59: =SUM(S57:S58) -> -41

Sheet Note 3(e) Grants - Capital
A1: =Calculations!A1 -> Maitland City Council
A2: =Calculations!A2 -> Long Term Financial Plan
A3: =Calculations!A3 -> For the period 2014/15 to 2023/24
A4: =Calculations!A4 -> 2014/15 Draft Budget | R4: CAPITAL
A5: =Calculations!A5 -> Option 2 - $25M Projects (Including $1.5M annual rent from 2015/16, 5 additional staff per year from 2015/16)
A6: =Calculations!A6 -> Year 1 to Year 7 - 7.25% Rate Increase (Adjustments to rates pie Yrs 1-7) (Additional farm adjustment) (Additional grants $13M & loans $38M)
A7: Note 3 Revenue from continuing operations (continued) | R7: 500013
B8: =Calculations!C$10 -> Year 1 | C8: =Calculations!D$10 -> Year 2 | D8: =Calculations!E$10 -> Year 3 | E8: =Calculations!F$10 -> Year 4 | F8: =Calculations!G$10 -> Year 5 | G8: =Calculations!H$10 -> Year 6 | H8: =Calculations!I$10 -> Year 7 | I8: =Calculations!J$10 -> Year 8 | J8: =Calculations!K$10 -> Year 9 | K8: =Calculations!L$10 -> Year 10
B9: =Calculations!C$11 -> Adopted | C9: =Calculations!D$11 -> Estimate | D9: =Calculations!E$11 -> Estimate | E9: =Calculations!F$11 -> Estimate | F9: =Calculations!G$11 -> Estimate | G9: =Calculations!H$11 -> Estimate | H9: =Calculations!I$11 -> Estimate | I9: =Calculations!J$11 -> Estimate | J9: =Calculations!K$11 -> Estimate | K9: =Calculations!L$11 -> Estimate | N9: Change | O9: Change | P9: Change
B10: =Calculations!C$12 -> 2014/15 | C10: =Calculations!D$12 -> 2015/16 | D10: =Calculations!E$12 -> 2016/17 | E10: =Calculations!F$12 -> 2017/18 | F10: =Calculations!G$12 -> 2018/19 | G10: =Calculations!H$12 -> 2019/20 | H10: =Calculations!I$12 -> 2020/21 | I10: =Calculations!J$12 -> 2021/22 | J10: =Calculations!K$12 -> 2022/23 | K10: =Calculations!L$12 -> 2023/24 | N10: =C10 -> 2015/16 | O10: =D10 -> 2016/17 | P10: =E10 -> 2017/18 | S10: Original
B11: ($'000) | C11: ($'000) | D11: ($'000) | E11: ($'000) | F11: ($'000) | G11: ($'000) | H11: ($'000) | I11: ($'000) | J11: ($'000) | K11: ($'000) | N11: % | O11: % | P11: % | R11: Gl A/c | S11: Vote
A13: (e) Grants - Capital
A15: Specific Purpose | R15: 500013.2 | S15: =VLOOKUP(R15,'Download 600704.04'!$B$4:$D$12003,3,FALSE)/1000 -> -641
A16: Transport (3x3, Flood Works, Road to Recovery) | B16: =-S16 -> 641 | C16: =B16*(1+Calculations!D$16) -> 660 | D16: =C16*(1+Calculations!E$16) -> 680 | E16: =D16*(1+Calculations!F$16) -> 700 | F16: =E16*(1+Calculations!G$16) -> 721 | G16: =F16*(1+Calculations!H$16) -> 743 | H16: =G16*(1+Calculations!I$16) -> 765 | I16: =H16*(1+Calculations!J$16) -> 788 | J16: =I16*(1+Calculations!K$16) -> 812 | K16: =J16*(1+Calculations!L$16) -> 836 | N16: =(C16-B16)/B16 -> 0.03 | O16: 0.03 | P16: 0.029 | R16: 500013.22 | S16: =VLOOKUP(R16,'Download 600704.04'!$B$4:$D$12003,3,FALSE)/1000 -> -641
A18: Other | B18: =-S18 -> 0 | C18: =B18*(1+Calculations!D$16) -> 0 | D18: =C18*(1+Calculations!E$16) -> 0 | E18: =D18*(1+Calculations!F$16) -> 0 | F18: =E18*(1+Calculations!G$16) -> 0 | G18: =F18*(1+Calculations!H$16) -> 0 | H18: =G18*(1+Calculations!I$16) -> 0 | I18: =H18*(1+Calculations!J$16) -> 0 | J18: =I18*(1+Calculations!K$16) -> 0 | K18: =J18*(1+Calculations!L$16) -> 0 | R18: Bal 500013.23 | S18: =S15-SUM(S16:S17) -> 0
A19: Other specific purpose grants or contributions | B19: =Calculations!C$115 -> 0 | C19: =Calculations!D$115 -> 5000 | D19: =Calculations!E$115 -> 1000 | E19: =Calculations!F$115 -> 1000 | F19: =Calculations!G$115 -> 1000 | G19: =Calculations!H$115 -> 1000 | H19: =Calculations!I$115 -> 1000 | I19: =Calculations!J$115 -> 1000 | J19: =Calculations!K$115 -> 1000 | K19: =Calculations!L$115 -> 1000
A21: Total capital grants | B21: =SUM(B15:B20) -> 641 | C21: 5660 | D21: 1680 | E21: 1700 | F21: 1721 | G21: 1743 | H21: 1765 | I21: 1788 | J21: 1812 | K21: 1836 | N21: =(C21-B21)/B21 -> 7.83 | O21: =(D21-C21)/C21 -> -0.703 | P21: =(E21-D21)/D21 -> 0.012

Sheet Note 3(f) Contbns - Operating
A1: =Calculations!A1 -> Maitland City Council
A2: =Calculations!A2 -> Long Term Financial Plan
A3: =Calculations!A3 -> For the period 2014/15 to 2023/24
A4: =Calculations!A4 -> 2014/15 Draft Budget
A5: =Calculations!A5 -> Option 2 - $25M Projects (Including $1.5M annual rent from 2015/16, 5 additional staff per year from 2015/16)
A6: =Calculations!A6 -> Year 1 to Year 7 - 7.25% Rate Increase (Adjustments to rates pie Yrs 1-7) (Additional farm adjustment) (Additional grants $13M & loans $38M)
A7: Note 3 Revenue from continuing operations (continued)
B8: =Calculations!C$10 -> Year 1 | C8: =Calculations!D$10 -> Year 2 | D8: =Calculations!E$10 -> Year 3 | E8: =Calculations!F$10 -> Year 4 | F8: =Calculations!G$10 -> Year 5 | G8: =Calculations!H$10 -> Year 6 | H8: =Calculations!I$10 -> Year 7 | I8: =Calculations!J$10 -> Year 8 | J8: =Calculations!K$10 -> Year 9 | K8: =Calculations!L$10 -> Year 10
B9: =Calculations!C$11 -> Adopted | C9: =Calculations!D$11 -> Estimate | D9: =Calculations!E$11 -> Estimate | E9: =Calculations!F$11 -> Estimate | F9: =Calculations!G$11 -> Estimate | G9: =Calculations!H$11 -> Estimate | H9: =Calculations!I$11 -> Estimate | I9: =Calculations!J$11 -> Estimate | J9: =Calculations!K$11 -> Estimate | K9: =Calculations!L$11 -> Estimate | N9: Change | O9: Change | P9: Change
B10: =Calculations!C$12 -> 2014/15 | C10: =Calculations!D$12 -> 2015/16 | D10: =Calculations!E$12 -> 2016/17 | E10: =Calculations!F$12 -> 2017/18 | F10: =Calculations!G$12 -> 2018/19 | G10: =Calculations!H$12 -> 2019/20 | H10: =Calculations!I$12 -> 2020/21 | I10: =Calculations!J$12 -> 2021/22 | J10: =Calculations!K$12 -> 2022/23 | K10: =Calculations!L$12 -> 2023/24 | N10: =C10 -> 2015/16 | O10: =D10 -> 2016/17 | P10: =E10 -> 2017/18 | S10: Original
B11: ($'000) | C11: ($'000) | D11: ($'000) | E11: ($'000) | F11: ($'000) | G11: ($'000) | H11: ($'000) | I11: ($'000) | J11: ($'000) | K11: ($'000) | N11: % | O11: % | P11: % | R11: Gl A/c | S11: Vote
A13: (f) Contributions - Operating | R13: 500015
A15: RTA Contributions (Regional/Local, Road to Recovery) | B15: =-S15 -> 300 | C15: =B15*(1+Calculations!D$16) -> 309 | D15: =C15*(1+Calculations!E$16) -> 318 | E15: =D15*(1+Calculations!F$16) -> 328 | F15: =E15*(1+Calculations!G$16) -> 338 | G15: =F15*(1+Calculations!H$16) -> 348 | H15: =G15*(1+Calculations!I$16) -> 358 | I15: =H15*(1+Calculations!J$16) -> 369 | J15: =I15*(1+Calculations!K$16) -> 380 | K15: =J15*(1+Calculations!L$16) -> 391 | N15: =(C15-B15)/B15 -> 0.03 | O15: =(D15-C15)/C15 -> 0.029 | P15: =(E15-D15)/D15 -> 0.031 | R15: 500015.6 | S15: =VLOOKUP(R15,'Download 600704.04'!$B$4:$D$12003,3,FALSE)/1000 -> -300
A16: Other | R16: 500015.5 | S16: =VLOOKUP(R16,'Download 600704.04'!$B$4:$D$12003,3,FALSE)/1000 -> -916
A17: - Sporting groups | B17: =-S17 -> 50 | C17: =B17*(1+Calculations!D$16) -> 52 | D17: =C17*(1+Calculations!E$16) -> 54 | E17: =D17*(1+Calculations!F$16) -> 56 | F17: =E17*(1+Calculations!G$16) -> 58 | G17: =F17*(1+Calculations!H$16) -> 60 | H17: =G17*(1+Calculations!I$16) -> 62 | I17: =H17*(1+Calculations!J$16) -> 64 | J17: =I17*(1+Calculations!K$16) -> 66 | K17: =J17*(1+Calculations!L$16) -> 68 | N17: =(C17-B17)/B17 -> 0.04 | O17: =(D17-C17)/C17 -> 0.038 | P17: =(E17-D17)/D17 -> 0.037 | R17: 500015.51 | S17: =VLOOKUP(R17,'Download 600704.04'!$B$4:$D$12003,3,FALSE)/1000 -> -50
A18: - Traineeships | B18: 10 | C18: =B18*(1+Calculations!D$16) -> 10 | D18: =C18*(1+Calculations!E$16) -> 10 | E18: =D18*(1+Calculations!F$16) -> 10 | F18: =E18*(1+Calculations!G$16) -> 10 | G18: =F18*(1+Calculations!H$16) -> 10 | H18: =G18*(1+Calculations!I$16) -> 10 | I18: =H18*(1+Calculations!J$16) -> 10 | J18: =I18*(1+Calculations!K$16) -> 10 | K18: =J18*(1+Calculations!L$16) -> 10 | N18: 0 | O18: 0 | P18: 0 | R18: Multiple no's - See below | S18: =S40 -> -10
A19: - Art Gallery Donations | B19: =-S19 -> 33 | C19: =B19*(1+Calculations!D$16) -> 34 | D19: =C19*(1+Calculations!E$16) -> 35 | E19: =D19*(1+Calculations!F$16) -> 36 | F19: =E19*(1+Calculations!G$16) -> 37 | G19: =F19*(1+Calculations!H$16) -> 38 | H19: =G19*(1+Calculations!I$16) -> 39 | I19: =H19*(1+Calculations!J$16) -> 40 | J19: =I19*(1+Calculations!K$16) -> 41 | K19: =J19*(1+Calculations!L$16) -> 42 | N19: 0.03 | O19: 0.029 | P19: 0.029 | R19: Multiple no's - See below | S19: =S46 -> -33
A20: - Immunisation | B20: =-S20 -> 11 | C20: =B20*(1+Calculations!D$16) -> 11 | D20: =C20*(1+Calculations!E$16) -> 11 | E20: =D20*(1+Calculations!F$16) -> 11 | F20: =E20*(1+Calculations!G$16) -> 11 | G20: =F20*(1+Calculations!H$16) -> 11 | H20: =G20*(1+Calculations!I$16) -> 11 | I20: =H20*(1+Calculations!J$16) -> 11 | J20: =I20*(1+Calculations!K$16) -> 11 | K20: =J20*(1+Calculations!L$16) -> 11 | N20: 0 | O20: 0 | P20: 0 | R20: 36018 | S20: =VLOOKUP(R20,'Download 600704.04'!$B$4:$D$12003,3,FALSE)/1000 -> -11
A21: - Local Infrastructure Renewal Scheme rebate | B21: =-S21 -> 147 | C21: =Calculations!D77 -> 136 | D21: =Calculations!E77 -> 124 | E21: =Calculations!F77 -> 111 | F21: =Calculations!G77 -> 98 | G21: =Calculations!H77 -> 83 | H21: =Calculations!I77 -> 68 | I21: =Calculations!J77 -> 51 | J21: =Calculations!K77 -> 34 | K21: =Calculations!L77 -> 15 | N21: =(C21-B21)/B21 -> -0.075 | O21: =(D21-C21)/C21 -> -0.088 | P21: =(E21-D21)/D21 -> -0.105 | R21: 32105 | S21: =VLOOKUP(R21,'Download 600704.04'!$B$4:$D$12003,3,FALSE)/1000 -> -147
A22: - Rural Fire Service (Port Stephens Council) | B22: =-S22 -> 56 | C22: =B22*(1+Calculations!D$16) -> 58 | D22: =C22*(1+Calculations!E$16) -> 60 | E22: =D22*(1+Calculations!F$16) -> 62 | F22: =E22*(1+Calculations!G$16) -> 64 | G22: =F22*(1+Calculations!H$16) -> 66 | H22: =G22*(1+Calculations!I$16) -> 68 | I22: =H22*(1+Calculations!J$16) -> 70 | J22: =I22*(1+Calculations!K$16) -> 72 | K22: =J22*(1+Calculations!L$16) -> 74 | N22: 0.036 | O22: 0.034 | P22: 0.033 | R22: 34202.1 | S22: =VLOOKUP(R22,'Download 600704.04'!$B$4:$D$12003,3,FALSE)/1000 -> -56
A23: - Staff Motor Vehicle Lease Payments | B23: 264 | C23: =B23*(1+Calculations!D$16) -> 272 | D23: =C23*(1+Calculations!E$16) -> 280 | E23: =D23*(1+Calculations!F$16) -> 288 | F23: =E23*(1+Calculations!G$16) -> 297 | G23: =F23*(1+Calculations!H$16) -> 306 | H23: =G23*(1+Calculations!I$16) -> 315 | I23: =H23*(1+Calculations!J$16) -> 324 | J23: =I23*(1+Calculations!K$16) -> 334 | K23: =J23*(1+Calculations!L$16) -> 344 | N23: 0.03 | O23: 0.029 | P23: 0.029 | R23: 38011 | S23: =VLOOKUP(R23,'Download 600704.04'!$B$4:$D$12003,3,FALSE)/1000 -> -264
A24: - Fuel Tax Credit Income | B24: 100 | C24: =B24*(1+Calculations!D$16) -> 103 | D24: =C24*(1+Calculations!E$16) -> 106 | E24: =D24*(1+Calculations!F$16) -> 109 | F24: =E24*(1+Calculations!G$16) -> 112 | G24: =F24*(1+Calculations!H$16) -> 115 | H24: =G24*(1+Calculations!I$16) -> 118 | I24: =H24*(1+Calculations!J$16) -> 122 | J24: =I24*(1+Calculations!K$16) -> 126 | K24: =J24*(1+Calculations!L$16) -> 130 | N24: 0.03 | O24: 0.029 | P24: 0.028 | R24: 38024 | S24: =VLOOKUP(R24,'Download 600704.04'!$B$4:$D$12003,3,FALSE)/1000 -> -100
A25: - Staff Uniform Purchases | B25: 20 | C25: =B25*(1+Calculations!D$16) -> 21 | D25: =C25*(1+Calculations!E$16) -> 22 | E25: =D25*(1+Calculations!F$16) -> 23 | F25: =E25*(1+Calculations!G$16) -> 24 | G25: =F25*(1+Calculations!H$16) -> 25 | H25: =G25*(1+Calculations!I$16) -> 26 | I25: =H25*(1+Calculations!J$16) -> 27 | J25: =I25*(1+Calculations!K$16) -> 28 | K25: =J25*(1+Calculations!L$16) -> 29 | N25: 0.05 | O25: 0.048 | P25: 0.045 | R25: 38031 | S25: =VLOOKUP(R25,'Download 600704.04'!$B$4:$D$12003,3,FALSE)/1000 -> -20
A26: - Tourism Subscriptions | B26: 0 | C26: =B26*(1+Calculations!D$16) -> 0 | D26: =C26*(1+Calculations!E$16) -> 0 | E26: =D26*(1+Calculations!F$16) -> 0 | F26: =E26*(1+Calculations!G$16) -> 0 | G26: =F26*(1+Calculations!H$16) -> 0 | H26: =G26*(1+Calculations!I$16) -> 0 | I26: =H26*(1+Calculations!J$16) -> 0 | J26: =I26*(1+Calculations!K$16) -> 0 | K26: =J26*(1+Calculations!L$16) -> 0 | N26: =(C26-B26)/B26 ->  | O26: =(D26-C26)/C26 ->  | P26: =(E26-D26)/D26 ->  | R26: 38221
A27: - Road Restoration Inspections | B27: 18 | C27: =B27*(1+Calculations!D$16) -> 19 | D27: =C27*(1+Calculations!E$16) -> 20 | E27: =D27*(1+Calculations!F$16) -> 21 | F27: =E27*(1+Calculations!G$16) -> 22 | G27: =F27*(1+Calculations!H$16) -> 23 | H27: =G27*(1+Calculations!I$16) -> 24 | I27: =H27*(1+Calculations!J$16) -> 25 | J27: =I27*(1+Calculations!K$16) -> 26 | K27: =J27*(1+Calculations!L$16) -> 27 | N27: 0.056 | O27: 0.053 | P27: 0.05 | R27: 38416 | S27: =VLOOKUP(R27,'Download 600704.04'!$B$4:$D$12003,3,FALSE)/1000 -> -18
A28: - Contribution to MV Costs - Contract Employees | B28: =-S28 -> 164 | C28: =B28*(1+Calculations!D$16) -> 169 | D28: =C28*(1+Calculations!E$16) -> 174 | E28: =D28*(1+Calculations!F$16) -> 179 | F28: =E28*(1+Calculations!G$16) -> 184 | G28: =F28*(1+Calculations!H$16) -> 190 | H28: =G28*(1+Calculations!I$16) -> 196 | I28: =H28*(1+Calculations!J$16) -> 202 | J28: =I28*(1+Calculations!K$16) -> 208 | K28: =J28*(1+Calculations!L$16) -> 214 | N28: 0.03 | O28: 0.03 | P28: 0.029 | R28: 34112 | S28: =VLOOKUP(R28,'Download 600704.04'!$B$4:$D$12003,3,FALSE)/1000 -> -164
A29: - Other | B29: 43 | C29: =B29*(1+Calculations!D$16) -> 44 | D29: =C29*(1+Calculations!E$16) -> 45 | E29: =D29*(1+Calculations!F$16) -> 46 | F29: =E29*(1+Calculations!G$16) -> 47 | G29: =F29*(1+Calculations!H$16) -> 48 | H29: =G29*(1+Calculations!I$16) -> 49 | I29: =H29*(1+Calculations!J$16) -> 50 | J29: =I29*(1+Calculations!K$16) -> 52 | K29: =J29*(1+Calculations!L$16) -> 54 | N29: 0.023 | O29: 0.023 | P29: 0.022 | R29: Bal 500015.5 | S29: =S16-SUM(S17:S28) -> -43
A31: Total operating contributions | B31: =SUM(B15:B30) -> 1216 | C31: =SUM(C15:C30) -> 1238 | D31: =SUM(D15:D30) -> 1259 | E31: =SUM(E15:E30) -> 1280 | F31: =SUM(F15:F30) -> 1302 | G31: 1323 | H31: 1344 | I31: 1365 | J31: 1388 | K31: 1409 | N31: 0.018 | O31: 0.017 | P31: 0.017
A33: Total operating grants and contributions | B33: =B31+'Note 3(e) Grants - Operating'!B37 -> 9542 | C33: =C31+'Note 3(e) Grants - Operating'!C37 -> 9712 | D33: =D31+'Note 3(e) Grants - Operating'!D37 -> 9988 | E33: =E31+'Note 3(e) Grants - Operating'!E37 -> 10271 | F33: =F31+'Note 3(e) Grants - Operating'!F37 -> 10563 | G33: =G31+'Note 3(e) Grants - Operating'!G37 -> 10861 | H33: =H31+'Note 3(e) Grants - Operating'!H37 -> 11168 | I33: =I31+'Note 3(e) Grants - Operating'!I37 -> 11482 | J33: =J31+'Note 3(e) Grants - Operating'!J37 -> 11808 | K33: =K31+'Note 3(e) Grants - Operating'!K37 -> 12139 | N33: 0.018 | O33: 0.028 | P33: 0.028
R36: Traineeships
R37: 34026 | S37: =VLOOKUP(R37,'Download 600704.04'!$B$4:$D$12003,3,FALSE)/1000 -> -10
R38: 34027
R39: 34029
S40: =SUM(S37:S39) -> -10
R42: Art gallery
R43: 34253
R44: 34254 | S44: =VLOOKUP(R44,'Download 600704.04'!$B$4:$D$12003,3,FALSE)/1000 -> -30
R45: 34254.1 | S45: =VLOOKUP(R45,'Download 600704.04'!$B$4:$D$12003,3,FALSE)/1000 -> -3
S46: =SUM(S43:S45) -> -33

Sheet Note 3(f) Contbns - Capital
A1: =Calculations!A1 -> Maitland City Council
A2: =Calculations!A2 -> Long Term Financial Plan
A3: =Calculations!A3 -> For the period 2014/15 to 2023/24
A4: =Calculations!A4 -> 2014/15 Draft Budget
A5: =Calculations!A5 -> Option 2 - $25M Projects (Including $1.5M annual rent from 2015/16, 5 additional staff per year from 2015/16)
A6: =Calculations!A6 -> Year 1 to Year 7 - 7.25% Rate Increase (Adjustments to rates pie Yrs 1-7) (Additional farm adjustment) (Additional grants $13M & loans $38M)
A7: Note 3 Revenue from continuing operations (continued)
B8: =Calculations!C$10 -> Year 1 | C8: =Calculations!D$10 -> Year 2 | D8: =Calculations!E$10 -> Year 3 | E8: =Calculations!F$10 -> Year 4 | F8: =Calculations!G$10 -> Year 5 | G8: =Calculations!H$10 -> Year 6 | H8: =Calculations!I$10 -> Year 7 | I8: =Calculations!J$10 -> Year 8 | J8: =Calculations!K$10 -> Year 9 | K8: =Calculations!L$10 -> Year 10
B9: =Calculations!C$11 -> Adopted | C9: =Calculations!D$11 -> Estimate | D9: =Calculations!E$11 -> Estimate | E9: =Calculations!F$11 -> Estimate | F9: =Calculations!G$11 -> Estimate | G9: =Calculations!H$11 -> Estimate | H9: =Calculations!I$11 -> Estimate | I9: =Calculations!J$11 -> Estimate | J9: =Calculations!K$11 -> Estimate | K9: =Calculations!L$11 -> Estimate | N9: Change | O9: Change | P9: Change
B10: =Calculations!C$12 -> 2014/15 | C10: =Calculations!D$12 -> 2015/16 | D10: =Calculations!E$12 -> 2016/17 | E10: =Calculations!F$12 -> 2017/18 | F10: =Calculations!G$12 -> 2018/19 | G10: =Calculations!H$12 -> 2019/20 | H10: =Calculations!I$12 -> 2020/21 | I10: =Calculations!J$12 -> 2021/22 | J10: =Calculations!K$12 -> 2022/23 | K10: =Calculations!L$12 -> 2023/24 | N10: =C10 -> 2015/16 | O10: =D10 -> 2016/17 | P10: =E10 -> 2017/18 | S10: Original | V10: Original
B11: ($'000) | C11: ($'000) | D11: ($'000) | E11: ($'000) | F11: ($'000) | G11: ($'000) | H11: ($'000) | I11: ($'000) | J11: ($'000) | K11: ($'000) | N11: % | O11: % | P11: % | R11: Gl A/c | S11: Vote | U11: Gl A/c | V11: Vote
A13: (f) Contributions - Capital | R13: 505015
A15: Development Contributions (S94) | B15: =-S15 -> 7700 | C15: =Calculations!D205 -> 9250 | D15: =Calculations!E205 -> 9250 | E15: =Calculations!F205 -> 9250 | F15: =Calculations!G205 -> 9250 | G15: =Calculations!H205 -> 9250 | H15: =Calculations!I205 -> 9250 | I15: =Calculations!J205 -> 9250 | J15: =Calculations!K205 -> 9250 | K15: =Calculations!L205 -> 9250 | N15: =(C15-B15)/B15 -> 0.201 | O15: 0 | P15: 0 | R15: 505015.1 | S15: =VLOOKUP(R15,'Download 600704.04'!$B$4:$D$12003,3,FALSE)/1000 -> -7700
A16: RTA Contributions (Regional/Local, Road to Recovery) | B16: 330 | C16: =B16*(1+Calculations!D$16) -> 340 | D16: =C16*(1+Calculations!E$16) -> 350 | E16: =D16*(1+Calculations!F$16) -> 361 | F16: =E16*(1+Calculations!G$16) -> 372 | G16: =F16*(1+Calculations!H$16) -> 383 | H16: =G16*(1+Calculations!I$16) -> 394 | I16: =H16*(1+Calculations!J$16) -> 406 | J16: =I16*(1+Calculations!K$16) -> 418 | K16: =J16*(1+Calculations!L$16) -> 431 | N16: 0.03 | O16: 0.029 | P16: 0.031 | R16: 505015.6 | S16: =VLOOKUP(R16,'Download 600704.04'!$B$4:$D$12003,3,FALSE)/1000 -> -330 | U16: Sundry Works
A17: Paving | B17: 20 | C17: =B17*(1+Calculations!D$16) -> 21 | D17: =C17*(1+Calculations!E$16) -> 22 | E17: =D17*(1+Calculations!F$16) -> 23 | F17: =E17*(1+Calculations!G$16) -> 24 | G17: =F17*(1+Calculations!H$16) -> 25 | H17: =G17*(1+Calculations!I$16) -> 26 | I17: =H17*(1+Calculations!J$16) -> 27 | J17: =I17*(1+Calculations!K$16) -> 28 | K17: =J17*(1+Calculations!L$16) -> 29 | N17: 0.05 | O17: 0.048 | P17: 0.045 | R17: 505015.3 | S17: =VLOOKUP(R17,'Download 600704.04'!$B$4:$D$12003,3,FALSE)/1000 -> -20 | U17: 38404
A18: Kerb and Gutter | B18: 5 | C18: =B18*(1+Calculations!D$16) -> 5 | D18: =C18*(1+Calculations!E$16) -> 5 | E18: =D18*(1+Calculations!F$16) -> 5 | F18: =E18*(1+Calculations!G$16) -> 5 | G18: =F18*(1+Calculations!H$16) -> 5 | H18: =G18*(1+Calculations!I$16) -> 5 | I18: =H18*(1+Calculations!J$16) -> 5 | J18: =I18*(1+Calculations!K$16) -> 5 | K18: =J18*(1+Calculations!L$16) -> 5 | N18: 0 | O18: 0 | P18: 0 | R18: 505015.4 | S18: =VLOOKUP(R18,'Download 600704.04'!$B$4:$D$12003,3,FALSE)/1000 -> -5 | U18: 38424
A19: Developer Contributions (Not S94) | B19: 0 | C19: =B19*(1+Calculations!D$16) -> 0 | D19: =C19*(1+Calculations!E$16) -> 0 | E19: =D19*(1+Calculations!F$16) -> 0 | F19: =E19*(1+Calculations!G$16) -> 0 | G19: =F19*(1+Calculations!H$16) -> 0 | H19: =G19*(1+Calculations!I$16) -> 0 | I19: =H19*(1+Calculations!J$16) -> 0 | J19: =I19*(1+Calculations!K$16) -> 0 | K19: =J19*(1+Calculations!L$16) -> 0 | R19: 505015.7 | S19: =VLOOKUP(R19,'Download 600704.04'!$B$4:$D$12003,3,FALSE)/1000 -> 0 | V19: =SUM(V16:V18) -> 0
A20: Other | R20: 505015.5 | S20: =VLOOKUP(R20,'Download 600704.04'!$B$4:$D$12003,3,FALSE)/1000 -> 0
A21: - Other | B21: 0 | C21: =B21*(1+Calculations!D$16) -> 0 | D21: =C21*(1+Calculations!E$16) -> 0 | E21: =D21*(1+Calculations!F$16) -> 0 | F21: =E21*(1+Calculations!G$16) -> 0 | G21: =F21*(1+Calculations!H$16) -> 0 | H21: =G21*(1+Calculations!I$16) -> 0 | I21: =H21*(1+Calculations!J$16) -> 0 | J21: =I21*(1+Calculations!K$16) -> 0 | K21: =J21*(1+Calculations!L$16) -> 0 | R21: Bal 505015.5 | S21: =S20 -> 0
A23: Total capital contributions | B23: =SUM(B15:B22) -> 8055 | C23: =SUM(C15:C22) -> 9616 | D23: =SUM(D15:D22) -> 9627 | E23: =SUM(E15:E22) -> 9639 | F23: =SUM(F15:F22) -> 9651 | G23: 9663 | H23: 9675 | I23: 9688 | J23: 9701 | K23: 9715 | N23: =(C23-B23)/B23 -> 0.194 | O23: =(D23-C23)/C23 -> 0.001 | P23: =(E23-D23)/D23 -> 0.001
A25: Total capital grants and contributions | B25: =B23+'Note 3(e) Grants - Capital'!B21 -> 8696 | C25: =C23+'Note 3(e) Grants - Capital'!C21 -> 15276 | D25: =D23+'Note 3(e) Grants - Capital'!D21 -> 11307 | E25: =E23+'Note 3(e) Grants - Capital'!E21 -> 11339 | F25: =F23+'Note 3(e) Grants - Capital'!F21 -> 11372 | G25: =G23+'Note 3(e) Grants - Capital'!G21 -> 11406 | H25: =H23+'Note 3(e) Grants - Capital'!H21 -> 11440 | I25: =I23+'Note 3(e) Grants - Capital'!I21 -> 11476 | J25: =J23+'Note 3(e) Grants - Capital'!J21 -> 11513 | K25: =K23+'Note 3(e) Grants - Capital'!K21 -> 11551 | N25: =(C25-B25)/B25 -> 0.757 | O25: =(D25-C25)/C25 -> -0.26 | P25: =(E25-D25)/D25 -> 0.003

Sheet Note 4(a) (b)
A1: =Calculations!A1 -> Maitland City Council
A2: =Calculations!A2 -> Long Term Financial Plan
A3: =Calculations!A3 -> For the period 2014/15 to 2023/24
A4: =Calculations!A4 -> 2014/15 Draft Budget
A5: =Calculations!A5 -> Option 2 - $25M Projects (Including $1.5M annual rent from 2015/16, 5 additional staff per year from 2015/16)
A6: =Calculations!A6 -> Year 1 to Year 7 - 7.25% Rate Increase (Adjustments to rates pie Yrs 1-7) (Additional farm adjustment) (Additional grants $13M & loans $38M)
A7: Note 4 Expenses from continuing operations
B8: =Calculations!C$10 -> Year 1 | C8: =Calculations!D$10 -> Year 2 | D8: =Calculations!E$10 -> Year 3 | E8: =Calculations!F$10 -> Year 4 | F8: =Calculations!G$10 -> Year 5 | G8: =Calculations!H$10 -> Year 6 | H8: =Calculations!I$10 -> Year 7 | I8: =Calculations!J$10 -> Year 8 | J8: =Calculations!K$10 -> Year 9 | K8: =Calculations!L$10 -> Year 10
B9: =Calculations!C$11 -> Adopted | C9: =Calculations!D$11 -> Estimate | D9: =Calculations!E$11 -> Estimate | E9: =Calculations!F$11 -> Estimate | F9: =Calculations!G$11 -> Estimate | G9: =Calculations!H$11 -> Estimate | H9: =Calculations!I$11 -> Estimate | I9: =Calculations!J$11 -> Estimate | J9: =Calculations!K$11 -> Estimate | K9: =Calculations!L$11 -> Estimate | N9: Change | O9: Change | P9: Change
B10: =Calculations!C$12 -> 2014/15 | C10: =Calculations!D$12 -> 2015/16 | D10: =Calculations!E$12 -> 2016/17 | E10: =Calculations!F$12 -> 2017/18 | F10: =Calculations!G$12 -> 2018/19 | G10: =Calculations!H$12 -> 2019/20 | H10: =Calculations!I$12 -> 2020/21 | I10: =Calculations!J$12 -> 2021/22 | J10: =Calculations!K$12 -> 2022/23 | K10: =Calculations!L$12 -> 2023/24 | N10: =C10 -> 2015/16 | O10: =D10 -> 2016/17 | P10: =E10 -> 2017/18 | S10: Original
B11: ($'000) | C11: ($'000) | D11: ($'000) | E11: ($'000) | F11: ($'000) | G11: ($'000) | H11: ($'000) | I11: ($'000) | J11: ($'000) | K11: ($'000) | N11: % | O11: % | P11: % | R11: Gl A/c | S11: Vote
R12: 500002
A13: (a) Employee benefits and on costs
A15: Salaries and Wages | B15: =S15 -> 26405 | C15: =(B15+Calculations!D$123+Calculations!D$124+Calculations!D$125)*(1+SUM(Calculations!D$17:D$18)) -> 28358 | D15: =(C15+Calculations!E$123+Calculations!E$124+Calculations!E$125)*(1+SUM(Calculations!E$17:E$18)) -> 30094 | E15: =(D15+Calculations!F$123+Calculations!F$124+Calculations!F$125)*(1+SUM(Calculations!F$17:F$18)) -> 31917 | F15: =(E15+Calculations!G$123+Calculations!G$124+Calculations!G$125)*(1+SUM(Calculations!G$17:G$18)) -> 33831 | G15: =(F15+Calculations!H$123+Calculations!H$124+Calculations!H$125)*(1+SUM(Calculations!H$17:H$18)) -> 35841 | H15: =(G15+Calculations!I$123+Calculations!I$124+Calculations!I$125)*(1+SUM(Calculations!I$17:I$18)) -> 37951 | I15: =(H15+Calculations!J$123+Calculations!J$124+Calculations!J$125)*(1+SUM(Calculations!J$17:J$18)) -> 40167 | J15: =(I15+Calculations!K$123+Calculations!K$124+Calculations!K$125)*(1+SUM(Calculations!K$17:K$18)) -> 42494 | K15: =(J15+Calculations!L$123+Calculations!L$124+Calculations!L$125)*(1+SUM(Calculations!L$17:L$18)) -> 44937 | N15: =(C15-B15)/B15 -> 0.074 | O15: 0.061 | P15: 0.061 | R15: See over | S15: =V19 -> 26405 | U15: Salaries & wages
A16: Travelling | B16: 230 | C16: =B16*(1+SUM(Calculations!D$17:D$18)) -> 241 | D16: =C16*(1+SUM(Calculations!E$17:E$18)) -> 253 | E16: =D16*(1+SUM(Calculations!F$17:F$18)) -> 266 | F16: =E16*(1+SUM(Calculations!G$17:G$18)) -> 279 | G16: =F16*(1+SUM(Calculations!H$17:H$18)) -> 293 | H16: =G16*(1+SUM(Calculations!I$17:I$18)) -> 308 | I16: =H16*(1+SUM(Calculations!J$17:J$18)) -> 323 | J16: =I16*(1+SUM(Calculations!K$17:K$18)) -> 339 | K16: =J16*(1+SUM(Calculations!L$17:L$18)) -> 356 | N16: 0.048 | O16: 0.05 | P16: 0.051 | R16: 500002.03 | S16: =VLOOKUP(R16,'Download 600704.04'!$B$4:$D$12003,3,FALSE)/1000 -> 230 | U16: 500002.01 | V16: =VLOOKUP(U16,'Download 600704.04'!$B$4:$D$12003,3,FALSE)/1000 -> 2038 | W16: Wages
A17: Superannuation | B17: 2570 | C17: =C15*SUM(Calculations!D$127:D$128) -> 2978 | D17: =D15*SUM(Calculations!E$127:E$128) -> 3310 | E17: =E15*SUM(Calculations!F$127:F$128) -> 3670 | F17: =F15*SUM(Calculations!G$127:G$128) -> 4060 | G17: =G15*SUM(Calculations!H$127:H$128) -> 4480 | H17: =H15*SUM(Calculations!I$127:I$128) -> 4934 | I17: =I15*SUM(Calculations!J$127:J$128) -> 5222 | J17: =J15*SUM(Calculations!K$127:K$128) -> 5524 | K17: =K15*SUM(Calculations!L$127:L$128) -> 5842 | N17: =(C17-B17)/B17 -> 0.159 | O17: =(D17-C17)/C17 -> 0.111 | P17: =(E17-D17)/D17 -> 0.109 | R17: 500002.05 | S17: =VLOOKUP(R17,'Download 600704.04'!$B$4:$D$12003,3,FALSE)/1000 -> 2570 | U17: 500002.02 | V17: =VLOOKUP(U17,'Download 600704.04'!$B$4:$D$12003,3,FALSE)/1000-1 -> 22287 | W17: Salaries
A18: Workers' Compensation Insurance | B18: 828 | C18: =(B18+Calculations!D$126)*(1+SUM(Calculations!D$17:D$18)) -> 867 | D18: =(C18+Calculations!E$126)*(1+SUM(Calculations!E$17:E$18)) -> 910 | E18: =(D18+Calculations!F$126)*(1+SUM(Calculations!F$17:F$18)) -> 956 | F18: =(E18+Calculations!G$126)*(1+SUM(Calculations!G$17:G$18)) -> 1004 | G18: =(F18+Calculations!H$126)*(1+SUM(Calculations!H$17:H$18)) -> 1054 | H18: =(G18+Calculations!I$126)*(1+SUM(Calculations!I$17:I$18)) -> 1107 | I18: =(H18+Calculations!J$126)*(1+SUM(Calculations!J$17:J$18)) -> 1162 | J18: =(I18+Calculations!K$126)*(1+SUM(Calculations!K$17:K$18)) -> 1220 | K18: =(J18+Calculations!L$126)*(1+SUM(Calculations!L$17:L$18)) -> 1281 | N18: 0.047 | O18: 0.05 | P18: 0.051 | R18: 500002.06 | S18: =VLOOKUP(R18,'Download 600704.04'!$B$4:$D$12003,3,FALSE)/1000 -> 828 | U18: 500002.04 | V18: =VLOOKUP(U18,'Download 600704.04'!$B$4:$D$12003,3,FALSE)/1000 -> 2080 | W18: ELE
A19: FBT | B19: 145 | C19: =B19*(1+SUM(Calculations!D$17:D$18)) -> 152 | D19: =C19*(1+SUM(Calculations!E$17:E$18)) -> 160 | E19: =D19*(1+SUM(Calculations!F$17:F$18)) -> 168 | F19: =E19*(1+SUM(Calculations!G$17:G$18)) -> 176 | G19: =F19*(1+SUM(Calculations!H$17:H$18)) -> 185 | H19: =G19*(1+SUM(Calculations!I$17:I$18)) -> 194 | I19: =H19*(1+SUM(Calculations!J$17:J$18)) -> 204 | J19: =I19*(1+SUM(Calculations!K$17:K$18)) -> 214 | K19: =J19*(1+SUM(Calculations!L$17:L$18)) -> 225 | N19: 0.048 | O19: 0.053 | P19: 0.05 | R19: 500002.07 | S19: =VLOOKUP(R19,'Download 600704.04'!$B$4:$D$12003,3,FALSE)/1000 -> 145 | V19: =SUM(V16:V18) -> 26405
A20: Training Costs (excluding salaries) | B20: 379 | C20: =B20*(1+SUM(Calculations!D$17:D$18)) -> 397 | D20: =C20*(1+SUM(Calculations!E$17:E$18)) -> 417 | E20: =D20*(1+SUM(Calculations!F$17:F$18)) -> 438 | F20: =E20*(1+SUM(Calculations!G$17:G$18)) -> 460 | G20: =F20*(1+SUM(Calculations!H$17:H$18)) -> 483 | H20: =G20*(1+SUM(Calculations!I$17:I$18)) -> 507 | I20: =H20*(1+SUM(Calculations!J$17:J$18)) -> 532 | J20: =I20*(1+SUM(Calculations!K$17:K$18)) -> 559 | K20: =J20*(1+SUM(Calculations!L$17:L$18)) -> 587 | N20: 0.047 | O20: 0.05 | P20: 0.05 | R20: 500002.08 | S20: =VLOOKUP(R20,'Download 600704.04'!$B$4:$D$12003,3,FALSE)/1000-1 -> 379
A21: Other | B21: 21 | C21: =B21*(1+SUM(Calculations!D$17:D$18)) -> 22 | D21: =C21*(1+SUM(Calculations!E$17:E$18)) -> 23 | E21: =D21*(1+SUM(Calculations!F$17:F$18)) -> 24 | F21: =E21*(1+SUM(Calculations!G$17:G$18)) -> 25 | G21: =F21*(1+SUM(Calculations!H$17:H$18)) -> 26 | H21: =G21*(1+SUM(Calculations!I$17:I$18)) -> 27 | I21: =H21*(1+SUM(Calculations!J$17:J$18)) -> 28 | J21: =I21*(1+SUM(Calculations!K$17:K$18)) -> 29 | K21: =J21*(1+SUM(Calculations!L$17:L$18)) -> 30 | N21: 0.048 | O21: 0.045 | P21: 0.043 | R21: 500002.1 | S21: =VLOOKUP(R21,'Download 600704.04'!$B$4:$D$12003,3,FALSE)/1000 -> 21
A22: Total Operating Employee Costs | B22: =SUM(B15:B21) -> 30578 | C22: =SUM(C15:C21) -> 33015 | D22: =SUM(D15:D21) -> 35167 | E22: =SUM(E15:E21) -> 37439 | F22: =SUM(F15:F21) -> 39835 | G22: 42362 | H22: 45028 | I22: 47638 | J22: 50379 | K22: 53258 | N22: 0.08 | O22: 0.065 | P22: 0.065
A23: Less: Capitalised costs | B23: =S23 -> -3000 | C23: =B23*(1+SUM(Calculations!D$17:D$18)) -> -3143 | D23: =C23*(1+SUM(Calculations!E$17:E$18)) -> -3300 | E23: =D23*(1+SUM(Calculations!F$17:F$18)) -> -3465 | F23: =E23*(1+SUM(Calculations!G$17:G$18)) -> -3638 | G23: =F23*(1+SUM(Calculations!H$17:H$18)) -> -3820 | H23: =G23*(1+SUM(Calculations!I$17:I$18)) -> -4011 | I23: =H23*(1+SUM(Calculations!J$17:J$18)) -> -4212 | J23: =I23*(1+SUM(Calculations!K$17:K$18)) -> -4423 | K23: =J23*(1+SUM(Calculations!L$17:L$18)) -> -4644 | R23: 500002.09 | S23: =VLOOKUP(R23,'Download 600704.04'!$B$4:$D$12003,3,FALSE)/1000 -> -3000
A25: Total employee costs expensed | B25: =B22+B23 -> 27578 | C25: =C22+C23 -> 29872 | D25: =D22+D23 -> 31867 | E25: =E22+E23 -> 33974 | F25: =F22+F23 -> 36197 | G25: 38542 | H25: 41017 | I25: 43426 | J25: 45956 | K25: 48614 | N25: =(C25-B25)/B25 -> 0.083 | O25: =(D25-C25)/C25 -> 0.067 | P25: =(E25-D25)/D25 -> 0.066
A29: (b) Borrowing costs | R29: 500006
A31: Interest on Overdraft | B31: =S31 -> 0 | C31: =B31*(1+Calculations!D$16) -> 0 | D31: =C31*(1+Calculations!E$16) -> 0 | E31: =D31*(1+Calculations!F$16) -> 0 | F31: =E31*(1+Calculations!G$16) -> 0 | G31: =F31*(1+Calculations!H$16) -> 0 | H31: =G31*(1+Calculations!I$16) -> 0 | I31: =H31*(1+Calculations!J$16) -> 0 | J31: =I31*(1+Calculations!K$16) -> 0 | K31: =J31*(1+Calculations!L$16) -> 0 | R31: 500006.01 | S31: =VLOOKUP(R31,'Download 600704.04'!$B$4:$D$12003,3,FALSE)/1000 -> 0
A32: Interest on Loans - Status quo | B32: =S32 -> 1217 | C32: =Calculations!D$140 -> 1142 | D32: =Calculations!E$140 -> 1064 | E32: =Calculations!F$140 -> 976 | F32: =Calculations!G$140 -> 895 | G32: =Calculations!H$140 -> 820 | H32: =Calculations!I$140 -> 744 | I32: =Calculations!J$140 -> 665 | J32: =Calculations!K$140 -> 585 | K32: =Calculations!L$140 -> 504 | N32: =(C32-B32)/B32 -> -0.062 | O32: -0.068 | P32: -0.083 | R32: 500006.02 | S32: =VLOOKUP(R32,'Download 600704.04'!$B$4:$D$12003,3,FALSE)/1000 -> 1217
A33: Interest on Loans - Additional | B33: =Calculations!C$148 -> 0 | C33: =Calculations!D$148 -> 280 | D33: =Calculations!E$148 -> 555 | E33: =Calculations!F$148 -> 822 | F33: =Calculations!G$148 -> 1068 | G33: =Calculations!H$148 -> 1286 | H33: =Calculations!I$148 -> 1479 | I33: =Calculations!J$148 -> 1647 | J33: =Calculations!K$148 -> 1779 | K33: =Calculations!L$148 -> 1873
A34: Interest on Hire Purchase | B34: =S34 -> 63 | C34: =Calculations!D$155 -> 102 | D34: =Calculations!E$155 -> 149 | E34: =Calculations!F$155 -> 178 | F34: =Calculations!G$155 -> 153 | G34: =Calculations!H$155 -> 99 | H34: =Calculations!I$155 -> 136 | I34: =Calculations!J$155 -> 182 | J34: =Calculations!K$155 -> 211 | K34: =Calculations!L$155 -> 181 | N34: 0.619 | O34: 0.461 | P34: 0.195 | R34: 500006.03 | S34: =VLOOKUP(R34,'Download 600704.04'!$B$4:$D$12003,3,FALSE)/1000 -> 63
A35: Amortisation of discounts and premiums:
A36: - Remediation (Tip) | B36: =S36 -> 227 | C36: =Calculations!D$135 -> 235 | D36: =Calculations!E$135 -> 242 | E36: =Calculations!F$135 -> 250 | F36: =Calculations!G$135 -> 258 | G36: =Calculations!H$135 -> 0 | H36: =Calculations!I$135 -> 0 | I36: =Calculations!J$135 -> 0 | J36: =Calculations!K$135 -> 0 | K36: =Calculations!L$135 -> 0 | N36: =(C36-B36)/B36 -> 0.035 | R36: 10412.01 | S36: =VLOOKUP(R36,'Download 600704.04'!$B$4:$D$12003,3,FALSE)/1000 -> 227
A37: - Interest free loan received | B37: =S37 -> 80 | C37: =Calculations!D$141 -> 69 | D37: =Calculations!E$141 -> 56 | E37: =Calculations!F$141 -> 43 | F37: =Calculations!G$141 -> 30 | G37: =Calculations!H$141 -> 15 | H37: =Calculations!I$141 -> 0 | I37: =Calculations!J$141 -> 0 | J37: =Calculations!K$141 -> 0 | K37: =Calculations!L$141 -> 0 | N37: =(C37-B37)/B37 -> -0.138 | R37: 10412.02 | S37: =VLOOKUP(R37,'Download 600704.04'!$B$4:$D$12003,3,FALSE)/1000 -> 80
A39: Total borrowing costs expensed | B39: =SUM(B31:B38) -> 1587 | C39: =SUM(C31:C38) -> 1828 | D39: =SUM(D31:D38) -> 2066 | E39: =SUM(E31:E38) -> 2269 | F39: =SUM(F31:F38) -> 2404 | G39: 2220 | H39: 2359 | I39: 2494 | J39: 2575 | K39: 2558 | N39: =(C39-B39)/B39 -> 0.152 | O39: =(D39-C39)/C39 -> 0.13 | P39: =(E39-D39)/D39 -> 0.098

Sheet Note 4(c)
A1: =Calculations!A1 -> Maitland City Council
A2: =Calculations!A2 -> Long Term Financial Plan
A3: =Calculations!A3 -> For the period 2014/15 to 2023/24
A4: =Calculations!A4 -> 2014/15 Draft Budget
A5: =Calculations!A5 -> Option 2 - $25M Projects (Including $1.5M annual rent from 2015/16, 5 additional staff per year from 2015/16)
A6: =Calculations!A6 -> Year 1 to Year 7 - 7.25% Rate Increase (Adjustments to rates pie Yrs 1-7) (Additional farm adjustment) (Additional grants $13M & loans $38M)
A7: Note 4 Expenses from continuing operations (continued)
B8: =Calculations!C$10 -> Year 1 | C8: =Calculations!D$10 -> Year 2 | D8: =Calculations!E$10 -> Year 3 | E8: =Calculations!F$10 -> Year 4 | F8: =Calculations!G$10 -> Year 5 | G8: =Calculations!H$10 -> Year 6 | H8: =Calculations!I$10 -> Year 7 | I8: =Calculations!J$10 -> Year 8 | J8: =Calculations!K$10 -> Year 9 | K8: =Calculations!L$10 -> Year 10
B9: =Calculations!C$11 -> Adopted | C9: =Calculations!D$11 -> Estimate | D9: =Calculations!E$11 -> Estimate | E9: =Calculations!F$11 -> Estimate | F9: =Calculations!G$11 -> Estimate | G9: =Calculations!H$11 -> Estimate | H9: =Calculations!I$11 -> Estimate | I9: =Calculations!J$11 -> Estimate | J9: =Calculations!K$11 -> Estimate | K9: =Calculations!L$11 -> Estimate | N9: Change | O9: Change | P9: Change
B10: =Calculations!C$12 -> 2014/15 | C10: =Calculations!D$12 -> 2015/16 | D10: =Calculations!E$12 -> 2016/17 | E10: =Calculations!F$12 -> 2017/18 | F10: =Calculations!G$12 -> 2018/19 | G10: =Calculations!H$12 -> 2019/20 | H10: =Calculations!I$12 -> 2020/21 | I10: =Calculations!J$12 -> 2021/22 | J10: =Calculations!K$12 -> 2022/23 | K10: =Calculations!L$12 -> 2023/24 | N10: =C10 -> 2015/16 | O10: =D10 -> 2016/17 | P10: =E10 -> 2017/18 | S10: Original
B11: ($'000) | C11: ($'000) | D11: ($'000) | E11: ($'000) | F11: ($'000) | G11: ($'000) | H11: ($'000) | I11: ($'000) | J11: ($'000) | K11: ($'000) | N11: % | O11: % | P11: % | R11: Gl A/c | S11: Vote
A13: (c) Materials and contracts
N14: =Calculations!D161 -> 1500 | O14: =Calculations!E161 -> 0 | P14: =Calculations!F161 -> 0 | R14: Additional rent
A16: Raw materials and consumables | R16: See below | S16: =S69 -> 9373
A17: - Repairs & maintenance | B17: ='Maintenance Expenditure'!E$102 -> 5422 | C17: ='Maintenance Expenditure'!F$102 -> 4621 | D17: ='Maintenance Expenditure'!G$102 -> 4879 | E17: ='Maintenance Expenditure'!H$102 -> 5134 | F17: ='Maintenance Expenditure'!I$102 -> 5382 | G17: ='Maintenance Expenditure'!J$102 -> 5628 | H17: ='Maintenance Expenditure'!K$102 -> 5869 | I17: ='Maintenance Expenditure'!L$102 -> 6108 | J17: ='Maintenance Expenditure'!M$102 -> 6343 | K17: ='Maintenance Expenditure'!N$102 -> 6574 | N17: =(C17-B17)/B17 -> -0.148 | O17: 0.056 | P17: 0.052
A18: - Other | B18: =S16-B17+SUM('Maintenance Expenditure'!E57:E58) -> 3951 | C18: =B18*(1+Calculations!D$16)+Calculations!D131+Calculations!D173 -> 3920 | D18: =C18*(1+Calculations!E$16)+Calculations!E131+Calculations!E173 -> 4128 | E18: =D18*(1+Calculations!F$16)+Calculations!F131+Calculations!F173 -> 4252 | F18: =E18*(1+Calculations!G$16)+Calculations!G131+Calculations!G173 -> 4380 | G18: =F18*(1+Calculations!H$16)+Calculations!H131+Calculations!H173 -> 4511 | H18: =G18*(1+Calculations!I$16)+Calculations!I131+Calculations!I173 -> 4646 | I18: =H18*(1+Calculations!J$16)+Calculations!J131+Calculations!J173 -> 4785 | J18: =I18*(1+Calculations!K$16)+Calculations!K131+Calculations!K173 -> 4929 | K18: =J18*(1+Calculations!L$16)+Calculations!L131+Calculations!L173 -> 5077 | N18: -0.008 | O18: 0.053 | P18: 0.03
A19: Contractor and consultancy costs | R19: 500004 | S19: =VLOOKUP(R19,'Download 600704.04'!$B$4:$D$12003,3,FALSE)/1000 -> 2466
A20: - Fire protection services | B20: =S20 -> 3 | C20: =B20*(1+Calculations!D$16) -> 3 | D20: =C20*(1+Calculations!E$16) -> 3 | E20: =D20*(1+Calculations!F$16) -> 3 | F20: =E20*(1+Calculations!G$16) -> 3 | G20: =F20*(1+Calculations!H$16) -> 3 | H20: =G20*(1+Calculations!I$16) -> 3 | I20: =H20*(1+Calculations!J$16) -> 3 | J20: =I20*(1+Calculations!K$16) -> 3 | K20: =J20*(1+Calculations!L$16) -> 3 | N20: =(C20-B20)/B20 -> 0 | O20: =(D20-C20)/C20 -> 0 | P20: =(E20-D20)/D20 -> 0 | R20: 500004.01 | S20: =VLOOKUP(R20,'Download 600704.04'!$B$4:$D$12003,3,FALSE)/1000 -> 3
A21: - Security services | B21: =S21 -> 28 | C21: =B21*(1+Calculations!D$16) -> 29 | D21: =C21*(1+Calculations!E$16) -> 30 | E21: =D21*(1+Calculations!F$16) -> 31 | F21: =E21*(1+Calculations!G$16) -> 32 | G21: =F21*(1+Calculations!H$16) -> 33 | H21: =G21*(1+Calculations!I$16) -> 34 | I21: =H21*(1+Calculations!J$16) -> 35 | J21: =I21*(1+Calculations!K$16) -> 36 | K21: =J21*(1+Calculations!L$16) -> 37 | N21: 0.036 | O21: 0.034 | P21: 0.033 | R21: 500004.02 | S21: =VLOOKUP(R21,'Download 600704.04'!$B$4:$D$12003,3,FALSE)/1000 -> 28
A22: - Cleaning services | B22: 212 | C22: =B22*(1+Calculations!D$16) -> 218 | D22: =C22*(1+Calculations!E$16) -> 225 | E22: =D22*(1+Calculations!F$16) -> 232 | F22: =E22*(1+Calculations!G$16) -> 239 | G22: =F22*(1+Calculations!H$16) -> 246 | H22: =G22*(1+Calculations!I$16) -> 253 | I22: =H22*(1+Calculations!J$16) -> 261 | J22: =I22*(1+Calculations!K$16) -> 269 | K22: =J22*(1+Calculations!L$16) -> 277 | N22: 0.028 | O22: 0.032 | P22: 0.031 | R22: 500004.03 | S22: =VLOOKUP(R22,'Download 600704.04'!$B$4:$D$12003,3,FALSE)/1000 -> 212
A23: - Air conditioning maintenance | B23: =S23 -> 0 | C23: =B23*(1+Calculations!D$16) -> 0 | D23: =C23*(1+Calculations!E$16) -> 0 | E23: =D23*(1+Calculations!F$16) -> 0 | F23: =E23*(1+Calculations!G$16) -> 0 | G23: =F23*(1+Calculations!H$16) -> 0 | H23: =G23*(1+Calculations!I$16) -> 0 | I23: =H23*(1+Calculations!J$16) -> 0 | J23: =I23*(1+Calculations!K$16) -> 0 | K23: =J23*(1+Calculations!L$16) -> 0 | R23: 500004.05 | S23: =VLOOKUP(R23,'Download 600704.04'!$B$4:$D$12003,3,FALSE)/1000 -> 0
A24: - Valuation services | B24: =S24 -> 207 | C24: =B24*(1+Calculations!D$16) -> 213 | D24: =C24*(1+Calculations!E$16) -> 219 | E24: =D24*(1+Calculations!F$16) -> 226 | F24: =E24*(1+Calculations!G$16) -> 233 | G24: =F24*(1+Calculations!H$16) -> 240 | H24: =G24*(1+Calculations!I$16) -> 247 | I24: =H24*(1+Calculations!J$16) -> 254 | J24: =I24*(1+Calculations!K$16) -> 262 | K24: =J24*(1+Calculations!L$16) -> 270 | N24: 0.029 | O24: 0.028 | P24: 0.032 | R24: 500004.06 | S24: =VLOOKUP(R24,'Download 600704.04'!$B$4:$D$12003,3,FALSE)/1000 -> 207
A25: - Cemetery maintenance | B25: 58 | C25: =B25*(1+Calculations!D$16) -> 60 | D25: =C25*(1+Calculations!E$16) -> 62 | E25: =D25*(1+Calculations!F$16) -> 64 | F25: =E25*(1+Calculations!G$16) -> 66 | G25: =F25*(1+Calculations!H$16) -> 68 | H25: =G25*(1+Calculations!I$16) -> 70 | I25: =H25*(1+Calculations!J$16) -> 72 | J25: =I25*(1+Calculations!K$16) -> 74 | K25: =J25*(1+Calculations!L$16) -> 76 | N25: 0.034 | O25: 0.033 | P25: 0.032 | R25: 28510 | S25: =VLOOKUP(R25,'Download 600704.04'!$B$4:$D$12003,3,FALSE)/1000 -> 58
A26: - RSPCA | B26: 235 | C26: =B26*(1+Calculations!D$16) -> 242 | D26: =C26*(1+Calculations!E$16) -> 249 | E26: =D26*(1+Calculations!F$16) -> 256 | F26: =E26*(1+Calculations!G$16) -> 264 | G26: =F26*(1+Calculations!H$16) -> 272 | H26: =G26*(1+Calculations!I$16) -> 280 | I26: =H26*(1+Calculations!J$16) -> 288 | J26: =I26*(1+Calculations!K$16) -> 297 | K26: =J26*(1+Calculations!L$16) -> 306 | N26: 0.03 | O26: 0.029 | P26: 0.028 | R26: 24319 | S26: =VLOOKUP(R26,'Download 600704.04'!$B$4:$D$12003,3,FALSE)/1000 -> 235
A27: - Kerbside recycling | B27: 906 | C27: =Calculations!D$176 -> 952 | D27: =Calculations!E$176 -> 1001 | E27: =Calculations!F$176 -> 1052 | F27: =Calculations!G$176 -> 1105 | G27: =Calculations!H$176 -> 1160 | H27: =Calculations!I$176 -> 1218 | I27: =Calculations!J$176 -> 1278 | J27: =Calculations!K$176 -> 1340 | K27: =Calculations!L$176 -> 1405 | N27: 0.051 | O27: 0.051 | P27: 0.051 | R27: 24221 | S27: =VLOOKUP(R27,'Download 600704.04'!$B$4:$D$12003,3,FALSE)/1000 -> 906
A28: - Leachate & gas monitoring - Waste Depot | B28: 45 | C28: =B28*(1+Calculations!D$16) -> 46 | D28: =C28*(1+Calculations!E$16) -> 47 | E28: =D28*(1+Calculations!F$16) -> 48 | F28: =E28*(1+Calculations!G$16) -> 49 | G28: =F28*(1+Calculations!H$16) -> 50 | H28: =G28*(1+Calculations!I$16) -> 52 | I28: =H28*(1+Calculations!J$16) -> 54 | J28: =I28*(1+Calculations!K$16) -> 56 | K28: =J28*(1+Calculations!L$16) -> 58 | N28: 0.022 | O28: 0.022 | P28: 0.021 | R28: 25415.2 | S28: =VLOOKUP(R28,'Download 600704.04'!$B$4:$D$12003,3,FALSE)/1000 -> 45
A29: - Rates agency collections | B29: 75 | C29: =B29*(1+Calculations!D$16) -> 77 | D29: =C29*(1+Calculations!E$16) -> 79 | E29: =D29*(1+Calculations!F$16) -> 81 | F29: =E29*(1+Calculations!G$16) -> 83 | G29: =F29*(1+Calculations!H$16) -> 85 | H29: =G29*(1+Calculations!I$16) -> 88 | I29: =H29*(1+Calculations!J$16) -> 91 | J29: =I29*(1+Calculations!K$16) -> 94 | K29: =J29*(1+Calculations!L$16) -> 97 | N29: 0.027 | O29: 0.026 | P29: 0.025 | R29: 11001.05 | S29: =VLOOKUP(R29,'Download 600704.04'!$B$4:$D$12003,3,FALSE)/1000 -> 75
A30: - Microsoft licensing assurance | B30: 160 | C30: =B30*(1+Calculations!D$16) -> 165 | D30: =C30*(1+Calculations!E$16) -> 170 | E30: =D30*(1+Calculations!F$16) -> 175 | F30: =E30*(1+Calculations!G$16) -> 180 | G30: =F30*(1+Calculations!H$16) -> 185 | H30: =G30*(1+Calculations!I$16) -> 191 | I30: =H30*(1+Calculations!J$16) -> 197 | J30: =I30*(1+Calculations!K$16) -> 203 | K30: =J30*(1+Calculations!L$16) -> 209 | N30: 0.031 | O30: 0.03 | P30: 0.029 | R30: 11127 | S30: =VLOOKUP(R30,'Download 600704.04'!$B$4:$D$12003,3,FALSE)/1000 -> 160
A31: - Mulching green waste | B31: 45 | C31: =B31*(1+Calculations!D$16) -> 46 | D31: =C31*(1+Calculations!E$16) -> 47 | E31: =D31*(1+Calculations!F$16) -> 48 | F31: =E31*(1+Calculations!G$16) -> 49 | G31: =F31*(1+Calculations!H$16) -> 50 | H31: =G31*(1+Calculations!I$16) -> 52 | I31: =H31*(1+Calculations!J$16) -> 54 | J31: =I31*(1+Calculations!K$16) -> 56 | K31: =J31*(1+Calculations!L$16) -> 58 | N31: 0.022 | O31: 0.022 | P31: 0.021 | R31: 24220 | S31: =VLOOKUP(R31,'Download 600704.04'!$B$4:$D$12003,3,FALSE)/1000 -> 45
A32: - Infringement processing bureau | B32: 27 | C32: =B32*(1+Calculations!D$16) -> 28 | D32: =C32*(1+Calculations!E$16) -> 29 | E32: =D32*(1+Calculations!F$16) -> 30 | F32: =E32*(1+Calculations!G$16) -> 31 | G32: =F32*(1+Calculations!H$16) -> 32 | H32: =G32*(1+Calculations!I$16) -> 33 | I32: =H32*(1+Calculations!J$16) -> 34 | J32: =I32*(1+Calculations!K$16) -> 35 | K32: =J32*(1+Calculations!L$16) -> 36 | N32: 0.037 | O32: 0.036 | P32: 0.034 | R32: 25111 | S32: =VLOOKUP(R32,'Download 600704.04'!$B$4:$D$12003,3,FALSE)/1000 -> 27
A33: - Other contractor and consultancy costs | B33: 465 | C33: =B33*(1+Calculations!D$16) -> 479 | D33: =C33*(1+Calculations!E$16) -> 493 | E33: =D33*(1+Calculations!F$16) -> 508 | F33: =E33*(1+Calculations!G$16) -> 523 | G33: =F33*(1+Calculations!H$16) -> 539 | H33: =G33*(1+Calculations!I$16) -> 555 | I33: =H33*(1+Calculations!J$16) -> 572 | J33: =I33*(1+Calculations!K$16) -> 589 | K33: =J33*(1+Calculations!L$16) -> 607 | N33: 0.03 | O33: 0.029 | P33: 0.03 | R33: Bal 500004 | S33: =S19-SUM(S20:S32) -> 465
A34: Audit fees
A35: - Audit services | B35: =S35 -> 45 | C35: =B35*(1+Calculations!D$16) -> 46 | D35: =C35*(1+Calculations!E$16) -> 47 | E35: =D35*(1+Calculations!F$16) -> 48 | F35: =E35*(1+Calculations!G$16) -> 49 | G35: =F35*(1+Calculations!H$16) -> 50 | H35: =G35*(1+Calculations!I$16) -> 52 | I35: =H35*(1+Calculations!J$16) -> 54 | J35: =I35*(1+Calculations!K$16) -> 56 | K35: =J35*(1+Calculations!L$16) -> 58 | N35: 0.022 | O35: 0.022 | P35: 0.021 | R35: 500007.16 | S35: =VLOOKUP(R35,'Download 600704.04'!$B$4:$D$12003,3,FALSE)/1000 -> 45
A36: - Other | B36: =S36 -> 46 | C36: =B36*(1+Calculations!D$16) -> 47 | D36: =C36*(1+Calculations!E$16) -> 48 | E36: =D36*(1+Calculations!F$16) -> 49 | F36: =E36*(1+Calculations!G$16) -> 50 | G36: =F36*(1+Calculations!H$16) -> 52 | H36: =G36*(1+Calculations!I$16) -> 54 | I36: =H36*(1+Calculations!J$16) -> 56 | J36: =I36*(1+Calculations!K$16) -> 58 | K36: =J36*(1+Calculations!L$16) -> 60 | N36: 0.022 | O36: 0.021 | P36: 0.021 | R36: 500007.17 | S36: =VLOOKUP(R36,'Download 600704.04'!$B$4:$D$12003,3,FALSE)/1000 -> 46
A37: Legal fees:
A38: - Planning and development | B38: =S38 -> 132 | C38: =B38*(1+Calculations!D$16) -> 136 | D38: =C38*(1+Calculations!E$16) -> 140 | E38: =D38*(1+Calculations!F$16) -> 144 | F38: =E38*(1+Calculations!G$16) -> 148 | G38: =F38*(1+Calculations!H$16) -> 152 | H38: =G38*(1+Calculations!I$16) -> 157 | I38: =H38*(1+Calculations!J$16) -> 162 | J38: =I38*(1+Calculations!K$16) -> 167 | K38: =J38*(1+Calculations!L$16) -> 172 | N38: 0.03 | O38: 0.029 | P38: 0.029 | R38: 500007.151 | S38: =VLOOKUP(R38,'Download 600704.04'!$B$4:$D$12003,3,FALSE)/1000 -> 132
A39: - Other | B39: =S39 -> 350 | C39: =B39*(1+Calculations!D$16) -> 361 | D39: =C39*(1+Calculations!E$16) -> 372 | E39: =D39*(1+Calculations!F$16) -> 383 | F39: =E39*(1+Calculations!G$16) -> 394 | G39: =F39*(1+Calculations!H$16) -> 406 | H39: =G39*(1+Calculations!I$16) -> 418 | I39: =H39*(1+Calculations!J$16) -> 431 | J39: =I39*(1+Calculations!K$16) -> 444 | K39: =J39*(1+Calculations!L$16) -> 457 | N39: 0.031 | O39: 0.03 | P39: 0.03 | R39: 500007.152 | S39: =VLOOKUP(R39,'Download 600704.04'!$B$4:$D$12003,3,FALSE)/1000 -> 350
A40: Operating leases:
A41: - Buildings | B41: =S41 -> 39 | C41: =B41*(1+Calculations!D$16)+Calculations!D$161 -> 1540 | D41: =C41*(1+Calculations!E$16)+Calculations!E$161 -> 1586 | E41: =D41*(1+Calculations!F$16)+Calculations!F$161 -> 1634 | F41: =E41*(1+Calculations!G$16)+Calculations!G$161 -> 1683 | G41: =F41*(1+Calculations!H$16)+Calculations!H$161 -> 1733 | H41: =G41*(1+Calculations!I$16)+Calculations!I$161 -> 1785 | I41: =H41*(1+Calculations!J$16)+Calculations!J$161 -> 1839 | J41: =I41*(1+Calculations!K$16)+Calculations!K$161 -> 1894 | K41: =J41*(1+Calculations!L$16)+Calculations!L$161 -> 1951 | N41: 38.487 | O41: 0.03 | P41: 0.03 | R41: 12212 | S41: =VLOOKUP(R41,'Download 600704.04'!$B$4:$D$12003,3,FALSE)/1000 -> 39
A42: - Computers | B42: =S42 -> 220 | C42: =B42*(1+Calculations!D$16) -> 227 | D42: =C42*(1+Calculations!E$16) -> 234 | E42: =D42*(1+Calculations!F$16) -> 241 | F42: =E42*(1+Calculations!G$16) -> 248 | G42: =F42*(1+Calculations!H$16) -> 255 | H42: =G42*(1+Calculations!I$16) -> 263 | I42: =H42*(1+Calculations!J$16) -> 271 | J42: =I42*(1+Calculations!K$16) -> 279 | K42: =J42*(1+Calculations!L$16) -> 287 | N42: 0.032 | O42: 0.031 | P42: 0.03 | R42: Various - see below | S42: =S88 -> 220
A43: - Other | B43: =S43 -> 68 | C43: =B43*(1+Calculations!D$16) -> 70 | D43: =C43*(1+Calculations!E$16) -> 72 | E43: =D43*(1+Calculations!F$16) -> 74 | F43: =E43*(1+Calculations!G$16) -> 76 | G43: =F43*(1+Calculations!H$16) -> 78 | H43: =G43*(1+Calculations!I$16) -> 80 | I43: =H43*(1+Calculations!J$16) -> 82 | J43: =I43*(1+Calculations!K$16) -> 84 | K43: =J43*(1+Calculations!L$16) -> 87 | N43: 0.029 | O43: 0.029 | P43: 0.028 | R43: Balance | S43: =S83-SUM(S41:S42) -> 68
A45: Other
A46: - IT system development | B46: =S46 -> 108 | C46: =B46*(1+Calculations!D$16) -> 111 | D46: =C46*(1+Calculations!E$16) -> 114 | E46: =D46*(1+Calculations!F$16) -> 117 | F46: =E46*(1+Calculations!G$16) -> 121 | G46: =F46*(1+Calculations!H$16) -> 125 | H46: =G46*(1+Calculations!I$16) -> 129 | I46: =H46*(1+Calculations!J$16) -> 133 | J46: =I46*(1+Calculations!K$16) -> 137 | K46: =J46*(1+Calculations!L$16) -> 141 | N46: 0.028 | O46: 0.027 | P46: 0.026 | R46: 11124 | S46: =VLOOKUP(R46,'Download 600704.04'!$B$4:$D$12003,3,FALSE)/1000 -> 108
A47: - Community options service subsidy | B47: =S47 -> 232 | C47: =B47*(1+Calculations!D$16) -> 239 | D47: =C47*(1+Calculations!E$16) -> 246 | E47: =D47*(1+Calculations!F$16) -> 253 | F47: =E47*(1+Calculations!G$16) -> 261 | G47: =F47*(1+Calculations!H$16) -> 269 | H47: =G47*(1+Calculations!I$16) -> 277 | I47: =H47*(1+Calculations!J$16) -> 285 | J47: =I47*(1+Calculations!K$16) -> 294 | K47: =J47*(1+Calculations!L$16) -> 303 | N47: 0.03 | O47: 0.029 | P47: 0.028 | R47: Various - see below | S47: =S79 -> 232
A48: - Water rates | B48: =S48 -> 265 | C48: =B48*(1+Calculations!D$16) -> 273 | D48: =C48*(1+Calculations!E$16) -> 281 | E48: =D48*(1+Calculations!F$16) -> 289 | F48: =E48*(1+Calculations!G$16) -> 298 | G48: =F48*(1+Calculations!H$16) -> 307 | H48: =G48*(1+Calculations!I$16) -> 316 | I48: =H48*(1+Calculations!J$16) -> 325 | J48: =I48*(1+Calculations!K$16) -> 335 | K48: =J48*(1+Calculations!L$16) -> 345 | N48: 0.03 | O48: 0.029 | P48: 0.028 | R48: 500007.1 | S48: =VLOOKUP(R48,'Download 600704.04'!$B$4:$D$12003,3,FALSE)/1000 -> 265
A49: - Postage & courier services | B49: =S49 -> 108 | C49: =B49*(1+Calculations!D$16) -> 111 | D49: =C49*(1+Calculations!E$16) -> 114 | E49: =D49*(1+Calculations!F$16) -> 117 | F49: =E49*(1+Calculations!G$16) -> 121 | G49: =F49*(1+Calculations!H$16) -> 125 | H49: =G49*(1+Calculations!I$16) -> 129 | I49: =H49*(1+Calculations!J$16) -> 133 | J49: =I49*(1+Calculations!K$16) -> 137 | K49: =J49*(1+Calculations!L$16) -> 141 | N49: 0.028 | O49: 0.027 | P49: 0.026 | R49: 500007.24 | S49: =VLOOKUP(R49,'Download 600704.04'!$B$4:$D$12003,3,FALSE)/1000 -> 108
A50: - Printing & stationery | B50: =S50 -> 231 | C50: =B50*(1+Calculations!D$16) -> 238 | D50: =C50*(1+Calculations!E$16) -> 245 | E50: =D50*(1+Calculations!F$16) -> 252 | F50: =E50*(1+Calculations!G$16) -> 260 | G50: =F50*(1+Calculations!H$16) -> 268 | H50: =G50*(1+Calculations!I$16) -> 276 | I50: =H50*(1+Calculations!J$16) -> 284 | J50: =I50*(1+Calculations!K$16) -> 293 | K50: =J50*(1+Calculations!L$16) -> 302 | N50: 0.03 | O50: 0.029 | P50: 0.029 | R50: 500007.31 | S50: =VLOOKUP(R50,'Download 600704.04'!$B$4:$D$12003,3,FALSE)/1000 -> 231
A52: Total materials and contracts | B52: =SUM(B16:B51) -> 13683 | C52: =SUM(C16:C51) -> 14498 | D52: =SUM(D16:D51) -> 15160 | E52: =SUM(E16:E51) -> 15741 | F52: =SUM(F16:F51) -> 16328 | G52: 16922 | H52: 17527 | I52: 18141 | J52: 18764 | K52: 19394 | N52: 0.06 | O52: 0.046 | P52: 0.038 | S52: =SUM(S46:S50) -> 944
R54: Reconciliation
R55: Materials & contracts per ledger
R56: Materials (gl 500003) | S56: =S65 -> 27585
R57: Contracts (gl 500004) | S57: =S19 -> 2466
R58: Total | S58: =SUM(S56:S57) -> 30051
R60: Less: Capital exp (A2.4) | S60: =-'Rec Income St to Mgt Plan'!E56 -> -16368
R61: Materials & contracts above | S61: =SUM(S58:S60) -> 13683
R64: Raw materials & consumables (balance of 500003)
R65: 500003 | S65: =VLOOKUP(R65,'Download 600704.04'!$B$4:$D$12003,3,FALSE)/1000-1 -> 27585
R66: Less:
R67: - Shown separately | S67: =-SUM(S34:S51) -> -1844
R68: - Capital exp (A2.4) | S68: =-'Rec Income St to Mgt Plan'!E56 -> -16368
R69: Balance of 500003 | S69: =SUM(S65:S68) -> 9373
R72: Community Options
R73: 47002.03 | S73: =VLOOKUP(R73,'Download 600704.04'!$B$4:$D$12003,3,FALSE)/1000 -> 205
R74: 67002.011 | S74: =VLOOKUP(R74,'Download 600704.04'!$B$4:$D$12003,3,FALSE)/1000 -> 5
R75: 67002.0121 | S75: =VLOOKUP(R75,'Download 600704.04'!$B$4:$D$12003,3,FALSE)/1000 -> 6
R76: 67002.021 | S76: =VLOOKUP(R76,'Download 600704.04'!$B$4:$D$12003,3,FALSE)/1000 -> 10
R77: 67002.0221 | S77: =VLOOKUP(R77,'Download 600704.04'!$B$4:$D$12003,3,FALSE)/1000 -> 6
S78: =VLOOKUP(R78,'Download 600704.04'!$B$4:$D$12003,3,FALSE)/1000 -> 0
S79: =SUM(S73:S78) -> 232
R82: Operating leases
R83: 500007.35 | S83: =VLOOKUP(R83,'Download 600704.04'!$B$4:$D$12003,3,FALSE)/1000 -> 327
R84: Includes:
R85: Computers
R86: 11118 | S86: =VLOOKUP(R86,'Download 600704.04'!$B$4:$D$12003,3,FALSE)/1000 -> 220
R87: 11102
S88: =SUM(S86:S87) -> 220

Sheet Note 4(d)
A1: =Calculations!A1 -> Maitland City Council
A2: =Calculations!A2 -> Long Term Financial Plan
A3: =Calculations!A3 -> For the period 2014/15 to 2023/24
A4: =Calculations!A4 -> 2014/15 Draft Budget
A5: =Calculations!A5 -> Option 2 - $25M Projects (Including $1.5M annual rent from 2015/16, 5 additional staff per year from 2015/16)
A6: =Calculations!A6 -> Year 1 to Year 7 - 7.25% Rate Increase (Adjustments to rates pie Yrs 1-7) (Additional farm adjustment) (Additional grants $13M & loans $38M)
A7: Note 4 Expenses from continuing operations (continued)
B8: =Calculations!C$10 -> Year 1 | C8: =Calculations!D$10 -> Year 2 | D8: =Calculations!E$10 -> Year 3 | E8: =Calculations!F$10 -> Year 4 | F8: =Calculations!G$10 -> Year 5 | G8: =Calculations!H$10 -> Year 6 | H8: =Calculations!I$10 -> Year 7 | I8: =Calculations!J$10 -> Year 8 | J8: =Calculations!K$10 -> Year 9 | K8: =Calculations!L$10 -> Year 10
B9: =Calculations!C$11 -> Adopted | C9: =Calculations!D$11 -> Estimate | D9: =Calculations!E$11 -> Estimate | E9: =Calculations!F$11 -> Estimate | F9: =Calculations!G$11 -> Estimate | G9: =Calculations!H$11 -> Estimate | H9: =Calculations!I$11 -> Estimate | I9: =Calculations!J$11 -> Estimate | J9: =Calculations!K$11 -> Estimate | K9: =Calculations!L$11 -> Estimate | N9: Change | O9: Change | P9: Change
B10: =Calculations!C$12 -> 2014/15 | C10: =Calculations!D$12 -> 2015/16 | D10: =Calculations!E$12 -> 2016/17 | E10: =Calculations!F$12 -> 2017/18 | F10: =Calculations!G$12 -> 2018/19 | G10: =Calculations!H$12 -> 2019/20 | H10: =Calculations!I$12 -> 2020/21 | I10: =Calculations!J$12 -> 2021/22 | J10: =Calculations!K$12 -> 2022/23 | K10: =Calculations!L$12 -> 2023/24 | N10: =C10 -> 2015/16 | O10: =D10 -> 2016/17 | P10: =E10 -> 2017/18 | S10: Original
B11: ($'000) | C11: ($'000) | D11: ($'000) | E11: ($'000) | F11: ($'000) | G11: ($'000) | H11: ($'000) | I11: ($'000) | J11: ($'000) | K11: ($'000) | N11: % | O11: % | P11: % | R11: Gl A/c | S11: Vote
A13: (d) Depreciation, amortisation and | R13: 500005
A14: impairment
A16: Buildings | R16: 500005.01 | S16: =VLOOKUP(R16,'Download 600704.04'!$B$4:$D$12003,3,FALSE)/1000 -> 1360
A17: - Non specialised | B17: =S17 -> 650 | C17: =B17*(1+Calculations!D$16) -> 670 | D17: =C17*(1+Calculations!E$16) -> 690 | E17: =D17*(1+Calculations!F$16) -> 711 | F17: =E17*(1+Calculations!G$16) -> 732 | G17: =F17*(1+Calculations!H$16) -> 754 | H17: =G17*(1+Calculations!I$16) -> 777 | I17: =H17*(1+Calculations!J$16) -> 800 | J17: =I17*(1+Calculations!K$16) -> 824 | K17: =J17*(1+Calculations!L$16) -> 849 | N17: =(C17-B17)/B17 -> 0.031 | O17: 0.03 | P17: 0.03 | R17: 17840.1 | S17: =VLOOKUP(R17,'Download 600704.04'!$B$4:$D$12003,3,FALSE)/1000 -> 650
A18: - Specialised | B18: =S18 -> 710 | C18: =B18*(1+Calculations!D$16) -> 731 | D18: =C18*(1+Calculations!E$16) -> 753 | E18: =D18*(1+Calculations!F$16) -> 776 | F18: =E18*(1+Calculations!G$16) -> 799 | G18: =F18*(1+Calculations!H$16) -> 823 | H18: =G18*(1+Calculations!I$16) -> 848 | I18: =H18*(1+Calculations!J$16) -> 873 | J18: =I18*(1+Calculations!K$16) -> 899 | K18: =J18*(1+Calculations!L$16) -> 926 | N18: 0.03 | O18: 0.03 | P18: 0.031 | R18: 17840.2 | S18: =VLOOKUP(R18,'Download 600704.04'!$B$4:$D$12003,3,FALSE)/1000 -> 710
A19: Plant and equipment | B19: =S19 -> 2490 | C19: =B19*(1+Calculations!D$16) -> 2565 | D19: =C19*(1+Calculations!E$16) -> 2642 | E19: =D19*(1+Calculations!F$16) -> 2721 | F19: =E19*(1+Calculations!G$16) -> 2803 | G19: =F19*(1+Calculations!H$16) -> 2887 | H19: =G19*(1+Calculations!I$16) -> 2974 | I19: =H19*(1+Calculations!J$16) -> 3063 | J19: =I19*(1+Calculations!K$16) -> 3155 | K19: =J19*(1+Calculations!L$16) -> 3250 | N19: =(C19-B19)/B19 -> 0.03 | O19: =(D19-C19)/C19 -> 0.03 | P19: =(E19-D19)/D19 -> 0.03 | R19: 500005.02 | S19: =VLOOKUP(R19,'Download 600704.04'!$B$4:$D$12003,3,FALSE)/1000 -> 2490
A20: Furniture & fittings | B20: 60 | C20: =B20*(1+Calculations!D$16) -> 62 | D20: =C20*(1+Calculations!E$16) -> 64 | E20: =D20*(1+Calculations!F$16) -> 66 | F20: =E20*(1+Calculations!G$16) -> 68 | G20: =F20*(1+Calculations!H$16) -> 70 | H20: =G20*(1+Calculations!I$16) -> 72 | I20: =H20*(1+Calculations!J$16) -> 74 | J20: =I20*(1+Calculations!K$16) -> 76 | K20: =J20*(1+Calculations!L$16) -> 78 | N20: 0.033 | O20: 0.032 | P20: 0.031 | R20: 500005.03 | S20: =VLOOKUP(R20,'Download 600704.04'!$B$4:$D$12003,3,FALSE)/1000 -> 60
A21: Office equipment | B21: 150 | C21: =B21*(1+Calculations!D$16) -> 155 | D21: =C21*(1+Calculations!E$16) -> 160 | E21: =D21*(1+Calculations!F$16) -> 165 | F21: =E21*(1+Calculations!G$16) -> 170 | G21: =F21*(1+Calculations!H$16) -> 175 | H21: =G21*(1+Calculations!I$16) -> 180 | I21: =H21*(1+Calculations!J$16) -> 185 | J21: =I21*(1+Calculations!K$16) -> 191 | K21: =J21*(1+Calculations!L$16) -> 197 | N21: 0.033 | O21: 0.032 | P21: 0.031 | R21: 500005.04 | S21: =VLOOKUP(R21,'Download 600704.04'!$B$4:$D$12003,3,FALSE)/1000 -> 150
A22: Infrastructure
A23: - Roads, bridges & footpaths | B23: 8600 | C23: =B23*(1+Calculations!D$16) -> 8858 | D23: =C23*(1+Calculations!E$16) -> 9124 | E23: =D23*(1+Calculations!F$16) -> 9398 | F23: =E23*(1+Calculations!G$16) -> 9680 | G23: =F23*(1+Calculations!H$16) -> 9970 | H23: =G23*(1+Calculations!I$16) -> 10269 | I23: =H23*(1+Calculations!J$16) -> 10577 | J23: =I23*(1+Calculations!K$16) -> 10894 | K23: =J23*(1+Calculations!L$16) -> 11221 | N23: 0.03 | O23: 0.03 | P23: 0.03 | R23: See below | S23: =W37 -> 8600
A24: - Stormwater drainage | B24: 630 | C24: =B24*(1+Calculations!D$16) -> 649 | D24: =C24*(1+Calculations!E$16) -> 668 | E24: =D24*(1+Calculations!F$16) -> 688 | F24: =E24*(1+Calculations!G$16) -> 709 | G24: =F24*(1+Calculations!H$16) -> 730 | H24: =G24*(1+Calculations!I$16) -> 752 | I24: =H24*(1+Calculations!J$16) -> 775 | J24: =I24*(1+Calculations!K$16) -> 798 | K24: =J24*(1+Calculations!L$16) -> 822 | N24: 0.03 | O24: 0.029 | P24: 0.03 | R24: 500005.07 | S24: =VLOOKUP(R24,'Download 600704.04'!$B$4:$D$12003,3,FALSE)/1000 -> 630
A25: Community improvements & park equipment | B25: 2040 | C25: =B25*(1+Calculations!D$16) -> 2101 | D25: =C25*(1+Calculations!E$16) -> 2164 | E25: =D25*(1+Calculations!F$16) -> 2229 | F25: =E25*(1+Calculations!G$16) -> 2296 | G25: =F25*(1+Calculations!H$16) -> 2365 | H25: =G25*(1+Calculations!I$16) -> 2436 | I25: =H25*(1+Calculations!J$16) -> 2509 | J25: =I25*(1+Calculations!K$16) -> 2584 | K25: =J25*(1+Calculations!L$16) -> 2662 | N25: 0.03 | O25: 0.03 | P25: 0.03 | R25: See below | S25: =W42 -> 2040
A26: Tip asset | B26: =S26 -> 257 | C26: =Calculations!D179 -> 257 | D26: =Calculations!E179 -> 257 | E26: =Calculations!F179 -> 257 | F26: =Calculations!G179 -> 257 | G26: =Calculations!H179 -> 0 | H26: =Calculations!I179 -> 0 | I26: =Calculations!J179 -> 0 | J26: =Calculations!K179 -> 0 | K26: =Calculations!L179 -> 0 | N26: 0 | O26: 0 | P26: 0 | R26: 500005.14 | S26: =VLOOKUP(R26,'Download 600704.04'!$B$4:$D$12003,3,FALSE)/1000 -> 257
A27: Other Assets
A28: - Library books | B28: 205 | C28: =B28*(1+Calculations!D$16) -> 211 | D28: =C28*(1+Calculations!E$16) -> 217 | E28: =D28*(1+Calculations!F$16) -> 224 | F28: =E28*(1+Calculations!G$16) -> 231 | G28: =F28*(1+Calculations!H$16) -> 238 | H28: =G28*(1+Calculations!I$16) -> 245 | I28: =H28*(1+Calculations!J$16) -> 252 | J28: =I28*(1+Calculations!K$16) -> 260 | K28: =J28*(1+Calculations!L$16) -> 268 | N28: 0.029 | O28: 0.028 | P28: 0.032 | R28: 500005.09 | S28: =VLOOKUP(R28,'Download 600704.04'!$B$4:$D$12003,3,FALSE)/1000 -> 205
A29: - Bushfire equipment | B29: 120 | C29: =B29*(1+Calculations!D$16) -> 124 | D29: =C29*(1+Calculations!E$16) -> 128 | E29: =D29*(1+Calculations!F$16) -> 132 | F29: =E29*(1+Calculations!G$16) -> 136 | G29: =F29*(1+Calculations!H$16) -> 140 | H29: =G29*(1+Calculations!I$16) -> 144 | I29: =H29*(1+Calculations!J$16) -> 148 | J29: =I29*(1+Calculations!K$16) -> 152 | K29: =J29*(1+Calculations!L$16) -> 157 | N29: 0.033 | O29: 0.032 | P29: 0.031 | R29: 500005.12 | S29: =VLOOKUP(R29,'Download 600704.04'!$B$4:$D$12003,3,FALSE)/1000 -> 120
A30: - Musical equipment | B30: =S30 -> 8 | C30: =B30*(1+Calculations!D$16) -> 8 | D30: =C30*(1+Calculations!E$16) -> 8 | E30: =D30*(1+Calculations!F$16) -> 8 | F30: =E30*(1+Calculations!G$16) -> 8 | G30: =F30*(1+Calculations!H$16) -> 8 | H30: =G30*(1+Calculations!I$16) -> 8 | I30: =H30*(1+Calculations!J$16) -> 8 | J30: =I30*(1+Calculations!K$16) -> 8 | K30: =J30*(1+Calculations!L$16) -> 8 | N30: 0 | O30: 0 | P30: 0 | R30: 500005.13 | S30: =VLOOKUP(R30,'Download 600704.04'!$B$4:$D$12003,3,FALSE)/1000 -> 8
W32: Original
A33: Total depreciation and total impairment | B33: =SUM(B16:B32) -> 15920 | C33: =SUM(C16:C32) -> 16391 | D33: =SUM(D16:D32) -> 16875 | E33: =SUM(E16:E32) -> 17375 | F33: =SUM(F16:F32) -> 17889 | G33: 18160 | H33: 18705 | I33: 19264 | J33: 19841 | K33: 20438 | N33: 0.03 | O33: 0.03 | P33: 0.03 | V33: Gl A/c | W33: Vote
U34: Roads & bridges
U35: Roads | V35: 2809 | W35: =VLOOKUP(V35,'Download 600704.04'!$B$4:$D$12003,3,FALSE)/1000 -> 8400
U36: Bridges | V36: 3009 | W36: =VLOOKUP(V36,'Download 600704.04'!$B$4:$D$12003,3,FALSE)/1000 -> 200
W37: =SUM(W35:W36) -> 8600
U39: Community improvements & park equipment
U40: Community improvements | V40: 15027 | W40: =VLOOKUP(V40,'Download 600704.04'!$B$4:$D$12003,3,FALSE)/1000 -> 1820
U41: Park equipment | V41: 15423 | W41: =VLOOKUP(V41,'Download 600704.04'!$B$4:$D$12003,3,FALSE)/1000 -> 220
W42: =SUM(W40:W41) -> 2040

Sheet Note 4(e)
A1: =Calculations!A1 -> Maitland City Council
A2: =Calculations!A2 -> Long Term Financial Plan
A3: =Calculations!A3 -> For the period 2014/15 to 2023/24
A4: =Calculations!A4 -> 2014/15 Draft Budget
A5: =Calculations!A5 -> Option 2 - $25M Projects (Including $1.5M annual rent from 2015/16, 5 additional staff per year from 2015/16)
A6: =Calculations!A6 -> Year 1 to Year 7 - 7.25% Rate Increase (Adjustments to rates pie Yrs 1-7) (Additional farm adjustment) (Additional grants $13M & loans $38M)
A7: Note 4 Expenses from continuing operations (continued)
B8: =Calculations!C$10 -> Year 1 | C8: =Calculations!D$10 -> Year 2 | D8: =Calculations!E$10 -> Year 3 | E8: =Calculations!F$10 -> Year 4 | F8: =Calculations!G$10 -> Year 5 | G8: =Calculations!H$10 -> Year 6 | H8: =Calculations!I$10 -> Year 7 | I8: =Calculations!J$10 -> Year 8 | J8: =Calculations!K$10 -> Year 9 | K8: =Calculations!L$10 -> Year 10
B9: =Calculations!C$11 -> Adopted | C9: =Calculations!D$11 -> Estimate | D9: =Calculations!E$11 -> Estimate | E9: =Calculations!F$11 -> Estimate | F9: =Calculations!G$11 -> Estimate | G9: =Calculations!H$11 -> Estimate | H9: =Calculations!I$11 -> Estimate | I9: =Calculations!J$11 -> Estimate | J9: =Calculations!K$11 -> Estimate | K9: =Calculations!L$11 -> Estimate | N9: Change | O9: Change | P9: Change
B10: =Calculations!C$12 -> 2014/15 | C10: =Calculations!D$12 -> 2015/16 | D10: =Calculations!E$12 -> 2016/17 | E10: =Calculations!F$12 -> 2017/18 | F10: =Calculations!G$12 -> 2018/19 | G10: =Calculations!H$12 -> 2019/20 | H10: =Calculations!I$12 -> 2020/21 | I10: =Calculations!J$12 -> 2021/22 | J10: =Calculations!K$12 -> 2022/23 | K10: =Calculations!L$12 -> 2023/24 | N10: =C10 -> 2015/16 | O10: =D10 -> 2016/17 | P10: =E10 -> 2017/18 | S10: Original
B11: ($'000) | C11: ($'000) | D11: ($'000) | E11: ($'000) | F11: ($'000) | G11: ($'000) | H11: ($'000) | I11: ($'000) | J11: ($'000) | K11: ($'000) | N11: % | O11: % | P11: % | R11: Gl A/c | S11: Vote
A13: (e) Other expenses | R13: 500007
A15: Other expenses for the year
A16: include the following:
A18: Bad & Doubtful Debts | B18: =S18 -> 8 | C18: =B18*(1+Calculations!D$16) -> 8 | D18: =C18*(1+Calculations!E$16) -> 8 | E18: =D18*(1+Calculations!F$16) -> 8 | F18: =E18*(1+Calculations!G$16) -> 8 | G18: =F18*(1+Calculations!H$16) -> 8 | H18: =G18*(1+Calculations!I$16) -> 8 | I18: =H18*(1+Calculations!J$16) -> 8 | J18: =I18*(1+Calculations!K$16) -> 8 | K18: =J18*(1+Calculations!L$16) -> 8 | N18: =(C18-B18)/B18 -> 0 | O18: =(D18-C18)/C18 -> 0 | P18: =(E18-D18)/D18 -> 0 | R18: 500007.33 | S18: =VLOOKUP(R18,'Download 600704.04'!$B$4:$D$12003,3,FALSE)/1000 -> 8
A19: Insurance | B19: 1003 | C19: =B19*(1+Calculations!D$16) -> 1033 | D19: =C19*(1+Calculations!E$16) -> 1064 | E19: =D19*(1+Calculations!F$16) -> 1096 | F19: =E19*(1+Calculations!G$16) -> 1129 | G19: =F19*(1+Calculations!H$16) -> 1163 | H19: =G19*(1+Calculations!I$16) -> 1198 | I19: =H19*(1+Calculations!J$16) -> 1234 | J19: =I19*(1+Calculations!K$16) -> 1271 | K19: =J19*(1+Calculations!L$16) -> 1309 | N19: 0.03 | O19: 0.03 | P19: 0.03 | R19: 500007.32 | S19: =VLOOKUP(R19,'Download 600704.04'!$B$4:$D$12003,3,FALSE)/1000 -> 1003
A20: Mayoral Allowance | B20: 42 | C20: =B20*(1+Calculations!D$16) -> 43 | D20: =C20*(1+Calculations!E$16) -> 44 | E20: =D20*(1+Calculations!F$16) -> 45 | F20: =E20*(1+Calculations!G$16) -> 46 | G20: =F20*(1+Calculations!H$16) -> 47 | H20: =G20*(1+Calculations!I$16) -> 48 | I20: =H20*(1+Calculations!J$16) -> 49 | J20: =I20*(1+Calculations!K$16) -> 50 | K20: =J20*(1+Calculations!L$16) -> 52 | N20: 0.024 | O20: 0.023 | P20: 0.023 | R20: 500007.39 | S20: =VLOOKUP(R20,'Download 600704.04'!$B$4:$D$12003,3,FALSE)/1000 -> 42
A21: Councillors' Fees and Allowances | B21: 230 | C21: =B21*(1+Calculations!D$16) -> 237 | D21: =C21*(1+Calculations!E$16) -> 244 | E21: =D21*(1+Calculations!F$16) -> 251 | F21: =E21*(1+Calculations!G$16) -> 259 | G21: =F21*(1+Calculations!H$16) -> 267 | H21: =G21*(1+Calculations!I$16) -> 275 | I21: =H21*(1+Calculations!J$16) -> 283 | J21: =I21*(1+Calculations!K$16) -> 291 | K21: =J21*(1+Calculations!L$16) -> 300 | N21: 0.03 | O21: 0.03 | P21: 0.029 | R21: 500007.4 | S21: =VLOOKUP(R21,'Download 600704.04'!$B$4:$D$12003,3,FALSE)/1000 -> 230
A22: Councillors' Expenses | B22: 165 | C22: =B22*(1+Calculations!D$16) -> 170 | D22: =C22*(1+Calculations!E$16) -> 175 | E22: =D22*(1+Calculations!F$16) -> 180 | F22: =E22*(1+Calculations!G$16) -> 185 | G22: =F22*(1+Calculations!H$16) -> 191 | H22: =G22*(1+Calculations!I$16) -> 197 | I22: =H22*(1+Calculations!J$16) -> 203 | J22: =I22*(1+Calculations!K$16) -> 209 | K22: =J22*(1+Calculations!L$16) -> 215 | N22: 0.03 | O22: 0.029 | P22: 0.029 | R22: 500007.41 | S22: =VLOOKUP(R22,'Download 600704.04'!$B$4:$D$12003,3,FALSE)/1000 -> 165
A23: Telephone | B23: 148 | C23: =B23*(1+Calculations!D$16) -> 152 | D23: =C23*(1+Calculations!E$16) -> 157 | E23: =D23*(1+Calculations!F$16) -> 162 | F23: =E23*(1+Calculations!G$16) -> 167 | G23: =F23*(1+Calculations!H$16) -> 172 | H23: =G23*(1+Calculations!I$16) -> 177 | I23: =H23*(1+Calculations!J$16) -> 182 | J23: =I23*(1+Calculations!K$16) -> 187 | K23: =J23*(1+Calculations!L$16) -> 193 | N23: 0.027 | O23: 0.033 | P23: 0.032 | R23: 500007.26 | S23: =VLOOKUP(R23,'Download 600704.04'!$B$4:$D$12003,3,FALSE)/1000 -> 148
A24: Street Lighting | B24: 2485 | C24: =B24*(1+SUM(Calculations!D$16+Calculations!D$22)) -> 2684 | D24: =C24*(1+SUM(Calculations!E$16+Calculations!E$22)) -> 2899 | E24: =D24*(1+SUM(Calculations!F$16+Calculations!F$22)) -> 3131 | F24: =E24*(1+SUM(Calculations!G$16+Calculations!G$22)) -> 3381 | G24: =F24*(1+SUM(Calculations!H$16+Calculations!H$22)) -> 3651 | H24: =G24*(1+SUM(Calculations!I$16+Calculations!I$22)) -> 3943 | I24: =H24*(1+SUM(Calculations!J$16+Calculations!J$22)) -> 4258 | J24: =I24*(1+SUM(Calculations!K$16+Calculations!K$22)) -> 4599 | K24: =J24*(1+SUM(Calculations!L$16+Calculations!L$22)) -> 4967 | N24: 0.08 | O24: 0.08 | P24: 0.08 | R24: 500007.44 | S24: =VLOOKUP(R24,'Download 600704.04'!$B$4:$D$12003,3,FALSE)/1000 -> 2485
A25: Electricity | B25: 750 | C25: =B25*(1+Calculations!D$16) -> 773 | D25: =C25*(1+Calculations!E$16) -> 796 | E25: =D25*(1+Calculations!F$16) -> 820 | F25: =E25*(1+Calculations!G$16) -> 845 | G25: =F25*(1+Calculations!H$16) -> 870 | H25: =G25*(1+Calculations!I$16) -> 896 | I25: =H25*(1+Calculations!J$16) -> 923 | J25: =I25*(1+Calculations!K$16) -> 951 | K25: =J25*(1+Calculations!L$16) -> 980 | N25: 0.031 | O25: 0.03 | P25: 0.03 | R25: 500007.13 | S25: =VLOOKUP(R25,'Download 600704.04'!$B$4:$D$12003,3,FALSE)/1000 -> 750
A26: Contributions & Donations | B26: 200 | C26: =B26*(1+Calculations!D$16) -> 206 | D26: =C26*(1+Calculations!E$16) -> 212 | E26: =D26*(1+Calculations!F$16) -> 218 | F26: =E26*(1+Calculations!G$16) -> 225 | G26: =F26*(1+Calculations!H$16) -> 232 | H26: =G26*(1+Calculations!I$16) -> 239 | I26: =H26*(1+Calculations!J$16) -> 246 | J26: =I26*(1+Calculations!K$16) -> 253 | K26: =J26*(1+Calculations!L$16) -> 261 | N26: 0.03 | O26: 0.029 | P26: 0.028 | R26: 500007.47 | S26: =VLOOKUP(R26,'Download 600704.04'!$B$4:$D$12003,3,FALSE)/1000+1 -> 200
A27: Election expenses | B27: =S27 -> 0 | C27: =Calculations!D196 -> 0 | D27: =Calculations!E196 -> 360 | E27: =Calculations!F196 -> 0 | F27: =Calculations!G196 -> 0 | G27: =Calculations!H196 -> 0 | H27: =Calculations!I196 -> 400 | I27: =Calculations!J196 -> 0 | J27: =Calculations!K196 -> 0 | K27: =Calculations!L196 -> 0 | R27: 500007.37 | S27: =VLOOKUP(R27,'Download 600704.04'!$B$4:$D$12003,3,FALSE)/1000 -> 0
A28: Tourism Expenses | B28: 672 | C28: =B28*(1+Calculations!D$16) -> 692 | D28: =C28*(1+Calculations!E$16) -> 713 | E28: =D28*(1+Calculations!F$16) -> 734 | F28: =E28*(1+Calculations!G$16) -> 756 | G28: =F28*(1+Calculations!H$16) -> 779 | H28: =G28*(1+Calculations!I$16) -> 802 | I28: =H28*(1+Calculations!J$16) -> 826 | J28: =I28*(1+Calculations!K$16) -> 851 | K28: =J28*(1+Calculations!L$16) -> 877 | N28: 0.03 | O28: 0.03 | P28: 0.029 | R28: 500007.51 | S28: =VLOOKUP(R28,'Download 600704.04'!$B$4:$D$12003,3,FALSE)/1000 -> 672
A29: State Government Waste Disposal Levy | B29: 8752 | C29: =Calculations!D188 -> 9836 | D29: =Calculations!E188 -> 10974 | E29: =Calculations!F188 -> 12162 | F29: =Calculations!G188 -> 13410 | G29: =Calculations!H188 -> 14709 | H29: =Calculations!I188 -> 16070 | I29: =Calculations!J188 -> 17486 | J29: =Calculations!K188 -> 18964 | K29: =Calculations!L188 -> 20507 | N29: 0.124 | O29: 0.116 | P29: 0.108 | R29: 500007.53 | S29: =VLOOKUP(R29,'Download 600704.04'!$B$4:$D$12003,3,FALSE)/1000 -> 8752
A30: Emergency services levy | B30: 91 | C30: =B30*(1+Calculations!D$16) -> 94 | D30: =C30*(1+Calculations!E$16) -> 97 | E30: =D30*(1+Calculations!F$16) -> 100 | F30: =E30*(1+Calculations!G$16) -> 103 | G30: =F30*(1+Calculations!H$16) -> 106 | H30: =G30*(1+Calculations!I$16) -> 109 | I30: =H30*(1+Calculations!J$16) -> 112 | J30: =I30*(1+Calculations!K$16) -> 115 | K30: =J30*(1+Calculations!L$16) -> 118 | N30: 0.033 | O30: 0.032 | P30: 0.031 | R30: 500007.55 | S30: =VLOOKUP(R30,'Download 600704.04'!$B$4:$D$12003,3,FALSE)/1000 -> 91
A31: Other levies | B31: =S31 -> 778 | C31: =B31*(1+Calculations!D$16) -> 801 | D31: =C31*(1+Calculations!E$16) -> 825 | E31: =D31*(1+Calculations!F$16) -> 850 | F31: =E31*(1+Calculations!G$16) -> 876 | G31: =F31*(1+Calculations!H$16) -> 902 | H31: =G31*(1+Calculations!I$16) -> 929 | I31: =H31*(1+Calculations!J$16) -> 957 | J31: =I31*(1+Calculations!K$16) -> 986 | K31: =J31*(1+Calculations!L$16) -> 1016 | N31: =(C31-B31)/B31 -> 0.03 | O31: =(D31-C31)/C31 -> 0.03 | P31: =(E31-D31)/D31 -> 0.03 | R31: 500007.56 | S31: =VLOOKUP(R31,'Download 600704.04'!$B$4:$D$12003,3,FALSE)/1000 -> 778
A32: CBD activities | B32: =S32 -> 183 | C32: =B32*(1+Calculations!D$16) -> 188 | D32: =C32*(1+Calculations!E$16) -> 194 | E32: =D32*(1+Calculations!F$16) -> 200 | F32: =E32*(1+Calculations!G$16) -> 206 | G32: =F32*(1+Calculations!H$16) -> 212 | H32: =G32*(1+Calculations!I$16) -> 218 | I32: =H32*(1+Calculations!J$16) -> 225 | J32: =I32*(1+Calculations!K$16) -> 232 | K32: =J32*(1+Calculations!L$16) -> 239 | N32: =(C32-B32)/B32 -> 0.027 | O32: =(D32-C32)/C32 -> 0.032 | P32: =(E32-D32)/D32 -> 0.031 | R32: 500007.54 | S32: =VLOOKUP(R32,'Download 600704.04'!$B$4:$D$12003,3,FALSE)/1000 -> 183
A33: Carbon tax | B33: =S33 -> 1465 | C33: =Calculations!D194 -> 1491 | D33: =Calculations!E194 -> 1517 | E33: =Calculations!F194 -> 1543 | F33: =Calculations!G194 -> 1569 | G33: =Calculations!H194 -> 1594 | H33: =Calculations!I194 -> 1620 | I33: =Calculations!J194 -> 1646 | J33: =Calculations!K194 -> 1672 | K33: =Calculations!L194 -> 1698 | R33: 500007.57 | S33: =VLOOKUP(R33,'Download 600704.04'!$B$4:$D$12003,3,FALSE)/1000 -> 1465
A34: Other | R34: 500007.34 | S34: =VLOOKUP(R34,'Download 600704.04'!$B$4:$D$12003,3,FALSE)/1000 -> 247
A35: - Advertising | B35: =S35 -> 97 | C35: =B35*(1+Calculations!D$16) -> 100 | D35: =C35*(1+Calculations!E$16) -> 103 | E35: =D35*(1+Calculations!F$16) -> 106 | F35: =E35*(1+Calculations!G$16) -> 109 | G35: =F35*(1+Calculations!H$16) -> 112 | H35: =G35*(1+Calculations!I$16) -> 115 | I35: =H35*(1+Calculations!J$16) -> 118 | J35: =I35*(1+Calculations!K$16) -> 122 | K35: =J35*(1+Calculations!L$16) -> 126 | N35: 0.031 | O35: 0.03 | P35: 0.029 | R35: 500007.3 | S35: =VLOOKUP(R35,'Download 600704.04'!$B$4:$D$12003,3,FALSE)/1000 -> 97
A36: - Bank Charges | B36: =S36 -> 127 | C36: =B36*(1+Calculations!D$16) -> 131 | D36: =C36*(1+Calculations!E$16) -> 135 | E36: =D36*(1+Calculations!F$16) -> 139 | F36: =E36*(1+Calculations!G$16) -> 143 | G36: =F36*(1+Calculations!H$16) -> 147 | H36: =G36*(1+Calculations!I$16) -> 151 | I36: =H36*(1+Calculations!J$16) -> 156 | J36: =I36*(1+Calculations!K$16) -> 161 | K36: =J36*(1+Calculations!L$16) -> 166 | N36: 0.031 | O36: 0.031 | P36: 0.03 | R36: 10091 | S36: =VLOOKUP(R36,'Download 600704.04'!$B$4:$D$12003,3,FALSE)/1000 -> 127
A37: - Property Acquisition Expenses | B37: =S37 -> 0 | C37: =B37*(1+Calculations!D$16) -> 0 | D37: =C37*(1+Calculations!E$16) -> 0 | E37: =D37*(1+Calculations!F$16) -> 0 | F37: =E37*(1+Calculations!G$16) -> 0 | G37: =F37*(1+Calculations!H$16) -> 0 | H37: =G37*(1+Calculations!I$16) -> 0 | I37: =H37*(1+Calculations!J$16) -> 0 | J37: =I37*(1+Calculations!K$16) -> 0 | K37: =J37*(1+Calculations!L$16) -> 0 | R37: 500007.48 | S37: =VLOOKUP(R37,'Download 600704.04'!$B$4:$D$12003,3,FALSE)/1000 -> 0
A38: - Other | B38: =S38 -> 23 | C38: =B38*(1+Calculations!D$16) -> 24 | D38: =C38*(1+Calculations!E$16) -> 25 | E38: =D38*(1+Calculations!F$16) -> 26 | F38: =E38*(1+Calculations!G$16) -> 27 | G38: =F38*(1+Calculations!H$16) -> 28 | H38: =G38*(1+Calculations!I$16) -> 29 | I38: =H38*(1+Calculations!J$16) -> 30 | J38: =I38*(1+Calculations!K$16) -> 31 | K38: =J38*(1+Calculations!L$16) -> 32 | N38: 0.043 | O38: 0.042 | P38: 0.04 | R38: Bal 500007.34 | S38: =S34-SUM(S35:S37) -> 23
A40: Total other expenses | B40: =SUM(B18:B38) -> 17219 | C40: =SUM(C18:C38) -> 18663 | D40: =SUM(D18:D38) -> 20542 | E40: =SUM(E18:E38) -> 21771 | F40: =SUM(F18:F38) -> 23444 | G40: 25190 | H40: 27424 | I40: 28942 | J40: 30953 | K40: 33064 | N40: 0.084 | O40: 0.101 | P40: 0.06

Sheet Note 5
A1: =Calculations!A1 -> Maitland City Council
A2: =Calculations!A2 -> Long Term Financial Plan
A3: =Calculations!A3 -> For the period 2014/15 to 2023/24
A4: =Calculations!A4 -> 2014/15 Draft Budget
A5: =Calculations!A5 -> Option 2 - $25M Projects (Including $1.5M annual rent from 2015/16, 5 additional staff per year from 2015/16)
A6: =Calculations!A6 -> Year 1 to Year 7 - 7.25% Rate Increase (Adjustments to rates pie Yrs 1-7) (Additional farm adjustment) (Additional grants $13M & loans $38M)
A7: Note 5 Gain or loss from disposal of assets
B8: =Calculations!C$10 -> Year 1 | C8: =Calculations!D$10 -> Year 2 | D8: =Calculations!E$10 -> Year 3 | E8: =Calculations!F$10 -> Year 4 | F8: =Calculations!G$10 -> Year 5 | G8: =Calculations!H$10 -> Year 6 | H8: =Calculations!I$10 -> Year 7 | I8: =Calculations!J$10 -> Year 8 | J8: =Calculations!K$10 -> Year 9 | K8: =Calculations!L$10 -> Year 10
B9: =Calculations!C$11 -> Adopted | C9: =Calculations!D$11 -> Estimate | D9: =Calculations!E$11 -> Estimate | E9: =Calculations!F$11 -> Estimate | F9: =Calculations!G$11 -> Estimate | G9: =Calculations!H$11 -> Estimate | H9: =Calculations!I$11 -> Estimate | I9: =Calculations!J$11 -> Estimate | J9: =Calculations!K$11 -> Estimate | K9: =Calculations!L$11 -> Estimate
B10: =Calculations!C$12 -> 2014/15 | C10: =Calculations!D$12 -> 2015/16 | D10: =Calculations!E$12 -> 2016/17 | E10: =Calculations!F$12 -> 2017/18 | F10: =Calculations!G$12 -> 2018/19 | G10: =Calculations!H$12 -> 2019/20 | H10: =Calculations!I$12 -> 2020/21 | I10: =Calculations!J$12 -> 2021/22 | J10: =Calculations!K$12 -> 2022/23 | K10: =Calculations!L$12 -> 2023/24 | N10: Original
B11: ($'000) | C11: ($'000) | D11: ($'000) | E11: ($'000) | F11: ($'000) | G11: ($'000) | H11: ($'000) | I11: ($'000) | J11: ($'000) | K11: ($'000) | M11: Gl A/c | N11: Vote
A13: Gain (or loss) on disposal of Property
A15: Proceeds from disposal | B15: =IF(N17>0,0,-N17) -> 0 | C15: =Calculations!D118 -> 3000 | D15: =Calculations!E118 -> 5000 | E15: =Calculations!F118 -> 7000 | F15: =Calculations!G118 -> 0 | G15: =Calculations!H118 -> 0 | H15: =Calculations!I118 -> 0 | I15: =Calculations!J118 -> 0 | J15: =Calculations!K118 -> 0 | K15: =Calculations!L118 -> 0
A16: Less: Carrying amount of assets sold | B16: =IF(N17>0,N17,0) -> 0 | C16: =B16*(1+Calculations!D$16) -> 0 | D16: =C16*(1+Calculations!E$16) -> 0 | E16: =D16*(1+Calculations!F$16) -> 0 | F16: =E16*(1+Calculations!G$16) -> 0 | G16: =F16*(1+Calculations!H$16) -> 0 | H16: =G16*(1+Calculations!I$16) -> 0 | I16: =H16*(1+Calculations!J$16) -> 0 | J16: =I16*(1+Calculations!K$16) -> 0 | K16: =J16*(1+Calculations!L$16) -> 0
A17: Gain (or loss) on disposal | B17: =B15-B16 -> 0 | C17: =C15-C16 -> 3000 | D17: =D15-D16 -> 5000 | E17: =E15-E16 -> 7000 | F17: =F15-F16 -> 0 | G17: 0 | H17: 0 | I17: 0 | J17: 0 | K17: 0 | M17: 500016 | N17: =VLOOKUP(M17,'Download 600704.04'!$B$4:$D$12003,3,FALSE)/1000 -> 0
A19: Gain (or loss) on disposal of Infrastructure,
A20: Plant and Equipment
A22: Proceeds from disposal | B22: =IF(N24>0,0,-N24) -> 0 | C22: =B22*(1+Calculations!D$16) -> 0 | D22: =C22*(1+Calculations!E$16) -> 0 | E22: =D22*(1+Calculations!F$16) -> 0 | F22: =E22*(1+Calculations!G$16) -> 0 | G22: =F22*(1+Calculations!H$16) -> 0 | H22: =G22*(1+Calculations!I$16) -> 0 | I22: =H22*(1+Calculations!J$16) -> 0 | J22: =I22*(1+Calculations!K$16) -> 0 | K22: =J22*(1+Calculations!L$16) -> 0
A23: Less: Carrying amount of assets sold | B23: =IF(N24>0,N24,0) -> 0 | C23: =B23*(1+Calculations!D$16) -> 0 | D23: =C23*(1+Calculations!E$16) -> 0 | E23: =D23*(1+Calculations!F$16) -> 0 | F23: =E23*(1+Calculations!G$16) -> 0 | G23: =F23*(1+Calculations!H$16) -> 0 | H23: =G23*(1+Calculations!I$16) -> 0 | I23: =H23*(1+Calculations!J$16) -> 0 | J23: =I23*(1+Calculations!K$16) -> 0 | K23: =J23*(1+Calculations!L$16) -> 0
A24: Gain (or loss) on disposal | B24: =B22-B23 -> 0 | C24: =C22-C23 -> 0 | D24: =D22-D23 -> 0 | E24: =E22-E23 -> 0 | F24: =F22-F23 -> 0 | G24: 0 | H24: 0 | I24: 0 | J24: 0 | K24: 0 | M24: 500017 | N24: =VLOOKUP(M24,'Download 600704.04'!$B$4:$D$12003,3,FALSE)/1000 -> 0
A26: Gain (or loss) on disposal of Financial assets
A27: held for sale
A29: Proceeds from disposal | B29: =IF(N31>0,0,-N31) -> 0 | C29: =B29*(1+Calculations!D$16) -> 0 | D29: =C29*(1+Calculations!E$16) -> 0 | E29: =D29*(1+Calculations!F$16) -> 0 | F29: =E29*(1+Calculations!G$16) -> 0 | G29: =F29*(1+Calculations!H$16) -> 0 | H29: =G29*(1+Calculations!I$16) -> 0 | I29: =H29*(1+Calculations!J$16) -> 0 | J29: =I29*(1+Calculations!K$16) -> 0 | K29: =J29*(1+Calculations!L$16) -> 0
A30: Less: Carrying amount of assets sold | B30: =IF(N31>0,N31,0) -> 0 | C30: =B30*(1+Calculations!D$16) -> 0 | D30: =C30*(1+Calculations!E$16) -> 0 | E30: =D30*(1+Calculations!F$16) -> 0 | F30: =E30*(1+Calculations!G$16) -> 0 | G30: =F30*(1+Calculations!H$16) -> 0 | H30: =G30*(1+Calculations!I$16) -> 0 | I30: =H30*(1+Calculations!J$16) -> 0 | J30: =I30*(1+Calculations!K$16) -> 0 | K30: =J30*(1+Calculations!L$16) -> 0
A31: Gain (or loss) on disposal | B31: =B29-B30 -> 0 | C31: =C29-C30 -> 0 | D31: =D29-D30 -> 0 | E31: =E29-E30 -> 0 | F31: =F29-F30 -> 0 | G31: 0 | H31: 0 | I31: 0 | J31: 0 | K31: 0 | M31: 500017.5 | N31: =VLOOKUP(M31,'Download 600704.04'!$B$4:$D$12003,3,FALSE)/1000 -> 0
A33: Net gain (or loss) on disposal of assets | B33: =B17+B24+B31 -> 0 | C33: =C17+C24+C31 -> 3000 | D33: =D17+D24+D31 -> 5000 | E33: =E17+E24+E31 -> 7000 | F33: =F17+F24+F31 -> 0 | G33: 0 | H33: 0 | I33: 0 | J33: 0 | K33: 0

Sheet Note 6(a) - Current
A1: =Calculations!A1 -> Maitland City Council
A2: =Calculations!A2 -> Long Term Financial Plan
A3: =Calculations!A3 -> For the period 2014/15 to 2023/24
A4: =Calculations!A4 -> 2014/15 Draft Budget
A5: =Calculations!A5 -> Option 2 - $25M Projects (Including $1.5M annual rent from 2015/16, 5 additional staff per year from 2015/16)
A6: =Calculations!A6 -> Year 1 to Year 7 - 7.25% Rate Increase (Adjustments to rates pie Yrs 1-7) (Additional farm adjustment) (Additional grants $13M & loans $38M)
A7: Note 6(a) Cash and cash equivalents
C8: =Calculations!C$10 -> Year 1 | D8: =Calculations!D$10 -> Year 2 | E8: =Calculations!E$10 -> Year 3 | F8: =Calculations!F$10 -> Year 4 | G8: =Calculations!G$10 -> Year 5 | H8: =Calculations!H$10 -> Year 6 | I8: =Calculations!I$10 -> Year 7 | J8: =Calculations!J$10 -> Year 8 | K8: =Calculations!K$10 -> Year 9 | L8: =Calculations!L$10 -> Year 10
B9: ='Balance Sheet'!C$11 -> Estimate | C9: =Calculations!C$11 -> Adopted | D9: =Calculations!D$11 -> Estimate | E9: =Calculations!E$11 -> Estimate | F9: =Calculations!F$11 -> Estimate | G9: =Calculations!G$11 -> Estimate | H9: =Calculations!H$11 -> Estimate | I9: =Calculations!I$11 -> Estimate | J9: =Calculations!J$11 -> Estimate | K9: =Calculations!K$11 -> Estimate | L9: =Calculations!L$11 -> Estimate
B10: ='Balance Sheet'!C$12 -> 2013/14 | C10: =Calculations!C$12 -> 2014/15 | D10: =Calculations!D$12 -> 2015/16 | E10: =Calculations!E$12 -> 2016/17 | F10: =Calculations!F$12 -> 2017/18 | G10: =Calculations!G$12 -> 2018/19 | H10: =Calculations!H$12 -> 2019/20 | I10: =Calculations!I$12 -> 2020/21 | J10: =Calculations!J$12 -> 2021/22 | K10: =Calculations!K$12 -> 2022/23 | L10: =Calculations!L$12 -> 2023/24
B11: ($'000) | C11: ($'000) | D11: ($'000) | E11: ($'000) | F11: ($'000) | G11: ($'000) | H11: ($'000) | I11: ($'000) | J11: ($'000) | K11: ($'000) | L11: ($'000)
A14: Cash at bank and on hand | B14: 200 | C14: 200 | D14: 200 | E14: 200 | F14: 200 | G14: 200 | H14: 200 | I14: 200 | J14: 200 | K14: 200 | L14: 200
A15: Deposits at call | B15: 2000 | C15: 2000 | D15: 2000 | E15: 2000 | F15: 2000 | G15: 2000 | H15: 2000 | I15: 2000 | J15: 2000 | K15: 2000 | L15: 2000
A17: Total cash and cash equivalents | B17: =SUM(B14:B16) -> 2200 | C17: =SUM(C14:C16) -> 2200 | D17: 2200 | E17: 2200 | F17: 2200 | G17: 2200 | H17: 2200 | I17: 2200 | J17: 2200 | K17: 2200 | L17: 2200
A20: Note 6(b) Investments - Current
A21: The following financial assets are held as investments:
A23: Financial assets at fair value through
A24: Profit and Loss | B24: 0 | C24: 0 | D24: 0 | E24: 0 | F24: 0 | G24: 0 | H24: 0 | I24: 0 | J24: 0 | K24: 0 | L24: 0
A25: Held to maturity assets | B25: ='Bal Sheet Calcs'!B49-B17 -> 38733 | C25: ='Bal Sheet Calcs'!C49-C17 -> 35325 | D25: ='Bal Sheet Calcs'!D49-D17 -> 33380 | E25: ='Bal Sheet Calcs'!E49-E17 -> 33067 | F25: ='Bal Sheet Calcs'!F49-F17 -> 32968 | G25: ='Bal Sheet Calcs'!G49-G17 -> 28342 | H25: ='Bal Sheet Calcs'!H49-H17 -> 27621 | I25: ='Bal Sheet Calcs'!I49-I17 -> 26854 | J25: ='Bal Sheet Calcs'!J49-J17 -> 26146 | K25: ='Bal Sheet Calcs'!K49-K17 -> 25220 | L25: ='Bal Sheet Calcs'!L49-L17 -> 23553
A26: Available for sale financial assets | B26: 0 | C26: 0 | D26: 0 | E26: 0 | F26: 0 | G26: 0 | H26: 0 | I26: 0 | J26: 0 | K26: 0 | L26: 0
A27: Total | B27: =SUM(B24:B26) -> 38733 | C27: =SUM(C24:C26) -> 35325 | D27: 33380 | E27: 33067 | F27: 32968 | G27: 28342 | H27: 27621 | I27: 26854 | J27: 26146 | K27: 25220 | L27: 23553
A30: Note 6(b) Investments - Non current
A31: The following financial assets are held as investments:
A33: Financial assets at fair value through
A34: Profit and Loss | B34: 0 | C34: 0 | D34: 0 | E34: 0 | F34: 0 | G34: 0 | H34: 0 | I34: 0 | J34: 0 | K34: 0 | L34: 0
A35: Held to maturity assets | B35: ='Bal Sheet Calcs'!B50 -> 27288 | C35: ='Bal Sheet Calcs'!C50 -> 25016 | D35: ='Bal Sheet Calcs'!D50 -> 23720 | E35: ='Bal Sheet Calcs'!E50 -> 23512 | F35: ='Bal Sheet Calcs'!F50 -> 23445 | G35: ='Bal Sheet Calcs'!G50 -> 20361 | H35: ='Bal Sheet Calcs'!H50 -> 19881 | I35: ='Bal Sheet Calcs'!I50 -> 19370 | J35: ='Bal Sheet Calcs'!J50 -> 18897 | K35: ='Bal Sheet Calcs'!K50 -> 18280 | L35: ='Bal Sheet Calcs'!L50 -> 17169
A36: Available for sale financial assets | B36: 0 | C36: 0 | D36: 0 | E36: 0 | F36: 0 | G36: 0 | H36: 0 | I36: 0 | J36: 0 | K36: 0 | L36: 0
A37: Total | B37: =SUM(B34:B36) -> 27288 | C37: =SUM(C34:C36) -> 25016 | D37: 23720 | E37: 23512 | F37: 23445 | G37: 20361 | H37: 19881 | I37: 19370 | J37: 18897 | K37: 18280 | L37: 17169
A39: Total investments | B39: =B27+B37 -> 66021 | C39: =C27+C37 -> 60341 | D39: 57100 | E39: 56579 | F39: 56413 | G39: 48703 | H39: 47502 | I39: 46224 | J39: 45043 | K39: 43500 | L39: 40722
A42: Total cash, cash equivalents and investments | B42: =B17+B39 -> 68221 | C42: =C17+C39 -> 62541 | D42: 59300 | E42: 58779 | F42: 58613 | G42: 50903 | H42: 49702 | I42: 48424 | J42: 47243 | K42: 45700 | L42: 42922

Sheet Note 6(c) -
A1: =Calculations!A1 -> Maitland City Council
A2: =Calculations!A2 -> Long Term Financial Plan
A3: =Calculations!A3 -> For the period 2014/15 to 2023/24
A4: =Calculations!A4 -> 2014/15 Draft Budget
A5: =Calculations!A5 -> Option 2 - $25M Projects (Including $1.5M annual rent from 2015/16, 5 additional staff per year from 2015/16)
A6: =Calculations!A6 -> Year 1 to Year 7 - 7.25% Rate Increase (Adjustments to rates pie Yrs 1-7) (Additional farm adjustment) (Additional grants $13M & loans $38M)
A7: Note 6(c) Restricted cash, cash equivalents and investments - Current
C8: =Calculations!C$10 -> Year 1 | D8: =Calculations!D$10 -> Year 2 | E8: =Calculations!E$10 -> Year 3 | F8: =Calculations!F$10 -> Year 4 | G8: =Calculations!G$10 -> Year 5 | H8: =Calculations!H$10 -> Year 6 | I8: =Calculations!I$10 -> Year 7 | J8: =Calculations!J$10 -> Year 8 | K8: =Calculations!K$10 -> Year 9 | L8: =Calculations!L$10 -> Year 10
B9: ='Balance Sheet'!C$11 -> Estimate | C9: =Calculations!C$11 -> Adopted | D9: =Calculations!D$11 -> Estimate | E9: =Calculations!E$11 -> Estimate | F9: =Calculations!F$11 -> Estimate | G9: =Calculations!G$11 -> Estimate | H9: =Calculations!H$11 -> Estimate | I9: =Calculations!I$11 -> Estimate | J9: =Calculations!J$11 -> Estimate | K9: =Calculations!K$11 -> Estimate | L9: =Calculations!L$11 -> Estimate
B10: ='Balance Sheet'!C$12 -> 2013/14 | C10: =Calculations!C$12 -> 2014/15 | D10: =Calculations!D$12 -> 2015/16 | E10: =Calculations!E$12 -> 2016/17 | F10: =Calculations!F$12 -> 2017/18 | G10: =Calculations!G$12 -> 2018/19 | H10: =Calculations!H$12 -> 2019/20 | I10: =Calculations!I$12 -> 2020/21 | J10: =Calculations!J$12 -> 2021/22 | K10: =Calculations!K$12 -> 2022/23 | L10: =Calculations!L$12 -> 2023/24
B11: ($'000) | C11: ($'000) | D11: ($'000) | E11: ($'000) | F11: ($'000) | G11: ($'000) | H11: ($'000) | I11: ($'000) | J11: ($'000) | K11: ($'000) | L11: ($'000)
A14: Cash, cash equivalents and investments - Current
A15: External restrictions | B15: ='Bal Sheet Calcs'!B56 -> 7032 | C15: ='Bal Sheet Calcs'!C56 -> 6238 | D15: ='Bal Sheet Calcs'!D56 -> 6869 | E15: ='Bal Sheet Calcs'!E56 -> 6444 | F15: ='Bal Sheet Calcs'!F56 -> 6177 | G15: ='Bal Sheet Calcs'!G56 -> 9056 | H15: ='Bal Sheet Calcs'!H56 -> 9356 | I15: ='Bal Sheet Calcs'!I56 -> 9677 | J15: ='Bal Sheet Calcs'!J56 -> 9979 | K15: ='Bal Sheet Calcs'!K56 -> 10236 | L15: ='Bal Sheet Calcs'!L56 -> 10961
A16: Internal restrictions | B16: ='Bal Sheet Calcs'!B55 -> 8307 | C16: ='Bal Sheet Calcs'!C55 -> 12263 | D16: ='Bal Sheet Calcs'!D55 -> 10956 | E16: ='Bal Sheet Calcs'!E55 -> 11962 | F16: ='Bal Sheet Calcs'!F55 -> 13252 | G16: ='Bal Sheet Calcs'!G55 -> 6948 | H16: ='Bal Sheet Calcs'!H55 -> 7147 | I16: ='Bal Sheet Calcs'!I55 -> 7349 | J16: ='Bal Sheet Calcs'!J55 -> 7555 | K16: ='Bal Sheet Calcs'!K55 -> 7764 | L16: ='Bal Sheet Calcs'!L55 -> 7977
A17: Unrestricted | B17: ='Bal Sheet Calcs'!B54 -> 25594 | C17: ='Bal Sheet Calcs'!C54 -> 19024 | D17: ='Bal Sheet Calcs'!D54 -> 17755 | E17: ='Bal Sheet Calcs'!E54 -> 16861 | F17: ='Bal Sheet Calcs'!F54 -> 15739 | G17: ='Bal Sheet Calcs'!G54 -> 14538 | H17: ='Bal Sheet Calcs'!H54 -> 13318 | I17: ='Bal Sheet Calcs'!I54 -> 12028 | J17: ='Bal Sheet Calcs'!J54 -> 10812 | K17: ='Bal Sheet Calcs'!K54 -> 9420 | L17: ='Bal Sheet Calcs'!L54 -> 6815
A18: Total current | B18: =SUM(B15:B17) -> 40933 | C18: =SUM(C15:C17) -> 37525 | D18: 35580 | E18: 35267 | F18: 35168 | G18: 30542 | H18: 29821 | I18: 29054 | J18: 28346 | K18: 27420 | L18: 25753
A21: Cash, cash equivalents and investments - Non current
A22: External restrictions | B22: ='Bal Sheet Calcs'!B62 -> 27288 | C22: ='Bal Sheet Calcs'!C62 -> 25016 | D22: ='Bal Sheet Calcs'!D62 -> 23720 | E22: ='Bal Sheet Calcs'!E62 -> 23512 | F22: ='Bal Sheet Calcs'!F62 -> 23445 | G22: ='Bal Sheet Calcs'!G62 -> 20361 | H22: ='Bal Sheet Calcs'!H62 -> 19881 | I22: ='Bal Sheet Calcs'!I62 -> 19370 | J22: ='Bal Sheet Calcs'!J62 -> 18897 | K22: ='Bal Sheet Calcs'!K62 -> 18280 | L22: ='Bal Sheet Calcs'!L62 -> 17169
A23: Internal restrictions | B23: ='Bal Sheet Calcs'!B61 -> 0 | C23: ='Bal Sheet Calcs'!C61 -> 0 | D23: ='Bal Sheet Calcs'!D61 -> 0 | E23: ='Bal Sheet Calcs'!E61 -> 0 | F23: ='Bal Sheet Calcs'!F61 -> 0 | G23: ='Bal Sheet Calcs'!G61 -> 0 | H23: ='Bal Sheet Calcs'!H61 -> 0 | I23: ='Bal Sheet Calcs'!I61 -> 0 | J23: ='Bal Sheet Calcs'!J61 -> 0 | K23: ='Bal Sheet Calcs'!K61 -> 0 | L23: ='Bal Sheet Calcs'!L61 -> 0
A24: Unresricted | B24: ='Bal Sheet Calcs'!B60 -> 0 | C24: ='Bal Sheet Calcs'!C60 -> 0 | D24: ='Bal Sheet Calcs'!D60 -> 0 | E24: ='Bal Sheet Calcs'!E60 -> 0 | F24: ='Bal Sheet Calcs'!F60 -> 0 | G24: ='Bal Sheet Calcs'!G60 -> 0 | H24: ='Bal Sheet Calcs'!H60 -> 0 | I24: ='Bal Sheet Calcs'!I60 -> 0 | J24: ='Bal Sheet Calcs'!J60 -> 0 | K24: ='Bal Sheet Calcs'!K60 -> 0 | L24: ='Bal Sheet Calcs'!L60 -> 0
A25: Total non current | B25: =SUM(B22:B24) -> 27288 | C25: 25016 | D25: 23720 | E25: 23512 | F25: 23445 | G25: 20361 | H25: 19881 | I25: 19370 | J25: 18897 | K25: 18280 | L25: 17169
A28: Total cash, cash equivalents and investments | B28: =B18+B25 -> 68221 | C28: =C18+C25 -> 62541 | D28: 59300 | E28: 58779 | F28: 58613 | G28: 50903 | H28: 49702 | I28: 48424 | J28: 47243 | K28: 45700 | L28: 42922
B30: =IF(B28='Note 6(a) - Current'!B42,"","Check") ->  | C30: =IF(C28='Note 6(a) - Current'!C42,"","Check") ->  | D30: =IF(D28='Note 6(a) - Current'!D42,"","Check") ->  | E30: =IF(E28='Note 6(a) - Current'!E42,"","Check") ->  | F30: =IF(F28='Note 6(a) - Current'!F42,"","Check") ->  | G30: =IF(G28='Note 6(a) - Current'!G42,"","Check") ->  | H30: =IF(H28='Note 6(a) - Current'!H42,"","Check") ->  | I30: =IF(I28='Note 6(a) - Current'!I42,"","Check") ->  | J30: =IF(J28='Note 6(a) - Current'!J42,"","Check") ->  | K30: =IF(K28='Note 6(a) - Current'!K42,"","Check") ->  | L30: =IF(L28='Note 6(a) - Current'!L42,"","Check") -> 

Sheet Note 7 - Current
A1: =Calculations!A1 -> Maitland City Council
A2: =Calculations!A2 -> Long Term Financial Plan
A3: =Calculations!A3 -> For the period 2014/15 to 2023/24
A4: =Calculations!A4 -> 2014/15 Draft Budget
A5: =Calculations!A5 -> Option 2 - $25M Projects (Including $1.5M annual rent from 2015/16, 5 additional staff per year from 2015/16)
A6: =Calculations!A6 -> Year 1 to Year 7 - 7.25% Rate Increase (Adjustments to rates pie Yrs 1-7) (Additional farm adjustment) (Additional grants $13M & loans $38M)
A7: Note 7 Receivables - Current
C8: =Calculations!C$10 -> Year 1 | D8: =Calculations!D$10 -> Year 2 | E8: =Calculations!E$10 -> Year 3 | F8: =Calculations!F$10 -> Year 4 | G8: =Calculations!G$10 -> Year 5 | H8: =Calculations!H$10 -> Year 6 | I8: =Calculations!I$10 -> Year 7 | J8: =Calculations!J$10 -> Year 8 | K8: =Calculations!K$10 -> Year 9 | L8: =Calculations!L$10 -> Year 10
B9: ='Balance Sheet'!C$11 -> Estimate | C9: =Calculations!C$11 -> Adopted | D9: =Calculations!D$11 -> Estimate | E9: =Calculations!E$11 -> Estimate | F9: =Calculations!F$11 -> Estimate | G9: =Calculations!G$11 -> Estimate | H9: =Calculations!H$11 -> Estimate | I9: =Calculations!I$11 -> Estimate | J9: =Calculations!J$11 -> Estimate | K9: =Calculations!K$11 -> Estimate | L9: =Calculations!L$11 -> Estimate
B10: ='Balance Sheet'!C$12 -> 2013/14 | C10: =Calculations!C$12 -> 2014/15 | D10: =Calculations!D$12 -> 2015/16 | E10: =Calculations!E$12 -> 2016/17 | F10: =Calculations!F$12 -> 2017/18 | G10: =Calculations!G$12 -> 2018/19 | H10: =Calculations!H$12 -> 2019/20 | I10: =Calculations!I$12 -> 2020/21 | J10: =Calculations!J$12 -> 2021/22 | K10: =Calculations!K$12 -> 2022/23 | L10: =Calculations!L$12 -> 2023/24
B11: ($'000) | C11: ($'000) | D11: ($'000) | E11: ($'000) | F11: ($'000) | G11: ($'000) | H11: ($'000) | I11: ($'000) | J11: ($'000) | K11: ($'000) | L11: ($'000)
A13: Rates and annual charges | B13: ='Bal Sheet Calcs'!P39*Calculations!$B$32+1 -> 1488 | C13: ='Income Statement'!C16*Calculations!C$32 -> 1635 | D13: ='Income Statement'!D16*Calculations!D$32 -> 1771 | E13: ='Income Statement'!E16*Calculations!E$32 -> 1887 | F13: ='Income Statement'!F16*Calculations!F$32 -> 2031 | G13: ='Income Statement'!G16*Calculations!G$32 -> 2189 | H13: ='Income Statement'!H16*Calculations!H$32 -> 2301 | I13: ='Income Statement'!I16*Calculations!I$32 -> 2473 | J13: ='Income Statement'!J16*Calculations!J$32 -> 2577 | K13: ='Income Statement'!K16*Calculations!K$32 -> 2684 | L13: ='Income Statement'!L16*Calculations!L$32 -> 2793
A14: User charges and fees | B14: ='Bal Sheet Calcs'!P40*Calculations!$B$32 -> 237 | C14: ='Income Statement'!C17*Calculations!C$32 -> 192 | D14: ='Income Statement'!D17*Calculations!D$32 -> 208 | E14: ='Income Statement'!E17*Calculations!E$32 -> 220 | F14: ='Income Statement'!F17*Calculations!F$32 -> 234 | G14: ='Income Statement'!G17*Calculations!G$32 -> 248 | H14: ='Income Statement'!H17*Calculations!H$32 -> 263 | I14: ='Income Statement'!I17*Calculations!I$32 -> 279 | J14: ='Income Statement'!J17*Calculations!J$32 -> 296 | K14: ='Income Statement'!K17*Calculations!K$32 -> 314 | L14: ='Income Statement'!L17*Calculations!L$32 -> 333
A15: Government grants and subsidies | B15: =('Bal Sheet Calcs'!P43+'Bal Sheet Calcs'!P44)*Calculations!$B$32 -> 889 | C15: =('Income Statement'!C20+'Income Statement'!C21)*Calculations!C$32 -> 547 | D15: =('Income Statement'!D20+'Income Statement'!D21)*Calculations!D$32 -> 750 | E15: =('Income Statement'!E20+'Income Statement'!E21)*Calculations!E$32 -> 639 | F15: =('Income Statement'!F20+'Income Statement'!F21)*Calculations!F$32 -> 648 | G15: =('Income Statement'!G20+'Income Statement'!G21)*Calculations!G$32 -> 658 | H15: =('Income Statement'!H20+'Income Statement'!H21)*Calculations!H$32 -> 668 | I15: =('Income Statement'!I20+'Income Statement'!I21)*Calculations!I$32 -> 678 | J15: =('Income Statement'!J20+'Income Statement'!J21)*Calculations!J$32 -> 689 | K15: =('Income Statement'!K20+'Income Statement'!K21)*Calculations!K$32 -> 700 | L15: =('Income Statement'!L20+'Income Statement'!L21)*Calculations!L$32 -> 711
A16: Interest and extra charges | B16: ='Bal Sheet Calcs'!P41*Calculations!$B$32 -> 73 | C16: ='Income Statement'!C18*Calculations!C$32 -> 83 | D16: ='Income Statement'!D18*Calculations!D$32 -> 102 | E16: ='Income Statement'!E18*Calculations!E$32 -> 102 | F16: ='Income Statement'!F18*Calculations!F$32 -> 109 | G16: ='Income Statement'!G18*Calculations!G$32 -> 114 | H16: ='Income Statement'!H18*Calculations!H$32 -> 103 | I16: ='Income Statement'!I18*Calculations!I$32 -> 103 | J16: ='Income Statement'!J18*Calculations!J$32 -> 103 | K16: ='Income Statement'!K18*Calculations!K$32 -> 102 | L16: ='Income Statement'!L18*Calculations!L$32 -> 100
A17: Other | B17: ='Bal Sheet Calcs'!P42*Calculations!$B$32 -> 75 | C17: ='Income Statement'!C19*Calculations!C$32 -> 63 | D17: ='Income Statement'!D19*Calculations!D$32 -> 65 | E17: ='Income Statement'!E19*Calculations!E$32 -> 67 | F17: ='Income Statement'!F19*Calculations!F$32 -> 69 | G17: ='Income Statement'!G19*Calculations!G$32 -> 71 | H17: ='Income Statement'!H19*Calculations!H$32 -> 73 | I17: ='Income Statement'!I19*Calculations!I$32 -> 75 | J17: ='Income Statement'!J19*Calculations!J$32 -> 77 | K17: ='Income Statement'!K19*Calculations!K$32 -> 80 | L17: ='Income Statement'!L19*Calculations!L$32 -> 82
A19: Total | B19: =SUM(B13:B18) -> 2762 | C19: =SUM(C13:C18) -> 2520 | D19: =SUM(D13:D18) -> 2896 | E19: 2915 | F19: 3091 | G19: 3280 | H19: 3408 | I19: 3608 | J19: 3742 | K19: 3880 | L19: 4019
A20: Less: Provision for impairment
A21: - Rates and annual charges | B21: 0 | C21: 0 | D21: 0 | E21: 0 | F21: 0 | G21: 0 | H21: 0 | I21: 0 | J21: 0 | K21: 0 | L21: 0
A22: - User charges and fees | B22: 0 | C22: 0 | D22: 0 | E22: 0 | F22: 0 | G22: 0 | H22: 0 | I22: 0 | J22: 0 | K22: 0 | L22: 0
A23: - Other | B23: 0 | C23: 0 | D23: 0 | E23: 0 | F23: 0 | G23: 0 | H23: 0 | I23: 0 | J23: 0 | K23: 0 | L23: 0
B25: =B19-SUM(B21:B23) -> 2762 | C25: =C19-SUM(C21:C23) -> 2520 | D25: =D19-SUM(D21:D23) -> 2896 | E25: 2915 | F25: 3091 | G25: 3280 | H25: 3408 | I25: 3608 | J25: 3742 | K25: 3880 | L25: 4019
A28: Restricted receivables - Current
A30: Externally restricted receivables
A32: Domestic waste management | B32: 74 | C32: =B32*(1+Calculations!C$16) -> 76 | D32: =C32*(1+Calculations!D$16) -> 78 | E32: =D32*(1+Calculations!E$16) -> 80 | F32: =E32*(1+Calculations!F$16) -> 82 | G32: =F32*(1+Calculations!G$16) -> 84 | H32: =G32*(1+Calculations!H$16) -> 87 | I32: =H32*(1+Calculations!I$16) -> 90 | J32: =I32*(1+Calculations!J$16) -> 93 | K32: =J32*(1+Calculations!K$16) -> 96 | L32: =K32*(1+Calculations!L$16) -> 99
A33: RTA contributions and donations | B33: 5 | C33: =B33*(1+Calculations!C$16) -> 5 | D33: =C33*(1+Calculations!D$16) -> 5 | E33: =D33*(1+Calculations!E$16) -> 5 | F33: =E33*(1+Calculations!F$16) -> 5 | G33: =F33*(1+Calculations!G$16) -> 5 | H33: =G33*(1+Calculations!H$16) -> 5 | I33: =H33*(1+Calculations!I$16) -> 5 | J33: =I33*(1+Calculations!J$16) -> 5 | K33: =J33*(1+Calculations!K$16) -> 5 | L33: =K33*(1+Calculations!L$16) -> 5
A34: RTA user charges and fees | B34: 1 | C34: =B34*(1+Calculations!C$16) -> 1 | D34: =C34*(1+Calculations!D$16) -> 1 | E34: =D34*(1+Calculations!E$16) -> 1 | F34: =E34*(1+Calculations!F$16) -> 1 | G34: =F34*(1+Calculations!G$16) -> 1 | H34: =G34*(1+Calculations!H$16) -> 1 | I34: =H34*(1+Calculations!I$16) -> 1 | J34: =I34*(1+Calculations!J$16) -> 1 | K34: =J34*(1+Calculations!K$16) -> 1 | L34: =K34*(1+Calculations!L$16) -> 1
A35: Total externally restricted receivables | B35: =SUM(B32:B34) -> 80 | C35: =SUM(C32:C34) -> 82 | D35: =SUM(D32:D34) -> 84 | E35: 86 | F35: 88 | G35: 90 | H35: 93 | I35: 96 | J35: 99 | K35: 102 | L35: 105
A36: Unrestricted receivables | B36: =B25-B35 -> 2682 | C36: =C25-C35 -> 2438 | D36: =D25-D35 -> 2812 | E36: 2829 | F36: 3003 | G36: 3190 | H36: 3315 | I36: 3512 | J36: 3643 | K36: 3778 | L36: 3914
A38: Total receivables | B38: =SUM(B35:B37) -> 2762 | C38: =SUM(C35:C37) -> 2520 | D38: =SUM(D35:D37) -> 2896 | E38: 2915 | F38: 3091 | G38: 3280 | H38: 3408 | I38: 3608 | J38: 3742 | K38: 3880 | L38: 4019

Sheet Note 7 - Non Current
A1: =Calculations!A1 -> Maitland City Council
A2: =Calculations!A2 -> Long Term Financial Plan
A3: =Calculations!A3 -> For the period 2014/15 to 2023/24
A4: =Calculations!A4 -> 2014/15 Draft Budget
A5: =Calculations!A5 -> Option 2 - $25M Projects (Including $1.5M annual rent from 2015/16, 5 additional staff per year from 2015/16)
A6: =Calculations!A6 -> Year 1 to Year 7 - 7.25% Rate Increase (Adjustments to rates pie Yrs 1-7) (Additional farm adjustment) (Additional grants $13M & loans $38M)
A7: Note 7 Receivables - Non current
C8: =Calculations!C$10 -> Year 1 | D8: =Calculations!D$10 -> Year 2 | E8: =Calculations!E$10 -> Year 3 | F8: =Calculations!F$10 -> Year 4 | G8: =Calculations!G$10 -> Year 5 | H8: =Calculations!H$10 -> Year 6 | I8: =Calculations!I$10 -> Year 7 | J8: =Calculations!J$10 -> Year 8 | K8: =Calculations!K$10 -> Year 9 | L8: =Calculations!L$10 -> Year 10
B9: ='Balance Sheet'!C11 -> Estimate | C9: =Calculations!C$11 -> Adopted | D9: =Calculations!D$11 -> Estimate | E9: =Calculations!E$11 -> Estimate | F9: =Calculations!F$11 -> Estimate | G9: =Calculations!G$11 -> Estimate | H9: =Calculations!H$11 -> Estimate | I9: =Calculations!I$11 -> Estimate | J9: =Calculations!J$11 -> Estimate | K9: =Calculations!K$11 -> Estimate | L9: =Calculations!L$11 -> Estimate
B10: ='Balance Sheet'!C12 -> 2013/14 | C10: =Calculations!C$12 -> 2014/15 | D10: =Calculations!D$12 -> 2015/16 | E10: =Calculations!E$12 -> 2016/17 | F10: =Calculations!F$12 -> 2017/18 | G10: =Calculations!G$12 -> 2018/19 | H10: =Calculations!H$12 -> 2019/20 | I10: =Calculations!I$12 -> 2020/21 | J10: =Calculations!J$12 -> 2021/22 | K10: =Calculations!K$12 -> 2022/23 | L10: =Calculations!L$12 -> 2023/24
B11: ($'000) | C11: ($'000) | D11: ($'000) | E11: ($'000) | F11: ($'000) | G11: ($'000) | H11: ($'000) | I11: ($'000) | J11: ($'000) | K11: ($'000) | L11: ($'000)
A13: Rates and annual charges | B13: 0 | C13: 0 | D13: 0 | E13: 0 | F13: 0 | G13: 0 | H13: 0 | I13: 0 | J13: 0 | K13: 0 | L13: 0
A14: User charges and fees | B14: 0 | C14: 0 | D14: 0 | E14: 0 | F14: 0 | G14: 0 | H14: 0 | I14: 0 | J14: 0 | K14: 0 | L14: 0
A15: Government grants and subsidies | B15: 0 | C15: 0 | D15: 0 | E15: 0 | F15: 0 | G15: 0 | H15: 0 | I15: 0 | J15: 0 | K15: 0 | L15: 0
A16: Interest and extra charges | B16: 0 | C16: 0 | D16: 0 | E16: 0 | F16: 0 | G16: 0 | H16: 0 | I16: 0 | J16: 0 | K16: 0 | L16: 0
A17: Other | B17: 0 | C17: 0 | D17: 0 | E17: 0 | F17: 0 | G17: 0 | H17: 0 | I17: 0 | J17: 0 | K17: 0 | L17: 0
A19: Total | B19: =SUM(B13:B18) -> 0 | C19: 0 | D19: 0 | E19: 0 | F19: 0 | G19: 0 | H19: 0 | I19: 0 | J19: 0 | K19: 0 | L19: 0
A20: Less: Provision for impairment
A21: - Rates and annual charges | B21: 0 | C21: 0 | D21: 0 | E21: 0 | F21: 0 | G21: 0 | H21: 0 | I21: 0 | J21: 0 | K21: 0 | L21: 0
A22: - User charges and fees | B22: 0 | C22: 0 | D22: 0 | E22: 0 | F22: 0 | G22: 0 | H22: 0 | I22: 0 | J22: 0 | K22: 0 | L22: 0
A23: - Other | B23: 0 | C23: 0 | D23: 0 | E23: 0 | F23: 0 | G23: 0 | H23: 0 | I23: 0 | J23: 0 | K23: 0 | L23: 0
B25: =B19-SUM(B21:B23) -> 0 | C25: 0 | D25: 0 | E25: 0 | F25: 0 | G25: 0 | H25: 0 | I25: 0 | J25: 0 | K25: 0 | L25: 0
A28: Restricted receivables - Non current
A30: Externally restricted receivables
A32: Domestic waste management | B32: 0 | C32: =B32*(1+Calculations!C$16) -> 0 | D32: =C32*(1+Calculations!D$16) -> 0 | E32: =D32*(1+Calculations!E$16) -> 0 | F32: =E32*(1+Calculations!F$16) -> 0 | G32: =F32*(1+Calculations!G$16) -> 0 | H32: =G32*(1+Calculations!H$16) -> 0 | I32: =H32*(1+Calculations!I$16) -> 0 | J32: =I32*(1+Calculations!J$16) -> 0 | K32: =J32*(1+Calculations!K$16) -> 0 | L32: =K32*(1+Calculations!L$16) -> 0
A33: RTA contributions and donations | B33: 0 | C33: =B33*(1+Calculations!C$16) -> 0 | D33: =C33*(1+Calculations!D$16) -> 0 | E33: =D33*(1+Calculations!E$16) -> 0 | F33: =E33*(1+Calculations!F$16) -> 0 | G33: =F33*(1+Calculations!G$16) -> 0 | H33: =G33*(1+Calculations!H$16) -> 0 | I33: =H33*(1+Calculations!I$16) -> 0 | J33: =I33*(1+Calculations!J$16) -> 0 | K33: =J33*(1+Calculations!K$16) -> 0 | L33: =K33*(1+Calculations!L$16) -> 0
A34: RTA user charges and fees | B34: 0 | C34: =B34*(1+Calculations!C$16) -> 0 | D34: =C34*(1+Calculations!D$16) -> 0 | E34: =D34*(1+Calculations!E$16) -> 0 | F34: =E34*(1+Calculations!F$16) -> 0 | G34: =F34*(1+Calculations!G$16) -> 0 | H34: =G34*(1+Calculations!H$16) -> 0 | I34: =H34*(1+Calculations!I$16) -> 0 | J34: =I34*(1+Calculations!J$16) -> 0 | K34: =J34*(1+Calculations!K$16) -> 0 | L34: =K34*(1+Calculations!L$16) -> 0
A35: Total externally restricted receivables | B35: =SUM(B32:B34) -> 0 | C35: =SUM(C32:C34) -> 0 | D35: =SUM(D32:D34) -> 0 | E35: 0 | F35: 0 | G35: 0 | H35: 0 | I35: 0 | J35: 0 | K35: 0 | L35: 0
A36: Unrestricted receivables | B36: =B25-B35 -> 0 | C36: =C25-C35 -> 0 | D36: =D25-D35 -> 0 | E36: 0 | F36: 0 | G36: 0 | H36: 0 | I36: 0 | J36: 0 | K36: 0 | L36: 0
A38: Total receivables | B38: =SUM(B35:B37) -> 0 | C38: =SUM(C35:C37) -> 0 | D38: =SUM(D35:D37) -> 0 | E38: 0 | F38: 0 | G38: 0 | H38: 0 | I38: 0 | J38: 0 | K38: 0 | L38: 0

Sheet Note 8 - Current
A1: =Calculations!A1 -> Maitland City Council
A2: =Calculations!A2 -> Long Term Financial Plan
A3: =Calculations!A3 -> For the period 2014/15 to 2023/24
A4: =Calculations!A4 -> 2014/15 Draft Budget
A5: =Calculations!A5 -> Option 2 - $25M Projects (Including $1.5M annual rent from 2015/16, 5 additional staff per year from 2015/16)
A6: =Calculations!A6 -> Year 1 to Year 7 - 7.25% Rate Increase (Adjustments to rates pie Yrs 1-7) (Additional farm adjustment) (Additional grants $13M & loans $38M)
A7: Note 8 Inventories and other assets - Current
C8: =Calculations!C$10 -> Year 1 | D8: =Calculations!D$10 -> Year 2 | E8: =Calculations!E$10 -> Year 3 | F8: =Calculations!F$10 -> Year 4 | G8: =Calculations!G$10 -> Year 5 | H8: =Calculations!H$10 -> Year 6 | I8: =Calculations!I$10 -> Year 7 | J8: =Calculations!J$10 -> Year 8 | K8: =Calculations!K$10 -> Year 9 | L8: =Calculations!L$10 -> Year 10
B9: ='Balance Sheet'!C11 -> Estimate | C9: =Calculations!C$11 -> Adopted | D9: =Calculations!D$11 -> Estimate | E9: =Calculations!E$11 -> Estimate | F9: =Calculations!F$11 -> Estimate | G9: =Calculations!G$11 -> Estimate | H9: =Calculations!H$11 -> Estimate | I9: =Calculations!I$11 -> Estimate | J9: =Calculations!J$11 -> Estimate | K9: =Calculations!K$11 -> Estimate | L9: =Calculations!L$11 -> Estimate
B10: ='Balance Sheet'!C12 -> 2013/14 | C10: =Calculations!C$12 -> 2014/15 | D10: =Calculations!D$12 -> 2015/16 | E10: =Calculations!E$12 -> 2016/17 | F10: =Calculations!F$12 -> 2017/18 | G10: =Calculations!G$12 -> 2018/19 | H10: =Calculations!H$12 -> 2019/20 | I10: =Calculations!I$12 -> 2020/21 | J10: =Calculations!J$12 -> 2021/22 | K10: =Calculations!K$12 -> 2022/23 | L10: =Calculations!L$12 -> 2023/24
B11: ($'000) | C11: ($'000) | D11: ($'000) | E11: ($'000) | F11: ($'000) | G11: ($'000) | H11: ($'000) | I11: ($'000) | J11: ($'000) | K11: ($'000) | L11: ($'000)
A13: Inventories
A14: Stores and materials | B14: ='Bal Sheet Calcs'!B120 -> 441 | C14: =B14*(1+Calculations!C$16) -> 454 | D14: =C14*(1+Calculations!D$16) -> 468 | E14: =D14*(1+Calculations!E$16) -> 482 | F14: =E14*(1+Calculations!F$16) -> 496 | G14: =F14*(1+Calculations!G$16) -> 511 | H14: =G14*(1+Calculations!H$16) -> 526 | I14: =H14*(1+Calculations!I$16) -> 542 | J14: =I14*(1+Calculations!J$16) -> 558 | K14: =J14*(1+Calculations!K$16) -> 575 | L14: =K14*(1+Calculations!L$16) -> 592
A16: Total inventories | B16: =SUM(B13:B15) -> 441 | C16: =SUM(C13:C15) -> 454 | D16: =SUM(D13:D15) -> 468 | E16: 482 | F16: 496 | G16: 511 | H16: 526 | I16: 542 | J16: 558 | K16: 575 | L16: 592
A18: Inventories not expected to be realised
A19: within the next 12 months | B19: 0 | C19: 0 | D19: 0 | E19: 0 | F19: 0 | G19: 0 | H19: 0 | I19: 0 | J19: 0 | K19: 0 | L19: 0
A22: Other assets
A23: Prepayments | B23: ='Bal Sheet Calcs'!B125 -> 1 | C23: 0 | D23: 0 | E23: 0 | F23: 0 | G23: 0 | H23: 0 | I23: 0 | J23: 0 | K23: 0 | L23: 0
A25: Total other assets | B25: =SUM(B23:B24) -> 1 | C25: =SUM(C23:C24) -> 0 | D25: =SUM(D23:D24) -> 0 | E25: 0 | F25: 0 | G25: 0 | H25: 0 | I25: 0 | J25: 0 | K25: 0 | L25: 0
A28: Externally restricted inventories and
A29: other assets - Current
A31: Total externally restricted inventories
A32: and other assets | B32: 0 | C32: 0 | D32: 0 | E32: 0 | F32: 0 | G32: 0 | H32: 0 | I32: 0 | J32: 0 | K32: 0 | L32: 0
A34: Unrestricted inventories and other
A35: assets | B35: =B16+B25 -> 442 | C35: =C16+C25 -> 454 | D35: =D16+D25 -> 468 | E35: 482 | F35: 496 | G35: 511 | H35: 526 | I35: 542 | J35: 558 | K35: 575 | L35: 592
A37: Total inventories and other assets | B37: =B32+B35 -> 442 | C37: =C32+C35 -> 454 | D37: =D32+D35 -> 468 | E37: 482 | F37: 496 | G37: 511 | H37: 526 | I37: 542 | J37: 558 | K37: 575 | L37: 592
A38: Total receivables

Sheet Note 8 - Non Current
A1: =Calculations!A1 -> Maitland City Council
A2: =Calculations!A2 -> Long Term Financial Plan
A3: =Calculations!A3 -> For the period 2014/15 to 2023/24
A4: =Calculations!A4 -> 2014/15 Draft Budget
A5: =Calculations!A5 -> Option 2 - $25M Projects (Including $1.5M annual rent from 2015/16, 5 additional staff per year from 2015/16)
A6: =Calculations!A6 -> Year 1 to Year 7 - 7.25% Rate Increase (Adjustments to rates pie Yrs 1-7) (Additional farm adjustment) (Additional grants $13M & loans $38M)
A7: Note 8 Inventories and other assets - Non current
C8: =Calculations!C$10 -> Year 1 | D8: =Calculations!D$10 -> Year 2 | E8: =Calculations!E$10 -> Year 3 | F8: =Calculations!F$10 -> Year 4 | G8: =Calculations!G$10 -> Year 5 | H8: =Calculations!H$10 -> Year 6 | I8: =Calculations!I$10 -> Year 7 | J8: =Calculations!J$10 -> Year 8 | K8: =Calculations!K$10 -> Year 9 | L8: =Calculations!L$10 -> Year 10
B9: ='Balance Sheet'!C11 -> Estimate | C9: =Calculations!C$11 -> Adopted | D9: =Calculations!D$11 -> Estimate | E9: =Calculations!E$11 -> Estimate | F9: =Calculations!F$11 -> Estimate | G9: =Calculations!G$11 -> Estimate | H9: =Calculations!H$11 -> Estimate | I9: =Calculations!I$11 -> Estimate | J9: =Calculations!J$11 -> Estimate | K9: =Calculations!K$11 -> Estimate | L9: =Calculations!L$11 -> Estimate
B10: ='Balance Sheet'!C12 -> 2013/14 | C10: =Calculations!C$12 -> 2014/15 | D10: =Calculations!D$12 -> 2015/16 | E10: =Calculations!E$12 -> 2016/17 | F10: =Calculations!F$12 -> 2017/18 | G10: =Calculations!G$12 -> 2018/19 | H10: =Calculations!H$12 -> 2019/20 | I10: =Calculations!I$12 -> 2020/21 | J10: =Calculations!J$12 -> 2021/22 | K10: =Calculations!K$12 -> 2022/23 | L10: =Calculations!L$12 -> 2023/24
B11: ($'000) | C11: ($'000) | D11: ($'000) | E11: ($'000) | F11: ($'000) | G11: ($'000) | H11: ($'000) | I11: ($'000) | J11: ($'000) | K11: ($'000) | L11: ($'000)
A13: Inventories
A14: Stores and materials | B14: 0 | C14: =B14*(1+Calculations!C$16) -> 0 | D14: =C14*(1+Calculations!D$16) -> 0 | E14: =D14*(1+Calculations!E$16) -> 0 | F14: =E14*(1+Calculations!F$16) -> 0 | G14: =F14*(1+Calculations!G$16) -> 0 | H14: =G14*(1+Calculations!H$16) -> 0 | I14: =H14*(1+Calculations!I$16) -> 0 | J14: =I14*(1+Calculations!J$16) -> 0 | K14: =J14*(1+Calculations!K$16) -> 0 | L14: =K14*(1+Calculations!L$16) -> 0
A16: Total inventories | B16: =SUM(B13:B15) -> 0 | C16: 0 | D16: 0 | E16: 0 | F16: 0 | G16: 0 | H16: 0 | I16: 0 | J16: 0 | K16: 0 | L16: 0
A18: Inventories not expected to be realised
A19: within the next 12 months | B19: 0 | C19: 0 | D19: 0 | E19: 0 | F19: 0 | G19: 0 | H19: 0 | I19: 0 | J19: 0 | K19: 0 | L19: 0
A22: Other assets
A23: Prepayments | B23: 0 | C23: 0 | D23: 0 | E23: 0 | F23: 0 | G23: 0 | H23: 0 | I23: 0 | J23: 0 | K23: 0 | L23: 0
A25: Total other assets | B25: =SUM(B23:B24) -> 0 | C25: 0 | D25: 0 | E25: 0 | F25: 0 | G25: 0 | H25: 0 | I25: 0 | J25: 0 | K25: 0 | L25: 0
A28: Externally restricted inventories and
A29: other assets - Non current
A31: Total externally restricted inventories
A32: and other assets | B32: 0 | C32: 0 | D32: 0 | E32: 0 | F32: 0 | G32: 0 | H32: 0 | I32: 0 | J32: 0 | K32: 0 | L32: 0
A34: Unrestricted inventories and other
A35: assets | B35: =B16+B25 -> 0 | C35: 0 | D35: 0 | E35: 0 | F35: 0 | G35: 0 | H35: 0 | I35: 0 | J35: 0 | K35: 0 | L35: 0
A37: Total inventories and other assets | B37: =B32+B35 -> 0 | C37: 0 | D37: 0 | E37: 0 | F37: 0 | G37: 0 | H37: 0 | I37: 0 | J37: 0 | K37: 0 | L37: 0
A38: Total receivables

Sheet Note 9
A1: =Calculations!A1 -> Maitland City Council
A2: =Calculations!A2 -> Long Term Financial Plan
A3: =Calculations!A3 -> For the period 2014/15 to 2023/24
A4: =Calculations!A4 -> 2014/15 Draft Budget
A5: =Calculations!A5 -> Option 2 - $25M Projects (Including $1.5M annual rent from 2015/16, 5 additional staff per year from 2015/16)
A6: =Calculations!A6 -> Year 1 to Year 7 - 7.25% Rate Increase (Adjustments to rates pie Yrs 1-7) (Additional farm adjustment) (Additional grants $13M & loans $38M)
A7: Note 9 Infrastructure, property, plant and equipment
D10: ="As at 30 June "&TEXT('Input Sheet'!B15,"###") -> As at 30 June 2014 | H10: ="Movements during "&Calculations!C12 -> Movements during 2014/15 | M10: ="As at 30 June "&TEXT('Input Sheet'!C15,"###") -> As at 30 June 2015
D11: Cost/ | I11: WDV | L11: Revaluation | M11: Cost/
D12: deemed | E12: Fair | F12: Accum | I12: of | K12: Transfers/ | L12: increments/ | M12: deemed | N12: Fair | O12: Accum
B13: BY ASSET TYPE | D13: cost | E13: value | F13: Depn | G13: WDV | H13: Addtions | I13: disposals | J13: Depn | K13: adjustments | L13: decrements | M13: cost | N13: value | O13: Depn | P13: WDV | R13: Check
B15: Plant & equipment | D15: 0 | E15: =14713+1000+414 -> 16127 | F15: =8002+2100 -> 10102 | G15: =D15+E15-F15 -> 6025 | H15: ='Capital Expenditure - Total'!$D$153 -> 1461 | I15: 0 | J15: ='Note 4(d)'!B$19 -> 2490 | K15: 0 | L15: 0 | M15: =D15 -> 0 | N15: =E15+H15-I15 -> 17588 | O15: =F15+J15 -> 12592 | P15: =SUM(M15:N15)-O15 -> 4996 | R15: =SUM(G15:H15)-SUM(I15:K15)+SUM(L15:L15) -> 4996
B16: Office equipment | D16: =2530+250 -> 2780 | E16: 0 | F16: =2141+150 -> 2291 | G16: =D16+E16-F16 -> 489 | H16: ='Capital Expenditure - Total'!$D$154 -> 538 | I16: 0 | J16: ='Note 4(d)'!B$21 -> 150 | K16: 0 | L16: 0 | M16: =D16+H16-I16 -> 3318 | N16: 0 | O16: =F16+J16 -> 2441 | P16: =SUM(M16:N16)-O16 -> 877 | R16: =SUM(G16:H16)-SUM(I16:K16)+SUM(L16:L16) -> 877
B17: Furniture and fittings | D17: =1163+35 -> 1198 | E17: 0 | F17: =1004+60 -> 1064 | G17: 134 | H17: ='Capital Expenditure - Total'!$D$155 -> 29 | I17: 0 | J17: ='Note 4(d)'!B$20 -> 60 | K17: 0 | L17: 0 | M17: =D17+H17-I17 -> 1227 | N17: 0 | O17: 1124 | P17: =SUM(M17:N17)-O17 -> 103 | R17: =SUM(G17:H17)-SUM(I17:K17)+SUM(L17:L17) -> 103
B18: Land
B19: - Operational Land | D19: 0 | E19: 70798 | F19: 0 | G19: 70798 | H19: 0 | I19: 0 | J19: 0 | K19: 0 | L19: 0 | M19: =D19 -> 0 | N19: =E19+H19-I19 -> 70798 | O19: 0 | P19: =SUM(M19:N19)-O19 -> 70798 | R19: =SUM(G19:H19)-SUM(I19:K19)+SUM(L19:L19) -> 70798
B20: - Community Land | D20: 0 | E20: 78093 | F20: 0 | G20: 78093 | H20: 0 | I20: 0 | J20: 0 | K20: 0 | L20: 0 | M20: =D20 -> 0 | N20: =E20+H20-I20 -> 78093 | O20: 0 | P20: =SUM(M20:N20)-O20 -> 78093 | R20: =SUM(G20:H20)-SUM(I20:K20)+SUM(L20:L20) -> 78093
B21: Buildings
B22: - Non specialised | D22: 0 | E22: =62941+697 -> 63638 | F22: =29595+640 -> 30235 | G22: 33403 | H22: ='Capital Expenditure - Total'!$D$156 -> 2247 | I22: 0 | J22: ='Note 4(d)'!B$17 -> 650 | K22: 0 | L22: 0 | M22: =D22 -> 0 | N22: =E22+H22-I22 -> 65885 | O22: 30885 | P22: =SUM(M22:N22)-O22 -> 35000 | R22: =SUM(G22:H22)-SUM(I22:K22)+SUM(L22:L22) -> 35000
B23: - Specialised | D23: 0 | E23: 53683 | F23: =32040+710 -> 32750 | G23: 20933 | H23: 0 | I23: 0 | J23: ='Note 4(d)'!B$18 -> 710 | K23: 0 | L23: 0 | M23: =D23 -> 0 | N23: =E23+H23-I23 -> 53683 | O23: 33460 | P23: =SUM(M23:N23)-O23 -> 20223 | R23: =SUM(G23:H23)-SUM(I23:K23)+SUM(L23:L23) -> 20223
B24: Park equip & community improvements | D24: 0 | E24: =43063+8403 -> 51466 | F24: =23348+1970 -> 25318 | G24: 26148 | H24: ='Capital Expenditure - Total'!$D$157 -> 8573 | I24: 0 | J24: ='Note 4(d)'!B$25 -> 2040 | K24: 0 | L24: 0 | M24: =D24 -> 0 | N24: =E24+H24-I24 -> 60039 | O24: 27358 | P24: =SUM(M24:N24)-O24 -> 32681 | R24: =SUM(G24:H24)-SUM(I24:K24)+SUM(L24:L24) -> 32681
B25: Infrastructure
B26: - Roads, bridges and footpaths | D26: 0 | E26: =566203+1143+32122+170-2010+135 -> 597763 | F26: =145145+7400 -> 152545 | G26: 445218 | H26: ='Capital Expenditure - Total'!$D$158+1 -> 17708 | I26: 0 | J26: ='Note 4(d)'!B$23 -> 8600 | K26: 0 | L26: 0 | M26: 0 | N26: =E26+H26-I26 -> 615471 | O26: 161145 | P26: =SUM(M26:N26)-O26 -> 454326 | R26: =SUM(G26:H26)-SUM(I26:K26)+SUM(L26:L26) -> 454326
B27: - Storm water drainage | D27: 0 | E27: =144630+960 -> 145590 | F27: =17526+600 -> 18126 | G27: 127464 | H27: ='Capital Expenditure - Total'!$D$159 -> 960 | I27: 0 | J27: ='Note 4(d)'!B$24 -> 630 | K27: 0 | L27: 0 | M27: 0 | N27: =E27+H27-I27 -> 146550 | O27: 18756 | P27: =SUM(M27:N27)-O27 -> 127794 | R27: =SUM(G27:H27)-SUM(I27:K27)+SUM(L27:L27) -> 127794
B28: Other assets
B29: - Library books | D29: =2455+255 -> 2710 | E29: 0 | F29: =1667+190 -> 1857 | G29: 853 | H29: ='Capital Expenditure - Total'!$D$160 -> 261 | I29: 0 | J29: ='Note 4(d)'!B$28 -> 205 | K29: 0 | L29: 0 | M29: =D29+H29-I29 -> 2971 | N29: 0 | O29: 2062 | P29: =SUM(M29:N29)-O29 -> 909 | R29: =SUM(G29:H29)-SUM(I29:K29)+SUM(L29:L29) -> 909
B30: - Art Works | D30: 0 | E30: =5476+38 -> 5514 | F30: 0 | G30: 5514 | H30: ='Capital Expenditure - Total'!$D$161 -> 38 | I30: 0 | J30: 0 | K30: 0 | L30: 0 | M30: =D30 -> 0 | N30: =E30+H30-I30 -> 5552 | O30: 0 | P30: =SUM(M30:N30)-O30 -> 5552 | R30: =SUM(G30:H30)-SUM(I30:K30)+SUM(L30:L30) -> 5552
B31: - Bushfire equipment | D31: 2895 | E31: 0 | F31: =1928+120 -> 2048 | G31: 847 | H31: ='Capital Expenditure - Total'!$D$162 -> 0 | I31: 0 | J31: ='Note 4(d)'!B$29 -> 120 | K31: 0 | L31: 0 | M31: =D31+H31-I31 -> 2895 | N31: 0 | O31: 2168 | P31: =SUM(M31:N31)-O31 -> 727 | R31: =SUM(G31:H31)-SUM(I31:K31)+SUM(L31:L31) -> 727
B32: - Musical instruments | D32: 86 | E32: 0 | F32: =40+8 -> 48 | G32: 38 | H32: 0 | I32: 0 | J32: ='Note 4(d)'!B$30 -> 8 | K32: 0 | L32: 0 | M32: =D32+H32-I32 -> 86 | N32: 0 | O32: 56 | P32: =SUM(M32:N32)-O32 -> 30 | R32: =SUM(G32:H32)-SUM(I32:K32)+SUM(L32:L32) -> 30
B33: Tip asset | D33: 4733 | E33: 0 | F33: =3191+257 -> 3448 | G33: 1285 | H33: 0 | I33: 0 | J33: ='Note 4(d)'!B$26 -> 257 | K33: 0 | L33: 0 | M33: =D33+H33-I33 -> 4733 | N33: 0 | O33: 3705 | P33: =SUM(M33:N33)-O33 -> 1028 | R33: =SUM(G33:H33)-SUM(I33:K33)+SUM(L33:L33) -> 1028 | T33: B Sheet | U33: Diff
A34: TOTALS | D34: =SUM(D15:D33) -> 14402 | E34: =SUM(E15:E33) -> 1082672 | F34: =SUM(F15:F33) -> 279832 | G34: =SUM(G15:G33) -> 817242 | H34: =SUM(H15:H33) -> 31815 | I34: 0 | J34: 15920 | K34: 0 | L34: 0 | M34: 15230 | N34: 1113659 | O34: 295752 | P34: =SUM(P15:P33) -> 833137 | R34: =SUM(R15:R33) -> 833137 | T34: ='Balance Sheet'!D$28 -> 833137 | U34: =T34-P34 -> 0
D37: =M10 -> As at 30 June 2015 | H37: ="Movements during "&Calculations!D12 -> Movements during 2015/16 | M37: ="As at 30 June "&TEXT('Input Sheet'!D15,"###") -> As at 30 June 2016
D38: Cost/ | I38: WDV | L38: Revaluation | M38: Cost/
D39: deemed | E39: Fair | F39: Accum | I39: of | K39: Transfers/ | L39: increments/ | M39: deemed | N39: Fair | O39: Accum
B40: BY ASSET TYPE | D40: cost | E40: value | F40: Depn | G40: WDV | H40: Addtions | I40: disposals | J40: Depn | K40: adjustments | L40: decrements | M40: cost | N40: value | O40: Depn | P40: WDV | R40: Check
B42: Plant & equipment | D42: =M15 -> 0 | E42: =N15 -> 17588 | F42: =O15 -> 12592 | G42: =D42+E42-F42 -> 4996 | H42: ='Capital Expenditure - Total'!$E$153 -> 2658 | I42: 0 | J42: ='Note 4(d)'!C$19 -> 2565 | K42: 0 | L42: 0 | M42: =D42 -> 0 | N42: =E42+H42-I42 -> 20246 | O42: =F42+J42 -> 15157 | P42: =SUM(M42:N42)-O42 -> 5089 | R42: =SUM(G42:H42)-SUM(I42:K42)+SUM(L42:L42) -> 5089
B43: Office equipment | D43: =M16 -> 3318 | E43: =N16 -> 0 | F43: =O16 -> 2441 | G43: =D43+E43-F43 -> 877 | H43: ='Capital Expenditure - Total'!$E$154 -> 623 | I43: 0 | J43: ='Note 4(d)'!C$21 -> 155 | K43: 0 | L43: 0 | M43: =D43+H43-I43 -> 3941 | N43: 0 | O43: =F43+J43 -> 2596 | P43: =SUM(M43:N43)-O43 -> 1345 | R43: =SUM(G43:H43)-SUM(I43:K43)+SUM(L43:L43) -> 1345
B44: Furniture and fittings | D44: 1227 | E44: 0 | F44: 1124 | G44: =D44+E44-F44 -> 103 | H44: ='Capital Expenditure - Total'!$E$155 -> 30 | I44: 0 | J44: ='Note 4(d)'!C$20 -> 62 | K44: 0 | L44: 0 | M44: =D44+H44-I44 -> 1257 | N44: 0 | O44: =F44+J44 -> 1186 | P44: =SUM(M44:N44)-O44 -> 71 | R44: =SUM(G44:H44)-SUM(I44:K44)+SUM(L44:L44) -> 71
B45: Land
B46: - Operational Land | D46: 0 | E46: 70798 | F46: 0 | G46: =D46+E46-F46 -> 70798 | H46: 0 | I46: 0 | J46: 0 | K46: 0 | L46: 0 | M46: =D46 -> 0 | N46: =E46+H46-I46 -> 70798 | O46: =F46+J46 -> 0 | P46: =SUM(M46:N46)-O46 -> 70798 | R46: =SUM(G46:H46)-SUM(I46:K46)+SUM(L46:L46) -> 70798
B47: - Community Land | D47: 0 | E47: 78093 | F47: 0 | G47: =D47+E47-F47 -> 78093 | H47: 0 | I47: 0 | J47: 0 | K47: 0 | L47: 0 | M47: =D47 -> 0 | N47: =E47+H47-I47 -> 78093 | O47: =F47+J47 -> 0 | P47: =SUM(M47:N47)-O47 -> 78093 | R47: =SUM(G47:H47)-SUM(I47:K47)+SUM(L47:L47) -> 78093
B48: Buildings
B49: - Non specialised | D49: 0 | E49: 65885 | F49: 30885 | G49: =D49+E49-F49 -> 35000 | H49: ='Capital Expenditure - Total'!$E$156 -> 849 | I49: 0 | J49: ='Note 4(d)'!C$17 -> 670 | K49: 0 | L49: 0 | M49: =D49 -> 0 | N49: =E49+H49-I49 -> 66734 | O49: =F49+J49 -> 31555 | P49: =SUM(M49:N49)-O49 -> 35179 | R49: =SUM(G49:H49)-SUM(I49:K49)+SUM(L49:L49) -> 35179
B50: - Specialised | D50: 0 | E50: 53683 | F50: 33460 | G50: =D50+E50-F50 -> 20223 | H50: 0 | I50: 0 | J50: ='Note 4(d)'!C$18 -> 731 | K50: 0 | L50: 0 | M50: =D50 -> 0 | N50: =E50+H50-I50 -> 53683 | O50: =F50+J50 -> 34191 | P50: =SUM(M50:N50)-O50 -> 19492 | R50: =SUM(G50:H50)-SUM(I50:K50)+SUM(L50:L50) -> 19492
B51: Park equip & community improvements | D51: 0 | E51: 60039 | F51: 27358 | G51: =D51+E51-F51 -> 32681 | H51: ='Capital Expenditure - Total'!$E$157 -> 11984 | I51: 0 | J51: ='Note 4(d)'!C$25 -> 2101 | K51: 0 | L51: 0 | M51: =D51 -> 0 | N51: =E51+H51-I51 -> 72023 | O51: =F51+J51 -> 29459 | P51: =SUM(M51:N51)-O51 -> 42564 | R51: =SUM(G51:H51)-SUM(I51:K51)+SUM(L51:L51) -> 42564
B52: Infrastructure
B53: - Roads, bridges and footpaths | D53: 0 | E53: 615471 | F53: 161145 | G53: =D53+E53-F53 -> 454326 | H53: ='Capital Expenditure - Total'!$E$158 -> 24711 | I53: 0 | J53: ='Note 4(d)'!C$23 -> 8858 | K53: 0 | L53: 0 | M53: 0 | N53: =E53+H53-I53 -> 640182 | O53: =F53+J53 -> 170003 | P53: =SUM(M53:N53)-O53 -> 470179 | R53: =SUM(G53:H53)-SUM(I53:K53)+SUM(L53:L53) -> 470179
B54: - Storm water drainage | D54: 0 | E54: 146550 | F54: 18756 | G54: =D54+E54-F54 -> 127794 | H54: ='Capital Expenditure - Total'!$E$159 -> 546 | I54: 0 | J54: ='Note 4(d)'!C$24 -> 649 | K54: 0 | L54: 0 | M54: 0 | N54: =E54+H54-I54 -> 147096 | O54: =F54+J54 -> 19405 | P54: =SUM(M54:N54)-O54 -> 127691 | R54: =SUM(G54:H54)-SUM(I54:K54)+SUM(L54:L54) -> 127691
B55: Other assets
B56: - Library books | D56: 2971 | E56: 0 | F56: 2062 | G56: =D56+E56-F56 -> 909 | H56: ='Capital Expenditure - Total'!$E$160 -> 269 | I56: 0 | J56: ='Note 4(d)'!C$28 -> 211 | K56: 0 | L56: 0 | M56: =D56+H56-I56 -> 3240 | N56: 0 | O56: =F56+J56 -> 2273 | P56: =SUM(M56:N56)-O56 -> 967 | R56: =SUM(G56:H56)-SUM(I56:K56)+SUM(L56:L56) -> 967
B57: - Art Works | D57: 0 | E57: 5552 | F57: 0 | G57: =D57+E57-F57 -> 5552 | H57: ='Capital Expenditure - Total'!$E$161 -> 39 | I57: 0 | J57: 0 | K57: 0 | L57: 0 | M57: =D57 -> 0 | N57: =E57+H57-I57 -> 5591 | O57: =F57+J57 -> 0 | P57: =SUM(M57:N57)-O57 -> 5591 | R57: =SUM(G57:H57)-SUM(I57:K57)+SUM(L57:L57) -> 5591
B58: - Bushfire equipment | D58: 2895 | E58: 0 | F58: 2168 | G58: =D58+E58-F58 -> 727 | H58: ='Capital Expenditure - Total'!$E$162 -> 0 | I58: 0 | J58: ='Note 4(d)'!C$29 -> 124 | K58: 0 | L58: 0 | M58: =D58+H58-I58 -> 2895 | N58: 0 | O58: =F58+J58 -> 2292 | P58: =SUM(M58:N58)-O58 -> 603 | R58: =SUM(G58:H58)-SUM(I58:K58)+SUM(L58:L58) -> 603
B59: - Musical instruments | D59: 86 | E59: 0 | F59: 56 | G59: =D59+E59-F59 -> 30 | H59: 0 | I59: 0 | J59: ='Note 4(d)'!C$30 -> 8 | K59: 0 | L59: 0 | M59: =D59+H59-I59 -> 86 | N59: 0 | O59: =F59+J59 -> 64 | P59: =SUM(M59:N59)-O59 -> 22 | R59: =SUM(G59:H59)-SUM(I59:K59)+SUM(L59:L59) -> 22
B60: Tip asset | D60: 4733 | E60: 0 | F60: 3705 | G60: =D60+E60-F60 -> 1028 | H60: 0 | I60: 0 | J60: ='Note 4(d)'!C$26 -> 257 | K60: 0 | L60: 0 | M60: =D60+H60-I60 -> 4733 | N60: 0 | O60: =F60+J60 -> 3962 | P60: =SUM(M60:N60)-O60 -> 771 | R60: =SUM(G60:H60)-SUM(I60:K60)+SUM(L60:L60) -> 771 | T60: B Sheet | U60: Diff
A61: TOTALS | D61: =SUM(D42:D60) -> 15230 | E61: 1113659 | F61: 295752 | G61: 833137 | H61: 41709 | I61: 0 | J61: 16391 | K61: 0 | L61: 0 | M61: 16152 | N61: 1154446 | O61: 312143 | P61: 858455 | R61: =SUM(R42:R60) -> 858455 | T61: ='Balance Sheet'!E$28 -> 858455 | U61: =T61-P61 -> 0
D64: =M37 -> As at 30 June 2016 | H64: ="Movements during "&Calculations!E12 -> Movements during 2016/17 | M64: ="As at 30 June "&TEXT('Input Sheet'!E15,"###") -> As at 30 June 2017
D65: Cost/ | I65: WDV | L65: Revaluation | M65: Cost/
D66: deemed | E66: Fair | F66: Accum | I66: of | K66: Transfers/ | L66: increments/ | M66: deemed | N66: Fair | O66: Accum
B67: BY ASSET TYPE | D67: cost | E67: value | F67: Depn | G67: WDV | H67: Addtions | I67: disposals | J67: Depn | K67: adjustments | L67: decrements | M67: cost | N67: value | O67: Depn | P67: WDV | R67: Check
B69: Plant & equipment | D69: =M42 -> 0 | E69: 20246 | F69: 15157 | G69: =D69+E69-F69 -> 5089 | H69: ='Capital Expenditure - Total'!$F$153 -> 3494 | I69: 0 | J69: ='Note 4(d)'!D$19 -> 2642 | K69: 0 | L69: 0 | M69: =D69 -> 0 | N69: =E69+H69-I69 -> 23740 | O69: =F69+J69 -> 17799 | P69: =SUM(M69:N69)-O69 -> 5941 | R69: =SUM(G69:H69)-SUM(I69:K69)+SUM(L69:L69) -> 5941
B70: Office equipment | D70: 3941 | E70: 0 | F70: 2596 | G70: =D70+E70-F70 -> 1345 | H70: ='Capital Expenditure - Total'!$F$154 -> 378 | I70: 0 | J70: ='Note 4(d)'!D$21 -> 160 | K70: 0 | L70: 0 | M70: =D70+H70-I70 -> 4319 | N70: 0 | O70: =F70+J70 -> 2756 | P70: =SUM(M70:N70)-O70 -> 1563 | R70: =SUM(G70:H70)-SUM(I70:K70)+SUM(L70:L70) -> 1563
B71: Furniture and fittings | D71: 1257 | E71: 0 | F71: 1186 | G71: =D71+E71-F71 -> 71 | H71: ='Capital Expenditure - Total'!$F$155 -> 31 | I71: 0 | J71: ='Note 4(d)'!D$20 -> 64 | K71: 0 | L71: 0 | M71: =D71+H71-I71 -> 1288 | N71: 0 | O71: =F71+J71 -> 1250 | P71: =SUM(M71:N71)-O71 -> 38 | R71: =SUM(G71:H71)-SUM(I71:K71)+SUM(L71:L71) -> 38
B72: Land
B73: - Operational Land | D73: =M46 -> 0 | E73: 70798 | F73: 0 | G73: =D73+E73-F73 -> 70798 | H73: 0 | I73: 0 | J73: 0 | K73: 0 | L73: 0 | M73: =D73 -> 0 | N73: =E73+H73-I73 -> 70798 | O73: =F73+J73 -> 0 | P73: =SUM(M73:N73)-O73 -> 70798 | R73: =SUM(G73:H73)-SUM(I73:K73)+SUM(L73:L73) -> 70798
B74: - Community Land | D74: 0 | E74: 78093 | F74: 0 | G74: =D74+E74-F74 -> 78093 | H74: 0 | I74: 0 | J74: 0 | K74: 0 | L74: 0 | M74: =D74 -> 0 | N74: =E74+H74-I74 -> 78093 | O74: =F74+J74 -> 0 | P74: =SUM(M74:N74)-O74 -> 78093 | R74: =SUM(G74:H74)-SUM(I74:K74)+SUM(L74:L74) -> 78093
B75: Buildings
B76: - Non specialised | D76: =M49 -> 0 | E76: 66734 | F76: 31555 | G76: =D76+E76-F76 -> 35179 | H76: ='Capital Expenditure - Total'!$F$156 -> 609 | I76: 0 | J76: ='Note 4(d)'!D$17 -> 690 | K76: 0 | L76: 0 | M76: =D76 -> 0 | N76: =E76+H76-I76 -> 67343 | O76: =F76+J76 -> 32245 | P76: =SUM(M76:N76)-O76 -> 35098 | R76: =SUM(G76:H76)-SUM(I76:K76)+SUM(L76:L76) -> 35098
B77: - Specialised | D77: 0 | E77: 53683 | F77: 34191 | G77: =D77+E77-F77 -> 19492 | H77: 0 | I77: 0 | J77: ='Note 4(d)'!D$18 -> 753 | K77: 0 | L77: 0 | M77: =D77 -> 0 | N77: =E77+H77-I77 -> 53683 | O77: =F77+J77 -> 34944 | P77: =SUM(M77:N77)-O77 -> 18739 | R77: =SUM(G77:H77)-SUM(I77:K77)+SUM(L77:L77) -> 18739
B78: Park equip & community improvements | D78: 0 | E78: 72023 | F78: 29459 | G78: =D78+E78-F78 -> 42564 | H78: ='Capital Expenditure - Total'!$F$157 -> 8764 | I78: 0 | J78: ='Note 4(d)'!D$25 -> 2164 | K78: 0 | L78: 0 | M78: =D78 -> 0 | N78: =E78+H78-I78 -> 80787 | O78: =F78+J78 -> 31623 | P78: =SUM(M78:N78)-O78 -> 49164 | R78: =SUM(G78:H78)-SUM(I78:K78)+SUM(L78:L78) -> 49164
B79: Infrastructure
B80: - Roads, bridges and footpaths | D80: =M53 -> 0 | E80: 640182 | F80: 170003 | G80: =D80+E80-F80 -> 470179 | H80: ='Capital Expenditure - Total'!$F$158 -> 23362 | I80: 0 | J80: ='Note 4(d)'!D$23 -> 9124 | K80: 0 | L80: 0 | M80: 0 | N80: =E80+H80-I80 -> 663544 | O80: =F80+J80 -> 179127 | P80: =SUM(M80:N80)-O80 -> 484417 | R80: =SUM(G80:H80)-SUM(I80:K80)+SUM(L80:L80) -> 484417
B81: - Storm water drainage | D81: 0 | E81: 147096 | F81: 19405 | G81: =D81+E81-F81 -> 127691 | H81: ='Capital Expenditure - Total'!$F$159 -> 577 | I81: 0 | J81: ='Note 4(d)'!D$24 -> 668 | K81: 0 | L81: 0 | M81: 0 | N81: =E81+H81-I81 -> 147673 | O81: =F81+J81 -> 20073 | P81: =SUM(M81:N81)-O81 -> 127600 | R81: =SUM(G81:H81)-SUM(I81:K81)+SUM(L81:L81) -> 127600
B82: Other assets
B83: - Library books | D83: =M56 -> 3240 | E83: 0 | F83: 2273 | G83: =D83+E83-F83 -> 967 | H83: ='Capital Expenditure - Total'!$F$160 -> 277 | I83: 0 | J83: ='Note 4(d)'!D$28 -> 217 | K83: 0 | L83: 0 | M83: =D83+H83-I83 -> 3517 | N83: 0 | O83: =F83+J83 -> 2490 | P83: =SUM(M83:N83)-O83 -> 1027 | R83: =SUM(G83:H83)-SUM(I83:K83)+SUM(L83:L83) -> 1027
B84: - Art Works | D84: 0 | E84: 5591 | F84: 0 | G84: =D84+E84-F84 -> 5591 | H84: ='Capital Expenditure - Total'!$F$161 -> 40 | I84: 0 | J84: 0 | K84: 0 | L84: 0 | M84: =D84 -> 0 | N84: =E84+H84-I84 -> 5631 | O84: =F84+J84 -> 0 | P84: =SUM(M84:N84)-O84 -> 5631 | R84: =SUM(G84:H84)-SUM(I84:K84)+SUM(L84:L84) -> 5631
B85: - Bushfire equipment | D85: 2895 | E85: 0 | F85: 2292 | G85: =D85+E85-F85 -> 603 | H85: ='Capital Expenditure - Total'!$F$162 -> 0 | I85: 0 | J85: ='Note 4(d)'!D$29 -> 128 | K85: 0 | L85: 0 | M85: =D85+H85-I85 -> 2895 | N85: 0 | O85: =F85+J85 -> 2420 | P85: =SUM(M85:N85)-O85 -> 475 | R85: =SUM(G85:H85)-SUM(I85:K85)+SUM(L85:L85) -> 475
B86: - Musical instruments | D86: 86 | E86: 0 | F86: 64 | G86: =D86+E86-F86 -> 22 | H86: 0 | I86: 0 | J86: ='Note 4(d)'!D$30 -> 8 | K86: 0 | L86: 0 | M86: =D86+H86-I86 -> 86 | N86: 0 | O86: =F86+J86 -> 72 | P86: =SUM(M86:N86)-O86 -> 14 | R86: =SUM(G86:H86)-SUM(I86:K86)+SUM(L86:L86) -> 14
B87: Tip asset | D87: 4733 | E87: 0 | F87: 3962 | G87: =D87+E87-F87 -> 771 | H87: 0 | I87: 0 | J87: ='Note 4(d)'!D$26 -> 257 | K87: 0 | L87: 0 | M87: =D87+H87-I87 -> 4733 | N87: 0 | O87: =F87+J87 -> 4219 | P87: =SUM(M87:N87)-O87 -> 514 | R87: =SUM(G87:H87)-SUM(I87:K87)+SUM(L87:L87) -> 514 | T87: B Sheet | U87: Diff
A88: TOTALS | D88: =SUM(D69:D87) -> 16152 | E88: 1154446 | F88: 312143 | G88: 858455 | H88: 37532 | I88: 0 | J88: 16875 | K88: 0 | L88: 0 | M88: 16838 | N88: 1191292 | O88: 329018 | P88: 879112 | R88: =SUM(R69:R87) -> 879112 | T88: ='Balance Sheet'!F$28 -> 879112 | U88: =T88-P88 -> 0
D91: =M64 -> As at 30 June 2017 | H91: ="Movements during "&Calculations!F12 -> Movements during 2017/18 | M91: ="As at 30 June "&TEXT('Input Sheet'!F15,"###") -> As at 30 June 2018
D92: Cost/ | I92: WDV | L92: Revaluation | M92: Cost/
D93: deemed | E93: Fair | F93: Accum | I93: of | K93: Transfers/ | L93: increments/ | M93: deemed | N93: Fair | O93: Accum
B94: BY ASSET TYPE | D94: cost | E94: value | F94: Depn | G94: WDV | H94: Addtions | I94: disposals | J94: Depn | K94: adjustments | L94: decrements | M94: cost | N94: value | O94: Depn | P94: WDV | R94: Check
B96: Plant & equipment | D96: =M69 -> 0 | E96: 23740 | F96: 17799 | G96: =D96+E96-F96 -> 5941 | H96: ='Capital Expenditure - Total'!$G$153 -> 1981 | I96: 0 | J96: ='Note 4(d)'!E$19 -> 2721 | K96: 0 | L96: 0 | M96: =D96 -> 0 | N96: =E96+H96-I96 -> 25721 | O96: =F96+J96 -> 20520 | P96: =SUM(M96:N96)-O96 -> 5201 | R96: =SUM(G96:H96)-SUM(I96:K96)+SUM(L96:L96) -> 5201
B97: Office equipment | D97: 4319 | E97: 0 | F97: 2756 | G97: =D97+E97-F97 -> 1563 | H97: ='Capital Expenditure - Total'!$G$154 -> 383 | I97: 0 | J97: ='Note 4(d)'!E$21 -> 165 | K97: 0 | L97: 0 | M97: =D97+H97-I97 -> 4702 | N97: 0 | O97: =F97+J97 -> 2921 | P97: =SUM(M97:N97)-O97 -> 1781 | R97: =SUM(G97:H97)-SUM(I97:K97)+SUM(L97:L97) -> 1781
B98: Furniture and fittings | D98: 1288 | E98: 0 | F98: 1250 | G98: =D98+E98-F98 -> 38 | H98: ='Capital Expenditure - Total'!$G$155 -> 72 | I98: 0 | J98: ='Note 4(d)'!E$20 -> 66 | K98: 0 | L98: 0 | M98: =D98+H98-I98 -> 1360 | N98: 0 | O98: =F98+J98 -> 1316 | P98: =SUM(M98:N98)-O98 -> 44 | R98: =SUM(G98:H98)-SUM(I98:K98)+SUM(L98:L98) -> 44
B99: Land
B100: - Operational Land | D100: =M73 -> 0 | E100: 70798 | F100: 0 | G100: =D100+E100-F100 -> 70798 | H100: 0 | I100: 0 | J100: 0 | K100: 0 | L100: 0 | M100: =D100 -> 0 | N100: =E100+H100-I100 -> 70798 | O100: =F100+J100 -> 0 | P100: =SUM(M100:N100)-O100 -> 70798 | R100: =SUM(G100:H100)-SUM(I100:K100)+SUM(L100:L100) -> 70798
B101: - Community Land | D101: 0 | E101: 78093 | F101: 0 | G101: =D101+E101-F101 -> 78093 | H101: 0 | I101: 0 | J101: 0 | K101: 0 | L101: 0 | M101: =D101 -> 0 | N101: =E101+H101-I101 -> 78093 | O101: =F101+J101 -> 0 | P101: =SUM(M101:N101)-O101 -> 78093 | R101: =SUM(G101:H101)-SUM(I101:K101)+SUM(L101:L101) -> 78093
B102: Buildings
B103: - Non specialised | D103: =M76 -> 0 | E103: 67343 | F103: 32245 | G103: =D103+E103-F103 -> 35098 | H103: ='Capital Expenditure - Total'!$G$156 -> 693 | I103: 0 | J103: ='Note 4(d)'!E$17 -> 711 | K103: 0 | L103: 0 | M103: =D103 -> 0 | N103: =E103+H103-I103 -> 68036 | O103: =F103+J103 -> 32956 | P103: =SUM(M103:N103)-O103 -> 35080 | R103: =SUM(G103:H103)-SUM(I103:K103)+SUM(L103:L103) -> 35080
B104: - Specialised | D104: 0 | E104: 53683 | F104: 34944 | G104: =D104+E104-F104 -> 18739 | H104: 0 | I104: 0 | J104: ='Note 4(d)'!E$18 -> 776 | K104: 0 | L104: 0 | M104: =D104 -> 0 | N104: =E104+H104-I104 -> 53683 | O104: =F104+J104 -> 35720 | P104: =SUM(M104:N104)-O104 -> 17963 | R104: =SUM(G104:H104)-SUM(I104:K104)+SUM(L104:L104) -> 17963
B105: Park equip & community improvements | D105: 0 | E105: 80787 | F105: 31623 | G105: =D105+E105-F105 -> 49164 | H105: ='Capital Expenditure - Total'!$G$157 -> 9108 | I105: 0 | J105: ='Note 4(d)'!E$25 -> 2229 | K105: 0 | L105: 0 | M105: =D105 -> 0 | N105: =E105+H105-I105 -> 89895 | O105: =F105+J105 -> 33852 | P105: =SUM(M105:N105)-O105 -> 56043 | R105: =SUM(G105:H105)-SUM(I105:K105)+SUM(L105:L105) -> 56043
B106: Infrastructure
B107: - Roads, bridges and footpaths | D107: =M80 -> 0 | E107: 663544 | F107: 179127 | G107: =D107+E107-F107 -> 484417 | H107: ='Capital Expenditure - Total'!$G$158 -> 25739 | I107: 0 | J107: ='Note 4(d)'!E$23 -> 9398 | K107: 0 | L107: 0 | M107: 0 | N107: =E107+H107-I107 -> 689283 | O107: =F107+J107 -> 188525 | P107: =SUM(M107:N107)-O107 -> 500758 | R107: =SUM(G107:H107)-SUM(I107:K107)+SUM(L107:L107) -> 500758
B108: - Storm water drainage | D108: 0 | E108: 147673 | F108: 20073 | G108: =D108+E108-F108 -> 127600 | H108: ='Capital Expenditure - Total'!$G$159 -> 608 | I108: 0 | J108: ='Note 4(d)'!E$24 -> 688 | K108: 0 | L108: 0 | M108: 0 | N108: =E108+H108-I108 -> 148281 | O108: =F108+J108 -> 20761 | P108: =SUM(M108:N108)-O108 -> 127520 | R108: =SUM(G108:H108)-SUM(I108:K108)+SUM(L108:L108) -> 127520
B109: Other assets
B110: - Library books | D110: =M83 -> 3517 | E110: 0 | F110: 2490 | G110: =D110+E110-F110 -> 1027 | H110: ='Capital Expenditure - Total'!$G$160 -> 285 | I110: 0 | J110: ='Note 4(d)'!E$28 -> 224 | K110: 0 | L110: 0 | M110: =D110+H110-I110 -> 3802 | N110: 0 | O110: =F110+J110 -> 2714 | P110: =SUM(M110:N110)-O110 -> 1088 | R110: =SUM(G110:H110)-SUM(I110:K110)+SUM(L110:L110) -> 1088
B111: - Art Works | D111: 0 | E111: 5631 | F111: 0 | G111: =D111+E111-F111 -> 5631 | H111: ='Capital Expenditure - Total'!$G$161 -> 41 | I111: 0 | J111: 0 | K111: 0 | L111: 0 | M111: =D111 -> 0 | N111: =E111+H111-I111 -> 5672 | O111: =F111+J111 -> 0 | P111: =SUM(M111:N111)-O111 -> 5672 | R111: =SUM(G111:H111)-SUM(I111:K111)+SUM(L111:L111) -> 5672
B112: - Bushfire equipment | D112: 2895 | E112: 0 | F112: 2420 | G112: =D112+E112-F112 -> 475 | H112: ='Capital Expenditure - Total'!$G$162 -> 0 | I112: 0 | J112: ='Note 4(d)'!E$29 -> 132 | K112: 0 | L112: 0 | M112: =D112+H112-I112 -> 2895 | N112: 0 | O112: =F112+J112 -> 2552 | P112: =SUM(M112:N112)-O112 -> 343 | R112: =SUM(G112:H112)-SUM(I112:K112)+SUM(L112:L112) -> 343
B113: - Musical instruments | D113: 86 | E113: 0 | F113: 72 | G113: =D113+E113-F113 -> 14 | H113: 0 | I113: 0 | J113: ='Note 4(d)'!E$30 -> 8 | K113: 0 | L113: 0 | M113: =D113+H113-I113 -> 86 | N113: 0 | O113: =F113+J113 -> 80 | P113: =SUM(M113:N113)-O113 -> 6 | R113: =SUM(G113:H113)-SUM(I113:K113)+SUM(L113:L113) -> 6
B114: Tip asset | D114: 4733 | E114: 0 | F114: 4219 | G114: =D114+E114-F114 -> 514 | H114: 0 | I114: 0 | J114: ='Note 4(d)'!E$26 -> 257 | K114: 0 | L114: 0 | M114: =D114+H114-I114 -> 4733 | N114: 0 | O114: =F114+J114 -> 4476 | P114: =SUM(M114:N114)-O114 -> 257 | R114: =SUM(G114:H114)-SUM(I114:K114)+SUM(L114:L114) -> 257 | T114: B Sheet | U114: Diff
A115: TOTALS | D115: =SUM(D96:D114) -> 16838 | E115: 1191292 | F115: 329018 | G115: 879112 | H115: 38910 | I115: 0 | J115: 17375 | K115: 0 | L115: 0 | M115: 17578 | N115: 1229462 | O115: 346393 | P115: 900647 | R115: =SUM(R96:R114) -> 900647 | T115: ='Balance Sheet'!G$28 -> 900647 | U115: =T115-P115 -> 0
D118: =M91 -> As at 30 June 2018 | H118: ="Movements during "&Calculations!G12 -> Movements during 2018/19 | M118: ="As at 30 June "&TEXT('Input Sheet'!G15,"###") -> As at 30 June 2019
D119: Cost/ | I119: WDV | L119: Revaluation | M119: Cost/
D120: deemed | E120: Fair | F120: Accum | I120: of | K120: Transfers/ | L120: increments/ | M120: deemed | N120: Fair | O120: Accum
B121: BY ASSET TYPE | D121: cost | E121: value | F121: Depn | G121: WDV | H121: Addtions | I121: disposals | J121: Depn | K121: adjustments | L121: decrements | M121: cost | N121: value | O121: Depn | P121: WDV | R121: Check
B123: Plant & equipment | D123: =M96 -> 0 | E123: 25721 | F123: 20520 | G123: =D123+E123-F123 -> 5201 | H123: ='Capital Expenditure - Total'!$H$153 -> 1645 | I123: 0 | J123: ='Note 4(d)'!F$19 -> 2803 | K123: 0 | L123: 0 | M123: =D123 -> 0 | N123: =E123+H123-I123 -> 27366 | O123: =F123+J123 -> 23323 | P123: =SUM(M123:N123)-O123 -> 4043 | R123: =SUM(G123:H123)-SUM(I123:K123)+SUM(L123:L123) -> 4043
B124: Office equipment | D124: 4702 | E124: 0 | F124: 2921 | G124: =D124+E124-F124 -> 1781 | H124: ='Capital Expenditure - Total'!$H$154 -> 388 | I124: 0 | J124: ='Note 4(d)'!F$21 -> 170 | K124: 0 | L124: 0 | M124: =D124+H124-I124 -> 5090 | N124: 0 | O124: =F124+J124 -> 3091 | P124: =SUM(M124:N124)-O124 -> 1999 | R124: =SUM(G124:H124)-SUM(I124:K124)+SUM(L124:L124) -> 1999
B125: Furniture and fittings | D125: 1360 | E125: 0 | F125: 1316 | G125: =D125+E125-F125 -> 44 | H125: ='Capital Expenditure - Total'!$H$155 -> 36 | I125: 0 | J125: ='Note 4(d)'!F$20 -> 68 | K125: 0 | L125: 0 | M125: =D125+H125-I125 -> 1396 | N125: 0 | O125: =F125+J125 -> 1384 | P125: =SUM(M125:N125)-O125 -> 12 | R125: =SUM(G125:H125)-SUM(I125:K125)+SUM(L125:L125) -> 12
B126: Land
B127: - Operational Land | D127: =M100 -> 0 | E127: 70798 | F127: 0 | G127: =D127+E127-F127 -> 70798 | H127: 0 | I127: 0 | J127: 0 | K127: 0 | L127: 0 | M127: =D127 -> 0 | N127: =E127+H127-I127 -> 70798 | O127: =F127+J127 -> 0 | P127: =SUM(M127:N127)-O127 -> 70798 | R127: =SUM(G127:H127)-SUM(I127:K127)+SUM(L127:L127) -> 70798
B128: - Community Land | D128: 0 | E128: 78093 | F128: 0 | G128: =D128+E128-F128 -> 78093 | H128: 0 | I128: 0 | J128: 0 | K128: 0 | L128: 0 | M128: =D128 -> 0 | N128: =E128+H128-I128 -> 78093 | O128: =F128+J128 -> 0 | P128: =SUM(M128:N128)-O128 -> 78093 | R128: =SUM(G128:H128)-SUM(I128:K128)+SUM(L128:L128) -> 78093
B129: Buildings
B130: - Non specialised | D130: =M103 -> 0 | E130: 68036 | F130: 32956 | G130: =D130+E130-F130 -> 35080 | H130: ='Capital Expenditure - Total'!$H$156 -> 941 | I130: 0 | J130: ='Note 4(d)'!F$17 -> 732 | K130: 0 | L130: 0 | M130: =D130 -> 0 | N130: =E130+H130-I130 -> 68977 | O130: =F130+J130 -> 33688 | P130: =SUM(M130:N130)-O130 -> 35289 | R130: =SUM(G130:H130)-SUM(I130:K130)+SUM(L130:L130) -> 35289
B131: - Specialised | D131: 0 | E131: 53683 | F131: 35720 | G131: =D131+E131-F131 -> 17963 | H131: 0 | I131: 0 | J131: ='Note 4(d)'!F$18 -> 799 | K131: 0 | L131: 0 | M131: =D131 -> 0 | N131: =E131+H131-I131 -> 53683 | O131: =F131+J131 -> 36519 | P131: =SUM(M131:N131)-O131 -> 17164 | R131: =SUM(G131:H131)-SUM(I131:K131)+SUM(L131:L131) -> 17164
B132: Park equip & community improvements | D132: 0 | E132: 89895 | F132: 33852 | G132: =D132+E132-F132 -> 56043 | H132: ='Capital Expenditure - Total'!$H$157 -> 17363 | I132: 0 | J132: ='Note 4(d)'!F$25 -> 2296 | K132: 0 | L132: 0 | M132: =D132 -> 0 | N132: =E132+H132-I132 -> 107258 | O132: =F132+J132 -> 36148 | P132: =SUM(M132:N132)-O132 -> 71110 | R132: =SUM(G132:H132)-SUM(I132:K132)+SUM(L132:L132) -> 71110
B133: Infrastructure
B134: - Roads, bridges and footpaths | D134: =M107 -> 0 | E134: 689283 | F134: 188525 | G134: =D134+E134-F134 -> 500758 | H134: ='Capital Expenditure - Total'!$H$158 -> 19204 | I134: 0 | J134: ='Note 4(d)'!F$23 -> 9680 | K134: 0 | L134: 0 | M134: 0 | N134: =E134+H134-I134 -> 708487 | O134: =F134+J134 -> 198205 | P134: =SUM(M134:N134)-O134 -> 510282 | R134: =SUM(G134:H134)-SUM(I134:K134)+SUM(L134:L134) -> 510282
B135: - Storm water drainage | D135: 0 | E135: 148281 | F135: 20761 | G135: =D135+E135-F135 -> 127520 | H135: ='Capital Expenditure - Total'!$H$159 -> 639 | I135: 0 | J135: ='Note 4(d)'!F$24 -> 709 | K135: 0 | L135: 0 | M135: 0 | N135: =E135+H135-I135 -> 148920 | O135: =F135+J135 -> 21470 | P135: =SUM(M135:N135)-O135 -> 127450 | R135: =SUM(G135:H135)-SUM(I135:K135)+SUM(L135:L135) -> 127450
B136: Other assets
B137: - Library books | D137: =M110 -> 3802 | E137: 0 | F137: 2714 | G137: =D137+E137-F137 -> 1088 | H137: ='Capital Expenditure - Total'!$H$160 -> 294 | I137: 0 | J137: ='Note 4(d)'!F$28 -> 231 | K137: 0 | L137: 0 | M137: =D137+H137-I137 -> 4096 | N137: 0 | O137: =F137+J137 -> 2945 | P137: =SUM(M137:N137)-O137 -> 1151 | R137: =SUM(G137:H137)-SUM(I137:K137)+SUM(L137:L137) -> 1151
B138: - Art Works | D138: 0 | E138: 5672 | F138: 0 | G138: =D138+E138-F138 -> 5672 | H138: ='Capital Expenditure - Total'!$H$161 -> 42 | I138: 0 | J138: 0 | K138: 0 | L138: 0 | M138: =D138 -> 0 | N138: =E138+H138-I138 -> 5714 | O138: =F138+J138 -> 0 | P138: =SUM(M138:N138)-O138 -> 5714 | R138: =SUM(G138:H138)-SUM(I138:K138)+SUM(L138:L138) -> 5714
B139: - Bushfire equipment | D139: 2895 | E139: 0 | F139: 2552 | G139: =D139+E139-F139 -> 343 | H139: ='Capital Expenditure - Total'!$H$162 -> 0 | I139: 0 | J139: ='Note 4(d)'!F$29 -> 136 | K139: 0 | L139: 0 | M139: =D139+H139-I139 -> 2895 | N139: 0 | O139: =F139+J139 -> 2688 | P139: =SUM(M139:N139)-O139 -> 207 | R139: =SUM(G139:H139)-SUM(I139:K139)+SUM(L139:L139) -> 207
B140: - Musical instruments | D140: 86 | E140: 0 | F140: 80 | G140: =D140+E140-F140 -> 6 | H140: 0 | I140: 0 | J140: ='Note 4(d)'!F$30 -> 8 | K140: 0 | L140: 0 | M140: =D140+H140-I140 -> 86 | N140: 0 | O140: =F140+J140 -> 88 | P140: =SUM(M140:N140)-O140 -> -2 | R140: =SUM(G140:H140)-SUM(I140:K140)+SUM(L140:L140) -> -2
B141: Tip asset | D141: 4733 | E141: 0 | F141: 4476 | G141: =D141+E141-F141 -> 257 | H141: 0 | I141: 0 | J141: ='Note 4(d)'!F$26 -> 257 | K141: 0 | L141: 0 | M141: =D141+H141-I141 -> 4733 | N141: 0 | O141: =F141+J141 -> 4733 | P141: =SUM(M141:N141)-O141 -> 0 | R141: =SUM(G141:H141)-SUM(I141:K141)+SUM(L141:L141) -> 0 | T141: B Sheet | U141: Diff
A142: TOTALS | D142: =SUM(D123:D141) -> 17578 | E142: 1229462 | F142: 346393 | G142: 900647 | H142: 40552 | I142: 0 | J142: 17889 | K142: 0 | L142: 0 | M142: 18296 | N142: 1269296 | O142: 364282 | P142: 923310 | R142: =SUM(R123:R141) -> 923310 | T142: ='Balance Sheet'!H$28 -> 923310 | U142: =T142-P142 -> 0
D145: =M118 -> As at 30 June 2019 | H145: ="Movements during "&Calculations!H12 -> Movements during 2019/20 | M145: ="As at 30 June "&TEXT('Input Sheet'!H15,"###") -> As at 30 June 2020
D146: Cost/ | I146: WDV | L146: Revaluation | M146: Cost/
D147: deemed | E147: Fair | F147: Accum | I147: of | K147: Transfers/ | L147: increments/ | M147: deemed | N147: Fair | O147: Accum
B148: BY ASSET TYPE | D148: cost | E148: value | F148: Depn | G148: WDV | H148: Addtions | I148: disposals | J148: Depn | K148: adjustments | L148: decrements | M148: cost | N148: value | O148: Depn | P148: WDV | R148: Check
B150: Plant & equipment | D150: =M123 -> 0 | E150: 27366 | F150: 23323 | G150: =D150+E150-F150 -> 4043 | H150: ='Capital Expenditure - Total'!$I$153 -> 1695 | I150: 0 | J150: ='Note 4(d)'!G$19 -> 2887 | K150: 0 | L150: 0 | M150: =D150 -> 0 | N150: =E150+H150-I150 -> 29061 | O150: =F150+J150 -> 26210 | P150: =SUM(M150:N150)-O150 -> 2851 | R150: =SUM(G150:H150)-SUM(I150:K150)+SUM(L150:L150) -> 2851
B151: Office equipment | D151: 5090 | E151: 0 | F151: 3091 | G151: =D151+E151-F151 -> 1999 | H151: ='Capital Expenditure - Total'!$I$154 -> 393 | I151: 0 | J151: ='Note 4(d)'!G$21 -> 175 | K151: 0 | L151: 0 | M151: =D151+H151-I151 -> 5483 | N151: 0 | O151: =F151+J151 -> 3266 | P151: =SUM(M151:N151)-O151 -> 2217 | R151: =SUM(G151:H151)-SUM(I151:K151)+SUM(L151:L151) -> 2217
B152: Furniture and fittings | D152: 1396 | E152: 0 | F152: 1384 | G152: =D152+E152-F152 -> 12 | H152: ='Capital Expenditure - Total'!$I$155 -> 37 | I152: 0 | J152: ='Note 4(d)'!G$20 -> 70 | K152: 0 | L152: 0 | M152: =D152+H152-I152 -> 1433 | N152: 0 | O152: =F152+J152 -> 1454 | P152: =SUM(M152:N152)-O152 -> -21 | R152: =SUM(G152:H152)-SUM(I152:K152)+SUM(L152:L152) -> -21
B153: Land
B154: - Operational Land | D154: =M127 -> 0 | E154: 70798 | F154: 0 | G154: =D154+E154-F154 -> 70798 | H154: 0 | I154: 0 | J154: 0 | K154: 0 | L154: 0 | M154: =D154 -> 0 | N154: =E154+H154-I154 -> 70798 | O154: =F154+J154 -> 0 | P154: =SUM(M154:N154)-O154 -> 70798 | R154: =SUM(G154:H154)-SUM(I154:K154)+SUM(L154:L154) -> 70798
B155: - Community Land | D155: 0 | E155: 78093 | F155: 0 | G155: =D155+E155-F155 -> 78093 | H155: 0 | I155: 0 | J155: 0 | K155: 0 | L155: 0 | M155: =D155 -> 0 | N155: =E155+H155-I155 -> 78093 | O155: =F155+J155 -> 0 | P155: =SUM(M155:N155)-O155 -> 78093 | R155: =SUM(G155:H155)-SUM(I155:K155)+SUM(L155:L155) -> 78093
B156: Buildings
B157: - Non specialised | D157: =M130 -> 0 | E157: 68977 | F157: 33688 | G157: =D157+E157-F157 -> 35289 | H157: ='Capital Expenditure - Total'!$I$156 -> 927 | I157: 0 | J157: ='Note 4(d)'!G$17 -> 754 | K157: 0 | L157: 0 | M157: =D157 -> 0 | N157: =E157+H157-I157 -> 69904 | O157: =F157+J157 -> 34442 | P157: =SUM(M157:N157)-O157 -> 35462 | R157: =SUM(G157:H157)-SUM(I157:K157)+SUM(L157:L157) -> 35462
B158: - Specialised | D158: 0 | E158: 53683 | F158: 36519 | G158: =D158+E158-F158 -> 17164 | H158: 0 | I158: 0 | J158: ='Note 4(d)'!G$18 -> 823 | K158: 0 | L158: 0 | M158: =D158 -> 0 | N158: =E158+H158-I158 -> 53683 | O158: =F158+J158 -> 37342 | P158: =SUM(M158:N158)-O158 -> 16341 | R158: =SUM(G158:H158)-SUM(I158:K158)+SUM(L158:L158) -> 16341
B159: Park equip & community improvements | D159: 0 | E159: 107258 | F159: 36148 | G159: =D159+E159-F159 -> 71110 | H159: ='Capital Expenditure - Total'!$I$157 -> 7694 | I159: 0 | J159: ='Note 4(d)'!G$25 -> 2365 | K159: 0 | L159: 0 | M159: =D159 -> 0 | N159: =E159+H159-I159 -> 114952 | O159: =F159+J159 -> 38513 | P159: =SUM(M159:N159)-O159 -> 76439 | R159: =SUM(G159:H159)-SUM(I159:K159)+SUM(L159:L159) -> 76439
B160: Infrastructure
B161: - Roads, bridges and footpaths | D161: =M134 -> 0 | E161: 708487 | F161: 198205 | G161: =D161+E161-F161 -> 510282 | H161: ='Capital Expenditure - Total'!$I$158 -> 21369 | I161: 0 | J161: ='Note 4(d)'!G$23 -> 9970 | K161: 0 | L161: 0 | M161: 0 | N161: =E161+H161-I161 -> 729856 | O161: =F161+J161 -> 208175 | P161: =SUM(M161:N161)-O161 -> 521681 | R161: =SUM(G161:H161)-SUM(I161:K161)+SUM(L161:L161) -> 521681
B162: - Storm water drainage | D162: 0 | E162: 148920 | F162: 21470 | G162: =D162+E162-F162 -> 127450 | H162: ='Capital Expenditure - Total'!$I$159 -> 670 | I162: 0 | J162: ='Note 4(d)'!G$24 -> 730 | K162: 0 | L162: 0 | M162: 0 | N162: =E162+H162-I162 -> 149590 | O162: =F162+J162 -> 22200 | P162: =SUM(M162:N162)-O162 -> 127390 | R162: =SUM(G162:H162)-SUM(I162:K162)+SUM(L162:L162) -> 127390
B163: Other assets
B164: - Library books | D164: =M137 -> 4096 | E164: 0 | F164: 2945 | G164: =D164+E164-F164 -> 1151 | H164: ='Capital Expenditure - Total'!$I$160 -> 303 | I164: 0 | J164: ='Note 4(d)'!G$28 -> 238 | K164: 0 | L164: 0 | M164: =D164+H164-I164 -> 4399 | N164: 0 | O164: =F164+J164 -> 3183 | P164: =SUM(M164:N164)-O164 -> 1216 | R164: =SUM(G164:H164)-SUM(I164:K164)+SUM(L164:L164) -> 1216
B165: - Art Works | D165: 0 | E165: 5714 | F165: 0 | G165: =D165+E165-F165 -> 5714 | H165: ='Capital Expenditure - Total'!$I$161 -> 43 | I165: 0 | J165: 0 | K165: 0 | L165: 0 | M165: =D165 -> 0 | N165: =E165+H165-I165 -> 5757 | O165: =F165+J165 -> 0 | P165: =SUM(M165:N165)-O165 -> 5757 | R165: =SUM(G165:H165)-SUM(I165:K165)+SUM(L165:L165) -> 5757
B166: - Bushfire equipment | D166: 2895 | E166: 0 | F166: 2688 | G166: =D166+E166-F166 -> 207 | H166: ='Capital Expenditure - Total'!$I$162 -> 0 | I166: 0 | J166: ='Note 4(d)'!G$29 -> 140 | K166: 0 | L166: 0 | M166: =D166+H166-I166 -> 2895 | N166: 0 | O166: =F166+J166 -> 2828 | P166: =SUM(M166:N166)-O166 -> 67 | R166: =SUM(G166:H166)-SUM(I166:K166)+SUM(L166:L166) -> 67
B167: - Musical instruments | D167: 86 | E167: 0 | F167: 88 | G167: =D167+E167-F167 -> -2 | H167: 0 | I167: 0 | J167: ='Note 4(d)'!G$30 -> 8 | K167: 0 | L167: 0 | M167: =D167+H167-I167 -> 86 | N167: 0 | O167: =F167+J167 -> 96 | P167: =SUM(M167:N167)-O167 -> -10 | R167: =SUM(G167:H167)-SUM(I167:K167)+SUM(L167:L167) -> -10
B168: Tip asset | D168: 4733 | E168: 0 | F168: 4733 | G168: =D168+E168-F168 -> 0 | H168: 0 | I168: 0 | J168: ='Note 4(d)'!G$26 -> 0 | K168: 0 | L168: 0 | M168: =D168+H168-I168 -> 4733 | N168: 0 | O168: =F168+J168 -> 4733 | P168: =SUM(M168:N168)-O168 -> 0 | R168: =SUM(G168:H168)-SUM(I168:K168)+SUM(L168:L168) -> 0 | T168: B Sheet | U168: Diff
A169: TOTALS | D169: =SUM(D150:D168) -> 18296 | E169: 1269296 | F169: 364282 | G169: 923310 | H169: 33131 | I169: 0 | J169: 18160 | K169: 0 | L169: 0 | M169: 19029 | N169: 1301694 | O169: 382442 | P169: 938281 | R169: =SUM(R150:R168) -> 938281 | T169: ='Balance Sheet'!I$28 -> 938281 | U169: =T169-P169 -> 0
D172: =M145 -> As at 30 June 2020 | H172: ="Movements during "&Calculations!I12 -> Movements during 2020/21 | M172: ="As at 30 June "&TEXT('Input Sheet'!I15,"###") -> As at 30 June 2021
D173: Cost/ | I173: WDV | L173: Revaluation | M173: Cost/
D174: deemed | E174: Fair | F174: Accum | I174: of | K174: Transfers/ | L174: increments/ | M174: deemed | N174: Fair | O174: Accum
B175: BY ASSET TYPE | D175: cost | E175: value | F175: Depn | G175: WDV | H175: Addtions | I175: disposals | J175: Depn | K175: adjustments | L175: decrements | M175: cost | N175: value | O175: Depn | P175: WDV | R175: Check
B177: Plant & equipment | D177: =M150 -> 0 | E177: 29061 | F177: 26210 | G177: =D177+E177-F177 -> 2851 | H177: ='Capital Expenditure - Total'!$J$153 -> 3142 | I177: 0 | J177: ='Note 4(d)'!H$19 -> 2974 | K177: 0 | L177: 0 | M177: =D177 -> 0 | N177: =E177+H177-I177 -> 32203 | O177: =F177+J177 -> 29184 | P177: =SUM(M177:N177)-O177 -> 3019 | R177: =SUM(G177:H177)-SUM(I177:K177)+SUM(L177:L177) -> 3019
B178: Office equipment | D178: 5483 | E178: 0 | F178: 3266 | G178: =D178+E178-F178 -> 2217 | H178: ='Capital Expenditure - Total'!$J$154 -> 398 | I178: 0 | J178: ='Note 4(d)'!H$21 -> 180 | K178: 0 | L178: 0 | M178: =D178+H178-I178 -> 5881 | N178: 0 | O178: =F178+J178 -> 3446 | P178: =SUM(M178:N178)-O178 -> 2435 | R178: =SUM(G178:H178)-SUM(I178:K178)+SUM(L178:L178) -> 2435
B179: Furniture and fittings | D179: 1433 | E179: 0 | F179: 1454 | G179: =D179+E179-F179 -> -21 | H179: ='Capital Expenditure - Total'!$J$155 -> 38 | I179: 0 | J179: ='Note 4(d)'!H$20 -> 72 | K179: 0 | L179: 0 | M179: =D179+H179-I179 -> 1471 | N179: 0 | O179: =F179+J179 -> 1526 | P179: =SUM(M179:N179)-O179 -> -55 | R179: =SUM(G179:H179)-SUM(I179:K179)+SUM(L179:L179) -> -55
B180: Land
B181: - Operational Land | D181: =M154 -> 0 | E181: 70798 | F181: 0 | G181: =D181+E181-F181 -> 70798 | H181: 0 | I181: 0 | J181: 0 | K181: 0 | L181: 0 | M181: =D181 -> 0 | N181: =E181+H181-I181 -> 70798 | O181: =F181+J181 -> 0 | P181: =SUM(M181:N181)-O181 -> 70798 | R181: =SUM(G181:H181)-SUM(I181:K181)+SUM(L181:L181) -> 70798
B182: - Community Land | D182: 0 | E182: 78093 | F182: 0 | G182: =D182+E182-F182 -> 78093 | H182: 0 | I182: 0 | J182: 0 | K182: 0 | L182: 0 | M182: =D182 -> 0 | N182: =E182+H182-I182 -> 78093 | O182: =F182+J182 -> 0 | P182: =SUM(M182:N182)-O182 -> 78093 | R182: =SUM(G182:H182)-SUM(I182:K182)+SUM(L182:L182) -> 78093
B183: Buildings
B184: - Non specialised | D184: =M157 -> 0 | E184: 69904 | F184: 34442 | G184: =D184+E184-F184 -> 35462 | H184: ='Capital Expenditure - Total'!$J$156 -> 1194 | I184: 0 | J184: ='Note 4(d)'!H$17 -> 777 | K184: 0 | L184: 0 | M184: =D184 -> 0 | N184: =E184+H184-I184 -> 71098 | O184: =F184+J184 -> 35219 | P184: =SUM(M184:N184)-O184 -> 35879 | R184: =SUM(G184:H184)-SUM(I184:K184)+SUM(L184:L184) -> 35879
B185: - Specialised | D185: 0 | E185: 53683 | F185: 37342 | G185: =D185+E185-F185 -> 16341 | H185: 0 | I185: 0 | J185: ='Note 4(d)'!H$18 -> 848 | K185: 0 | L185: 0 | M185: =D185 -> 0 | N185: =E185+H185-I185 -> 53683 | O185: =F185+J185 -> 38190 | P185: =SUM(M185:N185)-O185 -> 15493 | R185: =SUM(G185:H185)-SUM(I185:K185)+SUM(L185:L185) -> 15493
B186: Park equip & community improvements | D186: 0 | E186: 114952 | F186: 38513 | G186: =D186+E186-F186 -> 76439 | H186: ='Capital Expenditure - Total'!$J$157 -> 7873 | I186: 0 | J186: ='Note 4(d)'!H$25 -> 2436 | K186: 0 | L186: 0 | M186: =D186 -> 0 | N186: =E186+H186-I186 -> 122825 | O186: =F186+J186 -> 40949 | P186: =SUM(M186:N186)-O186 -> 81876 | R186: =SUM(G186:H186)-SUM(I186:K186)+SUM(L186:L186) -> 81876
B187: Infrastructure
B188: - Roads, bridges and footpaths | D188: =M161 -> 0 | E188: 729856 | F188: 208175 | G188: =D188+E188-F188 -> 521681 | H188: ='Capital Expenditure - Total'!$J$158 -> 22017 | I188: 0 | J188: ='Note 4(d)'!H$23 -> 10269 | K188: 0 | L188: 0 | M188: 0 | N188: =E188+H188-I188 -> 751873 | O188: =F188+J188 -> 218444 | P188: =SUM(M188:N188)-O188 -> 533429 | R188: =SUM(G188:H188)-SUM(I188:K188)+SUM(L188:L188) -> 533429
B189: - Storm water drainage | D189: 0 | E189: 149590 | F189: 22200 | G189: =D189+E189-F189 -> 127390 | H189: ='Capital Expenditure - Total'!$J$159 -> 700 | I189: 0 | J189: ='Note 4(d)'!H$24 -> 752 | K189: 0 | L189: 0 | M189: 0 | N189: =E189+H189-I189 -> 150290 | O189: =F189+J189 -> 22952 | P189: =SUM(M189:N189)-O189 -> 127338 | R189: =SUM(G189:H189)-SUM(I189:K189)+SUM(L189:L189) -> 127338
B190: Other assets
B191: - Library books | D191: =M164 -> 4399 | E191: 0 | F191: 3183 | G191: =D191+E191-F191 -> 1216 | H191: ='Capital Expenditure - Total'!$J$160 -> 312 | I191: 0 | J191: ='Note 4(d)'!H$28 -> 245 | K191: 0 | L191: 0 | M191: =D191+H191-I191 -> 4711 | N191: 0 | O191: =F191+J191 -> 3428 | P191: =SUM(M191:N191)-O191 -> 1283 | R191: =SUM(G191:H191)-SUM(I191:K191)+SUM(L191:L191) -> 1283
B192: - Art Works | D192: 0 | E192: 5757 | F192: 0 | G192: =D192+E192-F192 -> 5757 | H192: ='Capital Expenditure - Total'!$J$161 -> 44 | I192: 0 | J192: 0 | K192: 0 | L192: 0 | M192: =D192 -> 0 | N192: =E192+H192-I192 -> 5801 | O192: =F192+J192 -> 0 | P192: =SUM(M192:N192)-O192 -> 5801 | R192: =SUM(G192:H192)-SUM(I192:K192)+SUM(L192:L192) -> 5801
B193: - Bushfire equipment | D193: 2895 | E193: 0 | F193: 2828 | G193: =D193+E193-F193 -> 67 | H193: ='Capital Expenditure - Total'!$J$162 -> 0 | I193: 0 | J193: ='Note 4(d)'!H$29 -> 144 | K193: 0 | L193: 0 | M193: =D193+H193-I193 -> 2895 | N193: 0 | O193: =F193+J193 -> 2972 | P193: =SUM(M193:N193)-O193 -> -77 | R193: =SUM(G193:H193)-SUM(I193:K193)+SUM(L193:L193) -> -77
B194: - Musical instruments | D194: 86 | E194: 0 | F194: 96 | G194: =D194+E194-F194 -> -10 | H194: 0 | I194: 0 | J194: ='Note 4(d)'!H$30 -> 8 | K194: 0 | L194: 0 | M194: =D194+H194-I194 -> 86 | N194: 0 | O194: =F194+J194 -> 104 | P194: =SUM(M194:N194)-O194 -> -18 | R194: =SUM(G194:H194)-SUM(I194:K194)+SUM(L194:L194) -> -18
B195: Tip asset | D195: 4733 | E195: 0 | F195: 4733 | G195: =D195+E195-F195 -> 0 | H195: 0 | I195: 0 | J195: ='Note 4(d)'!H$26 -> 0 | K195: 0 | L195: 0 | M195: =D195+H195-I195 -> 4733 | N195: 0 | O195: =F195+J195 -> 4733 | P195: =SUM(M195:N195)-O195 -> 0 | R195: =SUM(G195:H195)-SUM(I195:K195)+SUM(L195:L195) -> 0 | T195: B Sheet | U195: Diff
A196: TOTALS | D196: =SUM(D177:D195) -> 19029 | E196: 1301694 | F196: 382442 | G196: 938281 | H196: 35718 | I196: 0 | J196: 18705 | K196: 0 | L196: 0 | M196: 19777 | N196: 1336664 | O196: 401147 | P196: 955294 | R196: =SUM(R177:R195) -> 955294 | T196: ='Balance Sheet'!J$28 -> 955294 | U196: =T196-P196 -> 0
D199: =M172 -> As at 30 June 2021 | H199: ="Movements during "&Calculations!J12 -> Movements during 2021/22 | M199: ="As at 30 June "&TEXT('Input Sheet'!J15,"###") -> As at 30 June 2022
D200: Cost/ | I200: WDV | L200: Revaluation | M200: Cost/
D201: deemed | E201: Fair | F201: Accum | I201: of | K201: Transfers/ | L201: increments/ | M201: deemed | N201: Fair | O201: Accum
B202: BY ASSET TYPE | D202: cost | E202: value | F202: Depn | G202: WDV | H202: Addtions | I202: disposals | J202: Depn | K202: adjustments | L202: decrements | M202: cost | N202: value | O202: Depn | P202: WDV | R202: Check
B204: Plant & equipment | D204: =M177 -> 0 | E204: 32203 | F204: 29184 | G204: =D204+E204-F204 -> 3019 | H204: ='Capital Expenditure - Total'!$K$153 -> 4079 | I204: 0 | J204: ='Note 4(d)'!I$19 -> 3063 | K204: 0 | L204: 0 | M204: =D204 -> 0 | N204: =E204+H204-I204 -> 36282 | O204: =F204+J204 -> 32247 | P204: =SUM(M204:N204)-O204 -> 4035 | R204: =SUM(G204:H204)-SUM(I204:K204)+SUM(L204:L204) -> 4035
B205: Office equipment | D205: 5881 | E205: 0 | F205: 3446 | G205: =D205+E205-F205 -> 2435 | H205: ='Capital Expenditure - Total'!$K$154 -> 403 | I205: 0 | J205: ='Note 4(d)'!I$21 -> 185 | K205: 0 | L205: 0 | M205: =D205+H205-I205 -> 6284 | N205: 0 | O205: =F205+J205 -> 3631 | P205: =SUM(M205:N205)-O205 -> 2653 | R205: =SUM(G205:H205)-SUM(I205:K205)+SUM(L205:L205) -> 2653
B206: Furniture and fittings | D206: 1471 | E206: 0 | F206: 1526 | G206: =D206+E206-F206 -> -55 | H206: ='Capital Expenditure - Total'!$K$155 -> 39 | I206: 0 | J206: ='Note 4(d)'!I$20 -> 74 | K206: 0 | L206: 0 | M206: =D206+H206-I206 -> 1510 | N206: 0 | O206: =F206+J206 -> 1600 | P206: =SUM(M206:N206)-O206 -> -90 | R206: =SUM(G206:H206)-SUM(I206:K206)+SUM(L206:L206) -> -90
B207: Land
B208: - Operational Land | D208: =M181 -> 0 | E208: 70798 | F208: 0 | G208: =D208+E208-F208 -> 70798 | H208: 0 | I208: 0 | J208: 0 | K208: 0 | L208: 0 | M208: =D208 -> 0 | N208: =E208+H208-I208 -> 70798 | O208: =F208+J208 -> 0 | P208: =SUM(M208:N208)-O208 -> 70798 | R208: =SUM(G208:H208)-SUM(I208:K208)+SUM(L208:L208) -> 70798
B209: - Community Land | D209: 0 | E209: 78093 | F209: 0 | G209: =D209+E209-F209 -> 78093 | H209: 0 | I209: 0 | J209: 0 | K209: 0 | L209: 0 | M209: =D209 -> 0 | N209: =E209+H209-I209 -> 78093 | O209: =F209+J209 -> 0 | P209: =SUM(M209:N209)-O209 -> 78093 | R209: =SUM(G209:H209)-SUM(I209:K209)+SUM(L209:L209) -> 78093
B210: Buildings
B211: - Non specialised | D211: =M184 -> 0 | E211: 71098 | F211: 35219 | G211: =D211+E211-F211 -> 35879 | H211: ='Capital Expenditure - Total'!$K$156 -> 1394 | I211: 0 | J211: ='Note 4(d)'!I$17 -> 800 | K211: 0 | L211: 0 | M211: =D211 -> 0 | N211: =E211+H211-I211 -> 72492 | O211: =F211+J211 -> 36019 | P211: =SUM(M211:N211)-O211 -> 36473 | R211: =SUM(G211:H211)-SUM(I211:K211)+SUM(L211:L211) -> 36473
B212: - Specialised | D212: 0 | E212: 53683 | F212: 38190 | G212: =D212+E212-F212 -> 15493 | H212: 0 | I212: 0 | J212: ='Note 4(d)'!I$18 -> 873 | K212: 0 | L212: 0 | M212: =D212 -> 0 | N212: =E212+H212-I212 -> 53683 | O212: =F212+J212 -> 39063 | P212: =SUM(M212:N212)-O212 -> 14620 | R212: =SUM(G212:H212)-SUM(I212:K212)+SUM(L212:L212) -> 14620
B213: Park equip & community improvements | D213: 0 | E213: 122825 | F213: 40949 | G213: =D213+E213-F213 -> 81876 | H213: ='Capital Expenditure - Total'!$K$157 -> 8358 | I213: 0 | J213: ='Note 4(d)'!I$25 -> 2509 | K213: 0 | L213: 0 | M213: =D213 -> 0 | N213: =E213+H213-I213 -> 131183 | O213: =F213+J213 -> 43458 | P213: =SUM(M213:N213)-O213 -> 87725 | R213: =SUM(G213:H213)-SUM(I213:K213)+SUM(L213:L213) -> 87725
B214: Infrastructure
B215: - Roads, bridges and footpaths | D215: =M188 -> 0 | E215: 751873 | F215: 218444 | G215: =D215+E215-F215 -> 533429 | H215: ='Capital Expenditure - Total'!$K$158 -> 20561 | I215: 0 | J215: ='Note 4(d)'!I$23 -> 10577 | K215: 0 | L215: 0 | M215: 0 | N215: =E215+H215-I215 -> 772434 | O215: =F215+J215 -> 229021 | P215: =SUM(M215:N215)-O215 -> 543413 | R215: =SUM(G215:H215)-SUM(I215:K215)+SUM(L215:L215) -> 543413
B216: - Storm water drainage | D216: 0 | E216: 150290 | F216: 22952 | G216: =D216+E216-F216 -> 127338 | H216: ='Capital Expenditure - Total'!$K$159 -> 731 | I216: 0 | J216: ='Note 4(d)'!I$24 -> 775 | K216: 0 | L216: 0 | M216: 0 | N216: =E216+H216-I216 -> 151021 | O216: =F216+J216 -> 23727 | P216: =SUM(M216:N216)-O216 -> 127294 | R216: =SUM(G216:H216)-SUM(I216:K216)+SUM(L216:L216) -> 127294
B217: Other assets
B218: - Library books | D218: =M191 -> 4711 | E218: 0 | F218: 3428 | G218: =D218+E218-F218 -> 1283 | H218: ='Capital Expenditure - Total'!$K$160 -> 321 | I218: 0 | J218: ='Note 4(d)'!I$28 -> 252 | K218: 0 | L218: 0 | M218: =D218+H218-I218 -> 5032 | N218: 0 | O218: =F218+J218 -> 3680 | P218: =SUM(M218:N218)-O218 -> 1352 | R218: =SUM(G218:H218)-SUM(I218:K218)+SUM(L218:L218) -> 1352
B219: - Art Works | D219: 0 | E219: 5801 | F219: 0 | G219: =D219+E219-F219 -> 5801 | H219: ='Capital Expenditure - Total'!$K$161 -> 45 | I219: 0 | J219: 0 | K219: 0 | L219: 0 | M219: =D219 -> 0 | N219: =E219+H219-I219 -> 5846 | O219: =F219+J219 -> 0 | P219: =SUM(M219:N219)-O219 -> 5846 | R219: =SUM(G219:H219)-SUM(I219:K219)+SUM(L219:L219) -> 5846
B220: - Bushfire equipment | D220: 2895 | E220: 0 | F220: 2972 | G220: =D220+E220-F220 -> -77 | H220: ='Capital Expenditure - Total'!$K$162 -> 0 | I220: 0 | J220: ='Note 4(d)'!I$29 -> 148 | K220: 0 | L220: 0 | M220: =D220+H220-I220 -> 2895 | N220: 0 | O220: =F220+J220 -> 3120 | P220: =SUM(M220:N220)-O220 -> -225 | R220: =SUM(G220:H220)-SUM(I220:K220)+SUM(L220:L220) -> -225
B221: - Musical instruments | D221: 86 | E221: 0 | F221: 104 | G221: =D221+E221-F221 -> -18 | H221: 0 | I221: 0 | J221: ='Note 4(d)'!I$30 -> 8 | K221: 0 | L221: 0 | M221: =D221+H221-I221 -> 86 | N221: 0 | O221: =F221+J221 -> 112 | P221: =SUM(M221:N221)-O221 -> -26 | R221: =SUM(G221:H221)-SUM(I221:K221)+SUM(L221:L221) -> -26
B222: Tip asset | D222: 4733 | E222: 0 | F222: 4733 | G222: =D222+E222-F222 -> 0 | H222: 0 | I222: 0 | J222: ='Note 4(d)'!I$26 -> 0 | K222: 0 | L222: 0 | M222: =D222+H222-I222 -> 4733 | N222: 0 | O222: =F222+J222 -> 4733 | P222: =SUM(M222:N222)-O222 -> 0 | R222: =SUM(G222:H222)-SUM(I222:K222)+SUM(L222:L222) -> 0 | T222: B Sheet | U222: Diff
A223: TOTALS | D223: =SUM(D204:D222) -> 19777 | E223: 1336664 | F223: 401147 | G223: 955294 | H223: 35931 | I223: 0 | J223: 19264 | K223: 0 | L223: 0 | M223: 20540 | N223: 1371832 | O223: 420411 | P223: 971961 | R223: =SUM(R204:R222) -> 971961 | T223: ='Balance Sheet'!K$28 -> 971961 | U223: =T223-P223 -> 0
D226: =M199 -> As at 30 June 2022 | H226: ="Movements during "&Calculations!K12 -> Movements during 2022/23 | M226: ="As at 30 June "&TEXT('Input Sheet'!K15,"###") -> As at 30 June 2023
... 47 more rows

Sheet Note 10 - Current
A1: =Calculations!A1 -> Maitland City Council
A2: =Calculations!A2 -> Long Term Financial Plan
A3: =Calculations!A3 -> For the period 2014/15 to 2023/24
A4: =Calculations!A4 -> 2014/15 Draft Budget
A5: =Calculations!A5 -> Option 2 - $25M Projects (Including $1.5M annual rent from 2015/16, 5 additional staff per year from 2015/16)
A6: =Calculations!A6 -> Year 1 to Year 7 - 7.25% Rate Increase (Adjustments to rates pie Yrs 1-7) (Additional farm adjustment) (Additional grants $13M & loans $38M)
A7: Note 10 Payables, borrowings and provisions - Current
C8: =Calculations!C$10 -> Year 1 | D8: =Calculations!D$10 -> Year 2 | E8: =Calculations!E$10 -> Year 3 | F8: =Calculations!F$10 -> Year 4 | G8: =Calculations!G$10 -> Year 5 | H8: =Calculations!H$10 -> Year 6 | I8: =Calculations!I$10 -> Year 7 | J8: =Calculations!J$10 -> Year 8 | K8: =Calculations!K$10 -> Year 9 | L8: =Calculations!L$10 -> Year 10
B9: ='Balance Sheet'!C11 -> Estimate | C9: =Calculations!C$11 -> Adopted | D9: =Calculations!D$11 -> Estimate | E9: =Calculations!E$11 -> Estimate | F9: =Calculations!F$11 -> Estimate | G9: =Calculations!G$11 -> Estimate | H9: =Calculations!H$11 -> Estimate | I9: =Calculations!I$11 -> Estimate | J9: =Calculations!J$11 -> Estimate | K9: =Calculations!K$11 -> Estimate | L9: =Calculations!L$11 -> Estimate
B10: ='Balance Sheet'!C12 -> 2013/14 | C10: =Calculations!C$12 -> 2014/15 | D10: =Calculations!D$12 -> 2015/16 | E10: =Calculations!E$12 -> 2016/17 | F10: =Calculations!F$12 -> 2017/18 | G10: =Calculations!G$12 -> 2018/19 | H10: =Calculations!H$12 -> 2019/20 | I10: =Calculations!I$12 -> 2020/21 | J10: =Calculations!J$12 -> 2021/22 | K10: =Calculations!K$12 -> 2022/23 | L10: =Calculations!L$12 -> 2023/24
B11: ($'000) | C11: ($'000) | D11: ($'000) | E11: ($'000) | F11: ($'000) | G11: ($'000) | H11: ($'000) | I11: ($'000) | J11: ($'000) | K11: ($'000) | L11: ($'000)
A13: Payables
A14: Goods and services | B14: ='Bal Sheet Calcs'!B130-B16 -> 4640 | C14: ='Income Statement'!C29*Calculations!C$33 -> 4105 | D14: ='Income Statement'!D29*Calculations!D$33 -> 4349 | E14: ='Income Statement'!E29*Calculations!E$33 -> 4548 | F14: ='Income Statement'!F29*Calculations!F$33 -> 4722 | G14: ='Income Statement'!G29*Calculations!G$33 -> 4898 | H14: ='Income Statement'!H29*Calculations!H$33 -> 5077 | I14: ='Income Statement'!I29*Calculations!I$33 -> 5258 | J14: ='Income Statement'!J29*Calculations!J$33 -> 5442 | K14: ='Income Statement'!K29*Calculations!K$33 -> 5629 | L14: ='Income Statement'!L29*Calculations!L$33 -> 5818
A15: Payments received in advance | B15: 0 | C15: 0 | D15: 0 | E15: 0 | F15: 0 | G15: 0 | H15: 0 | I15: 0 | J15: 0 | K15: 0 | L15: 0
A16: Accrued expenses | B16: ='Bal Sheet Calcs'!P51*Calculations!B33 -> 330 | C16: ='Income Statement'!C28*Calculations!C$33 -> 476 | D16: ='Income Statement'!D28*Calculations!D$33 -> 548 | E16: ='Income Statement'!E28*Calculations!E$33 -> 620 | F16: ='Income Statement'!F28*Calculations!F$33 -> 681 | G16: ='Income Statement'!G28*Calculations!G$33 -> 721 | H16: ='Income Statement'!H28*Calculations!H$33 -> 666 | I16: ='Income Statement'!I28*Calculations!I$33 -> 708 | J16: ='Income Statement'!J28*Calculations!J$33 -> 748 | K16: ='Income Statement'!K28*Calculations!K$33 -> 773 | L16: ='Income Statement'!L28*Calculations!L$33 -> 767
A18: Total payables | B18: =SUM(B14:B17) -> 4970 | C18: =SUM(C14:C17) -> 4581 | D18: =SUM(D14:D17) -> 4897 | E18: 5168 | F18: 5403 | G18: 5619 | H18: 5743 | I18: 5966 | J18: 6190 | K18: 6402 | L18: 6585
A20: Current payables not expected to be
A21: settled within the next 12 months | B21: 0 | C21: 0 | D21: 0 | E21: 0 | F21: 0 | G21: 0 | H21: 0 | I21: 0 | J21: 0 | K21: 0 | L21: 0
A23: Borrowings
A24: Projected cash shortfall | B24: =-'Bal Sheet Calcs'!B45 -> 0 | C24: =-'Bal Sheet Calcs'!C45 -> 0 | D24: =-'Bal Sheet Calcs'!D45 -> 0 | E24: =-'Bal Sheet Calcs'!E45 -> 0 | F24: =-'Bal Sheet Calcs'!F45 -> 0 | G24: =-'Bal Sheet Calcs'!G45 -> 0 | H24: =-'Bal Sheet Calcs'!H45 -> 0 | I24: =-'Bal Sheet Calcs'!I45 -> 0 | J24: =-'Bal Sheet Calcs'!J45 -> 0 | K24: =-'Bal Sheet Calcs'!K45 -> 0 | L24: =-'Bal Sheet Calcs'!L45 -> 0
A25: Loans:
A26: - Secured (1) | B26: ='Bal Sheet Calcs'!B75 -> 2511 | C26: ='Bal Sheet Calcs'!C75 -> 2669 | D26: ='Bal Sheet Calcs'!D75 -> 3185 | E26: ='Bal Sheet Calcs'!E75 -> 3421 | F26: ='Bal Sheet Calcs'!F75 -> 3611 | G26: ='Bal Sheet Calcs'!G75 -> 3976 | H26: ='Bal Sheet Calcs'!H75 -> 4142 | I26: ='Bal Sheet Calcs'!I75 -> 4560 | J26: ='Bal Sheet Calcs'!J75 -> 4985 | K26: ='Bal Sheet Calcs'!K75 -> 5549 | L26: ='Bal Sheet Calcs'!L75 -> 4763
A27: Hire purchase | B27: ='Bal Sheet Calcs'!B87 -> 623 | C27: ='Bal Sheet Calcs'!C87 -> 429 | D27: ='Bal Sheet Calcs'!D87 -> 596 | E27: ='Bal Sheet Calcs'!E87 -> 664 | F27: ='Bal Sheet Calcs'!F87 -> 701 | G27: ='Bal Sheet Calcs'!G87 -> 741 | H27: ='Bal Sheet Calcs'!H87 -> 591 | I27: ='Bal Sheet Calcs'!I87 -> 760 | J27: ='Bal Sheet Calcs'!J87 -> 773 | K27: ='Bal Sheet Calcs'!K87 -> 817 | L27: ='Bal Sheet Calcs'!L87 -> 880
A29: Total borrowings | B29: =SUM(B24:B28) -> 3134 | C29: =SUM(C24:C28) -> 3098 | D29: 3781 | E29: 4085 | F29: 4312 | G29: 4717 | H29: 4733 | I29: 5320 | J29: 5758 | K29: 6366 | L29: 5643
A32: Provisions (2)
A33: ELE | B33: ='Bal Sheet Calcs'!B135 -> 9546 | C33: ='Bal Sheet Calcs'!C135 -> 9999 | D33: ='Bal Sheet Calcs'!D135 -> 10474 | E33: ='Bal Sheet Calcs'!E135 -> 10998 | F33: ='Bal Sheet Calcs'!F135 -> 11548 | G33: ='Bal Sheet Calcs'!G135 -> 12125 | H33: ='Bal Sheet Calcs'!H135 -> 12731 | I33: ='Bal Sheet Calcs'!I135 -> 13368 | J33: ='Bal Sheet Calcs'!J135 -> 14036 | K33: ='Bal Sheet Calcs'!K135 -> 14738 | L33: ='Bal Sheet Calcs'!L135 -> 15475
A34: Tip remediation | B34: ='Bal Sheet Calcs'!B140 -> 0 | C34: ='Bal Sheet Calcs'!C140 -> 0 | D34: ='Bal Sheet Calcs'!D140 -> 0 | E34: ='Bal Sheet Calcs'!E140 -> 0 | F34: ='Bal Sheet Calcs'!F140 -> 0 | G34: ='Bal Sheet Calcs'!G140 -> 0 | H34: ='Bal Sheet Calcs'!H140 -> 0 | I34: ='Bal Sheet Calcs'!I140 -> 0 | J34: ='Bal Sheet Calcs'!J140 -> 0 | K34: ='Bal Sheet Calcs'!K140 -> 0 | L34: ='Bal Sheet Calcs'!L140 -> 0
A36: Total provisions | B36: =SUM(B33:B35) -> 9546 | C36: =SUM(C33:C35) -> 9999 | D36: 10474 | E36: 10998 | F36: 11548 | G36: 12125 | H36: 12731 | I36: 13368 | J36: 14036 | K36: 14738 | L36: 15475
A38: Current provisions not expected to be
A39: settled within the next 12 months | B39: =B36*0.75 -> 7160 | C39: =C36*0.75 -> 7499 | D39: =D36*0.75 -> 7856 | E39: 8249 | F39: 8661 | G39: 9094 | H39: 9548 | I39: 10026 | J39: 10527 | K39: 11054 | L39: 11606
A42: Liabilities relating to restricted assets
A43: Domestic waste management | B43: =B27*0.8 -> 498 | C43: =C27*0.8 -> 343 | D43: 477 | E43: 531 | F43: 561 | G43: 593 | H43: 473 | I43: 608 | J43: 618 | K43: 654 | L43: 704
A45: Total | B45: =SUM(B43:B44) -> 498 | C45: =SUM(C43:C44) -> 343 | D45: 477 | E45: 531 | F45: 561 | G45: 593 | H45: 473 | I45: 608 | J45: 618 | K45: 654 | L45: 704
A48: Notes:
A49: (1) Loans are secured over the rating income of Council.
A50: (2) Vested ELE is all carried as a current provision.

Sheet Note 10 - Non Current
A1: =Calculations!A1 -> Maitland City Council
A2: =Calculations!A2 -> Long Term Financial Plan
A3: =Calculations!A3 -> For the period 2014/15 to 2023/24
A4: =Calculations!A4 -> 2014/15 Draft Budget
A5: =Calculations!A5 -> Option 2 - $25M Projects (Including $1.5M annual rent from 2015/16, 5 additional staff per year from 2015/16)
A6: =Calculations!A6 -> Year 1 to Year 7 - 7.25% Rate Increase (Adjustments to rates pie Yrs 1-7) (Additional farm adjustment) (Additional grants $13M & loans $38M)
A7: Note 10 Payables, borrowings and provisions - Non current
C8: =Calculations!C$10 -> Year 1 | D8: =Calculations!D$10 -> Year 2 | E8: =Calculations!E$10 -> Year 3 | F8: =Calculations!F$10 -> Year 4 | G8: =Calculations!G$10 -> Year 5 | H8: =Calculations!H$10 -> Year 6 | I8: =Calculations!I$10 -> Year 7 | J8: =Calculations!J$10 -> Year 8 | K8: =Calculations!K$10 -> Year 9 | L8: =Calculations!L$10 -> Year 10
B9: ='Balance Sheet'!C11 -> Estimate | C9: =Calculations!C$11 -> Adopted | D9: =Calculations!D$11 -> Estimate | E9: =Calculations!E$11 -> Estimate | F9: =Calculations!F$11 -> Estimate | G9: =Calculations!G$11 -> Estimate | H9: =Calculations!H$11 -> Estimate | I9: =Calculations!I$11 -> Estimate | J9: =Calculations!J$11 -> Estimate | K9: =Calculations!K$11 -> Estimate | L9: =Calculations!L$11 -> Estimate
B10: ='Balance Sheet'!C12 -> 2013/14 | C10: =Calculations!C$12 -> 2014/15 | D10: =Calculations!D$12 -> 2015/16 | E10: =Calculations!E$12 -> 2016/17 | F10: =Calculations!F$12 -> 2017/18 | G10: =Calculations!G$12 -> 2018/19 | H10: =Calculations!H$12 -> 2019/20 | I10: =Calculations!I$12 -> 2020/21 | J10: =Calculations!J$12 -> 2021/22 | K10: =Calculations!K$12 -> 2022/23 | L10: =Calculations!L$12 -> 2023/24
B11: ($'000) | C11: ($'000) | D11: ($'000) | E11: ($'000) | F11: ($'000) | G11: ($'000) | H11: ($'000) | I11: ($'000) | J11: ($'000) | K11: ($'000) | L11: ($'000)
A13: Payables
A14: Goods and services | B14: 0 | C14: 0 | D14: 0 | E14: 0 | F14: 0 | G14: 0 | H14: 0 | I14: 0 | J14: 0 | K14: 0 | L14: 0
A15: Payments received in advance | B15: 0 | C15: 0 | D15: 0 | E15: 0 | F15: 0 | G15: 0 | H15: 0 | I15: 0 | J15: 0 | K15: 0 | L15: 0
A16: Accrued expenses | B16: 0 | C16: 0 | D16: 0 | E16: 0 | F16: 0 | G16: 0 | H16: 0 | I16: 0 | J16: 0 | K16: 0 | L16: 0
A18: Total payables | B18: =SUM(B14:B17) -> 0 | C18: 0 | D18: 0 | E18: 0 | F18: 0 | G18: 0 | H18: 0 | I18: 0 | J18: 0 | K18: 0 | L18: 0
A20: Current payables not expected to be
A21: settled within the next 12 months | B21: 0 | C21: 0 | D21: 0 | E21: 0 | F21: 0 | G21: 0 | H21: 0 | I21: 0 | J21: 0 | K21: 0 | L21: 0
A23: Borrowings
A24: Projected cash shortfall | B24: 0 | C24: 0 | D24: 0 | E24: 0 | F24: 0 | G24: 0 | H24: 0 | I24: 0 | J24: 0 | K24: 0 | L24: 0
A25: Loans:
A26: - Secured (1) | B26: ='Bal Sheet Calcs'!B76 -> 17623 | C26: ='Bal Sheet Calcs'!C76 -> 19754 | D26: ='Bal Sheet Calcs'!D76 -> 21369 | E26: ='Bal Sheet Calcs'!E76 -> 22748 | F26: ='Bal Sheet Calcs'!F76 -> 23937 | G26: ='Bal Sheet Calcs'!G76 -> 24761 | H26: ='Bal Sheet Calcs'!H76 -> 25419 | I26: ='Bal Sheet Calcs'!I76 -> 25659 | J26: ='Bal Sheet Calcs'!J76 -> 25474 | K26: ='Bal Sheet Calcs'!K76 -> 24725 | L26: ='Bal Sheet Calcs'!L76 -> 24762
A27: Hire purchase | B27: ='Bal Sheet Calcs'!B88 -> 429 | C27: ='Bal Sheet Calcs'!C88 -> 0 | D27: ='Bal Sheet Calcs'!D88 -> 369 | E27: ='Bal Sheet Calcs'!E88 -> 1649 | F27: ='Bal Sheet Calcs'!F88 -> 1332 | G27: ='Bal Sheet Calcs'!G88 -> 591 | H27: ='Bal Sheet Calcs'!H88 -> 0 | I27: ='Bal Sheet Calcs'!I88 -> 471 | J27: ='Bal Sheet Calcs'!J88 -> 1979 | K27: ='Bal Sheet Calcs'!K88 -> 1613 | L27: ='Bal Sheet Calcs'!L88 -> 733
A29: Total borrowings | B29: =SUM(B24:B28) -> 18052 | C29: 19754 | D29: 21738 | E29: 24397 | F29: 25269 | G29: 25352 | H29: 25419 | I29: 26130 | J29: 27453 | K29: 26338 | L29: 25495
A32: Provisions (2)
A33: ELE | B33: ='Bal Sheet Calcs'!B145 -> 275 | C33: ='Bal Sheet Calcs'!C145 -> 288 | D33: ='Bal Sheet Calcs'!D145 -> 302 | E33: ='Bal Sheet Calcs'!E145 -> 317 | F33: ='Bal Sheet Calcs'!F145 -> 333 | G33: ='Bal Sheet Calcs'!G145 -> 350 | H33: ='Bal Sheet Calcs'!H145 -> 368 | I33: ='Bal Sheet Calcs'!I145 -> 386 | J33: ='Bal Sheet Calcs'!J145 -> 405 | K33: ='Bal Sheet Calcs'!K145 -> 425 | L33: ='Bal Sheet Calcs'!L145 -> 446
A34: Tip remediation | B34: ='Bal Sheet Calcs'!B150 -> 7069 | C34: ='Bal Sheet Calcs'!C150 -> 7296 | D34: ='Bal Sheet Calcs'!D150 -> 7531 | E34: ='Bal Sheet Calcs'!E150 -> 7773 | F34: ='Bal Sheet Calcs'!F150 -> 8023 | G34: ='Bal Sheet Calcs'!G150 -> 8281 | H34: ='Bal Sheet Calcs'!H150 -> 8281 | I34: ='Bal Sheet Calcs'!I150 -> 8281 | J34: ='Bal Sheet Calcs'!J150 -> 8281 | K34: ='Bal Sheet Calcs'!K150 -> 8281 | L34: ='Bal Sheet Calcs'!L150 -> 8281
A36: Total provisions | B36: =SUM(B33:B35) -> 7344 | C36: 7584 | D36: 7833 | E36: 8090 | F36: 8356 | G36: 8631 | H36: 8649 | I36: 8667 | J36: 8686 | K36: 8706 | L36: 8727
A39: Liabilities relating to restricted assets
A40: Domestic waste management | B40: =B27*0.8 -> 343 | C40: =C27*0.8 -> 0 | D40: 295 | E40: 1319 | F40: 1066 | G40: 473 | H40: 0 | I40: 377 | J40: 1583 | K40: 1290 | L40: 586
A42: Total | B42: =SUM(B40:B41) -> 343 | C42: 0 | D42: 295 | E42: 1319 | F42: 1066 | G42: 473 | H42: 0 | I42: 377 | J42: 1583 | K42: 1290 | L42: 586
A45: Notes:
A46: (1) Loans are secured over the rating income of Council.
A47: (2) Vested ELE is all carried as a current provision.

Sheet Note 11
A1: =Calculations!A1 -> Maitland City Council
A2: =Calculations!A2 -> Long Term Financial Plan
A3: =Calculations!A3 -> For the period 2014/15 to 2023/24
A4: =Calculations!A4 -> 2014/15 Draft Budget
A5: =Calculations!A5 -> Option 2 - $25M Projects (Including $1.5M annual rent from 2015/16, 5 additional staff per year from 2015/16)
A6: =Calculations!A6 -> Year 1 to Year 7 - 7.25% Rate Increase (Adjustments to rates pie Yrs 1-7) (Additional farm adjustment) (Additional grants $13M & loans $38M)
A7: Note 11 Reconciliation of cash flow movements
C8: =Calculations!C$10 -> Year 1 | D8: =Calculations!D$10 -> Year 2 | E8: =Calculations!E$10 -> Year 3 | F8: =Calculations!F$10 -> Year 4 | G8: =Calculations!G$10 -> Year 5 | H8: =Calculations!H$10 -> Year 6 | I8: =Calculations!I$10 -> Year 7 | J8: =Calculations!J$10 -> Year 8 | K8: =Calculations!K$10 -> Year 9 | L8: =Calculations!L$10 -> Year 10
B9: ='Balance Sheet'!C11 -> Estimate | C9: =Calculations!C$11 -> Adopted | D9: =Calculations!D$11 -> Estimate | E9: =Calculations!E$11 -> Estimate | F9: =Calculations!F$11 -> Estimate | G9: =Calculations!G$11 -> Estimate | H9: =Calculations!H$11 -> Estimate | I9: =Calculations!I$11 -> Estimate | J9: =Calculations!J$11 -> Estimate | K9: =Calculations!K$11 -> Estimate | L9: =Calculations!L$11 -> Estimate
A10: (a) Reconciliation of cash assets | B10: ='Balance Sheet'!C12 -> 2013/14 | C10: =Calculations!C$12 -> 2014/15 | D10: =Calculations!D$12 -> 2015/16 | E10: =Calculations!E$12 -> 2016/17 | F10: =Calculations!F$12 -> 2017/18 | G10: =Calculations!G$12 -> 2018/19 | H10: =Calculations!H$12 -> 2019/20 | I10: =Calculations!I$12 -> 2020/21 | J10: =Calculations!J$12 -> 2021/22 | K10: =Calculations!K$12 -> 2022/23 | L10: =Calculations!L$12 -> 2023/24
B11: ($'000) | C11: ($'000) | D11: ($'000) | E11: ($'000) | F11: ($'000) | G11: ($'000) | H11: ($'000) | I11: ($'000) | J11: ($'000) | K11: ($'000) | L11: ($'000)
A13: Total cash and cash equivalents | B13: ='Note 6(a) - Current'!B17 -> 2200 | C13: ='Note 6(a) - Current'!C17 -> 2200 | D13: ='Note 6(a) - Current'!D17 -> 2200 | E13: ='Note 6(a) - Current'!E17 -> 2200 | F13: ='Note 6(a) - Current'!F17 -> 2200 | G13: ='Note 6(a) - Current'!G17 -> 2200 | H13: ='Note 6(a) - Current'!H17 -> 2200 | I13: ='Note 6(a) - Current'!I17 -> 2200 | J13: ='Note 6(a) - Current'!J17 -> 2200 | K13: ='Note 6(a) - Current'!K17 -> 2200 | L13: ='Note 6(a) - Current'!L17 -> 2200
A14: Less: Projected cash shortfall | B14: ='Note 10 - Current'!B24 -> 0 | C14: ='Note 10 - Current'!C24 -> 0 | D14: ='Note 10 - Current'!D24 -> 0 | E14: ='Note 10 - Current'!E24 -> 0 | F14: ='Note 10 - Current'!F24 -> 0 | G14: ='Note 10 - Current'!G24 -> 0 | H14: ='Note 10 - Current'!H24 -> 0 | I14: ='Note 10 - Current'!I24 -> 0 | J14: ='Note 10 - Current'!J24 -> 0 | K14: ='Note 10 - Current'!K24 -> 0 | L14: ='Note 10 - Current'!L24 -> 0
A15: Balances as per cash flow statement | B15: =B13-B14 -> 2200 | C15: =C13-C14 -> 2200 | D15: 2200 | E15: 2200 | F15: 2200 | G15: 2200 | H15: 2200 | I15: 2200 | J15: 2200 | K15: 2200 | L15: 2200
A17: (b) Reconciliation of net operating result to cash
A18: provided from operating activities
A20: Net operating result from Income statement | B20: 10445 | C20: ='Income Statement'!C35+'Income Statement'!C61 -> 8015 | D20: ='Income Statement'!D35+'Income Statement'!D61 -> 18760 | E20: ='Income Statement'!E35+'Income Statement'!E61 -> 16154 | F20: ='Income Statement'!F35+'Income Statement'!F61 -> 19409 | G20: ='Income Statement'!G35+'Income Statement'!G61 -> 13601 | H20: ='Income Statement'!H35+'Income Statement'!H61 -> 13082 | I20: ='Income Statement'!I35+'Income Statement'!I61 -> 13775 | J20: ='Income Statement'!J35+'Income Statement'!J61 -> 12964 | K20: ='Income Statement'!K35+'Income Statement'!K61 -> 11728 | L20: ='Income Statement'!L35+'Income Statement'!L61 -> 10385
A21: Add:
A22: Depreciation | B22: 12896 | C22: ='Income Statement'!C30 -> 15920 | D22: ='Income Statement'!D30 -> 16391 | E22: ='Income Statement'!E30 -> 16875 | F22: ='Income Statement'!F30 -> 17375 | G22: ='Income Statement'!G30 -> 17889 | H22: ='Income Statement'!H30 -> 18160 | I22: ='Income Statement'!I30 -> 18705 | J22: ='Income Statement'!J30 -> 19264 | K22: ='Income Statement'!K30 -> 19841 | L22: ='Income Statement'!L30 -> 20438
